Workbook

Sheet Utilisation DAEA (hidden)
P1: MODE D'EMPLOI POUR LES COMPTABLES DU RESEAU DAEA
P2: ETAPE 1 | Q2: Indiquez dans la cellule R17 que l'exploitation appartient au réseau comptable de la DAEA (choisissez "OUI" dans le menu déroulant)
P3: ETAPE 2 | Q3: Indiquez dans la cellule R18 le mode de production de l'activité viandeuse de l'exploitation (si elle est en conversion, choisissez "Conventionnel")
P4: ETAPE 3 | Q4: Indiquez dans la cellule R19 le numéro de l'exploitation que vous désirez analyser et cliquer sur le bouton "Récupération des données"
P5: ETAPE 4 | Q5: Les données comptables de l'exploitation sont automatiquement injectées dans le tableau ci-dessous (colonne U) et dans les tableaux comparatifs (= feuilles 1 à 4)
P6: Rem. :
Q7: ATTENTION : si l'exploitation dispose d'une activité autre que la production de viande bovine,
P8: ETAPE 5 | Q8: il est important de parcourir l'ensemble des données du tableau ci-dessous afin d'extraire uniquement les montants relatifs à l'activité de production viandeuse
Q9: En particulier, vérfier/valider les données des libellés en police ROUGE --> Les montants corrigés doivent être indiqués dans les celulles en VERT (colonne V) | S9: il est important de parcourir l'ensemble des données du tableau ci-dessous afin d'extraire uniquement les montants relatifs à l'activité de production viandeuse
Q10: Notez également que le contenu des cellules en ORANGE est le résultat d'un calcul, et est dès lors non modifiable
P12: ETAPE 6 | Q12: Finalement, pour valider les données comptables et générer le rapport, cliquez sur le bouton "Valider les données et imprimer le rapport" situé sous le tableau
Q17: Exploitation "DAEA" | R17: NON
Q18: Mode de production | R18: Conventionnel
A19: 2019 | D19: 2020 | G19: 2021 | J19: 2022 | M19: 2023 | Q19: Numéro de l'exploitation | R19: 66305
A20: B0000 | B20: 2019 | D20: B0000 | E20: 2020 | G20: B0000 | H20: 2021 | J20: b0000 | K20: 2022 | M20: b0000 | N20: 2023
A21: B0001 | B21: 66305 | D21: B0001 | E21: 66305 | G21: B0001 | H21: 66305 | J21: b0001 | K21: 66305 | M21: b0001 | N21: 66305 | T21: unité | U21: =W21 -> Moyenne annuelle 2019-2023 | V21: Moyenne annuelle 2019-2023 CORRIGÉE | W21: Moyenne annuelle 2019-2023 | X21: 2019 | Y21: 2020 | Z21: 2021 | AA21: 2022 | AB21: 2023 | AC21: Remarques et explications complémentaires
A22: b0002 | B22: 70.63 | D22: b0002 | E22: 69.56 | G22: b0002 | H22: 107.44 | J22: b0002 | K22: 117.52 | M22: b0002 | N22: 118.7 | Q22: DONNEES GENERALES
A23: b0003 | B23: 31059.26 | D23: b0003 | E23: 22916.62 | G23: b0003 | H23: 49183.78 | J23: b0003 | K23: 46935.67 | M23: b0003 | N23: 46593.07 | Q23: Mode de production | U23: =R18 -> Conventionnel | V23: =U23 -> Conventionnel
A24: b0004 | B24: 2.11 | D24: b0004 | E24: 2.11 | G24: b0004 | H24: 2.11 | J24: b0004 | K24: 2.11 | M24: b0004 | N24: 1.77 | Q24: Nombre d'ETP totaux présents sur l'exploitation (activité viande bovine) | S24: cr251 | U24: =IF(V24<>"",V24,W24) -> 2.042 | W24: =IFERROR(AVERAGE(X24:AB24),"") -> 2.042 | X24: =IFERROR(VLOOKUP($S24,A:B,2,0),"") -> 2.11 | Y24: =IFERROR(VLOOKUP($S24,D:E,2,0),"") -> 2.11 | Z24: =IFERROR(VLOOKUP($S24,G:H,2,0),"") -> 2.11 | AA24: =IFERROR(VLOOKUP($S24,J:K,2,0),"") -> 2.11 | AB24: =IFERROR(VLOOKUP($S24,M:N,2,0),"") -> 1.77
A25: b0005 | B25: 0 | D25: b0005 | E25: 0 | G25: b0005 | H25: 0 | J25: b0005 | K25: 0 | M25: b0005 | N25: 0 | Q25: Nombre d'ETP non salariés présents sur l'exploitation (activité viande bovine) | S25: cr250 | U25: =IF(V25<>"",V25,W25) -> 2.042 | W25: =IFERROR(AVERAGE(X25:AB25),"") -> 2.042 | X25: 2.11 | Y25: 2.11 | Z25: 2.11 | AA25: 2.11 | AB25: 1.77
A26: b0006 | B26: 0 | D26: b0006 | E26: 0 | G26: b0006 | H26: 0 | J26: b0006 | K26: 0 | M26: b0006 | N26: 0 | Q26: SAU | S26: cr202 | T26: ha | U26: =IF(V26<>"",V26,W26) -> 96.77 | W26: 96.77 | X26: 70.63 | Y26: 69.56 | Z26: 107.44 | AA26: 117.52 | AB26: 118.7
A27: b0007 | B27: 0 | D27: b0007 | E27: 0 | G27: b0007 | H27: 0 | J27: b0007 | K27: 0 | M27: b0007 | N27: 0 | Q27: Superficie sous labour | S27: cr209 | T27: ha | U27: 0 | W27: 0 | X27: 0 | Y27: 0 | Z27: 0 | AA27: 0 | AB27: 0
A28: b0008 | B28: 0 | D28: b0008 | E28: 0 | G28: b0008 | H28: 0 | J28: b0008 | K28: 0 | M28: b0008 | N28: 0 | Q28: Superficie fourragère totale pour les herbivores | S28: cr400 | T28: ha | U28: 96.77 | W28: 96.77 | X28: 70.63 | Y28: 69.56 | Z28: 107.44 | AA28: 117.52 | AB28: 118.7
A29: b0009 | B29: 0 | D29: b0009 | E29: 0 | G29: b0009 | H29: 0 | J29: b0009 | K29: 0 | M29: b0009 | N29: 0 | Q29: Superficie des cultures fourragères proprement dites | S29: cr218 | T29: ha | U29: =IF(V29<>"",V29,W29) -> 0 | W29: 0 | X29: 0 | Y29: 0 | Z29: 0 | AA29: 0 | AB29: 0
A30: b0010 | B30: 0 | D30: b0010 | E30: 0 | G30: b0010 | H30: 0 | J30: b0010 | K30: 0 | M30: b0010 | N30: 0 | Q30: Superficie des prairies temporaires | S30: cr219 | T30: ha | U30: 0 | W30: 0 | X30: 0 | Y30: 0 | Z30: 0 | AA30: 0 | AB30: 0
A31: b0011 | B31: 2.11 | D31: b0011 | E31: 2.11 | G31: b0011 | H31: 2.11 | J31: b0011 | K31: 2.11 | M31: b0011 | N31: 1.77 | Q31: Superficie des prairies permanentes | S31: cr220 | T31: ha | U31: =IF(V31<>"",V31,W31) -> 96.77 | W31: 96.77 | X31: 70.63 | Y31: 69.56 | Z31: 107.44 | AA31: 117.52 | AB31: 118.7 | AC31: vergers pâturés inclus
A32: b0012 | B32: 31059.26 | D32: b0012 | E32: 22916.62 | G32: b0012 | H32: 49183.78 | J32: b0012 | K32: 46935.67 | M32: b0012 | N32: 46593.07
A33: b0013 | B33: 0 | D33: b0013 | E33: 0 | G33: b0013 | H33: 0 | J33: b0013 | K33: 0 | M33: b0013 | N33: 0 | Q33: QUANTIFICATION DU TROUPEAU VIANDEUX | W33: =IFERROR(AVERAGE(X33:AB33),"") -> 
A34: b0014 | B34: 0 | D34: b0014 | E34: 0 | G34: b0014 | H34: 0 | J34: b0014 | K34: 0 | M34: b0014 | N34: 0 | Q34: UGBB | S34: cr367 | U34: =U35*0.9+(U36+U37)*0.2+U38*0.7+U39*0.5+(U40+U41)*0.9 -> 56.79 | W34: =W35*0.9+(W36+W37)*0.2+W38*0.7+W39*0.5+(W40+W41)*0.9 -> 56.79 | X34: 55.55 | Y34: 53.48 | Z34: 55.57 | AA34: 60.2 | AB34: 59.15
A35: b0015 | B35: 0 | D35: b0015 | E35: 0 | G35: b0015 | H35: 0 | J35: b0015 | K35: 0 | M35: b0015 | N35: 0 | Q35: Nombre de vaches nourrices | S35: b0613 | U35: =IF(V35<>"",V35,W35) -> 36.6 | W35: 36.6 | X35: =IFERROR(VLOOKUP($S35,A:B,2,0),"") -> 38 | Y35: =IFERROR(VLOOKUP($S35,D:E,2,0),"") -> 35.8 | Z35: =IFERROR(VLOOKUP($S35,G:H,2,0),"") -> 32.2 | AA35: =IFERROR(VLOOKUP($S35,J:K,2,0),"") -> 38.9 | AB35: =IFERROR(VLOOKUP($S35,M:N,2,0),"") -> 38.1
A36: b0016 | B36: 0 | D36: b0016 | E36: 0 | G36: b0016 | H36: 0 | J36: b0016 | K36: 0 | M36: b0016 | N36: 0 | Q36: Nombre de bovins mâles de < 1an | S36: b0603 | U36: =IF(V36<>"",V36,W36) -> 16 | W36: 16 | X36: 14.5 | Y36: 13.8 | Z36: 15.3 | AA36: 16.3 | AB36: 20.1
A37: b0017 | B37: 0 | D37: b0017 | E37: 0 | G37: b0017 | H37: 0 | J37: b0017 | K37: 0 | M37: b0017 | N37: 0 | Q37: Nombre de femelles de < 1 an | S37: b0604 | U37: 17.74 | W37: 17.74 | X37: 18.5 | Y37: 20 | Z37: 17.3 | AA37: 17.3 | AB37: 15.6
A38: b0018 | B38: 0 | D38: b0018 | E38: 0 | G38: b0018 | H38: 0 | J38: b0018 | K38: 0 | M38: b0018 | N38: 0 | Q38: Nombre de bovins mâles de 1 à 2 ans | S38: b0606 | U38: 2.5 | W38: 2.5 | X38: 2.5 | Y38: 4.8 | Z38: 1.4 | AA38: 0.8 | AB38: 3
A39: b0019 | B39: 0 | D39: b0019 | E39: 0 | G39: b0019 | H39: 0 | J39: b0019 | K39: 0 | M39: b0019 | N39: 0 | Q39: Nombre de femelles de 1 à 2 ans | S39: b0607 | U39: 11.84 | W39: 11.84 | X39: 8 | Y39: 9.5 | Z39: 16.4 | AA39: 10.8 | AB39: 14.5
A40: b0020 | B40: 0 | D40: b0020 | E40: 0 | G40: b0020 | H40: 0 | J40: b0020 | K40: 0 | M40: b0020 | N40: 0 | Q40: Nombre de bovins mâles de > 2 ans | S40: b0609 | U40: 3.84 | W40: 3.84 | X40: 2.5 | Y40: 3.1 | Z40: 4.2 | AA40: 5 | AB40: 4.4
A41: b0021 | B41: 0 | D41: b0021 | E41: 0 | G41: b0021 | H41: 0 | J41: b0021 | K41: 0 | M41: b0021 | N41: 0 | Q41: Nombre de génisses de > 2 ans | S41: b0610 | U41: 6.64 | W41: 6.64 | X41: 7.5 | Y41: 4 | Z41: 7.9 | AA41: 8.9 | AB41: 4.9
A42: b0022 | B42: 0 | D42: b0022 | E42: 0 | G42: b0022 | H42: 0 | J42: b0022 | K42: 0 | M42: b0022 | N42: 0
A43: b0023 | B43: 0 | D43: b0023 | E43: 0 | G43: b0023 | H43: 0 | J43: b0023 | K43: 0 | M43: b0023 | N43: 0 | Q43: ACHATS ET VENTES DE BETAIL VIANDEUX
A44: b0024 | B44: 0 | D44: b0024 | E44: 0 | G44: b0024 | H44: 0 | J44: b0024 | K44: 0 | M44: b0024 | N44: 0
A45: b0025 | B45: 0 | D45: b0025 | E45: 0 | G45: b0025 | H45: 0 | J45: b0025 | K45: 0 | M45: b0025 | N45: 0 | Q45: TOTAL DES ACHATS DE BOVINS | U45: =SUM(U46:U52) -> 16302.6
A46: b0026 | B46: 0 | D46: b0026 | E46: 0 | G46: b0026 | H46: 0 | J46: b0026 | K46: 0 | M46: b0026 | N46: 0 | Q46: Valeur totale des achats de vaches nourrices | S46: b0503 | T46: €/an | U46: =IF(V46<>"",V46,W46) -> 150 | W46: =IFERROR(AVERAGE(X46:AB46),"") -> 150 | X46: =IFERROR(VLOOKUP($S46,A:B,2,0),"") -> 0 | Y46: =IFERROR(VLOOKUP($S46,D:E,2,0),"") -> 0 | Z46: =IFERROR(VLOOKUP($S46,G:H,2,0),"") -> 0 | AA46: =IFERROR(VLOOKUP($S46,J:K,2,0),"") -> 750 | AB46: =IFERROR(VLOOKUP($S46,M:N,2,0),"") -> 0
A47: b0027 | B47: 0 | D47: b0027 | E47: 0 | G47: b0027 | H47: 0 | J47: b0027 | K47: 0 | M47: b0027 | N47: 0 | Q47: Valeur totale des achats des bovins mâles de < 1an | S47: b0359 | T47: €/an | U47: =IF(V47<>"",V47,W47) -> 1094.8 | W47: 1094.8 | X47: 0 | Y47: 3964 | Z47: 1510 | AA47: 0 | AB47: 0 | AC47: veaux mâles y compris
A48: b0028 | B48: 0 | D48: b0028 | E48: 0 | G48: b0028 | H48: 0 | J48: b0028 | K48: 0 | M48: b0028 | N48: 0 | Q48: Valeur totale des achats des bovins femelles de < 1an | S48: b0383 | T48: €/an | U48: 1454 | W48: 1454 | X48: 0 | Y48: 2640 | Z48: 2830 | AA48: 0 | AB48: 1800 | AC48: veaux femelles y compris
A49: b0029 | B49: 0 | D49: b0029 | E49: 0 | G49: b0029 | H49: 0 | J49: b0029 | K49: 0 | M49: b0029 | N49: 0 | Q49: Valeur totale des achats des bovins mâles de 1 à 2 ans | S49: b0407 | T49: €/an | U49: 2664.8 | W49: 2664.8 | X49: 3302 | Y49: 3623 | Z49: 3019 | AA49: 0 | AB49: 3380
A50: b0030 | B50: 0 | D50: b0030 | E50: 0 | G50: b0030 | H50: 0 | J50: b0030 | K50: 0 | M50: b0030 | N50: 0 | Q50: Valeur totale des achats des bovins femelles de 1 à 2 ans | S50: b0421 | T50: €/an | U50: 8429.6 | W50: 8429.6 | X50: 8187 | Y50: 15146 | Z50: 5440 | AA50: 11932 | AB50: 1443
A51: b0031 | B51: 0 | D51: b0031 | E51: 0 | G51: b0031 | H51: 0 | J51: b0031 | K51: 0 | M51: b0031 | N51: 0 | Q51: Valeur totale des achats des bovins mâles de > 2 ans | S51: b0455 | T51: €/an | U51: 1377.4 | W51: 1377.4 | X51: 3585 | Y51: 3302 | Z51: 0 | AA51: 0 | AB51: 0
A52: b0032 | B52: 0 | D52: b0032 | E52: 0 | G52: b0032 | H52: 0 | J52: b0032 | K52: 0 | M52: b0032 | N52: 0 | Q52: Valeur totale des achats des bovins femelles de > 2 ans | S52: b0467 | T52: €/an | U52: 1132 | W52: 1132 | X52: 0 | Y52: 0 | Z52: 5660 | AA52: 0 | AB52: 0
A53: b0033 | B53: 0 | D53: b0033 | E53: 0 | G53: b0033 | H53: 0 | J53: b0033 | K53: 0 | M53: b0033 | N53: 0
A54: b0034 | B54: 0 | D54: b0034 | E54: 0 | G54: b0034 | H54: 0 | J54: b0034 | K54: 0 | M54: b0034 | N54: 0 | Q54: TOTAL DES VENTES DE BOVINS, par catégorie d'âge | U54: =U56+U59+U62+U65+U68+U71+U74 -> 62106.4
A55: b0035 | B55: 0 | D55: b0035 | E55: 0 | G55: b0035 | H55: 0 | J55: b0035 | K55: 0 | M55: b0035 | N55: 0 | Q55: Nombre de vaches nourrices vendues | S55: b0504 | T55: nb | U55: =IF(V55<>"",V55,W55) -> 9.2 | W55: =IFERROR(AVERAGE(X55:AB55),"") -> 9.2 | X55: =IFERROR(VLOOKUP($S55,A:B,2,0),"") -> 7 | Y55: =IFERROR(VLOOKUP($S55,D:E,2,0),"") -> 10 | Z55: =IFERROR(VLOOKUP($S55,G:H,2,0),"") -> 7 | AA55: =IFERROR(VLOOKUP($S55,J:K,2,0),"") -> 10 | AB55: =IFERROR(VLOOKUP($S55,M:N,2,0),"") -> 12
A56: b0036 | B56: 0 | D56: b0036 | E56: 0 | G56: b0036 | H56: 0 | J56: b0036 | K56: 0 | M56: b0036 | N56: 0 | Q56: Valeur totale des ventes de vaches nourrices | S56: b0505 | T56: €/an | U56: =IF(V56<>"",V56,W56) -> 17531.2 | W56: 17531.2 | X56: =IFERROR(VLOOKUP($S56,A:B,2,0),"") -> 9170 | Y56: =IFERROR(VLOOKUP($S56,D:E,2,0),"") -> 15515 | Z56: =IFERROR(VLOOKUP($S56,G:H,2,0),"") -> 13453 | AA56: =IFERROR(VLOOKUP($S56,J:K,2,0),"") -> 23490 | AB56: =IFERROR(VLOOKUP($S56,M:N,2,0),"") -> 26028
A57: b0037 | B57: 0 | D57: b0037 | E57: 0 | G57: b0037 | H57: 0 | J57: b0037 | K57: 0 | M57: b0037 | N57: 0
A58: b0038 | B58: 0 | D58: b0038 | E58: 0 | G58: b0038 | H58: 0 | J58: b0038 | K58: 0 | M58: b0038 | N58: 0 | Q58: Nombre de bovins mâles vendus ( < 1 an) | S58: b0360 | T58: nb | U58: =IF(V58<>"",V58,W58) -> 10.8 | W58: 10.8 | X58: =IFERROR(VLOOKUP($S58,A:B,2,0),"") -> 8 | Y58: =IFERROR(VLOOKUP($S58,D:E,2,0),"") -> 11 | Z58: =IFERROR(VLOOKUP($S58,G:H,2,0),"") -> 13 | AA58: =IFERROR(VLOOKUP($S58,J:K,2,0),"") -> 8 | AB58: =IFERROR(VLOOKUP($S58,M:N,2,0),"") -> 14
A59: b0039 | B59: 0 | D59: b0039 | E59: 0 | G59: b0039 | H59: 0 | J59: b0039 | K59: 0 | M59: b0039 | N59: 0 | Q59: Valeur totale des ventes des bovins mâles de < 1an | S59: b0361 | T59: €/an | U59: =IF(V59<>"",V59,W59) -> 16816.2 | W59: 16816.2 | X59: 10422 | Y59: =IFERROR(VLOOKUP($S59,D:E,2,0),"") -> 16529 | Z59: =IFERROR(VLOOKUP($S59,G:H,2,0),"") -> 18815 | AA59: =IFERROR(VLOOKUP($S59,J:K,2,0),"") -> 13856 | AB59: =IFERROR(VLOOKUP($S59,M:N,2,0),"") -> 24459
A60: b0040 | B60: 0 | D60: b0040 | E60: 0 | G60: b0040 | H60: 0 | J60: b0040 | K60: 0 | M60: b0040 | N60: 0
A61: b0041 | B61: 0 | D61: b0041 | E61: 0 | G61: b0041 | H61: 0 | J61: b0041 | K61: 0 | M61: b0041 | N61: 0 | Q61: Nombre de bovins femelles vendus ( < 1 an) | S61: b0384 | T61: nb | U61: =IF(V61<>"",V61,W61) -> 3.2 | W61: 3.2 | X61: 6 | Y61: =IFERROR(VLOOKUP($S61,D:E,2,0),"") -> 3 | Z61: =IFERROR(VLOOKUP($S61,G:H,2,0),"") -> 5 | AA61: =IFERROR(VLOOKUP($S61,J:K,2,0),"") -> 2 | AB61: =IFERROR(VLOOKUP($S61,M:N,2,0),"") -> 0
A62: b0042 | B62: 0 | D62: b0042 | E62: 0 | G62: b0042 | H62: 0 | J62: b0042 | K62: 0 | M62: b0042 | N62: 0 | Q62: Valeur totale des ventes des bovins femelles de < 1an | S62: b0385 | T62: €/an | U62: =IF(V62<>"",V62,W62) -> 3166.2 | W62: 3166.2 | X62: 4801 | Y62: =IFERROR(VLOOKUP($S62,D:E,2,0),"") -> 3154 | Z62: =IFERROR(VLOOKUP($S62,G:H,2,0),"") -> 5591 | AA62: =IFERROR(VLOOKUP($S62,J:K,2,0),"") -> 2285 | AB62: =IFERROR(VLOOKUP($S62,M:N,2,0),"") -> 0
A63: b0043 | B63: 0 | D63: b0043 | E63: 0 | G63: b0043 | H63: 0 | J63: b0043 | K63: 0 | M63: b0043 | N63: 0
A64: b0044 | B64: 0 | D64: b0044 | E64: 0 | G64: b0044 | H64: 0 | J64: b0044 | K64: 0 | M64: b0044 | N64: 0 | Q64: Nombre de bovins mâles vendus ( 1 à 2 ans) | S64: b0408 | T64: nb | U64: =IF(V64<>"",V64,W64) -> 6.2 | W64: =IFERROR(AVERAGE(X64:AB64),"") -> 6.2 | X64: 7 | Y64: =IFERROR(VLOOKUP($S64,D:E,2,0),"") -> 5 | Z64: =IFERROR(VLOOKUP($S64,G:H,2,0),"") -> 9 | AA64: =IFERROR(VLOOKUP($S64,J:K,2,0),"") -> 8 | AB64: =IFERROR(VLOOKUP($S64,M:N,2,0),"") -> 2
A65: b0045 | B65: 0 | D65: b0045 | E65: 0 | G65: b0045 | H65: 0 | J65: b0045 | K65: 0 | M65: b0045 | N65: 0 | Q65: Valeur totale des ventes des bovins mâles de 1 à 2 ans | S65: b0409 | T65: €/an | U65: =IF(V65<>"",V65,W65) -> 11447 | W65: =IFERROR(AVERAGE(X65:AB65),"") -> 11447 | X65: 12300 | Y65: =IFERROR(VLOOKUP($S65,D:E,2,0),"") -> 9195 | Z65: =IFERROR(VLOOKUP($S65,G:H,2,0),"") -> 15300 | AA65: =IFERROR(VLOOKUP($S65,J:K,2,0),"") -> 15837 | AB65: =IFERROR(VLOOKUP($S65,M:N,2,0),"") -> 4603
A66: b0046 | B66: 0 | D66: b0046 | E66: 0 | G66: b0046 | H66: 0 | J66: b0046 | K66: 0 | M66: b0046 | N66: 0
A67: b0047 | B67: 0 | D67: b0047 | E67: 0 | G67: b0047 | H67: 0 | J67: b0047 | K67: 0 | M67: b0047 | N67: 0 | Q67: Nombre de bovins femelles vendus ( 1 à 2 ans) | S67: b0420 | T67: nb | U67: =IF(V67<>"",V67,W67) -> 6.4 | W67: =IFERROR(AVERAGE(X67:AB67),"") -> 6.4 | X67: 7 | Y67: =IFERROR(VLOOKUP($S67,D:E,2,0),"") -> 12 | Z67: =IFERROR(VLOOKUP($S67,G:H,2,0),"") -> 4 | AA67: =IFERROR(VLOOKUP($S67,J:K,2,0),"") -> 8 | AB67: =IFERROR(VLOOKUP($S67,M:N,2,0),"") -> 1
A68: b0048 | B68: 0 | D68: b0048 | E68: 0 | G68: b0048 | H68: 0 | J68: b0048 | K68: 0 | M68: b0048 | N68: 0 | Q68: Valeur totale des ventes des bovins femelles de 1 à 2 ans | S68: b0421 | T68: €/an | U68: =IF(V68<>"",V68,W68) -> 8429.6 | W68: =IFERROR(AVERAGE(X68:AB68),"") -> 8429.6 | X68: 8187 | Y68: =IFERROR(VLOOKUP($S68,D:E,2,0),"") -> 15146 | Z68: =IFERROR(VLOOKUP($S68,G:H,2,0),"") -> 5440 | AA68: =IFERROR(VLOOKUP($S68,J:K,2,0),"") -> 11932 | AB68: =IFERROR(VLOOKUP($S68,M:N,2,0),"") -> 1443
A69: b0049 | B69: 0 | D69: b0049 | E69: 0 | G69: b0049 | H69: 0 | J69: b0049 | K69: 0 | M69: b0049 | N69: 0
A70: b0050 | B70: 0 | D70: b0050 | E70: 0 | G70: b0050 | H70: 0 | J70: b0050 | K70: 0 | M70: b0050 | N70: 0 | Q70: Nombre de bovins mâles vendus (> 2 ans) | S70: b0456 | T70: nb | U70: =IF(V70<>"",V70,W70) -> 1.4 | W70: =IFERROR(AVERAGE(X70:AB70),"") -> 1.4 | X70: 3 | Y70: =IFERROR(VLOOKUP($S70,D:E,2,0),"") -> 1 | Z70: =IFERROR(VLOOKUP($S70,G:H,2,0),"") -> 2 | AA70: =IFERROR(VLOOKUP($S70,J:K,2,0),"") -> 0 | AB70: =IFERROR(VLOOKUP($S70,M:N,2,0),"") -> 1
A71: b0051 | B71: 0 | D71: b0051 | E71: 0 | G71: b0051 | H71: 0 | J71: b0051 | K71: 0 | M71: b0051 | N71: 0 | Q71: Valeur totale des ventes des bovins mâles de > 2 ans | S71: b0457 | T71: €/an | U71: =IF(V71<>"",V71,W71) -> 3399.2 | W71: 3399.2 | X71: 7415 | Y71: =IFERROR(VLOOKUP($S71,D:E,2,0),"") -> 3750 | Z71: =IFERROR(VLOOKUP($S71,G:H,2,0),"") -> 4200 | AA71: =IFERROR(VLOOKUP($S71,J:K,2,0),"") -> 0 | AB71: =IFERROR(VLOOKUP($S71,M:N,2,0),"") -> 1631
A72: b0052 | B72: 0 | D72: b0052 | E72: 0 | G72: b0052 | H72: 0 | J72: b0052 | K72: 0 | M72: b0052 | N72: 0
A73: b0053 | B73: 0 | D73: b0053 | E73: 0 | G73: b0053 | H73: 0 | J73: b0053 | K73: 0 | M73: b0053 | N73: 0 | Q73: Nombre de bovins femelles vendus (> 2 ans) | S73: b0468 | T73: nb | U73: =IF(V73<>"",V73,W73) -> 1 | W73: 1 | X73: 0 | Y73: =IFERROR(VLOOKUP($S73,D:E,2,0),"") -> 0 | Z73: =IFERROR(VLOOKUP($S73,G:H,2,0),"") -> 4 | AA73: =IFERROR(VLOOKUP($S73,J:K,2,0),"") -> 1 | AB73: =IFERROR(VLOOKUP($S73,M:N,2,0),"") -> 0 | AC73: uniquement les génisses
A74: b0054 | B74: 0 | D74: b0054 | E74: 0 | G74: b0054 | H74: 0 | J74: b0054 | K74: 0 | M74: b0054 | N74: 0 | Q74: Valeur totale des ventes des bovins femelles de > 2 ans | S74: b0469 | T74: €/an | U74: =IF(V74<>"",V74,W74) -> 1317 | W74: 1317 | X74: 0 | Y74: =IFERROR(VLOOKUP($S74,D:E,2,0),"") -> 0 | Z74: =IFERROR(VLOOKUP($S74,G:H,2,0),"") -> 5768 | AA74: =IFERROR(VLOOKUP($S74,J:K,2,0),"") -> 817 | AB74: =IFERROR(VLOOKUP($S74,M:N,2,0),"") -> 0
A75: b0055 | B75: 0 | D75: b0055 | E75: 0 | G75: b0055 | H75: 0 | J75: b0055 | K75: 0 | M75: b0055 | N75: 0
A76: b0056 | B76: 0 | D76: b0056 | E76: 0 | G76: b0056 | H76: 0 | J76: b0056 | K76: 0 | M76: b0056 | N76: 0 | Q76: DETAIL DES VENTES DE BOVINS, par type
A77: b0057 | B77: 0 | D77: b0057 | E77: 0 | G77: b0057 | H77: 0 | J77: b0057 | K77: 0 | M77: b0057 | N77: 0 | Q77: Nombre de veaux vendus (< 28 jours) | S77: b0706 | T77: nb | U77: =IF(V77<>"",V77,W77) -> 0.2 | W77: =IFERROR(AVERAGE(X77:AB77),"") -> 0.2 | X77: =IFERROR(VLOOKUP($S77,A:B,2,0),"") -> 0 | Y77: =IFERROR(VLOOKUP($S77,D:E,2,0),"") -> 1 | Z77: =IFERROR(VLOOKUP($S77,G:H,2,0),"") -> 0 | AA77: =IFERROR(VLOOKUP($S77,J:K,2,0),"") -> 0 | AB77: =IFERROR(VLOOKUP($S77,M:N,2,0),"") -> 0
A78: b0058 | B78: 0 | D78: b0058 | E78: 0 | G78: b0058 | H78: 0 | J78: b0058 | K78: 0 | M78: b0058 | N78: 0 | Q78: Valeur totale des ventes de veaux | S78: b0707 | T78: €/an | U78: =IF(V78<>"",V78,W78) -> 100 | W78: 100 | X78: 0 | Y78: =IFERROR(VLOOKUP($S78,D:E,2,0),"") -> 500 | Z78: =IFERROR(VLOOKUP($S78,G:H,2,0),"") -> 0 | AA78: =IFERROR(VLOOKUP($S78,J:K,2,0),"") -> 0 | AB78: =IFERROR(VLOOKUP($S78,M:N,2,0),"") -> 0
A79: b0059 | B79: 0 | D79: b0059 | E79: 0 | G79: b0059 | H79: 0 | J79: b0059 | K79: 0 | M79: b0059 | N79: 0
A80: b0060 | B80: 0 | D80: b0060 | E80: 0 | G80: b0060 | H80: 0 | J80: b0060 | K80: 0 | M80: b0060 | N80: 0 | Q80: Nombre de taureaux maigres vendus | S80: b0708 | T80: nb | U80: =IF(V80<>"",V80,W80) -> 5.4 | W80: 5.4 | X80: 6 | Y80: =IFERROR(VLOOKUP($S80,D:E,2,0),"") -> 2 | Z80: =IFERROR(VLOOKUP($S80,G:H,2,0),"") -> 13 | AA80: =IFERROR(VLOOKUP($S80,J:K,2,0),"") -> 5 | AB80: =IFERROR(VLOOKUP($S80,M:N,2,0),"") -> 1
A81: b0061 | B81: 0 | D81: b0061 | E81: 0 | G81: b0061 | H81: 0 | J81: b0061 | K81: 0 | M81: b0061 | N81: 0 | Q81: Valeur totale des ventes des taureaux maigres | S81: b0709 | T81: €/an | U81: =IF(V81<>"",V81,W81) -> 10340.6 | W81: 10340.6 | X81: 11683 | Y81: =IFERROR(VLOOKUP($S81,D:E,2,0),"") -> 3500 | Z81: =IFERROR(VLOOKUP($S81,G:H,2,0),"") -> 20065 | AA81: =IFERROR(VLOOKUP($S81,J:K,2,0),"") -> 13450 | AB81: =IFERROR(VLOOKUP($S81,M:N,2,0),"") -> 3005
A82: b0062 | B82: 0 | D82: b0062 | E82: 0 | G82: b0062 | H82: 0 | J82: b0062 | K82: 0 | M82: b0062 | N82: 0
A83: b0063 | B83: 0 | D83: b0063 | E83: 0 | G83: b0063 | H83: 0 | J83: b0063 | K83: 0 | M83: b0063 | N83: 0 | Q83: Nombre de taureaux gras vendus | S83: b0710 | T83: nb | U83: =IF(V83<>"",V83,W83) -> 10.6 | W83: 10.6 | X83: 6 | Y83: =IFERROR(VLOOKUP($S83,D:E,2,0),"") -> 13 | Z83: =IFERROR(VLOOKUP($S83,G:H,2,0),"") -> 8 | AA83: =IFERROR(VLOOKUP($S83,J:K,2,0),"") -> 11 | AB83: =IFERROR(VLOOKUP($S83,M:N,2,0),"") -> 15
A84: b0064 | B84: 0 | D84: b0064 | E84: 0 | G84: b0064 | H84: 0 | J84: b0064 | K84: 0 | M84: b0064 | N84: 0 | Q84: Valeur totale des ventes des taureaux gras | S84: b0712 | T84: €/an | U84: =IF(V84<>"",V84,W84) -> 16828.2 | W84: 16828.2 | X84: 9067 | Y84: =IFERROR(VLOOKUP($S84,D:E,2,0),"") -> 20224 | Z84: =IFERROR(VLOOKUP($S84,G:H,2,0),"") -> 12550 | AA84: =IFERROR(VLOOKUP($S84,J:K,2,0),"") -> 16243 | AB84: =IFERROR(VLOOKUP($S84,M:N,2,0),"") -> 26057
A85: b0065 | B85: 0 | D85: b0065 | E85: 0 | G85: b0065 | H85: 0 | J85: b0065 | K85: 0 | M85: b0065 | N85: 0 | Q85: Poids vif total des taureaux gras vendus | S85: b0711 | T85: kg, vif | U85: =IF(V85<>"",V85,W85) -> 3194.8 | W85: 3194.8 | X85: 1929 | Y85: =IFERROR(VLOOKUP($S85,D:E,2,0),"") -> 3584 | Z85: =IFERROR(VLOOKUP($S85,G:H,2,0),"") -> 2513 | AA85: =IFERROR(VLOOKUP($S85,J:K,2,0),"") -> 2970 | AB85: =IFERROR(VLOOKUP($S85,M:N,2,0),"") -> 4978
A86: b0066 | B86: 0 | D86: b0066 | E86: 0 | G86: b0066 | H86: 0 | J86: b0066 | K86: 0 | M86: b0066 | N86: 0
A87: b0067 | B87: 0 | D87: b0067 | E87: 0 | G87: b0067 | H87: 0 | J87: b0067 | K87: 0 | M87: b0067 | N87: 0 | Q87: INDICES TECHNIQUES DU TROUPEAU VIANDEUX | W87: =IFERROR(AVERAGE(X87:AB87),"") ->  | X87: =IFERROR(VLOOKUP($S87,A:B,2,0),"") -> 
A88: b0068 | B88: 0 | D88: b0068 | E88: 0 | G88: b0068 | H88: 0 | J88: b0068 | K88: 0 | M88: b0068 | N88: 0 | Q88: Âge moyen des vaches réformées | S88: cr547 | T88: années | U88: =IF(V88<>"",V88,W88) -> 7.6 | W88: 7.6 | X88: =IFERROR(VLOOKUP($S88,A:B,2,0),"") -> 8 | Y88: =IFERROR(VLOOKUP($S88,D:E,2,0),"") -> 10 | Z88: =IFERROR(VLOOKUP($S88,G:H,2,0),"") -> 6 | AA88: =IFERROR(VLOOKUP($S88,J:K,2,0),"") -> 9 | AB88: =IFERROR(VLOOKUP($S88,M:N,2,0),"") -> 5
A89: b0069 | B89: 0 | D89: b0069 | E89: 0 | G89: b0069 | H89: 0 | J89: b0069 | K89: 0 | M89: b0069 | N89: 0 | Q89: Âge moyen des génisses au 1er vêlage | S89: cr545 | T89: mois | U89: 32 | W89: 32 | X89: =IFERROR(VLOOKUP($S89,A:B,2,0),"") -> 31 | Y89: =IFERROR(VLOOKUP($S89,D:E,2,0),"") -> 33 | Z89: =IFERROR(VLOOKUP($S89,G:H,2,0),"") -> 32 | AA89: =IFERROR(VLOOKUP($S89,J:K,2,0),"") -> 30 | AB89: =IFERROR(VLOOKUP($S89,M:N,2,0),"") -> 34
A90: b0070 | B90: 0 | D90: b0070 | E90: 0 | G90: b0070 | H90: 0 | J90: b0070 | K90: 0 | M90: b0070 | N90: 0 | Q90: IVV | T90: jours | U90: =IF(V90<>"",V90,W90) -> 384.8432836 | W90: =IFERROR((W91/W92),"") -> 384.8432836 | X90: =IFERROR((X91/X92),"") -> 387.3333333 | Y90: 382.9333333 | Z90: 381.76 | AA90: 381.36 | AB90: 390.5555556
A91: b0071 | B91: 0 | D91: b0071 | E91: 0 | G91: b0071 | H91: 0 | J91: b0071 | K91: 0 | M91: b0071 | N91: 0 | R91: Somme du nb jours entre 2 vêlages, pour l'ensembles de vaches nourrices du troupeau | S91: b2593 | T91: jours | U91: 10313.8 | W91: 10313.8 | X91: =IFERROR(VLOOKUP($S91,A:B,2,0),"") -> 10458 | Y91: =IFERROR(VLOOKUP($S91,D:E,2,0),"") -> 11488 | Z91: =IFERROR(VLOOKUP($S91,G:H,2,0),"") -> 9544 | AA91: =IFERROR(VLOOKUP($S91,J:K,2,0),"") -> 9534 | AB91: =IFERROR(VLOOKUP($S91,M:N,2,0),"") -> 10545
A92: b0072 | B92: 0 | D92: b0072 | E92: 0 | G92: b0072 | H92: 0 | J92: b0072 | K92: 0 | M92: b0072 | N92: 0 | R92: Nb de vâches nourrices ayant vélées au moins 2 fois | S92: b2594 | T92: vaches | U92: 26.8 | W92: 26.8 | X92: 27 | Y92: 30 | Z92: 25 | AA92: 25 | AB92: 27
A93: b0073 | B93: 0 | D93: b0073 | E93: 0 | G93: b0073 | H93: 0 | J93: b0073 | K93: 0 | M93: b0073 | N93: 0 | Q93: Nombre veaux nés viables | S93: cr554 | T93: par 100 vaches | U93: 100.916 | W93: 100.916 | X93: 105.26 | Y93: 94.97 | Z93: 114.91 | AA93: 102.83 | AB93: 86.61
A94: b0074 | B94: 0 | D94: b0074 | E94: 0 | G94: b0074 | H94: 0 | J94: b0074 | K94: 0 | M94: b0074 | N94: 0 | Q94: Nombre veaux nés viables | S94: cr549 | T94: par 100 vêlages | U94: 99.532 | W94: 99.532 | X94: 97.56 | Y94: 103.03 | Z94: 102.78 | AA94: 100 | AB94: 94.29
A95: b0075 | B95: 0 | D95: b0075 | E95: 0 | G95: b0075 | H95: 0 | J95: b0075 | K95: 0 | M95: b0075 | N95: 0 | Q95: Nombre de vaches nourrices décédées | S95: b0506 | U95: 0.2 | W95: =IFERROR(AVERAGE(X95:AB95),"") -> 0.2 | X95: 1 | Y95: 0 | Z95: 0 | AA95: 0 | AB95: 0
A96: b0076 | B96: 0 | D96: b0076 | E96: 0 | G96: b0076 | H96: 0 | J96: b0076 | K96: 0 | M96: b0076 | N96: 0 | Q96: Nombre total de bovins décédés | S96: cr2766 | U96: 3.6 | W96: 3.6 | X96: 7 | Y96: 1 | Z96: 1 | AA96: 4 | AB96: 5
A97: b0077 | B97: 0 | D97: b0077 | E97: 0 | G97: b0077 | H97: 0 | J97: b0077 | K97: 0 | M97: b0077 | N97: 0
A98: b0078 | B98: 0 | D98: b0078 | E98: 0 | G98: b0078 | H98: 0 | J98: b0078 | K98: 0 | M98: b0078 | N98: 0 | Q98: Nombre de vaches nourrices achetées | S98: b0502 | U98: 0.2 | W98: 0.2 | X98: 0 | Y98: 0 | Z98: 0 | AA98: 1 | AB98: 0
A99: b0079 | B99: 0 | D99: b0079 | E99: 0 | G99: b0079 | H99: 0 | J99: b0079 | K99: 0 | M99: b0079 | N99: 0 | Q99: Nombre de vaches laitières transférées en vaches nourrices | S99: b0687 | U99: 0 | W99: 0 | X99: 0 | Y99: 0 | Z99: 0 | AA99: 0 | AB99: 0
A100: b0080 | B100: 0 | D100: b0080 | E100: 0 | G100: b0080 | H100: 0 | J100: b0080 | K100: 0 | M100: b0080 | N100: 0 | Q100: Nombre de génisses transférées en vaches nourrices | S100: b0699 | U100: 10.2 | W100: 10.2 | X100: 14 | Y100: 3 | Z100: 11 | AA100: 15 | AB100: 8
A101: b0081 | B101: 0 | D101: b0081 | E101: 0 | G101: b0081 | H101: 0 | J101: b0081 | K101: 0 | M101: b0081 | N101: 0
A102: b0082 | B102: 0 | D102: b0082 | E102: 0 | G102: b0082 | H102: 0 | J102: b0082 | K102: 0 | M102: b0082 | N102: 0 | Q102: PRODUITS DES BOVINS ET CULTURES FOURRAGERES | W102: =IFERROR(AVERAGE(X102:AB102),"") -> 
A103: b0083 | B103: 0 | D103: b0083 | E103: 0 | G103: b0083 | H103: 0 | J103: b0083 | K103: 0 | M103: b0083 | N103: 0 | Q103: Produits des bovins | T103: €/an | U103: =U107+U54-U45 -> 58238.8716 | W103: =IFERROR((W104*W105)+W106,"") -> 58238.8716 | X103: 52208.07 | Y103: 51073.75 | Z103: 58921.393 | AA103: 69307.56 | AB103: 60240.286
A104: b0084 | B104: 0 | D104: b0084 | E104: 0 | G104: b0084 | H104: 0 | J104: b0084 | K104: 0 | M104: b0084 | N104: 0 | R104: Nb total des autres bovins (= hors bovins laitiers) | S104: cr450 | U104: =IF(V104<>"",V104,W104) -> 95.16 | W104: =IFERROR(AVERAGE(X104:AB104),"") -> 95.16 | X104: =IFERROR(VLOOKUP($S104,A:B,2,0),"") -> 91.5 | Y104: =IFERROR(VLOOKUP($S104,D:E,2,0),"") -> 91 | Z104: =IFERROR(VLOOKUP($S104,G:H,2,0),"") -> 94.7 | AA104: =IFERROR(VLOOKUP($S104,J:K,2,0),"") -> 98 | AB104: =IFERROR(VLOOKUP($S104,M:N,2,0),"") -> 100.6
A105: b0085 | B105: 0 | D105: b0085 | E105: 0 | G105: b0085 | H105: 0 | J105: b0085 | K105: 0 | M105: b0085 | N105: 0 | R105: Mouvement et accroissement des autres bovins | S105: cr451 | U105: =IF(V105<>"",V105,W105) -> 612.01 | W105: =IFERROR(AVERAGE(X105:AB105),"") -> 612.01 | X105: =IFERROR(VLOOKUP($S105,A:B,2,0),"") -> 570.58 | Y105: =IFERROR(VLOOKUP($S105,D:E,2,0),"") -> 561.25 | Z105: =IFERROR(VLOOKUP($S105,G:H,2,0),"") -> 622.19 | AA105: =IFERROR(VLOOKUP($S105,J:K,2,0),"") -> 707.22 | AB105: =IFERROR(VLOOKUP($S105,M:N,2,0),"") -> 598.81
A106: b0086 | B106: 0 | D106: b0086 | E106: 0 | G106: b0086 | H106: 0 | J106: b0086 | K106: 0 | M106: b0086 | N106: 0 | R106: Autres produits bovins | S106: cr479 | U106: =IF(V106<>"",V106,W106) -> 0 | W106: =IFERROR(AVERAGE(X106:AB106),"") -> 0 | X106: =IFERROR(VLOOKUP($S106,A:B,2,0),"") -> 0 | Y106: =IFERROR(VLOOKUP($S106,D:E,2,0),"") -> 0 | Z106: =IFERROR(VLOOKUP($S106,G:H,2,0),"") -> 0 | AA106: =IFERROR(VLOOKUP($S106,J:K,2,0),"") -> 0 | AB106: =IFERROR(VLOOKUP($S106,M:N,2,0),"") -> 0 | AC106: = Saillies, ventes de fumier, bétail de tiers en pension, autres
A107: b0087 | B107: 0 | D107: b0087 | E107: 0 | G107: b0087 | H107: 0 | J107: b0087 | K107: 0 | M107: b0087 | N107: 0 | R107: Variation d'inventaire | U107: =IFERROR((U105*U104)-(U56+U59+U62+U65+U68+U71+U74)+SUM(U46:U52),0) -> 12435.0716 | W107: =IFERROR((W105*W104)-(W56+W59+W62+W65+W68+W71+W74)+SUM(W46:W52),"") -> 12435.0716 | X107: 14987.07 | Y107: 16459.75 | Z107: 8813.393 | AA107: 13772.56 | AB107: 8699.286
A108: b0088 | B108: 0 | D108: b0088 | E108: 0 | G108: b0088 | H108: 0 | J108: b0088 | K108: 0 | M108: b0088 | N108: 0
A109: b0089 | B109: 0 | D109: b0089 | E109: 0 | G109: b0089 | H109: 0 | J109: b0089 | K109: 0 | M109: b0089 | N109: 0 | W109: =IFERROR(AVERAGE(X109:AB109),"") -> 
A110: b0090 | B110: 0 | D110: b0090 | E110: 0 | G110: b0090 | H110: 0 | J110: b0090 | K110: 0 | M110: b0090 | N110: 0 | Q110: Produits des Cultures Fourragères | S110: cr819 | T110: €/an | U110: =IF(V110<>"",V110,W110) -> 1695.58 | W110: =IFERROR(AVERAGE(X110:AB110),"") -> 1695.58 | X110: =IFERROR(VLOOKUP($S110,A:B,2,0),"") -> 2168.7 | Y110: =IFERROR(VLOOKUP($S110,D:E,2,0),"") -> -2683.8 | Z110: =IFERROR(VLOOKUP($S110,G:H,2,0),"") -> 7428 | AA110: =IFERROR(VLOOKUP($S110,J:K,2,0),"") -> -3660 | AB110: =IFERROR(VLOOKUP($S110,M:N,2,0),"") -> 5225 | AC110: = Produits issus de la vente des cultures fourragères * NON intra-consommées + subventions publiques (hors MAEC)
A111: b0091 | B111: 0 | D111: b0091 | E111: 0 | G111: b0091 | H111: 0 | J111: b0091 | K111: 0 | M111: b0091 | N111: 0 | R111: Diff. de stock des Cultures Fourragères | S111: b0766 | U111: =IF(V111<>"",V111,W111) -> 1695.58 | W111: =IFERROR(AVERAGE(X111:AB111),"") -> 1695.58 | X111: =IFERROR(VLOOKUP($S111,A:B,2,0),"") -> 2168.7 | Y111: =IFERROR(VLOOKUP($S111,D:E,2,0),"") -> -2683.8 | Z111: =IFERROR(VLOOKUP($S111,G:H,2,0),"") -> 7428 | AA111: =IFERROR(VLOOKUP($S111,J:K,2,0),"") -> -3660 | AB111: =IFERROR(VLOOKUP($S111,M:N,2,0),"") -> 5225 | AC111: * Cultures fourragères = prairies temporaires et permanentes, maïs fourrager, betteraves fourragères, luzerne, trefle, légumineuses à ensiler, …
A112: b0092 | B112: 0 | D112: b0092 | E112: 0 | G112: b0092 | H112: 0 | J112: b0092 | K112: 0 | M112: b0092 | N112: 0
A113: b0093 | B113: 0 | D113: b0093 | E113: 0 | G113: b0093 | H113: 0 | J113: b0093 | K113: 0 | M113: b0093 | N113: 0 | Q113: CHARGES DES BOVINS ET CULTURES FOURRAGERES | W113: =IFERROR(AVERAGE(X113:AB113),"") -> 
A114: b0094 | B114: 0 | D114: b0094 | E114: 0 | G114: b0094 | H114: 0 | J114: b0094 | K114: 0 | M114: b0094 | N114: 0 | Q114: Charges opérationnelles des bovins | S114: cr496 | T114: €/an | U114: =IFERROR(U116+U122+U128+U129,0) -> 14626.77 | W114: =IFERROR(W116+W122+W128+W129,"") -> 14626.77 | X114: 14417.06 | Y114: 12257.18 | Z114: 19070.65 | AA114: 11190.08 | AB114: 16198.88
A115: b0095 | B115: 0 | D115: b0095 | E115: 0 | G115: b0095 | H115: 0 | J115: b0095 | K115: 0 | M115: b0095 | N115: 0
A116: b0096 | B116: 0 | D116: b0096 | E116: 0 | G116: b0096 | H116: 0 | J116: b0096 | K116: 0 | M116: b0096 | N116: 0 | Q116: Valeur des aliments produits sur l'exploitation | T116: €/an | U116: =IFERROR(SUM(U117+U118+U119+U120),0) -> 0 | W116: =IFERROR(SUM(W117+W118+W119+W120),"") -> 0 | X116: 0 | Y116: 0 | Z116: 0 | AA116: 0 | AB116: 0 | AC116: = valeur des cultures commerçables (céréales, paille, ...) intra-consommées et valorisées à leur prix de vente potentiel
A117: b0097 | B117: 0 | D117: b0097 | E117: 0 | G117: b0097 | H117: 0 | J117: b0097 | K117: 0 | M117: b0097 | N117: 0 | R117: Valeur des aliments concentrés produits sur l'exploitation | S117: cr482 | U117: =IF(V117<>"",V117,W117) -> 0 | W117: 0 | X117: =IFERROR(VLOOKUP($S117,A:B,2,0),"") -> 0 | Y117: =IFERROR(VLOOKUP($S117,D:E,2,0),"") -> 0 | Z117: =IFERROR(VLOOKUP($S117,G:H,2,0),"") -> 0 | AA117: =IFERROR(VLOOKUP($S117,J:K,2,0),"") -> 0 | AB117: =IFERROR(VLOOKUP($S117,M:N,2,0),"") -> 0
A118: b0098 | B118: 0 | D118: b0098 | E118: 0 | G118: b0098 | H118: 0 | J118: b0098 | K118: 0 | M118: b0098 | N118: 0 | R118: Valeur des aliments grossiers produits sur l'exploitation | S118: cr486 | U118: =IF(V118<>"",V118,W118) -> 0 | W118: 0 | X118: =IFERROR(VLOOKUP($S118,A:B,2,0),"") -> 0 | Y118: =IFERROR(VLOOKUP($S118,D:E,2,0),"") -> 0 | Z118: =IFERROR(VLOOKUP($S118,G:H,2,0),"") -> 0 | AA118: =IFERROR(VLOOKUP($S118,J:K,2,0),"") -> 0 | AB118: =IFERROR(VLOOKUP($S118,M:N,2,0),"") -> 0
A119: b0099 | B119: 0 | D119: b0099 | E119: 0 | G119: b0099 | H119: 0 | J119: b0099 | K119: 0 | M119: b0099 | N119: 0 | R119: Valeur de la paille produite sur l'exploitation | S119: cr488 | U119: =IF(V119<>"",V119,W119) -> 0 | W119: 0 | X119: =IFERROR(VLOOKUP($S119,A:B,2,0),"") -> 0 | Y119: =IFERROR(VLOOKUP($S119,D:E,2,0),"") -> 0 | Z119: =IFERROR(VLOOKUP($S119,G:H,2,0),"") -> 0 | AA119: =IFERROR(VLOOKUP($S119,J:K,2,0),"") -> 0 | AB119: =IFERROR(VLOOKUP($S119,M:N,2,0),"") -> 0
A120: b0100 | B120: 0 | D120: b0100 | E120: 0 | G120: b0100 | H120: 0 | J120: b0100 | K120: 0 | M120: b0100 | N120: 0 | R120: Valeur des aliments laitiers produits sur l'exploitation | S120: cr484 | U120: =IF(V120<>"",V120,W120) -> 0 | W120: =IFERROR(AVERAGE(X120:AB120),"") -> 0 | X120: =IFERROR(VLOOKUP($S120,A:B,2,0),"") -> 0 | Y120: =IFERROR(VLOOKUP($S120,D:E,2,0),"") -> 0 | Z120: =IFERROR(VLOOKUP($S120,G:H,2,0),"") -> 0 | AA120: =IFERROR(VLOOKUP($S120,J:K,2,0),"") -> 0 | AB120: =IFERROR(VLOOKUP($S120,M:N,2,0),"") -> 0
A121: b0101 | B121: 0 | D121: b0101 | E121: 0 | G121: b0101 | H121: 0 | J121: b0101 | K121: 0 | M121: b0101 | N121: 0
A122: b0102 | B122: 6 | D122: b0102 | E122: 6 | G122: b0102 | H122: 6 | J122: b0102 | K122: 6 | M122: b0102 | N122: 0 | Q122: Valeur des aliments achetés | T122: €/an | U122: =IFERROR(U123+U124+U125+U126,0) -> 6263.972 | W122: =IFERROR(W123+W124+W125+W126,"") -> 6263.972 | X122: 8703.78 | Y122: 6048.97 | Z122: 6661.78 | AA122: 2591.72 | AB122: 7313.61
A123: b0103 | B123: 311219 | D123: b0103 | E123: 311220 | G123: b0103 | H123: 311221 | J123: b0103 | K123: 311222 | M123: b0103 | N123: 311223 | R123: Achats de concentrés | S123: cr481 | U123: =IF(V123<>"",V123,W123) -> 3035.338 | W123: 3035.338 | X123: =IFERROR(VLOOKUP($S123,A:B,2,0),"") -> 3538.9 | Y123: =IFERROR(VLOOKUP($S123,D:E,2,0),"") -> 2964.75 | Z123: =IFERROR(VLOOKUP($S123,G:H,2,0),"") -> 4450.97 | AA123: =IFERROR(VLOOKUP($S123,J:K,2,0),"") -> 201 | AB123: =IFERROR(VLOOKUP($S123,M:N,2,0),"") -> 4021.07
A124: b0104 | B124: 63075 | D124: b0104 | E124: 63075 | G124: b0104 | H124: 63075 | J124: b0104 | K124: 63075 | M124: b0104 | N124: 63075 | R124: Achats de grossiers | S124: cr485 | U124: =IF(V124<>"",V124,W124) -> 1972.64 | W124: 1972.64 | X124: =IFERROR(VLOOKUP($S124,A:B,2,0),"") -> 2312.86 | Y124: =IFERROR(VLOOKUP($S124,D:E,2,0),"") -> 1817.14 | Z124: =IFERROR(VLOOKUP($S124,G:H,2,0),"") -> 1210.48 | AA124: =IFERROR(VLOOKUP($S124,J:K,2,0),"") -> 2114.72 | AB124: =IFERROR(VLOOKUP($S124,M:N,2,0),"") -> 2408
A125: b0105 | B125: 10 | D125: b0105 | E125: 5 | G125: b0105 | H125: 5 | J125: b0105 | K125: 5 | M125: b0105 | N125: 5 | R125: Achats de paille | S125: cr487 | U125: =IF(V125<>"",V125,W125) -> 1255.994 | W125: 1255.994 | X125: =IFERROR(VLOOKUP($S125,A:B,2,0),"") -> 2852.02 | Y125: =IFERROR(VLOOKUP($S125,D:E,2,0),"") -> 1267.08 | Z125: =IFERROR(VLOOKUP($S125,G:H,2,0),"") -> 1000.33 | AA125: =IFERROR(VLOOKUP($S125,J:K,2,0),"") -> 276 | AB125: =IFERROR(VLOOKUP($S125,M:N,2,0),"") -> 884.54
A126: b0106 | B126: 2 | D126: b0106 | E126: 2 | G126: b0106 | H126: 2 | J126: b0106 | K126: 2 | M126: b0106 | N126: 2 | R126: Achats aliments laitiers | S126: cr483 | U126: =IF(V126<>"",V126,W126) -> 0 | W126: 0 | X126: =IFERROR(VLOOKUP($S126,A:B,2,0),"") -> 0 | Y126: =IFERROR(VLOOKUP($S126,D:E,2,0),"") -> 0 | Z126: =IFERROR(VLOOKUP($S126,G:H,2,0),"") -> 0 | AA126: =IFERROR(VLOOKUP($S126,J:K,2,0),"") -> 0 | AB126: =IFERROR(VLOOKUP($S126,M:N,2,0),"") -> 0 | AC126: = aliments laitiers provenant d'un autre troupeau (distinct)
A127: b0107 | B127: 2 | D127: b0107 | E127: 0 | G127: b0107 | H127: 0 | J127: b0107 | K127: 0 | M127: b0107 | N127: 0 | W127: =IFERROR(AVERAGE(X127:AB127),"") -> 
A128: b0108 | B128: 0 | D128: b0108 | E128: 0 | G128: b0108 | H128: 0 | J128: b0108 | K128: 0 | M128: b0108 | N128: 0 | Q128: Frais vétérinaires | S128: cr493 | T128: €/an | U128: =IF(V128<>"",V128,W128) -> 3339.35 | W128: 3339.35 | X128: =IFERROR(VLOOKUP($S128,A:B,2,0),"") -> 2999.7 | Y128: =IFERROR(VLOOKUP($S128,D:E,2,0),"") -> 3021 | Z128: =IFERROR(VLOOKUP($S128,G:H,2,0),"") -> 3501.2 | AA128: =IFERROR(VLOOKUP($S128,J:K,2,0),"") -> 3454.93 | AB128: =IFERROR(VLOOKUP($S128,M:N,2,0),"") -> 3719.92 | AC128: = frais de lutte contre les maladies uniquement(vétérinaire, médicaments, parrage, …). N'inclus pas les frais de reproduction, d'identification, …
A129: b0109 | B129: 3 | D129: b0109 | E129: 3 | G129: b0109 | H129: 3 | J129: b0109 | K129: 3 | M129: b0109 | N129: 3 | Q129: Autres charges des bovins | T129: €/an | U129: =IFERROR(U130+U131,0) -> 5023.448 | W129: =IFERROR(W130+W131,"") -> 5023.448 | X129: 2713.58 | Y129: 3187.21 | Z129: 8907.67 | AA129: 5143.43 | AB129: 5165.35 | AC129: = aliments pour bétail chez des tiers, litières, traveaux par tiers, autres charges directes
A130: b0110 | B130: 2 | D130: b0110 | E130: 2 | G130: b0110 | H130: 2 | J130: b0110 | K130: 2 | M130: b0110 | N130: 2 | R130: saillies, syndic, assurances | S130: cr494 | U130: =IF(V130<>"",V130,W130) -> 1490.65 | W130: 1490.65 | X130: =IFERROR(VLOOKUP($S130,A:B,2,0),"") -> 1005.9 | Y130: =IFERROR(VLOOKUP($S130,D:E,2,0),"") -> 1168.67 | Z130: =IFERROR(VLOOKUP($S130,G:H,2,0),"") -> 1075.8 | AA130: =IFERROR(VLOOKUP($S130,J:K,2,0),"") -> 2016.79 | AB130: =IFERROR(VLOOKUP($S130,M:N,2,0),"") -> 2186.09
A131: b0111 | B131: 94 | D131: b0111 | E131: 94 | G131: b0111 | H131: 94 | J131: b0111 | K131: 94 | M131: b0111 | N131: 50 | R131: litière, trav par tiers, aliments pour bétail chez tiers, … | S131: cr495 | U131: =IF(V131<>"",V131,W131) -> 3532.798 | W131: 3532.798 | X131: =IFERROR(VLOOKUP($S131,A:B,2,0),"") -> 1707.68 | Y131: =IFERROR(VLOOKUP($S131,D:E,2,0),"") -> 2018.54 | Z131: =IFERROR(VLOOKUP($S131,G:H,2,0),"") -> 7831.87 | AA131: =IFERROR(VLOOKUP($S131,J:K,2,0),"") -> 3126.64 | AB131: =IFERROR(VLOOKUP($S131,M:N,2,0),"") -> 2979.26
A132: b0112 | B132: 0 | D132: b0112 | E132: 0 | G132: b0112 | H132: 0 | J132: b0112 | K132: 0 | M132: b0112 | N132: 0
A133: b0113 | B133: 0 | D133: b0113 | E133: 0 | G133: b0113 | H133: 0 | J133: b0113 | K133: 0 | M133: b0113 | N133: 0
A134: b0114 | B134: 10.38 | D134: b0114 | E134: 10.38 | G134: b0114 | H134: 10.38 | J134: b0114 | K134: 10.38 | M134: b0114 | N134: 10.38 | Q134: Ch opérationnelles des Cultures Fourragères totales | T134: €/an | U134: =IFERROR(SUM(U135:U138)*U28,0) -> 771.83752 | W134: =IFERROR(SUM(W135:W138)*W28,"") -> 771.83752 | X134: 1425.3134 | Y134: 1364.0716 | Z134: 0 | AA134: 0 | AB134: 10.683 | AC134: où Cultures fourragères = prairies temporaires et permanentes, maïs fourrager, betteraves fourragères, luzerne, trefle, légumineuses à ensiler, …
A135: b0115 | B135: 60.25 | D135: b0115 | E135: 59.18 | G135: b0115 | H135: 97.06 | J135: b0115 | K135: 107.14 | M135: b0115 | N135: 108.32 | R135: Engrais | S135: cr517 | T135: €/ha de SFH | U135: =IF(V135<>"",V135,W135) -> 6.094 | W135: 6.094 | X135: =IFERROR(VLOOKUP($S135,A:B,2,0),"") -> 10.77 | Y135: =IFERROR(VLOOKUP($S135,D:E,2,0),"") -> 19.61 | Z135: =IFERROR(VLOOKUP($S135,G:H,2,0),"") -> 0 | AA135: =IFERROR(VLOOKUP($S135,J:K,2,0),"") -> 0 | AB135: =IFERROR(VLOOKUP($S135,M:N,2,0),"") -> 0.09
A136: b0116 | B136: 0 | D136: b0116 | E136: 0 | G136: b0116 | H136: 0 | J136: b0116 | K136: 0 | M136: b0116 | N136: 0 | R136: Semences | S136: cr518 | T136: €/ha de SFH | U136: =IF(V136<>"",V136,W136) -> 1.882 | W136: 1.882 | X136: =IFERROR(VLOOKUP($S136,A:B,2,0),"") -> 9.41 | Y136: =IFERROR(VLOOKUP($S136,D:E,2,0),"") -> 0 | Z136: =IFERROR(VLOOKUP($S136,G:H,2,0),"") -> 0 | AA136: =IFERROR(VLOOKUP($S136,J:K,2,0),"") -> 0 | AB136: =IFERROR(VLOOKUP($S136,M:N,2,0),"") -> 0
A137: b0117 | B137: 0 | D137: b0117 | E137: 0 | G137: b0117 | H137: 0 | J137: b0117 | K137: 0 | M137: b0117 | N137: 0 | R137: Produits phytosanitaires | S137: cr519 | T137: €/ha de SFH | U137: =IF(V137<>"",V137,W137) -> 0 | W137: 0 | X137: =IFERROR(VLOOKUP($S137,A:B,2,0),"") -> 0 | Y137: =IFERROR(VLOOKUP($S137,D:E,2,0),"") -> 0 | Z137: =IFERROR(VLOOKUP($S137,G:H,2,0),"") -> 0 | AA137: =IFERROR(VLOOKUP($S137,J:K,2,0),"") -> 0 | AB137: =IFERROR(VLOOKUP($S137,M:N,2,0),"") -> 0
A138: b0118 | B138: 6 | D138: b0118 | E138: 6 | G138: b0118 | H138: 6 | J138: b0118 | K138: 6 | M138: b0118 | N138: 6 | R138: Autres charges des cultures fourragères | S138: cr520 | T138: €/ha de SFH | U138: =IF(V138<>"",V138,W138) -> 0 | W138: 0 | X138: =IFERROR(VLOOKUP($S138,A:B,2,0),"") -> 0 | Y138: =IFERROR(VLOOKUP($S138,D:E,2,0),"") -> 0 | Z138: =IFERROR(VLOOKUP($S138,G:H,2,0),"") -> 0 | AA138: =IFERROR(VLOOKUP($S138,J:K,2,0),"") -> 0 | AB138: =IFERROR(VLOOKUP($S138,M:N,2,0),"") -> 0 | AC138: travaux par tiers non compris
A139: b0119 | B139: 1991 | D139: b0119 | E139: 1991 | G139: b0119 | H139: 1991 | J139: b0119 | K139: 1991 | M139: b0119 | N139: 1991
A140: b0120 | B140: 7 | D140: b0120 | E140: 8 | G140: b0120 | H140: 9 | J140: b0120 | K140: 10 | M140: b0120 | N140: 11 | Q140: AUTRES PRODUITS | W140: =IFERROR(AVERAGE(X140:AB140),"") -> 
A141: b0121 | B141: 0 | D141: b0121 | E141: 0 | G141: b0121 | H141: 0 | J141: b0121 | K141: 0 | M141: b0121 | N141: 0 | Q141: Travaux réalisés pour des tiers (activité viande bovine) | S141: cr835 | T141: €/an | U141: =IF(V141<>"",V141,W141) -> 0 | W141: 0 | X141: =IFERROR(VLOOKUP($S141,A:B,2,0),"") -> 0 | Y141: =IFERROR(VLOOKUP($S141,D:E,2,0),"") -> 0 | Z141: =IFERROR(VLOOKUP($S141,G:H,2,0),"") -> 0 | AA141: =IFERROR(VLOOKUP($S141,J:K,2,0),"") -> 0 | AB141: =IFERROR(VLOOKUP($S141,M:N,2,0),"") -> 0
A142: b0122 | B142: 5 | D142: b0122 | E142: 5 | G142: b0122 | H142: 5 | J142: b0122 | K142: 5 | M142: b0122 | N142: 5 | Q142: Produits des excercices précédents : différences de primes | S142: b1434 | T142: €/an | U142: 2740.674 | W142: 2740.674 | X142: =IFERROR(VLOOKUP($S142,A:B,2,0),"") -> 1147.26 | Y142: =IFERROR(VLOOKUP($S142,D:E,2,0),"") -> 3030.83 | Z142: =IFERROR(VLOOKUP($S142,G:H,2,0),"") -> 2806.34 | AA142: =IFERROR(VLOOKUP($S142,J:K,2,0),"") -> 3705.78 | AB142: =IFERROR(VLOOKUP($S142,M:N,2,0),"") -> 3013.16
A143: b0123 | B143: 2 | D143: b0123 | E143: 2 | G143: b0123 | H143: 2 | J143: b0123 | K143: 2 | M143: b0123 | N143: 2 | Q143: Aides couplées vaches viandeuses | S143: b1413 | T143: €/an | U143: 6237.194 | W143: 6237.194 | X143: =IFERROR(VLOOKUP($S143,A:B,2,0),"") -> 5018.02 | Y143: =IFERROR(VLOOKUP($S143,D:E,2,0),"") -> 5319.34 | Z143: =IFERROR(VLOOKUP($S143,G:H,2,0),"") -> 6526.41 | AA143: =IFERROR(VLOOKUP($S143,J:K,2,0),"") -> 7220 | AB143: =IFERROR(VLOOKUP($S143,M:N,2,0),"") -> 7102.2
A144: b0124 | B144: 59 | D144: b0124 | E144: 59 | G144: b0124 | H144: 59 | J144: b0124 | K144: 59 | M144: b0124 | N144: 59 | Q144: Aides couplées vaches mixtes | S144: b1412 | T144: €/an | U144: 0 | W144: 0 | X144: =IFERROR(VLOOKUP($S144,A:B,2,0),"") -> 0 | Y144: =IFERROR(VLOOKUP($S144,D:E,2,0),"") -> 0 | Z144: =IFERROR(VLOOKUP($S144,G:H,2,0),"") -> 0 | AA144: =IFERROR(VLOOKUP($S144,J:K,2,0),"") -> 0 | AB144: =IFERROR(VLOOKUP($S144,M:N,2,0),"") -> 0
A145: b0125 | B145: 1 | D145: b0125 | E145: 1 | G145: b0125 | H145: 1 | J145: b0125 | K145: 1 | M145: b0125 | N145: 1 | Q145: Aides couplées vaches laitières | S145: b1496 | T145: €/an | U145: 0 | W145: 0 | X145: =IFERROR(VLOOKUP($S145,A:B,2,0),"") -> 0 | Y145: =IFERROR(VLOOKUP($S145,D:E,2,0),"") -> 0 | Z145: =IFERROR(VLOOKUP($S145,G:H,2,0),"") -> 0 | AA145: =IFERROR(VLOOKUP($S145,J:K,2,0),"") -> 0 | AB145: =IFERROR(VLOOKUP($S145,M:N,2,0),"") -> 0
A146: b0126 | B146: 1 | D146: b0126 | E146: 1 | G146: b0126 | H146: 1 | J146: b0126 | K146: 1 | M146: b0126 | N146: 1 | Q146: Aides non couplées liées aux cultures fourragères des bovins viandeux | T146: €/an | U146: =IFERROR(((U148+U147)-(U143+U144+U145))*((U29+U30+U31)/U26),0) -> 52066.312 | W146: =IFERROR(((W148+W147)-(W143+W144+W145))*((W29+W30+W31)/W26),"") -> 52066.312 | X146: 41569.93 | Y146: 41025.9 | Z146: 55831.8 | AA146: 55341.27 | AB146: 66562.66 | AC146: = (aides totales - aides couplées) x (superficie Cult. Fourragères et des prairies / SAU)
A147: b0127 | B147: 0 | D147: b0127 | E147: 0 | G147: b0127 | H147: 0 | J147: b0127 | K147: 0 | M147: b0127 | N147: 50 | R147: Aides pour régions défavorisées | S147: cr833 | U147: 2197.122 | W147: 2197.122 | X147: =IFERROR(VLOOKUP($S147,A:B,2,0),"") -> 2120.41 | Y147: =IFERROR(VLOOKUP($S147,D:E,2,0),"") -> 2107.7 | Z147: =IFERROR(VLOOKUP($S147,G:H,2,0),"") -> 2252.5 | AA147: =IFERROR(VLOOKUP($S147,J:K,2,0),"") -> 2252.5 | AB147: =IFERROR(VLOOKUP($S147,M:N,2,0),"") -> 2252.5
A148: b0128 | B148: 2500 | D148: b0128 | E148: 2500 | G148: b0128 | H148: 2500 | J148: b0128 | K148: 2500 | M148: b0128 | N148: 1560 | R148: Autres aides au revenu | S148: cr834 | U148: 56106.384 | W148: 56106.384 | X148: =IFERROR(VLOOKUP($S148,A:B,2,0),"") -> 44467.54 | Y148: =IFERROR(VLOOKUP($S148,D:E,2,0),"") -> 44237.54 | Z148: =IFERROR(VLOOKUP($S148,G:H,2,0),"") -> 60105.71 | AA148: =IFERROR(VLOOKUP($S148,J:K,2,0),"") -> 60308.77 | AB148: =IFERROR(VLOOKUP($S148,M:N,2,0),"") -> 71412.36
A149: b0129 | B149: 1 | D149: b0129 | E149: 1 | G149: b0129 | H149: 1 | J149: b0129 | K149: 1 | M149: b0129 | N149: 1
A150: b0130 | B150: 45425 | D150: b0130 | E150: 46100 | G150: b0130 | H150: 47019.98 | J150: b0130 | K150: 49428.36 | M150: b0130 | N150: 35886.9 | Q150: Aides en intérêt et en capital perçues | S150: cr877 | T150: €/an | U150: =W150 -> 0 | W150: =IFERROR(AVERAGE(X150:AB150),"") -> 0 | X150: =IF($R17="OUI",'CALCUL aides_DAEA'!$H28,0) -> 0 | Y150: =IF($R17="OUI",'CALCUL aides_DAEA'!$H28,0) -> 0 | Z150: =IF($R17="OUI",'CALCUL aides_DAEA'!$H28,0) -> 0 | AA150: =IF($R17="OUI",'CALCUL aides_DAEA'!$H28,0) -> 0 | AB150: =IF($R17="OUI",'CALCUL aides_DAEA'!$H28,0) -> 0 | AC150: Cliquez ici pour vous rendre à la feuille "CALCUL aides"
A151: b0131 | B151: 0 | D151: b0131 | E151: 0 | G151: b0131 | H151: 0 | J151: b0131 | K151: 0 | M151: b0131 | N151: 90 | Q151: Part des aides en intérêt et en capital perçues liées à l'activité viandeuse | T151: % | U151: =IF(V151<>"",V151,W151) -> 0.9168229567 | W151: =W153 -> 0.9168229567 | X151: 0.9760495398 | Y151: 0.8562773498 | Z151: 0.8638227505 | AA151: 0.9492394449 | AB151: 0.9523680082
A152: b0132 | B152: 0 | D152: b0132 | E152: 0 | G152: b0132 | H152: 0 | J152: b0132 | K152: 0 | M152: b0132 | N152: 0.34 | W152: =IFERROR(AVERAGE(X152:AB152),"") -> 
A153: b0133 | B153: 0 | D153: b0133 | E153: 0 | G153: b0133 | H153: 0 | J153: b0133 | K153: 0 | M153: b0133 | N153: 0.34 | Q153: Part des produits de l'exploitation (hors aides) issue de l'activité viandeuse | T153: % | U153: =IFERROR(((U103+U110-U111)/(U203-U111-U147-U148)),0) -> 0.9168229567 | W153: =IFERROR(((W103+W110-W111)/(W203-W111-W147-W148)),"") -> 0.9168229567 | X153: 0.9760495398 | Y153: 0.8562773498 | Z153: 0.8638227505 | AA153: 0.9492394449 | AB153: 0.9523680082 | AC153: = (Produits des bovins et cultures fourragères) / (produits totaux, hors aides)
A154: b0134 | B154: 0 | D154: b0134 | E154: 0 | G154: b0134 | H154: 0 | J154: b0134 | K154: 0 | M154: b0134 | N154: 150
A155: b0135 | B155: 0 | D155: b0135 | E155: 0 | G155: b0135 | H155: 0 | J155: b0135 | K155: 0 | M155: b0135 | N155: 780 | Q155: AUTRES CHARGES DE L EXPLOITATION | W155: =IFERROR(AVERAGE(X155:AB155),"") -> 
A156: b0136 | B156: 0 | D156: b0136 | E156: 0 | G156: b0136 | H156: 0 | J156: b0136 | K156: 0 | M156: b0136 | N156: 1 | Q156: Travaux réalisés par des tiers | S156: cr722 | T156: €/an | U156: =IF(V156<>"",V156,W156) -> 2911.98 | W156: =IFERROR(AVERAGE(X156:AB156),"") -> 2911.98 | X156: =IFERROR(VLOOKUP($S156,A:B,2,0),"") -> 1656 | Y156: =IFERROR(VLOOKUP($S156,D:E,2,0),"") -> 2667.61 | Z156: =IFERROR(VLOOKUP($S156,G:H,2,0),"") -> 3336.44 | AA156: =IFERROR(VLOOKUP($S156,J:K,2,0),"") -> 4109.85 | AB156: =IFERROR(VLOOKUP($S156,M:N,2,0),"") -> 2790
A157: b0137 | B157: 0 | D157: b0137 | E157: 0 | G157: b0137 | H157: 0 | J157: b0137 | K157: 0 | M157: b0137 | N157: 20729.7 | Q157: Travaux réalisés par des tiers pour l'activité de production de viande | S157: b0182 | U157: =IF(V157<>"",V157,W157) -> 310.944 | W157: =IFERROR(AVERAGE(X157:AB157),"") -> 310.944 | X157: =IFERROR(VLOOKUP($S157,A:B,2,0),"") -> 0 | Y157: =IFERROR(VLOOKUP($S157,D:E,2,0),"") -> 0 | Z157: =IFERROR(VLOOKUP($S157,G:H,2,0),"") -> 800 | AA157: =IFERROR(VLOOKUP($S157,J:K,2,0),"") -> 754.72 | AB157: =IFERROR(VLOOKUP($S157,M:N,2,0),"") -> 0
A158: b0138 | B158: 0 | D158: b0138 | E158: 0 | G158: b0138 | H158: 0 | J158: b0138 | K158: 0 | M158: b0138 | N158: 86 | Q158: Part des travaux par tiers totales liées à l'activité viandeuse | T158: % | U158: =IF(V158<>"",V158,W158) -> 0.9168229567 | W158: =W153 -> 0.9168229567 | X158: 0.9760495398 | Y158: 0.8562773498 | Z158: 0.8638227505 | AA158: 0.9492394449 | AB158: 0.9523680082
A159: b0139 | B159: 0 | D159: b0139 | E159: 0 | G159: b0139 | H159: 0 | J159: b0139 | K159: 0 | M159: b0139 | N159: 0.32
A160: b0140 | B160: 0 | D160: b0140 | E160: 0 | G160: b0140 | H160: 0 | J160: b0140 | K160: 0 | M160: b0140 | N160: 0.32 | Q160: Charges de matériel (activité bovins viandeux) | T160: €/an | U160: =IFERROR(U162*U161,0) -> 21499.41949 | W160: =IFERROR(W162*W161,"") -> 21499.41949 | X160: 15426.04327 | Y160: 23898.36688 | Z160: 17498.0601 | AA160: 21362.88051 | AB160: 29307.78261
A161: b0141 | B161: 0 | D161: b0141 | E161: 0 | G161: b0141 | H161: 0 | J161: b0141 | K161: 0 | M161: b0141 | N161: 50 | Q161: Part des charges de matériel totales liées à l'activité viandeuse | T161: % | U161: =IF(V161<>"",V161,W161) -> 0.9168229567 | W161: =W153 -> 0.9168229567 | X161: 0.9760495398 | Y161: 0.8562773498 | Z161: 0.8638227505 | AA161: 0.9492394449 | AB161: 0.9523680082
A162: b0142 | B162: 0 | D162: b0142 | E162: 0 | G162: b0142 | H162: 0 | J162: b0142 | K162: 0 | M162: b0142 | N162: 780 | Q162: Charges de matériel (machines + tracteurs : M&T) TOTALES | T162: €/an | U162: =IFERROR(U163+U164+U165+U166+U167+U168+U169+U170+U171,0) -> 23449.914 | W162: =IFERROR(W163+W164+W165+W166+W167+W168+W169+W170+W171,"") -> 23449.914 | X162: 15804.57 | Y162: 27909.61 | Z162: 20256.54 | AA162: 22505.26 | AB162: 30773.59
A163: b0143 | B163: 0 | D163: b0143 | E163: 0 | G163: b0143 | H163: 0 | J163: b0143 | K163: 0 | M163: b0143 | N163: 1 | R163: Amortissements M&T | S163: cr726 | U163: =IF(V163<>"",V163,W163) -> 7434.882 | W163: =IFERROR(AVERAGE(X163:AB163),"") -> 7434.882 | X163: =IFERROR(VLOOKUP($S163,A:B,2,0),"") -> 7106.35 | Y163: =IFERROR(VLOOKUP($S163,D:E,2,0),"") -> 7146.88 | Z163: =IFERROR(VLOOKUP($S163,G:H,2,0),"") -> 6373.17 | AA163: =IFERROR(VLOOKUP($S163,J:K,2,0),"") -> 7039.6 | AB163: =IFERROR(VLOOKUP($S163,M:N,2,0),"") -> 9508.41
A164: b0144 | B164: 0 | D164: b0144 | E164: 0 | G164: b0144 | H164: 0 | J164: b0144 | K164: 0 | M164: b0144 | N164: 18500.7 | R164: Entretiens M&T | S164: cr733 | U164: =IF(V164<>"",V164,W164) -> 8698.78 | W164: 8698.78 | X164: 3027.33 | Y164: 14676.1 | Z164: 8587.73 | AA164: 6725.96 | AB164: 10476.78
A165: b0145 | B165: 0.28 | D165: b0145 | E165: 0.28 | G165: b0145 | H165: 0.28 | J165: b0145 | K165: 0.28 | M165: b0145 | N165: 0.11 | R165: Assurances (RC) M&T | S165: cr736 | U165: 649.822 | W165: 649.822 | X165: 609.46 | Y165: 614.63 | Z165: 618.21 | AA165: 626.31 | AB165: 780.5
A166: b0146 | B166: 0.28 | D166: b0146 | E166: 0.28 | G166: b0146 | H166: 0.28 | J166: b0146 | K166: 0.28 | M166: b0146 | N166: 0.11 | R166: Carburants Machines | S166: cr738 | U166: 858.424 | W166: 858.424 | X166: 341.08 | Y166: 299.56 | Z166: 575.6 | AA166: 1315.45 | AB166: 1760.43
A167: b0147 | B167: 500 | D167: b0147 | E167: 500 | G167: b0147 | H167: 500 | J167: b0147 | K167: 500 | M167: b0147 | N167: 200 | R167: Carburants Tracteurs | S167: cr737 | U167: 3665.334 | W167: 3665.334 | X167: 2636.57 | Y167: 2957.01 | Z167: 1918.68 | AA167: 4175.93 | AB167: 6638.48
A168: b0148 | B168: 1 | D168: b0148 | E168: 1 | G168: b0148 | H168: 1 | J168: b0148 | K168: 1 | M168: b0148 | N168: 1 | R168: Lubrifiants Machines | S168: cr740 | U168: 0 | W168: 0 | X168: 0 | Y168: 0 | Z168: 0 | AA168: 0 | AB168: 0
A169: b0149 | B169: 9085 | D169: b0149 | E169: 9220 | G169: b0149 | H169: 9404 | J169: b0149 | K169: 9885.67 | M169: b0149 | N169: 4458 | R169: Lubrifiants Tracteurs | S169: cr739 | U169: 249.444 | W169: 249.444 | X169: 233.78 | Y169: 315.43 | Z169: 249.4 | AA169: 340.61 | AB169: 108
A170: b0150 | B170: 0.83 | D170: b0150 | E170: 0.83 | G170: b0150 | H170: 0.83 | J170: b0150 | K170: 0.83 | M170: b0150 | N170: 0 | R170: locations M&T | S170: cr742 | U170: 90.41 | W170: 90.41 | X170: 0 | Y170: 0 | Z170: 33.75 | AA170: 281.4 | AB170: 136.9
A171: b0151 | B171: 0.83 | D171: b0151 | E171: 0.83 | G171: b0151 | H171: 0.83 | J171: b0151 | K171: 0.83 | M171: b0151 | N171: 0 | R171: frais de voiture | S171: cr743 | U171: 1802.818 | W171: 1802.818 | X171: 1850 | Y171: 1900 | Z171: 1900 | AA171: 2000 | AB171: 1364.09
A172: b0152 | B172: 1500 | D172: b0152 | E172: 1500 | G172: b0152 | H172: 1500 | J172: b0152 | K172: 1500 | M172: b0152 | N172: 0
A173: b0153 | B173: 1 | D173: b0153 | E173: 1 | G173: b0153 | H173: 1 | J173: b0153 | K173: 1 | M173: b0153 | N173: 0 | Q173: Charges foncières (activité bovins viandeux) | T173: €/an | U173: =IFERROR(U175*U174,0) -> 23026.22676 | W173: =IFERROR(W175*W174,"") -> 23026.22676 | X173: 19492.85129 | Y173: 16228.50228 | Z173: 25404.42242 | AA173: 28755.84208 | AB173: 25666.09878
A174: b0154 | B174: 27255 | D174: b0154 | E174: 27660 | G174: b0154 | H174: 28211.99 | J174: b0154 | K174: 29657.02 | M174: b0154 | N174: 0 | Q174: Part des charges foncières totales liées à l'activité viandeuse | T174: % | U174: =IF(V174<>"",V174,W174) -> 0.9168229567 | W174: =W153 -> 0.9168229567 | X174: 0.9760495398 | Y174: 0.8562773498 | Z174: 0.8638227505 | AA174: 0.9492394449 | AB174: 0.9523680082
A175: b0155 | B175: 0 | D175: b0155 | E175: 0 | G175: b0155 | H175: 0 | J175: b0155 | K175: 0 | M175: b0155 | N175: 0 | Q175: Charges foncières totales | S175: cr778 | T175: €/an | U175: =IFERROR(U176+U177+U178+U179,0) -> 25115.238 | W175: =IFERROR(W176+W177+W178+W179,"") -> 25115.238 | X175: 19971.17 | Y175: 18952.39 | Z175: 29409.3 | AA175: 30293.56 | AB175: 26949.77
A176: b0156 | B176: 0 | D176: b0156 | E176: 0 | G176: b0156 | H176: 0 | J176: b0156 | K176: 0 | M176: b0156 | N176: 0 | R176: Amortissement foncier | S176: cr771 | U176: =IF(V176<>"",V176,W176) -> 10206.096 | W176: =IFERROR(AVERAGE(X176:AB176),"") -> 10206.096 | X176: =IFERROR(VLOOKUP($S176,A:B,2,0),"") -> 10127.31 | Y176: =IFERROR(VLOOKUP($S176,D:E,2,0),"") -> 10127.31 | Z176: =IFERROR(VLOOKUP($S176,G:H,2,0),"") -> 10127.71 | AA176: =IFERROR(VLOOKUP($S176,J:K,2,0),"") -> 10274.62 | AB176: =IFERROR(VLOOKUP($S176,M:N,2,0),"") -> 10373.53
A177: b0157 | B177: 0 | D177: b0157 | E177: 0 | G177: b0157 | H177: 0 | J177: b0157 | K177: 0 | M177: b0157 | N177: 0 | R177: Fermage payé | S177: cr775 | U177: =IF(V177<>"",V177,W177) -> 11778.008 | W177: 11778.008 | X177: 6555.06 | Y177: 6438.65 | Z177: 15451.73 | AA177: 17103.03 | AB177: 13341.57 | AC177: où améliorations foncières = cours, chemins, clotûres, défrichement, irrigation, puits, bornage, frais de remembrement, ...
A178: b0158 | B178: 0 | D178: b0158 | E178: 0 | G178: b0158 | H178: 0 | J178: b0158 | K178: 0 | M178: b0158 | N178: 0 | R178: Frais d'entretien des bâtiments et des améliorations foncières | S178: cr776 | U178: 1406.314 | W178: 1406.314 | X178: 1683.88 | Y178: 744 | Z178: 2178.91 | AA178: 1218.61 | AB178: 1206.17 | AC178: = Préc. immo sur les terres, les bâtiments et les investissements du locataires
A179: b0159 | B179: 0 | D179: b0159 | E179: 0 | G179: b0159 | H179: 0 | J179: b0159 | K179: 0 | M179: b0159 | N179: 0 | R179: Precompte immobilier + assurances | S179: cr774 | U179: 1724.82 | W179: 1724.82 | X179: 1604.92 | Y179: 1642.43 | Z179: 1650.95 | AA179: 1697.3 | AB179: 2028.5
A180: b0160 | B180: 0 | D180: b0160 | E180: 0 | G180: b0160 | H180: 0 | J180: b0160 | K180: 0 | M180: b0160 | N180: 0 | R180: Préc. Immo : terres | S180: b1353 | U180: 510.23 | W180: 510.23 | X180: 382.84 | Y180: 388.34 | Z180: 391.24 | AA180: 400.77 | AB180: 987.96
A181: b0161 | B181: 0 | D181: b0161 | E181: 0 | G181: b0161 | H181: 0 | J181: b0161 | K181: 0 | M181: b0161 | N181: 0 | R181: Préc. Immo : bâtiment | S181: b1354 | U181: 711.068 | W181: 711.068 | X181: 742.95 | Y181: 753.63 | Z181: 759.25 | AA181: 777.75 | AB181: 521.76
A182: b0162 | B182: 0 | D182: b0162 | E182: 0 | G182: b0162 | H182: 0 | J182: b0162 | K182: 0 | M182: b0162 | N182: 0 | R182: Préc. Immo : Invest. Locataire | S182: b1355 | U182: 0 | W182: =IFERROR(AVERAGE(X182:AB182),"") -> 0 | X182: 0 | Y182: 0 | Z182: 0 | AA182: 0 | AB182: 0
A183: b0163 | B183: 0 | D183: b0163 | E183: 0 | G183: b0163 | H183: 0 | J183: b0163 | K183: 0 | M183: b0163 | N183: 0
A184: b0164 | B184: 0 | D184: b0164 | E184: 0 | G184: b0164 | H184: 0 | J184: b0164 | K184: 0 | M184: b0164 | N184: 0 | Q184: Frais généraux (activité bovins viandeux) | T184: €/an | U184: =IFERROR(U186*U185,0) -> 3280.583238 | W184: =IFERROR(W186*W185,"") -> 3280.583238 | X184: 2591.313923 | Y184: 2388.046212 | Z184: 2817.70343 | AA184: 3429.136987 | AB184: 5307.413578
A185: b0165 | B185: 0 | D185: b0165 | E185: 0 | G185: b0165 | H185: 0 | J185: b0165 | K185: 0 | M185: b0165 | N185: 0 | Q185: Part des frais généraux totaux liées à l'activité viandeuse | T185: % | U185: =IF(V185<>"",V185,W185) -> 0.9168229567 | W185: =W153 -> 0.9168229567 | X185: 0.9760495398 | Y185: 0.8562773498 | Z185: 0.8638227505 | AA185: 0.9492394449 | AB185: 0.9523680082 | AC185: = impôts et taxes d'exploitation, abonnements journeaux, téléphone, …
A186: b0166 | B186: 0 | D186: b0166 | E186: 0 | G186: b0166 | H186: 0 | J186: b0166 | K186: 0 | M186: b0166 | N186: 0 | Q186: Frais généraux totaux | S186: cr784 | T186: €/an | U186: =IF(V186<>"",V186,W186) -> 3578.208 | W186: =IFERROR(AVERAGE(X186:AB186),"") -> 3578.208 | X186: =IFERROR(VLOOKUP($S186,A:B,2,0),"") -> 2654.9 | Y186: =IFERROR(VLOOKUP($S186,D:E,2,0),"") -> 2788.87 | Z186: =IFERROR(VLOOKUP($S186,G:H,2,0),"") -> 3261.9 | AA186: =IFERROR(VLOOKUP($S186,J:K,2,0),"") -> 3612.51 | AB186: =IFERROR(VLOOKUP($S186,M:N,2,0),"") -> 5572.86
A187: b0167 | B187: 0 | D187: b0167 | E187: 0 | G187: b0167 | H187: 0 | J187: b0167 | K187: 0 | M187: b0167 | N187: 0
A188: b0168 | B188: 0 | D188: b0168 | E188: 0 | G188: b0168 | H188: 0 | J188: b0168 | K188: 0 | M188: b0168 | N188: 0 | Q188: Charges opérationnelles non affectées liées aux cultures fourragères (bovins viandeux) | T188: €/an | U188: =IFERROR(U189*U190*((U29+U30)/U27),0) -> 0 | W188: =IFERROR(W189*W190*((W29+W30)/W27),"") ->  | AC188: = .... % des ch. tot pour frais de rotation x (superficie des praires temporaires et Cult. Fourragères / superficie sous labour)
A189: b0169 | B189: 0 | D189: b0169 | E189: 0 | G189: b0169 | H189: 0 | J189: b0169 | K189: 0 | M189: b0169 | N189: 0 | Q189: Part des charges opérationnelles non affectées totales liées à l'activité viandeuse | T189: % | U189: =IF(V189<>"",V189,W189) -> 0.9168229567 | W189: =W153 -> 0.9168229567 | X189: 0.9760495398 | Y189: 0.8562773498 | Z189: 0.8638227505 | AA189: 0.9492394449 | AB189: 0.9523680082
A190: b0170 | B190: 0 | D190: b0170 | E190: 0 | G190: b0170 | H190: 0 | J190: b0170 | K190: 0 | M190: b0170 | N190: 0 | Q190: Charges totales pour frais de rotation (terres arables) | S190: cr2588 | T190: €/an | U190: =IF(V190<>"",V190,W190) -> 747.936 | W190: =IFERROR(AVERAGE(X190:AB190),"") -> 747.936 | X190: =IFERROR(VLOOKUP($S190,A:B,2,0),"") -> 0 | Y190: =IFERROR(VLOOKUP($S190,D:E,2,0),"") -> 1348.11 | Z190: =IFERROR(VLOOKUP($S190,G:H,2,0),"") -> 1301.94 | AA190: =IFERROR(VLOOKUP($S190,J:K,2,0),"") -> 1089.63 | AB190: =IFERROR(VLOOKUP($S190,M:N,2,0),"") -> 0
A191: b0171 | B191: 0 | D191: b0171 | E191: 0 | G191: b0171 | H191: 0 | J191: b0171 | K191: 0 | M191: b0171 | N191: 0
A192: b0172 | B192: 0 | D192: b0172 | E192: 0 | G192: b0172 | H192: 0 | J192: b0172 | K192: 0 | M192: b0172 | N192: 0 | Q192: Coût total du travail salarié pour (activité bovins viandeux) | T192: €/an | U192: =IFERROR(U194*U193,0) -> 0 | W192: =IFERROR(W194*W193,"") -> 0 | X192: 0 | Y192: 0 | Z192: 0 | AA192: 0 | AB192: 0
A193: b0173 | B193: 0 | D193: b0173 | E193: 0 | G193: b0173 | H193: 0 | J193: b0173 | K193: 0 | M193: b0173 | N193: 0 | Q193: Part de la main d'œuvre salariée correspondant à l'activité viandeuse | T193: % | U193: =IF(V193<>"",V193,W193) -> 0.9168229567 | W193: =W153 -> 0.9168229567 | X193: 0.9760495398 | Y193: 0.8562773498 | Z193: 0.8638227505 | AA193: 0.9492394449 | AB193: 0.9523680082
A194: b0174 | B194: 0 | D194: b0174 | E194: 0 | G194: b0174 | H194: 0 | J194: b0174 | K194: 0 | M194: b0174 | N194: 0 | Q194: Coût total du travail salarié | S194: cr721 | T194: €/an | U194: =IF(V194<>"",V194,W194) -> 0 | W194: =IFERROR(AVERAGE(X194:AB194),"") -> 0 | X194: =IFERROR(VLOOKUP($S194,A:B,2,0),"") -> 0 | Y194: =IFERROR(VLOOKUP($S194,D:E,2,0),"") -> 0 | Z194: =IFERROR(VLOOKUP($S194,G:H,2,0),"") -> 0 | AA194: =IFERROR(VLOOKUP($S194,J:K,2,0),"") -> 0 | AB194: =IFERROR(VLOOKUP($S194,M:N,2,0),"") -> 0
A195: b0175 | B195: 0 | D195: b0175 | E195: 0 | G195: b0175 | H195: 0 | J195: b0175 | K195: 0 | M195: b0175 | N195: 0
A196: b0176 | B196: 0 | D196: b0176 | E196: 0 | G196: b0176 | H196: 0 | J196: b0176 | K196: 0 | M196: b0176 | N196: 0 | Q196: Coût total du travail NON salarié (activité bovins viandeux) | T196: €/an | U196: =IFERROR(U198*U197,0) -> 76633.07224 | W196: =IFERROR(W198*W197,"") -> 76633.07224 | X196: 79806.69062 | Y196: 71053.89448 | Z196: 73110.47639 | AA196: 84454.83012 | AB196: 75784.96996
A197: b0177 | B197: 0 | D197: b0177 | E197: 0 | G197: b0177 | H197: 0 | J197: b0177 | K197: 0 | M197: b0177 | N197: 0 | Q197: Part de la main d'œuvre NON salariée correspondant à l'activité viandeuse | T197: % | U197: =IF(V197<>"",V197,W197) -> 0.9168229567 | W197: =W153 -> 0.9168229567 | X197: 0.9760495398 | Y197: 0.8562773498 | Z197: 0.8638227505 | AA197: 0.9492394449 | AB197: 0.9523680082
A198: b0178 | B198: 0 | D198: b0178 | E198: 0 | G198: b0178 | H198: 0 | J198: b0178 | K198: 0 | M198: b0178 | N198: 0 | Q198: Coût total du travail NON salarié | S198: cr720 | T198: €/an | U198: =IF(V198<>"",V198,W198) -> 83585.464 | W198: =IFERROR(AVERAGE(X198:AB198),"") -> 83585.464 | X198: =IFERROR(VLOOKUP($S198,A:B,2,0),"") -> 81765 | Y198: =IFERROR(VLOOKUP($S198,D:E,2,0),"") -> 82980 | Z198: =IFERROR(VLOOKUP($S198,G:H,2,0),"") -> 84635.97 | AA198: =IFERROR(VLOOKUP($S198,J:K,2,0),"") -> 88971.05 | AB198: =IFERROR(VLOOKUP($S198,M:N,2,0),"") -> 79575.3
A199: b0179 | B199: 0 | D199: b0179 | E199: 0 | G199: b0179 | H199: 0 | J199: b0179 | K199: 0 | M199: b0179 | N199: 0
A200: b0180 | B200: 0 | D200: b0180 | E200: 0 | G200: b0180 | H200: 0 | J200: b0180 | K200: 0 | M200: b0180 | N200: 0 | Q200: Intérêts payés imputables à l'activité de production viandeuse | S200: cr876 | T200: €/an | U200: =IF(V200<>"",V200,W200) -> 3073.982 | W200: =IFERROR(AVERAGE(X200:AB200),"") -> 3073.982 | X200: =IFERROR(VLOOKUP($S200,A:B,2,0),"") -> 3493.06 | Y200: =IFERROR(VLOOKUP($S200,D:E,2,0),"") -> 3146.69 | Z200: =IFERROR(VLOOKUP($S200,G:H,2,0),"") -> 2784.41 | AA200: =IFERROR(VLOOKUP($S200,J:K,2,0),"") -> 2743.96 | AB200: =IFERROR(VLOOKUP($S200,M:N,2,0),"") -> 3201.79
A201: b0181 | B201: 0 | D201: b0181 | E201: 0 | G201: b0181 | H201: 0 | J201: b0181 | K201: 0 | M201: b0181 | N201: 0
A202: b0182 | B202: 0 | D202: b0182 | E202: 0 | G202: b0182 | H202: 800 | J202: b0182 | K202: 754.72 | M202: b0182 | N202: 0 | Q202: REVENUS | W202: =IFERROR(AVERAGE(X202:AB202),"") -> 
A203: b0183 | B203: 0 | D203: b0183 | E203: 0 | G203: b0183 | H203: 0 | J203: b0183 | K203: 0 | M203: b0183 | N203: 0 | Q203: Produits totaux de l'exploitation | S203: cr844 | T203: €/an | U203: =IF(V203<>"",V203,W203) -> 123521.57 | W203: =IFERROR(AVERAGE(X203:AB203),"") -> 123521.57 | X203: =IFERROR(VLOOKUP($S203,A:B,2,0),"") -> 102245.81 | Y203: =IFERROR(VLOOKUP($S203,D:E,2,0),"") -> 103307.71 | Z203: =IFERROR(VLOOKUP($S203,G:H,2,0),"") -> 137996.26 | AA203: =IFERROR(VLOOKUP($S203,J:K,2,0),"") -> 131915.05 | AB203: =IFERROR(VLOOKUP($S203,M:N,2,0),"") -> 142143.02
A204: b0184 | B204: 0 | D204: b0184 | E204: 0 | G204: b0184 | H204: 0 | J204: b0184 | K204: 0 | M204: b0184 | N204: 0 | Q204: Revenu agricole de l'exploitation dans son entièreté | S204: cr3998 | T204: €/an | U204: =IF(V204<>"",V204,W204) -> 49539.27 | W204: =IFERROR(AVERAGE(X204:AB204),"") -> 49539.27 | X204: =IFERROR(VLOOKUP($S204,A:B,2,0),"") -> 41874.28 | Y204: =IFERROR(VLOOKUP($S204,D:E,2,0),"") -> 37995.65 | Z204: =IFERROR(VLOOKUP($S204,G:H,2,0),"") -> 53045.79 | AA204: =IFERROR(VLOOKUP($S204,J:K,2,0),"") -> 61910.18 | AB204: =IFERROR(VLOOKUP($S204,M:N,2,0),"") -> 52870.45
A205: b0185 | B205: 0 | D205: b0185 | E205: 0 | G205: b0185 | H205: 0 | J205: b0185 | K205: 0 | M205: b0185 | N205: 0
... 4295 more rows

Sheet INTRO
E1: votre outil de Comparaison et d'Amélioration des Performances de votre activité de production viandeuse
J4: version 2025.06(1)
A5: Bienvenue dans cet outil de comparaison des performances agricoles. Il a été spécialement conçu pour vous aider à évaluer la situation de votre activité de production de viande bovine en la comparant aux résultats d'autres exploitations du secteur et semblables à la vôtre.
A10: En renseignant vos propres informations1, vous aurez l'occasion de situer votre activité par rapports à différents indicateurs tels que
C13: 1. les revenus générés | G13: 3. la ventilation des produits et des charges
C19: 2. Indices (zoo)techniques | G19: 4. les prix de vente obtenus
A24: Les tableaux et graphiques qui suivent vous offriront dès lors une vue d'ensemble de votre positionnement, vous permettant ainsi de mieux comprendre vos points forts et les domaines où des améliorations pourraient être envisagées.
A27: Cet aperçu vous accompagnera dans l'identification de pistes d'amélioration et à orienter vos choix pour soutenir la rentabilité de votre activité.
A31: CONTACT : | D31: Pour toute question ou remarque concernant cet outil, vous pouvez prendre contact avec le CER Groupe par mail à l'adresse agrideveloppement@cergroupe.be ou par téléphone au +32 84 220 389
G34: Cet outil a été réalisé par le CER Groupe, en collaboration et avec le soutien financier du Service Public de Wallonie Agriculture, Ressources naturelles et Environnement [SPW ARNE], Direction de l'Analyse Economique Agricole [DAEA]

Sheet Mode d'emploi
B3: Encodage des données | L3: Feuilles 2 à 4 : Analyses comparatives
B5: Dans la feuille "Encodage données", | L5: Les tableaux et graphiques des feuilles 2 à 4 te permettront de comparer ta situation personnelle à la moyenne moyenne obtenue dans chacun des 3 groupes de performance (faible - moyen - élevée).
B6: - | C6: Renseigne uniquement les données liées à ton activité viandeuse
B7: - | C7: !! Ne tiens pas compte des autres activités (ex : lait, cultures...)
L8: Voici quelques exemples d'indicateurs clefs que tu pourras comparer :
B9: Identification du profil | N9: Feuille 2 "Indices (zoo)techniques"
B10: Sur base des données encodées, l'outil va automatiquement | N10: taux de mortalité (naissance et total) | R10: charge en bovins à l'hectare
B11: - | C11: Déterminer ton profil* : Eleveur-Naisseur, Eleveur-Engraisseur ou Intermédiaire | N11: taux de réforme | R11: charge de travail …
B12: - | C12: Te classer dans l'échantillon de référence te correspondant
B14: * | C14: Ton profil est déterminé sur base | N14: Feuille 3 "Rentabilité"
C15: 1. de la composition de ton troupeau, | N15: marge brute de l'activité viandeuse | R15: poids des aides
C16: 2. des ventes de bovins, | N16: charges d'alimentation, du matériel, foncières | R16: …
C17: 3. du mode de conduite de ton activité viandeuse : biologique ou conventionnel.
N18: Feuille 4 "Prix de ventes"
B19: Feuille "1. Revenus" : Evaluation de la performance | N19: prix de vente par catégorie de bovin
B20: Sur base du revenu agricole dégagé par ton activité de production de viande, l’outil te place dans l’un des 3 groupes de performance de ton échantillon de référence : | N20: prix et poids de vente des taureaux gras
B22: • | C22: Groupe de performance faible = les 25% les moins rentables
B23: • | C23: Groupe de performance moyenne = les 50% moyennement rentables | L23: Objectif final
B24: • | C24: Groupe de performance élevé = les 25% les plus rentables | L24: T'aider à
L25: - | M25: Évaluer la rentabilité de ton activité viandeuse,
C26: Par exemple: Le graphique ci-dessous représente la répartition des exploitations de type "Eleveurs-Naisseurs en conventionnel" (moyenne des revenus obtenus entre 2019 et 2023). | L26: - | M26: Identifier tes points forts,
L27: - | M27: Repérer les leviers d’amélioration concrets pour optimiser la rentabilité de ton atelier viandeux.
C28: Dans ce groupe, le revenu agricole dégagé par l'activité de production viandeuse est inférieur à 9 992€ par UTF pour les 25% les moins performants alors que les 25% les plus performants arrivent à en tirer plus de 37 397€ par UTF.
L29: Remarque importante quant à l'interpretation des résultats
L30: Comparer ses résultats individuels à ceux du groupe des exploitations les plus performantes peut être instructif, mais il ne faut pas tomber dans une lecture trop simpliste. En effet, les indicateurs sont souvent interconnectés et il dès lors nécessaire de les interpréter dans leur globalité. Par exemple : Avoir des dépenses en alimentation plus élevées que la moyenne n’est pas nécessairement un signe de mauvaise gestion. Cela peut refléter un choix stratégique visant à améliorer la santé du troupeau, tendre vers des vêlages plus précoces, ou obtenir de meilleurs poids/prix de vente.
L37: Méthodologie
L38: La méthodologie utilisée pour développer cet outil peut-être retrouvée dans le document
L39: "Méthodologie" disponible sur le site internet de l'Etat de l'Agriculture wallonne
L40: Ce document présente | S40: lien vers le site de l'Etat de l'Agriculture
L41: - | M41: Les critères de sélection des exploitations intégrées dans l'étude
L42: - | M42: Les critères de définition du profil* de l'explotation
M43: * Eleveur-Naisseur, Eleveur-Engraisseur ou Intermédiaire
L44: - | M44: Les limites de l'étude

Sheet Glossaire
A2: Charges opérationnelles | B2: Charges qui apparaissent dès que la décision de produire est prise.
A3: - affectées : | B3: elles sont variables et spécifiques à une activité précise (ex: aliments pour bétail, semences, …)
A4: - non affectées : | B4: elles ne peuvent pas être attribuées à une activité spécifique (ex: eau, carburant, ….)
A6: Cultures commerçables | B6: Céréales, paille, betteraves sucrières, pommes de terre, colza, …
B7: dont la destination principale est la vente
A9: Cultures fourragères | B9: Prairies, maïs fourrager, betteraves fourragères, luzerne, trèfle, légumineuses à ensiler, …
B10: destinées à l'alimentation des bovins de l'exploitation
A12: Intervalle Vêlage-Vêlage | B12: Nombre moyen de jours entre 2 vêlages consécutifs
A13: (IVV)
A15: Marge Brute | B15: Différence entre la valeur du produit (principal et/ou secondaire) d'une activité
A16: (MB) | B16: et les charges opérationnelles affectées qu'elle consomme.
A18: Revenu Agricole | B18: Différence entre le total des produits et des charges réelles
A19: (RA) | B19: Le Revenu Agricole est également appelé "revenu du travail et du capital familial".
B20: Ce revenu doit permettre de rémunérer le travail familial ainsi que le capital détenu en propriété.
A22: Revenu du Travail | B22: Il est obtenu en déduisant du RA une rémunération fictive | H22: du travail familial
A23: (RT) | H23: et du capital en propriété (terres, bâtiments, …)
B24: Ce revenu doit servir à financer de nouveaux investissements dans l'exploitation
A26: Superficie Fourragère | B26: Somme des surfaces | D26: des prairies temporaires et permanentes,
A27: pour les Herbivores (SFH) | D27: des cultures fourragères,
D28: et d'1/3 des cultures secondaires récoltées comme fourrage.
A30: Superficie Agricole Utilisée | B30: Superficie cadastrale de l'exploitation dont on déduit la superficie des bâtiments, cours, chemins et terres vaines.
A32: Unité de Gros Bétail Bovin | B32: Unité de référence spécifique aux bovins et permettant d'agréger les bovins de différents âges
A33: (UGBB) | B33: Par exemple : 1 vache de réforme = 5 femelles de moins de 1 an
A35: Unité de Travail | B35: Un chef d’exploitation SANS occupation professionnelle à l’extérieur de l’exploitation
A36: (UT) | B36: correspond à 1 UT (quel que soit le nombre d’heures de travail prestées sur l’exploitation)
B38: Si un chef d’exploitation a une AUTRE occupation professionnelle,
B39: alors l’UT correspond au rapport entre les heures prestées sur l’exploitation et les heures totales prestées.
B41: Pour les autres travailleurs, l’UT est calculée sur base d'une prestation annuelle de 1800 heures.
A43: Unité de Travail Familiale | B43: Les unités de travail non rémunérées réalisées spécifiquement par la main d'œuvre familiale
A44: (UTF) | B44: soit l'exploitant, son/sa conjoint(e), ses enfants et ses parents.
A46: Taux de mortalité | B46: Rapport entre le nombre de bovins morts et le nombre total de bovins
A48: Taux de réforme | B48: Rapport entre le nombre de vaches sorties du troupeau* et le nombre total de bovins
B49: * ventes et mortes
A51: Taux de renouvellement | B51: Rapport entre le nombre de vaches entrées dans le troupeau* et le nombre total de vaches
B52: * achats et génisses ayant eu leur premier veau
A54: Vaches | B54: Bovins femelles ayant eu au moins un veau
A55: Génisses | B55: Bovins femelles n'ayant jamais eu de veau

Sheet Encodage données
A1: !!! Remarques préliminaires importantes !!!
A3: Rem. 1 | B3: Seule les cellules VERTES sont à compléter.
B4: Les cellules ORANGES sont calculées automatiquement, sur base des données renseignées dans les cellules vertes.
A6: Rem. 2 | B6: Pour rappel, cet outil a pour vocation de situer votre activité de production viandeuse par rapport à celle d'exploitations comparables.
B7: Il est dès lors important de renseigner uniquement les données relatives à cette activité de production viandeuse.
B8: Par exemple :
B9: Produits/charges des cultures fourragères = uniquement les produits/charges relatifs aux cultures fourragères destinées à alimenter le troupeau viandeux
B10: Frais des aliments/vétérinaires/… = uniquement les frais relatifs au cheptel de bovins viandeux. Il faudra, par exemple, exclure les frais liés aux autres troupeaux (laitiers, ovins, porcins, …)
A12: Rem. 3 | B12: Concernant la distinction entre les cultures fourragères et les cultures commerçables :
B13: Cultures fourragères = prairies, maïs fourrager, betteraves fourragères, luzerne, trèfle, légumineuses à ensiler, … destinées à l'alimentation des bovins de l'exploitation
B14: Cultures commerçables = céréales, betteraves sucrières, pommes de terre, colza, … dont la destination principale est la vente
A18: 1 | B18: Identification du profil de l'activité de production viandeuse
E19: Moyenne annuelle 2019-2023 | F19: Moyenne annuelle 2019-2023 | G19: 2019 | H19: 2020 | I19: 2021 | J19: 2022 | K19: 2023 | L19: Remarques
B20: QUANTIFICATION DU TROUPEAU VIANDEUX
B21: Mode de production de l'activité viandeuse : LISTE DEROULANTE | E21: Conventionnel
B22: UGBB | C22: cr367 | E22: =IF(SUM(E23:E29)>0,E23*0.9+(E24+E25)*0.2+E26*0.7+E27*0.5+(E28+E29)*0.9,"") ->  | F22: =IF(SUM(F23:F29)>0,F23*0.9+(F24+F25)*0.2+F26*0.7+F27*0.5+(F28+F29)*0.9,0) -> 0 | G22: =IF(SUM(G23:G29)>0,G23*0.9+(G24+G25)*0.2+G26*0.7+G27*0.5+(G28+G29)*0.9,"") ->  | H22: =IF(SUM(H23:H29)>0,H23*0.9+(H24+H25)*0.2+H26*0.7+H27*0.5+(H28+H29)*0.9,"") -> 
B23: Nombre de vaches nourrices | C23: b0613 | E23: =F23 -> 0 | F23: =IFERROR(AVERAGE(G23:K23),0) -> 0
B24: Nombre de bovins mâles de < 1an | C24: b0603 | E24: 0 | F24: 0 | L24: veaux mâles y compris
B25: Nombre de femelles de < 1 an | C25: b0604 | E25: 0 | F25: 0 | L25: veaux femelles y compris
B26: Nombre de bovins mâles de 1 à 2 ans | C26: b0606 | E26: 0 | F26: 0
B27: Nombre de femelles de 1 à 2 ans | C27: b0607 | E27: 0 | F27: 0
B28: Nombre de bovins mâles de > 2 ans | C28: b0609 | E28: 0 | F28: 0
B29: Nombre de génisses de > 2 ans | C29: b0610 | E29: 0 | F29: 0
B31: VENTES DE BETAIL VIANDEUX
B32: Nombre de veaux vendus (< 28 jours) | C32: b0706 | E32: =F32 -> 0 | F32: =IFERROR(AVERAGE(G32:K32),0) -> 0
B33: Nombre de bovins mâles vendus ( < 1 an) | C33: b0360 | E33: =F33 -> 0 | F33: =IFERROR(AVERAGE(G33:K33),0) -> 0 | L33: veaux mâles y compris
B34: Nombre de bovins mâles vendus ( 1 à 2 ans) | C34: b0408 | E34: =F34 -> 0 | F34: =IFERROR(AVERAGE(G34:K34),0) -> 0
B35: Nombre de taureaux gras vendus | C35: b0710 | E35: =F35 -> 0 | F35: =IFERROR(AVERAGE(G35:K35),0) -> 0
B38: A ce stade, vous pouvez déjà comparer les moyennes de chaque groupe de performance de votre échantillon de référence, et ce pour l'ensembles des graphiques présents dans les feuilles 1 à 4.
B39: Vous ne pouvez cependant pas encore comparer votre situation personnelle à celle de votre échantillon de référence
A42: 2 | B42: Comparaison de vos indices spécifiques à votre échantillon de référence
B44: Au fur et à mesure que vous complétez les données complémentaires ci-dessous,
B45: les différents graphiques vous permettront de comparer votre situation personnelle à celle de votre échantillon de référence
D47: Unités | E47: Moyenne annuelle 2019-2023 | F47: Moyenne annuelle 2019-2023 | G47: 2019 | H47: 2020 | I47: 2021 | J47: 2022 | K47: 2023 | L47: Remarques
B48: DONNEES GENERALES
B49: Nombre d'ETP totaux présents sur l'exploitation, pour l'activité viandeuse | C49: cr251 | E49: =F49 -> 0 | F49: =IFERROR(AVERAGE(G49:K49),0) -> 0
B50: Nombre d'ETP non salariés présents sur l'exploitation, pour l'activité viandeuse | C50: cr250 | E50: =F50 -> 0 | F50: =IFERROR(AVERAGE(G50:K50),0) -> 0
B51: SAU allouée à l'activité viandeuse | C51: cr202 | D51: ha | E51: =F51 -> 0 | F51: =IFERROR(AVERAGE(G51:K51),0) -> 0
B52: Superficie totale sous labour | D52: ha | E52: =F52 -> 0 | F52: =IFERROR(AVERAGE(G52:K52),0) -> 0
B53: Superficie fourragère totale pour les herbivores | C53: cr400 | D53: ha | E53: =IF(SUM(E54:E57)>0,E54+E55+E56+(E57/3),"") ->  | F53: =IF(SUM(F54:F57)>0,F54+F55+F56+(F57/3),0) -> 0 | K53: =IF(SUM(K54:K57)>0,K54+K55+K56+(K57/3),"") ->  | L53: = superficie des prairies temporaires + permantentes + cultures fourragères + 1/3 cultures secondaires récoltées comme fourrage
B54: Superficie des prairies permanentes | C54: cr220 | D54: ha | E54: =F54 -> 0 | F54: =IFERROR(AVERAGE(G54:K54),0) -> 0 | L54: vergers pâturés inclus
B55: Superficie des prairies temporaires | C55: cr219 | D55: ha | E55: =F55 -> 0 | F55: =IFERROR(AVERAGE(G55:K55),0) -> 0
B56: Superficie des cultures fourragères | C56: cr218 | D56: ha | E56: =F56 -> 0 | F56: =IFERROR(AVERAGE(G56:K56),0) -> 0
B57: Superficie des cultures secondaires récoltées comme fourrage (couverts, SIE, …) | D57: ha | E57: =F57 -> 0 | F57: =IFERROR(AVERAGE(G57:K57),0) -> 0
B59: INDICES TECHNIQUES DU TROUPEAU
B60: Âge moyen des vaches réformées | C60: cr547 | D60: années | E60: =F60 -> 0 | F60: =IFERROR(AVERAGE(G60:K60),0) -> 0
B61: Âge moyen des génisses au 1er vêlage | C61: cr545 | D61: mois | E61: =F61 -> 0 | F61: =IFERROR(AVERAGE(G61:K61),0) -> 0
B62: IVV | D62: jours | E62: =F62 -> 0 | F62: =IFERROR(AVERAGE(G62:K62),0) -> 0
B63: Nombre total de veaux nés viables | E63: =F63 -> 0 | F63: =IFERROR(AVERAGE(G63:K63),0) -> 0
B64: Nombre total de vêlages | E64: =F64 -> 0 | F64: =IFERROR(AVERAGE(G64:K64),0) -> 0
B65: Nombre total de vaches nourrices | E65: =IF(E23>0,F23,"") ->  | F65: =IF(F23>0,F23,0) -> 0 | G65: =IF(G23>0,G23,"") ->  | H65: =IF(H23>0,H23,"") ->  | I65: =IF(I23>0,I23,"") ->  | J65: =IF(J23>0,J23,"") ->  | K65: =IF(K23>0,K23,"") -> 
B67: Nombre vaches nourrices achetées | C67: b0502 | E67: =F67 -> 0 | F67: =IFERROR(AVERAGE(G67:K67),0) -> 0
B68: Nombre de vaches laitières transférées en vaches nourrices | C68: b0687 | E68: =F68 -> 0 | F68: =IFERROR(AVERAGE(G68:K68),0) -> 0
B69: Nombre de génisses transférées en vaches nourrices | C69: b0699 | E69: =F69 -> 0 | F69: =IFERROR(AVERAGE(G69:K69),0) -> 0
B70: Nombre de vaches nourrices décédées | C70: b0506 | E70: =F70 -> 0 | F70: =IFERROR(AVERAGE(G70:K70),0) -> 0
B71: Nombre total de bovins décédés | C71: cr2766 | E71: =F71 -> 0 | F71: =IFERROR(AVERAGE(G71:K71),0) -> 0
B74: A ce stade, vous pouvez comparer le coût estimé de votre main d'œuvre familiale (non salariée) à la moyenne pour chaque groupe de performance | J74: Feuille 1. "Revenus"
B75: Vous disposez également de toutes les informations pour situer quelques indices (zoo)techniques de votre exploitation | I75: Feuille 2. "Indices (zoo)techniques"
D78: Unités | E78: Moyenne annuelle 2019-2023 | F78: Moyenne annuelle 2019-2023 | G78: 2019 | H78: 2020 | I78: 2021 | J78: 2022 | K78: 2023 | L78: Remarques
B79: VENTES DE BETAIL VIANDEUX
B80: TOTAL DES VENTES DE BOVINS | E80: =IFERROR(SUM(E82+E85+E88+E91+E94+E97+E100),"") -> 0 | F80: =IFERROR(SUM(F82+F85+F88+F91+F94+F97+F100),0) -> 0 | G80: =IF((G82+G85+G88+G91+G94+G97+G100)>0,(G82+G85+G88+G91+G94+G97+G100),"") ->  | H80: =IF((H82+H85+H88+H91+H94+H97+H100)>0,(H82+H85+H88+H91+H94+H97+H100),"") ->  | I80: =IF((I82+I85+I88+I91+I94+I97+I100)>0,(I82+I85+I88+I91+I94+I97+I100),"") ->  | J80: =IF((J82+J85+J88+J91+J94+J97+J100)>0,(J82+J85+J88+J91+J94+J97+J100),"") ->  | K80: =IF((K82+K85+K88+K91+K94+K97+K100)>0,(K82+K85+K88+K91+K94+K97+K100),"") -> 
B81: Nombre de vaches nourrices vendues | C81: b0504 | E81: =F81 -> 0 | F81: =IFERROR(AVERAGE(G81:K81),0) -> 0
B82: Valeur totale des ventes de vaches nourrices | C82: b0505 | D82: €/an | E82: =F82 -> 0 | F82: =IFERROR(AVERAGE(G82:K82),0) -> 0
B84: Nombre de bovins mâles vendus ( < 1 an) | C84: b0360 | E84: =F84 -> 0 | F84: =IFERROR(AVERAGE(G84:K84),0) -> 0 | G84: =IF(G33<>0,G33,"") ->  | H84: =IF(H33<>0,H33,"") ->  | I84: =IF(I33<>0,I33,"") ->  | J84: =IF(J33<>0,J33,"") ->  | K84: =IF(K33<>0,K33,"") ->  | L84: veaux mâles y compris
B85: Valeur totale des ventes des bovins mâles de < 1an | C85: b0361 | D85: €/an | E85: 0 | F85: =IFERROR(AVERAGE(G85:K85),0) -> 0
B87: Nombre de bovins femelles vendus ( < 1 an) | C87: b0384 | E87: 0 | F87: =IFERROR(AVERAGE(G87:K87),0) -> 0 | L87: veaux femelles y compris
B88: Valeur totale des ventes des bovins femelles de < 1an | C88: b0385 | D88: €/an | E88: 0 | F88: =IFERROR(AVERAGE(G88:K88),0) -> 0
B90: Nombre de bovins mâles vendus ( 1 à 2 ans) | C90: b0408 | E90: 0 | F90: =IFERROR(AVERAGE(G90:K90),0) -> 0 | G90: =IF(G34<>0,G34,"") ->  | H90: =IF(H34<>0,H34,"") ->  | I90: =IF(I34<>0,I34,"") ->  | J90: =IF(J34<>0,J34,"") ->  | K90: =IF(K34<>0,K34,"") -> 
B91: Valeur totale des ventes des bovins mâles de 1 à 2 ans | C91: b0409 | D91: €/an | E91: 0 | F91: =IFERROR(AVERAGE(G91:K91),0) -> 0
E92: 0 | F92: =IFERROR(AVERAGE(G92:K92),0) -> 0
B93: Nombre de bovins femelles vendus ( 1 à 2 ans) | C93: b0420 | E93: 0 | F93: =IFERROR(AVERAGE(G93:K93),0) -> 0
B94: Valeur totale des ventes des bovins femelles de 1 à 2 ans | C94: b0421 | D94: €/an | E94: 0 | F94: =IFERROR(AVERAGE(G94:K94),0) -> 0
B96: Nombre de bovins mâles vendus (> 2 ans) | C96: b0456 | E96: 0 | F96: =IFERROR(AVERAGE(G96:K96),0) -> 0
B97: Valeur totale des ventes des bovins mâles de > 2 ans | C97: b0457 | D97: €/an | E97: 0 | F97: =IFERROR(AVERAGE(G97:K97),0) -> 0
B99: Nombre de bovins femelles vendus (> 2 ans) | C99: b0468 | E99: 0 | F99: =IFERROR(AVERAGE(G99:K99),0) -> 0 | L99: uniquement les génisses
B100: Valeur totale des ventes des bovins femelles de > 2 ans | C100: b0469 | D100: €/an | E100: 0 | F100: =IFERROR(AVERAGE(G100:K100),0) -> 0
B102: TOTAL DES VENTES DE BOVINS, par catégorie d'âge | E102: =IFERROR(E104+E107+E110,"") -> 0 | F102: =IFERROR(F104+F107+F110,0) -> 0 | G102: =IF(G104+G107+G110>0,G104+G107+G110,"") ->  | H102: =IF(H104+H107+H110>0,H104+H107+H110,"") ->  | I102: =IF(I104+I107+I110>0,I104+I107+I110,"") ->  | J102: =IF(J104+J107+J110>0,J104+J107+J110,"") ->  | K102: =IF(K104+K107+K110>0,K104+K107+K110,"") -> 
B103: Nombre de veaux vendus (< 28 jours) | C103: b0706 | E103: =F103 -> 0 | F103: =IFERROR(AVERAGE(G103:K103),0) -> 0 | G103: =IF(G32<>0,G32,"") ->  | H103: =IF(H32<>0,H32,"") ->  | I103: =IF(I32<>0,I32,"") ->  | J103: =IF(J32<>0,J32,"") ->  | K103: =IF(K32<>0,K32,"") -> 
B104: Valeur totale des ventes de veaux | C104: b0707 | D104: €/an | E104: =F104 -> 0 | F104: =IFERROR(AVERAGE(G104:K104),0) -> 0
B106: Nombre de taureaux maigres vendus | C106: b0708 | E106: =F106 -> 0 | F106: =IFERROR(AVERAGE(G106:K106),0) -> 0
B107: Valeur totale des ventes des taureaux maigres | C107: b0709 | D107: €/an | E107: =F107 -> 0 | F107: =IFERROR(AVERAGE(G107:K107),0) -> 0
B109: Nombre de taureaux gras vendus | C109: b0710 | E109: =F109 -> 0 | F109: =IFERROR(AVERAGE(G109:K109),0) -> 0 | G109: =IF(G35<>0,G35,"") ->  | H109: =IF(H35<>0,H35,"") ->  | I109: =IF(I35<>0,I35,"") ->  | J109: =IF(J35<>0,J35,"") ->  | K109: =IF(K35<>0,K35,"") -> 
B110: Valeur totale des ventes des taureaux gras | C110: b0712 | D110: €/an | E110: =F110 -> 0 | F110: =IFERROR(AVERAGE(G110:K110),0) -> 0
B111: Poids moyen d'1 taureau gras (kg vif) | D111: kg | E111: =F111 -> 0 | F111: =IFERROR(AVERAGE(G111:K111),0) -> 0
B114: A ce stade, vous pouvez comparer vos prix de ventes moyens des bovins à celui obtenu pour chaque groupe de performance | I114: Feuille 4. "Prix de ventes"
B116: Les différentes données ci-dessous permettront de déterminer le revenu agricole dégagé par votre activité de production de viande bovine.
B117: Ceci permettra non seulement de connaitre le groupe de performance auquel vous appartenez
B118: mais également de comparer divers éléments de rentabilité aux autres exploitations de votre profil (marge brute, coût des aliments, charges du matériel, poids des aides, …) | L118: Feuille 3. "Rentabilité"
B120: PRODUITS DES BOVINS ET DES CULTURES FOURRAGERES
B121: Produits des bovins | C121: cr480 | D121: €/an | E121: =IFERROR((E125-E124)+(E123-E122)+E126,"") -> 0 | F121: =IFERROR((F125-F124)+(F123-F122)+F126,0) -> 0
B122: Valeur des achats de bétail | E122: =F122 -> 0 | F122: =IFERROR(AVERAGE(G122:K122),0) -> 0
B123: Valeur des ventes de bétail | E123: =E80 -> 0 | F123: =IFERROR(AVERAGE(G123:K123),0) -> 0 | G123: =G80 ->  | H123: =H80 ->  | I123: =I80 ->  | J123: =J80 ->  | K123: =K80 -> 
B124: Valeur du cheptel au 01/01 (inventaire d'entrée) | E124: =F124 -> 0 | F124: =IFERROR(AVERAGE(G124:K124),0) -> 0
B125: Valeur du cheptel au 31/12 (inventaire de sortie) | E125: =F125 -> 0 | F125: =IFERROR(AVERAGE(G125:K125),0) -> 0
B126: Autres produits bovins | E126: =F126 -> 0 | F126: =IFERROR(AVERAGE(G126:K126),0) -> 0 | L126: = saillies, ventes de fumier, bétail de tiers en pension, autres
B128: Produits des Cultures Fourragères (ventes) | C128: cr819 | D128: €/an | E128: =F128 -> 0 | F128: =IFERROR(AVERAGE(G128:K128),0) -> 0 | L128: = Produits issus de la vente des cultures fourragères * NON intra-consommées + subventions publiques (hors MAEC)
L129: * Cultures fourragères = prairies temporaires et permanentes, maïs fourrager, betteraves fourragères, luzerne, trefle, légumineuses à ensiler, … destinées à l'alimentation des bovins
B131: CHARGES DES BOVINS ET DES CULTURES FOURRAGERES
B132: Charges opérationnelles des bovins | D132: €/an | E132: =IFERROR(E134+E140+E146+E147,"") ->  | F132: =IFERROR(F134+F140+F146+F147,0) -> 0
B134: Valeur des aliments produits sur l'exploitation | D134: €/an | E134: =IF(SUM(E135:E138)>0,SUM(E135:E138),"") ->  | F134: =IF(SUM(F135:F138)>0,SUM(F135:F138),0) -> 0 | L134: = valeur des cultures commerçables (céréales, paille, ...) intra-consommées et valorisées à leur prix de vente potentiel
B135: Valeur des aliments concentrés produits sur l'exploitation | C135: cr482 | E135: =F135 -> 0 | F135: =IFERROR(AVERAGE(G135:K135),0) -> 0
B136: Valeur des aliments grossiers produits sur l'exploitation | C136: cr486 | E136: =F136 -> 0 | F136: =IFERROR(AVERAGE(G136:K136),0) -> 0
B137: Valeur de la paille produite sur l'exploitation | C137: cr488 | E137: =F137 -> 0 | F137: =IFERROR(AVERAGE(G137:K137),0) -> 0
B138: Valeur des aliments laitiers produits sur l'exploitation | C138: cr484 | E138: =F138 -> 0 | F138: =IFERROR(AVERAGE(G138:K138),0) -> 0 | L138: = aliments laitiers provenant du troupeau laitier
B140: Valeur des aliments achetés | D140: €/an | E140: =IF(SUM(E141:E144)>0,SUM(E141:E144),"") ->  | F140: =IF(SUM(F141:F144)>0,SUM(F141:F144),0) -> 0
B141: Achats de concentrés | C141: cr481 | E141: =F141 -> 0 | F141: =IFERROR(AVERAGE(G141:K141),0) -> 0
B142: Achats de grossiers | C142: cr485 | E142: =F142 -> 0 | F142: =IFERROR(AVERAGE(G142:K142),0) -> 0
B143: Achats de paille | C143: cr487 | E143: =F143 -> 0 | F143: =IFERROR(AVERAGE(G143:K143),0) -> 0
B144: Achats d'aliments laitiers | C144: cr483 | E144: =F144 -> 0 | F144: =IFERROR(AVERAGE(G144:K144),0) -> 0 | L144: = aliments laitiers provenant d'un autre troupeau (distinct)
B146: Frais vétérinaires (maladies uniquement) | D146: €/an | E146: =F146 -> 0 | F146: =IFERROR(AVERAGE(G146:K146),0) -> 0 | L146: = frais de lutte contre les maladies uniquement(vétérinaire, médicaments, parrage, …). N'inclus pas les frais de reproduction, d'identification, …
B147: Autres charges des bovins | D147: €/an | E147: =F147 -> 0 | F147: =IFERROR(AVERAGE(G147:K147),0) -> 0 | L147: = aliments pour bétail chez des tiers, litières, traveaux par tiers, autres charges directes
B150: Ch opérationnelles des Cultures Fourragères | D150: €/an | E150: =IF(SUM(E151:E154)>0,SUM(E151:E154),"") ->  | F150: =IF(SUM(F151:F154)>0,SUM(F151:F154),0) -> 0 | L150: Attention : | M150: Uniquement les charges liées à la production des cultures fourragères.
B151: Engrais | E151: =F151 -> 0 | F151: =IFERROR(AVERAGE(G151:K151),0) -> 0 | M151: NE PAS COMPTABILISER les charges liées à la production des cultures commerçables intraconsomées.
B152: Semences | E152: =F152 -> 0 | F152: =IFERROR(AVERAGE(G152:K152),0) -> 0
B153: Produits phytosanitaires | E153: =F153 -> 0 | F153: =IFERROR(AVERAGE(G153:K153),0) -> 0
B154: Autres charges des cultures fourragères | E154: =F154 -> 0 | F154: =IFERROR(AVERAGE(G154:K154),0) -> 0 | L154: travaux par tiers non compris
B156: AUTRES PRODUITS DE L EXPLOITATION
B157: Travaux réalisés pour des tiers pour l'activité de production de viande/cultures fourragères | C157: cr835 | D157: €/an | E157: =F157 -> 0 | F157: =IFERROR(AVERAGE(G157:K157),0) -> 0
B159: Aides couplées pour les vaches viandeuses | C159: b1496 | E159: =F159 -> 0 | F159: =IFERROR(AVERAGE(G159:K159),0) -> 0
B160: Aides couplées pour les autres cheptels | E160: =F160 -> 0 | F160: =IFERROR(AVERAGE(G160:K160),0) -> 0
B161: Aides non couplées liées aux cultures fourragères pour les bovins viandeux | E161: =IFERROR(((E162-E159-E160)*((E54+E55+E56)/E51)),"") ->  | F161: =IFERROR(((F162-F159-F160)*((F54+F55+F56)/F51)),0) -> 0 | G161: =IF(G159+G160+G162>0, ((G162-G159-G160)*((G54+G55+G56)/G51)),"") ->  | H161: =IF(H159+H160+H162>0, ((H162-H159-H160)*((H54+H55+H56)/H51)),"") ->  | I161: =IF(I159+I160+I162>0, ((I162-I159-I160)*((I54+I55+I56)/I51)),"") ->  | J161: =IF(J159+J160+J162>0, ((J162-J159-J160)*((J54+J55+J56)/J51)),"") ->  | K161: =IF(K159+K160+K162>0, ((K162-K159-K160)*((K54+K55+K56)/K51)),"") ->  | L161: = (aides totales - aides couplées) x (superficie Cult. Fourragères et des prairies / SAU)
B162: Aides non couplées totales | E162: =F162 -> 0 | F162: =IFERROR(AVERAGE(G162:K162),0) -> 0 | L162: = paiment de base, jeune, vert, redistributif + MAEC, BIO, IZCN, Natura 2000
B164: Aides en capital perçues pour l'activité de bovins viandeux | D164: €/an | E164: =F164 -> 0 | F164: =IFERROR(AVERAGE(G164:K164),0) -> 0 | G164: =IF('CALCUL aides'!H24>0,'CALCUL aides'!H24,"") ->  | H164: =IF('CALCUL aides'!H25>0,'CALCUL aides'!H25,"") ->  | I164: =IF('CALCUL aides'!H26>0,'CALCUL aides'!H26,"") ->  | J164: =IF('CALCUL aides'!H27>0,'CALCUL aides'!H27,"") ->  | K164: =IF('CALCUL aides'!H28>0,'CALCUL aides'!H28,"") ->  | L164: Cliquez ici pour vous rendre à la feuille "CALCUL aides"
B166: AUTRES CHARGES DE L EXPLOITATION
B167: Travaux réalisés par des tiers pour l'activité de production de viande/cultures fourragères | C167: cr722 | D167: €/an | E167: =F167 -> 0 | F167: =IFERROR(AVERAGE(G167:K167),0) -> 0
B169: Charges de matériel pour l'activité de production de viande | D169: €/an | E169: =IFERROR(E171*E170,"") ->  | F169: =IFERROR(F171*F170,0) -> 0
B170: Part des charges de matériel totales liées à l'activité viandeuse (en %) | E170: =F170 -> 0 | F170: =IFERROR(AVERAGE(G170:K170),0) -> 0
B171: Charges de matériel (machines + tracteurs : M&T) TOTALES | C171: cr744 | D171: €/an | E171: =IF(SUM(E172:E178)>0,SUM(E172:E178),"") ->  | F171: =IF(SUM(F172:F178)>0,SUM(F172:F178),0) -> 0 | K171: =IF(SUM(K172:K178)>0,SUM(K172:K178),"") -> 
B172: Amortissements M&T | C172: 726 | E172: =F172 -> 0 | F172: =IFERROR(AVERAGE(G172:K172),0) -> 0
B173: Entretiens M&T | C173: 733 | E173: 0 | F173: 0
B174: Assurances (RC) M&T | C174: 736 | E174: 0 | F174: 0
B175: Carburants M&T | C175: 737+738 | E175: 0 | F175: 0
B176: Lubrifiants M&T | C176: 739+740 | E176: 0 | F176: 0
B177: locations M&T | C177: 742 | E177: 0 | F177: 0
B178: frais de voiture | C178: 743 | E178: 0 | F178: 0
B180: Charges foncières pour l'activité de production de viande | D180: €/an | E180: =IFERROR(E182*E181,"") ->  | F180: =IFERROR(F182*F181,0) -> 0
B181: Part des charges foncières totales liées à l'activité viandeuse (en %) | E181: =F181 -> 0 | F181: =IFERROR(AVERAGE(G181:K181),0) -> 0
B182: Charges foncières totales | C182: cr778 | D182: €/an | E182: =IF(SUM(E183:E187)>0,SUM(E183:E187),"") ->  | F182: =IF(SUM(F183:F187)>0,SUM(F183:F187),0) -> 0
B183: Amortissement foncier | C183: 771 | E183: =F183 -> 0 | F183: =IFERROR(AVERAGE(G183:K183),0) -> 0
B184: Fermage payé | C184: 775 | E184: 0 | F184: =IFERROR(AVERAGE(G184:K184),0) -> 0
B185: Frais d'entretien des bâtiments et des améliorations foncières | C185: 776 | E185: 0 | F185: =IFERROR(AVERAGE(G185:K185),0) -> 0 | L185: où améliorations foncières = cours, chemins, clotûres, défrichement, irrigation, puits, bornage, frais de remembrement, ...
B186: Autres charges foncières | C186: 774.2 | E186: 0 | F186: =IFERROR(AVERAGE(G186:K186),0) -> 0 | L186: = assurances incendies, …
B187: Precompte immobilier | C187: 774.1 | E187: 0 | F187: =IFERROR(AVERAGE(G187:K187),0) -> 0 | L187: = Préc. immo sur les terres, les bâtiments et les investissements du locataires
B189: Frais généraux liés l'activité de production viandeuse | D189: €/an | E189: =IFERROR(E191*E190,"") ->  | F189: =IFERROR(F191*F190,0) -> 0
B190: Part des frais généraux correspondant à l'activité viandeuse (en %) | E190: 0 | F190: =IFERROR(AVERAGE(G190:K190),0) -> 0
B191: Frais généraux totaux | C191: cr784 | D191: €/an | E191: =IF(SUM(E192:E197)>0,SUM(E192:E197),"") ->  | F191: =IF(SUM(F192:F197)>0,SUM(F192:F197),0) -> 0
B192: combustibles et chauffage | C192: b1351 | E192: 0 | F192: =IFERROR(AVERAGE(G192:K192),0) -> 0
B193: assurances : RC, risques locatifs, divers | C193: b1366 | E193: 0 | F193: 0
B194: eau | C194: b1369 | E194: 0 | F194: 0
B195: électricité | C195: b1370 | E195: 0 | F195: 0
B196: impôts et taxes d'exploitation | C196: b1371 | E196: 0 | F196: 0 | L196: = impôts et taxes d'exploitation, taxe eau usées agricoles, taxe phytos, autres taxes sur l'environnement
B197: autres frais généraux | C197: b1373 | E197: 0 | F197: 0 | L197: = téléphone, cotisations associations agricoles, abonnements journeaux agricoles, frais de réunions, frais de visites de marché, …
B199: Charges opérationnelles non affectées liées aux cultures fourragères (pour les bovins viandeux) | D199: €/an | E199: 0 | F199: 0 | G199: =IFERROR(G200*G201*((G56+G55)/G52),"") ->  | H199: =IFERROR(H200*H201*((H56+H55)/H52),"") ->  | I199: =IFERROR(I200*I201*((I56+I55)/I52),"") ->  | J199: =IFERROR(J200*J201*((J56+J55)/J52),"") ->  | K199: =IFERROR(K200*K201*((K56+K55)/K52),"") ->  | L199: = …. % des ch. totales pour frais de rotation x (part des prairies temporaires et des cultures fourragères dans la superficie totale sous labour)
B200: Part des frais de rotation totaux liés à l'activité viandeuse (en %) | E200: 0 | F200: 0
B201: Charges totales pour frais de rotation (terres arables) | C201: cr2588 | D201: €/an | E201: 0 | F201: 0
B203: Coût total du travail salarié pour l'activité de production de viande | D203: €/an | E203: =F203 -> 0 | F203: =IFERROR(AVERAGE(G203:K203),0) -> 0
B205: Coût total du travail NON salarié pour l'activité de production de viande | D205: €/an | E205: 0 | F205: =IFERROR(AVERAGE(G205:K205),0) -> 0 | G205: =IF(G50>0,G50*recherche!D80,"") ->  | H205: =IF(H50>0,H50*recherche!E80,"") ->  | I205: =IF(I50>0,I50*recherche!F80,"") ->  | J205: =IF(J50>0,J50*recherche!G80,"") ->  | K205: =IF(K50>0,K50*recherche!H80,"") ->  | L205: = coût salarial pour rémunérer les ETP non salariés présents sur la ferme (ouvrier qualifié)
B207: Intérêts payés imputables à l'activité de production viandeuse | C207: cr876 | D207: €/an | E207: =F207 -> 0 | F207: =IFERROR(AVERAGE(G207:K207),0) -> 0
B209: REVENUS
B210: Marge brute de l'activité bovin viandeux | D210: €/an | E210: =IFERROR((E121+E128)-(E132+E150),0) -> 0 | F210: =IFERROR((F121+F128)-(F132+F150),0) -> 0 | G210: =IFERROR((G121+G128)-(G132+G150),"") ->  | H210: =IFERROR((H121+H128)-(H132+H150),"") ->  | I210: =IFERROR((I121+I128)-(I132+I150),"") ->  | J210: =IFERROR((J121+J128)-(J132+J150),"") ->  | K210: =IFERROR((K121+K128)-(K132+K150),"") -> 
B211: Excédent Brut de l'activité bovin viandeux | D211: €/an | E211: =IFERROR(E210+E159+E161-E167-E170*SUM(E173:E178)-E181*SUM(E184:E186)-E189-E199-E203,0) -> 0 | F211: =IFERROR(F210+F159+F161-F167-F170*SUM(F173:F178)-F181*SUM(F184:F186)-F189-F199-F203,0) -> 0 | G211: =IFERROR(G210+G159+G161-G167-G170*SUM(G173:G178)-G181*SUM(G184:G186)-G189-G199-G203,"") ->  | H211: =IFERROR(H210+H159+H161-H167-H170*SUM(H173:H178)-H181*SUM(H184:H186)-H189-H199-H203,"") ->  | I211: =IFERROR(I210+I159+I161-I167-I170*SUM(I173:I178)-I181*SUM(I184:I186)-I189-I199-I203,"") ->  | J211: =IFERROR(J210+J159+J161-J167-J170*SUM(J173:J178)-J181*SUM(J184:J186)-J189-J199-J203,"") ->  | K211: =IFERROR(K210+K159+K161-K167-K170*SUM(K173:K178)-K181*SUM(K184:K186)-K189-K199-K203,"") -> 
B212: Revenu agricole de l'activité bovin viandeux | C212: cr3998 | D212: €/an | E212: =IFERROR(E211+E164-E170*E172-E181*E183-E207,0) -> 0 | F212: =IFERROR(F211+F164-F170*F172-F181*F183-F207,0) -> 0 | G212: =IFERROR(G211+G164-G170*G172-G181*G183-G207,"") ->  | H212: =IFERROR(H211+H164-H170*H172-H181*H183-H207,"") ->  | I212: =IFERROR(I211+I164-I170*I172-I181*I183-I207,"") ->  | J212: =IFERROR(J211+J164-J170*J172-J181*J183-J207,"") ->  | K212: =IFERROR(K211+K164-K170*K172-K181*K183-K207,"") -> 
B224: CALCULS POUR INSERTION DANS LES COMPARATIFS | E224: 0 | F224: =IFERROR(AVERAGE(G224:K224),0) -> 0
B225: Nombre total de bovins sur l'exploitation | E225: =F225 -> 0 | F225: 0 | G225: =IF(SUM(G23:G29)>0, SUM(G23:G29),"") ->  | H225: =IF(SUM(H23:H29)>0, SUM(H23:H29),"") ->  | I225: =IF(SUM(I23:I29)>0, SUM(I23:I29),"") ->  | J225: =IF(SUM(J23:J29)>0, SUM(J23:J29),"") ->  | K225: =IF(SUM(K23:K29)>0, SUM(K23:K29),"") -> 
B226: Cout MOF_UTF | E226: =F226 -> 0 | F226: 0 | G226: =IFERROR((#REF!/G$50),"") ->  | H226: =IFERROR((#REF!/H$50),"") ->  | I226: =IFERROR((#REF!/I$50),"") ->  | J226: =IFERROR((#REF!/J$50),"") ->  | K226: =IFERROR((#REF!/K$50),"") -> 
B227: Cout_MOF_UTF_act bov | E227: =F227 -> 0 | F227: 0 | G227: =IFERROR((G$205/G$50),"") ->  | H227: =IFERROR((H$205/H$50),"") ->  | I227: =IFERROR((I$205/I$50),"") ->  | J227: =IFERROR((J$205/J$50),"") ->  | K227: =IFERROR((K$205/K$50),"") -> 
B228: Revenu agricole, par UTF_act bov | E228: 0 | F228: 0 | G228: =IFERROR((G212/G50),"") ->  | H228: =IFERROR((H212/H50),"") ->  | I228: =IFERROR((I212/I50),"") ->  | J228: =IFERROR((J212/J50),"") ->  | K228: =IFERROR((K212/K50),"") -> 
B229: Marge Brute des bovins et CF, par UGBB | E229: 0 | F229: 0 | G229: =IFERROR((G230-G233),"") ->  | H229: =IFERROR((H230-H233),"") ->  | I229: =IFERROR((I230-I233),"") ->  | J229: =IFERROR((J230-J233),"") ->  | K229: =IFERROR((K230-K233),"") -> 
B230: Produits des bovins et cultures fourragères, par UGBB | E230: 0 | F230: 0 | G230: =IFERROR((G231+G232),"") ->  | H230: =IFERROR((H231+H232),"") ->  | I230: =IFERROR((I231+I232),"") ->  | J230: =IFERROR((J231+J232),"") ->  | K230: =IFERROR((K231+K232),"") -> 
B231: Produits des bovins, par UGBB | E231: 0 | F231: 0 | G231: =IFERROR((G121/G22),"") ->  | H231: =IFERROR((H121/H22),"") ->  | I231: =IFERROR((I121/I22),"") ->  | J231: =IFERROR((J121/J22),"") ->  | K231: =IFERROR((K121/K22),"") -> 
B232: Produits des cultures fourragères, par UGBB | E232: 0 | F232: 0 | G232: =IF(G128>0,G128/G22,"") ->  | H232: =IF(H128>0,H128/H22,"") ->  | I232: =IF(I128>0,I128/I22,"") ->  | J232: =IF(J128>0,J128/J22,"") ->  | K232: =IF(K128>0,K128/K22,"") -> 
B233: Charges opérationnelles des bovins et cultures fourragères, par UGBB | E233: 0 | F233: 0 | G233: =IFERROR((G234+G235),"") ->  | H233: =IFERROR((H234+H235),"") ->  | I233: =IFERROR((I234+I235),"") ->  | J233: =IFERROR((J234+J235),"") ->  | K233: =IFERROR((K234+K235),"") -> 
B234: Charges opérationnelles des bovins, par UGBB | E234: 0 | F234: 0 | G234: =IFERROR((G132/G22),"") ->  | H234: =IFERROR((H132/H22),"") ->  | I234: =IFERROR((I132/I22),"") ->  | J234: =IFERROR((J132/J22),"") ->  | K234: =IFERROR((K132/K22),"") -> 
B235: Charges opérationnelles des cultures fourragères, par UGBB | E235: 0 | F235: 0 | G235: =IFERROR((G150/G22),"") ->  | H235: =IFERROR((H150/H22),"") ->  | I235: =IFERROR((I150/I22),"") ->  | J235: =IFERROR((J150/J22),"") ->  | K235: =IFERROR((K150/K22),"") -> 
B236: Ch. d'aliments complémentaires totales, par UGBB | E236: 0 | F236: 0 | G236: =IFERROR(G237+G238,"") ->  | H236: =IFERROR(H237+H238,"") ->  | I236: =IFERROR(I237+I238,"") ->  | J236: =IFERROR(J237+J238,"") ->  | K236: =IFERROR(K237+K238,"") -> 
B237: Valeur des aliments produits sur l'exploitation, par UGBB HORS LAIT | E237: 0 | F237: 0 | G237: =IFERROR((G134/G22),"") ->  | H237: =IFERROR((H134/H22),"") ->  | I237: =IFERROR((I134/I22),"") ->  | J237: =IFERROR((J134/J22),"") ->  | K237: =IFERROR((K134/K22),"") -> 
B238: Charges des aliments achetés, par UGBB | E238: 0 | F238: 0 | G238: =IFERROR(G140/G22,"") ->  | H238: =IFERROR(H140/H22,"") ->  | I238: =IFERROR(I140/I22,"") ->  | J238: =IFERROR(J140/J22,"") ->  | K238: =IFERROR(K140/K22,"") -> 
B239: Frais vétérinaires, par UGBB | E239: 0 | F239: 0 | G239: =IF(G146>0,G146/G22,"") ->  | H239: =IF(H146>0,H146/H22,"") ->  | I239: =IF(I146>0,I146/I22,"") ->  | J239: =IF(J146>0,J146/J22,"") ->  | K239: =IF(K146>0,K146/K22,"") -> 
B240: Aides couplées bovins, par UGBB | E240: =F240 -> 0 | F240: 0 | G240: =IF(G159>0,G159/G22,"") ->  | H240: =IF(H159>0,H159/H22,"") ->  | I240: =IF(I159>0,I159/I22,"") ->  | J240: =IF(J159>0,J159/J22,"") ->  | K240: =IF(K159>0,K159/K22,"") -> 
B241: Autres aides, par UGBB | E241: 0 | F241: 0 | G241: =IFERROR(G161/G22,"") ->  | H241: =IFERROR(H161/H22,"") ->  | I241: =IFERROR(I161/I22,"") ->  | J241: =IFERROR(J161/J22,"") ->  | K241: =IFERROR(K161/K22,"") -> 
B242: Autres Ch. opérationnelles, par UGBB | E242: 0 | F242: 0 | G242: =IFERROR((G234-G236-G239),"") ->  | H242: =IFERROR((H234-H236-H239),"") ->  | I242: =IFERROR((I234-I236-I239),"") ->  | J242: =IFERROR((J234-J236-J239),"") ->  | K242: =IFERROR((K234-K236-K239),"") -> 
B243: Ch. de mécanisation, par SFH | E243: 0 | F243: 0 | G243: =IFERROR((G244+G245),"") ->  | H243: =IFERROR((H244+H245),"") ->  | I243: =IFERROR((I244+I245),"") ->  | J243: =IFERROR((J244+J245),"") ->  | K243: =IFERROR((K244+K245),"") -> 
B244: Ch. de materiel, par SFH | E244: =F244 -> 0 | F244: 0 | G244: =IFERROR(G171/G53,"") ->  | H244: =IFERROR(H171/H53,"") ->  | I244: =IFERROR(I171/I53,"") ->  | J244: =IFERROR(J171/J53,"") ->  | K244: =IFERROR(K171/K53,"") -> 
B245: Trav par tiers, par SFH | E245: 0 | F245: 0 | G245: =IF(G167>0, G167/G53,"") ->  | H245: =IF(H167>0, H167/H53,"") ->  | I245: =IF(I167>0, I167/I53,"") ->  | J245: =IF(J167>0, J167/J53,"") ->  | K245: =IF(K167>0, K167/K53,"") -> 
B246: Ch. foncières, par SFH | E246: 0 | F246: 0 | G246: =IFERROR(((G182-G187)/G53),"") ->  | H246: =IFERROR(((H182-H187)/H53),"") ->  | I246: =IFERROR(((I182-I187)/I53),"") ->  | J246: =IFERROR(((J182-J187)/J53),"") ->  | K246: =IFERROR(((K182-K187)/K53),"") -> 
B247: Ch. de mécanisation, par UGBB | E247: =F247 -> 0 | F247: 0 | G247: =IFERROR((G248+G249),"") ->  | H247: =IFERROR((H248+H249),"") ->  | I247: =IFERROR((I248+I249),"") ->  | J247: =IFERROR((J248+J249),"") ->  | K247: =IFERROR((K248+K249),"") -> 
B248: Ch. de materiel, par UGBB | E248: =F248 -> 0 | F248: 0 | G248: =IFERROR(G171/G22,"") ->  | H248: =IFERROR(H171/H22,"") ->  | I248: =IFERROR(I171/I22,"") ->  | J248: =IFERROR(J171/J22,"") ->  | K248: =IFERROR(K171/K22,"") -> 
B249: Trav par tiers, par UGBB | E249: =F249 -> 0 | F249: 0 | G249: =IF(G167>0,G167/G22,"") ->  | H249: =IF(H167>0,H167/H22,"") ->  | I249: =IF(I167>0,I167/I22,"") ->  | J249: =IF(J167>0,J167/J22,"") ->  | K249: =IF(K167>0,K167/K22,"") -> 
B250: Ch. foncières, par UGBB | E250: 0 | F250: 0 | G250: =IFERROR(((G182-G187)/G22),"") ->  | H250: =IFERROR(((H182-H187)/H22),"") ->  | I250: =IFERROR(((I182-I187)/I22),"") ->  | J250: =IFERROR(((J182-J187)/J22),"") ->  | K250: =IFERROR(((K182-K187)/K22),"") -> 
B251: UGBB_UT | E251: 0 | F251: 0 | G251: =IFERROR((G22/G49),"") ->  | H251: =IFERROR((H22/H49),"") ->  | I251: =IFERROR((I22/I49),"") ->  | J251: =IFERROR((J22/J49),"") ->  | K251: =IFERROR((K22/K49),"") -> 
B252: UGBB_SFH | E252: 0 | F252: 0 | G252: =IFERROR((G22/G53),"") ->  | H252: =IFERROR((H22/H53),"") ->  | I252: =IFERROR((I22/I53),"") ->  | J252: =IFERROR((J22/J53),"") ->  | K252: =IFERROR((K22/K53),"") -> 
B253: SFH_UT | E253: 0 | F253: 0 | G253: =IFERROR((G53/G49),"") ->  | H253: =IFERROR((H53/H49),"") ->  | I253: =IFERROR((I53/I49),"") ->  | J253: =IFERROR((J53/J49),"") ->  | K253: =IFERROR((K53/K49),"") -> 
B254: Nb veaux nés viables par 100 vêlages | E254: =F254 -> 0 | F254: 0 | G254: =IF(G63+G64>0,G$63/G64*100,"") ->  | H254: =IF(H63+H64>0,H$63/H64*100,"") ->  | I254: =IF(I63+I64>0,I$63/I64*100,"") ->  | J254: =IF(J63+J64>0,J$63/J64*100,"") ->  | K254: =IF(K63+K64>0,K$63/K64*100,"") -> 
B255: Nb veaux nés viables par 100 vaches | E255: =F255 -> 0 | F255: 0 | G255: =IF(G63>0,G$63/G65*100,"") ->  | H255: =IF(H63>0,H$63/H65*100,"") ->  | I255: =IF(I63>0,I$63/I65*100,"") ->  | J255: =IF(J63>0,J$63/J65*100,"") ->  | K255: =IF(K63>0,K$63/K65*100,"") -> 
B256: Nb de décès par 100 bovins | E256: 0 | F256: 0 | G256: =IF(G71>0,IFERROR((G71/G225)*100,""),"") ->  | H256: =IF(H71>0,IFERROR((H71/H225)*100,""),"") ->  | I256: =IF(I71>0,IFERROR((I71/I225)*100,""),"") ->  | J256: =IF(J71>0,IFERROR((J71/J225)*100,""),"") ->  | K256: =IF(K71>0,IFERROR((K71/K225)*100,""),"") -> 
B257: vaches nourrices | E257: =F257 ->  | F257: =IFERROR(AVERAGE(G257:K257),NA()) ->  | G257: =IFERROR(IF(G81>4, G82/G81,""),"") ->  | H257: =IFERROR(IF(H81>4, H82/H81,""),"") ->  | I257: =IFERROR(IF(I81>4, I82/I81,""),"") ->  | J257: =IFERROR(IF(J81>4, J82/J81,""),"") ->  | K257: =IFERROR(IF(K81>4, K82/K81,""),"") -> 
B258: veaux (< 28jours) | E258: =F258 ->  | F258: =IFERROR(AVERAGE(G258:K258),NA()) ->  | G258: =IFERROR(IF(G103>4, G104/G103,""),"") ->  | H258: =IFERROR(IF(H103>4, H104/H103,""),"") ->  | I258: =IFERROR(IF(I103>4, I104/I103,""),"") ->  | J258: =IFERROR(IF(J103>4, J104/J103,""),"") ->  | K258: =IFERROR(IF(K103>4, K104/K103,""),"") -> 
B259: Mâles de moins de 1 an | E259: =F259 ->  | F259: =IFERROR(AVERAGE(G259:K259),NA()) ->  | G259: =IFERROR(IF(G84>4, G85/G84,""),"") ->  | H259: =IFERROR(IF(H84>4, H85/H84,""),"") ->  | I259: =IFERROR(IF(I84>4, I85/I84,""),"") ->  | J259: =IFERROR(IF(J84>4, J85/J84,""),"") ->  | K259: =IFERROR(IF(K84>4, K85/K84,""),"") -> 
B260: Femelles de moins de 1 an | E260: =F260 ->  | G260: =IFERROR(IF(G87>4, G88/G87,""),"") ->  | H260: =IFERROR(IF(H87>4, H88/H87,""),"") ->  | I260: =IFERROR(IF(I87>4, I88/I87,""),"") ->  | J260: =IFERROR(IF(J87>4, J88/J87,""),"") ->  | K260: =IFERROR(IF(K87>4, K88/K87,""),"") -> 
B261: Mâles de 1 à 2 ans | G261: =IFERROR(IF(G90>4, G91/G90,""),"") ->  | H261: =IFERROR(IF(H90>4, H91/H90,""),"") ->  | I261: =IFERROR(IF(I90>4, I91/I90,""),"") ->  | J261: =IFERROR(IF(J90>4, J91/J90,""),"") ->  | K261: =IFERROR(IF(K90>4, K91/K90,""),"") -> 
... 9 more rows

Sheet CALCUL aides_DAEA (hidden)
A1: CALCUL DE L'AMORTISSEMENT DES AIDES RECUES (uniquement aides en capital)
A3: ETAPE 1 | B3: Indiquez | C3: dans les cellules en vert | F3: le montant total en aides perçues pour chaque année
A5: ETAPE 2 | B5: Le programme calcule automatiquement l'amortissement des aides perçues | I5: dans les cellules oranges
B6: Note : | C6: Les aides "bâtiment" sont amorties en 10 ans
C7: Les aides "matériel" sont amorties en 5 ans
A9: ETAPE 3 | B9: Le programme injecte automatiquement les montants amortis dans la feuille d'encodage des données
A11: ETAPE 4 | B11: Cliquez ICI pour revenir à la feuille d'encodage des données
D13: AIDES PERCUES | F13: AMORTISSEMENTS
D14: Bâtiment | E14: Matériel | F14: Bâtiment | G14: Matériel | H14: TOTAL
C15: 2010 | F15: =SUM(D15:D15)/10 -> 0 | G15: =SUM(E15:E15)/5 -> 0 | H15: =F15+G15 -> 0
C16: 2011 | F16: =SUM(D15:D16)/10 -> 0 | G16: =SUM(E15:E16)/5 -> 0 | H16: =F16+G16 -> 0
C17: 2012 | F17: =SUM(D15:D17)/10 -> 0 | G17: =SUM(E15:E17)/5 -> 0 | H17: 0
C18: 2013 | F18: =SUM(D15:D18)/10 -> 0 | G18: =SUM(E15:E18)/5 -> 0 | H18: 0
C19: 2014 | F19: =SUM(D15:D19)/10 -> 0 | G19: =SUM(E15:E19)/5 -> 0 | H19: 0
C20: 2015 | F20: =SUM(D15:D20)/10 -> 0 | G20: 0 | H20: 0
C21: 2016 | F21: =SUM(D15:D21)/10 -> 0 | G21: 0 | H21: 0
C22: 2017 | F22: =SUM(D15:D22)/10 -> 0 | G22: 0 | H22: 0
C23: 2018 | F23: =SUM(D15:D23)/10 -> 0 | G23: 0 | H23: 0
C24: 2019 | F24: =SUM(D15:D24)/10 -> 0 | G24: 0 | H24: 0
C25: 2020 | F25: =SUM(D16:D25)/10 -> 0 | G25: 0 | H25: 0
C26: 2021 | F26: =SUM(D17:D26)/10 -> 0 | G26: 0 | H26: 0
C27: 2022 | F27: =SUM(D18:D27)/10 -> 0 | G27: 0 | H27: 0
C28: 2023 | F28: =SUM(D19:D28)/10 -> 0 | G28: =SUM(E24:E28)/5 -> 0 | H28: 0
C29: 2024 | F29: =SUM(D20:D29)/10 -> 0 | G29: =SUM(E25:E29)/5 -> 0 | H29: 0
C30: 2025 | F30: 0 | G30: 0 | H30: 0
C31: 2026 | F31: 0 | G31: =SUM(E27:E31)/5 -> 0 | H31: 0
C32: 2027 | F32: 0 | G32: 0 | H32: 0
C33: 2028 | F33: =SUM(D24:D33)/10 -> 0 | G33: 0 | H33: 0
C34: 2029 | F34: 0 | G34: 0 | H34: 0
C35: 2030 | F35: 0 | G35: 0 | H35: 0
C36: 2031 | F36: =SUM(D27:D36)/10 -> 0 | G36: =SUM(E32:E36)/5 -> 0 | H36: 0
C37: 2032 | F37: =SUM(D28:D37)/10 -> 0 | G37: =SUM(E33:E37)/5 -> 0 | H37: 0
C38: 2033 | F38: =SUM(D29:D38)/10 -> 0 | G38: =SUM(E34:E38)/5 -> 0 | H38: 0
C39: 2034 | F39: =SUM(D30:D39)/10 -> 0 | G39: =SUM(E35:E39)/5 -> 0 | H39: 0
C40: 2035 | F40: =SUM(D31:D40)/10 -> 0 | G40: =SUM(E36:E40)/5 -> 0 | H40: 0

Sheet CALCUL aides
A1: CALCUL DE L'AMORTISSEMENT DES AIDES RECUES (uniquement aides en capital)
A3: ETAPE 1 | B3: Indiquez | C3: dans les cellules en vert | F3: le montant total en aides perçues pour chaque année
A5: ETAPE 2 | B5: Le programme calcule automatiquement l'amortissement des aides perçues | I5: dans les cellules oranges
B6: Note : | C6: Les aides "bâtiment" sont amorties en 10 ans
C7: Les aides "matériel" sont amorties en 5 ans
A9: ETAPE 3 | B9: Le programme injecte automatiquement les montants amortis dans la feuille d'encodage des données
A11: ETAPE 4 | B11: Cliquez ICI pour revenir à la feuille d'encodage des données
D13: AIDES PERCUES | F13: AMORTISSEMENTS
D14: Bâtiment | E14: Matériel | F14: Bâtiment | G14: Matériel | H14: TOTAL
C15: 2010 | F15: =SUM(D15:D15)/10 -> 0 | G15: =SUM(E15:E15)/5 -> 0 | H15: =F15+G15 -> 0
C16: 2011 | F16: =SUM(D15:D16)/10 -> 0 | G16: =SUM(E15:E16)/5 -> 0 | H16: =F16+G16 -> 0
C17: 2012 | F17: =SUM(D15:D17)/10 -> 0 | G17: =SUM(E15:E17)/5 -> 0 | H17: 0
C18: 2013 | F18: =SUM(D15:D18)/10 -> 0 | G18: =SUM(E15:E18)/5 -> 0 | H18: 0
C19: 2014 | F19: =SUM(D15:D19)/10 -> 0 | G19: =SUM(E15:E19)/5 -> 0 | H19: 0
C20: 2015 | F20: =SUM(D15:D20)/10 -> 0 | G20: 0 | H20: 0
C21: 2016 | F21: =SUM(D15:D21)/10 -> 0 | G21: 0 | H21: 0
C22: 2017 | F22: =SUM(D15:D22)/10 -> 0 | G22: 0 | H22: 0
C23: 2018 | F23: =SUM(D15:D23)/10 -> 0 | G23: 0 | H23: 0
C24: 2019 | F24: =SUM(D15:D24)/10 -> 0 | G24: 0 | H24: 0
C25: 2020 | F25: =SUM(D16:D25)/10 -> 0 | G25: 0 | H25: 0
C26: 2021 | F26: =SUM(D17:D26)/10 -> 0 | G26: 0 | H26: 0
C27: 2022 | F27: =SUM(D18:D27)/10 -> 0 | G27: 0 | H27: 0
C28: 2023 | F28: =SUM(D19:D28)/10 -> 0 | G28: =SUM(E24:E28)/5 -> 0 | H28: 0
C29: 2024 | F29: =SUM(D20:D29)/10 -> 0 | G29: =SUM(E25:E29)/5 -> 0 | H29: 0
C30: 2025 | F30: 0 | G30: 0 | H30: 0
C31: 2026 | F31: 0 | G31: =SUM(E27:E31)/5 -> 0 | H31: 0
C32: 2027 | F32: 0 | G32: 0 | H32: 0
C33: 2028 | F33: =SUM(D24:D33)/10 -> 0 | G33: 0 | H33: 0
C34: 2029 | F34: 0 | G34: 0 | H34: 0
C35: 2030 | F35: 0 | G35: 0 | H35: 0
C36: 2031 | F36: =SUM(D27:D36)/10 -> 0 | G36: =SUM(E32:E36)/5 -> 0 | H36: 0
C37: 2032 | F37: =SUM(D28:D37)/10 -> 0 | G37: =SUM(E33:E37)/5 -> 0 | H37: 0
C38: 2033 | F38: =SUM(D29:D38)/10 -> 0 | G38: =SUM(E34:E38)/5 -> 0 | H38: 0
C39: 2034 | F39: =SUM(D30:D39)/10 -> 0 | G39: =SUM(E35:E39)/5 -> 0 | H39: 0
C40: 2035 | F40: =SUM(D31:D40)/10 -> 0 | G40: =SUM(E36:E40)/5 -> 0 | H40: 0

Sheet bdd1 (hidden)
A1: exclu | B1: perf_RA | C1: mode_prod | D1: profil | E1: an | F1: num | G1: UT | H1: UTF | I1: SFH | J1: UGBB | K1: UGBB_UT | L1: UGBB_SFH | M1: SFH_UT | N1: prod_bov_four_UGB | O1: prod_bov_UGB | P1: prod_four_UGB | Q1: chop_bov_four_UGB | R1: chop_bov_UGB | S1: alim_comp_UGB | T1: intra_conso_UGB | U1: alim_achetés_UGB | V1: vete_UGB | W1: autres_ChOP_UGB | X1: chop_four_UGB | Y1: Chg_MAT_R_SFH | Z1: Trav par tiers_SFH | AA1: Meca_SFH | AB1: Ch_Fonc_R_SFH | AC1: aides couplées_UGB | AD1: autres aides_UGB | AE1: MB_bov_four_UGB | AF1: RA_bov_four_UTF | AG1: RT_bov_four_UT | AH1: RA_UTF | AI1: CoutMOF_UTF | AJ1: DELTA | AK1: IVV | AL1: age_vel_prim | AM1: age_ref | AN1: Veaux_vie_100V | AO1: Veaux_vie_100VEL | AP1: Morts_100bov | AQ1: PM_VN | AR1: PM_tot | AS1: PM_M1a | AT1: Vente_M1a_nb | AU1: Vente_M1_2a_nb | AV1: Vente_Tx_GR_nb | AW1: PV_moy_VN | AX1: PV_moy_vx | AY1: PV_moy_M1a | AZ1: PV_moy_F1a | BA1: PV_moy_M1-2a | BB1: PV_moy_F1-2a | BC1: PV_moy_M2a | BD1: PV_moy_F2a | BE1: PV_moy_tx mg | BF1: PV_moy_tx gr | BG1: Poids_tx_gr | BH1: poids_moy_TX_gr | BI1: PV_KG_tx gras | BJ1: R_PRODBOVCF_PRODTOT | BK1: CoutMOF_UTF_act bov | BL1: trav_par_tiers_UGBB | BM1: Chg_Mat_R_UGBB | BN1: CHg_fonc_R_UGBB | BO1: tx_ref | BP1: tx_renew | BQ1: Race
A2: non | B2: 2 | C2: conventionnel | D2: eleveur naisseur | E2: 2019 | F2: 54188 | G2: 1 | H2: 1 | I2: 13.22 | J2: 33.5 | K2: 33.5 | L2: 2.534039334 | M2: 13.22 | N2: 718.2 | O2: 718.2 | P2: 0 | Q2: 358.8 | R2: 320.4 | S2: 163.1 | T2: 0 | U2: 163.1 | V2: 86.6 | W2: 70.7 | X2: 38.4 | Y2: 499.9652042 | Z2: 136.3540091 | AA2: 608.3956127 | AB2: 307.2511346 | AC2: 135.2955224 | AD2: 131.2686567 | AE2: 359.4 | AF2: 3652 | AG2: -983 | AH2: 3105 | AI2: 27255 | AJ2: -23603 | AK2: 390 | AL2: 35 | AM2: 5 | AN2: 125.714 | AO2: 100 | AP2: 0 | AQ2: 17.5 | AR2: 51 | AS2: 1 | AT2: 10 | AU2: 0 | AV2: 0 | AW2: 1489.272727 | AX2: 678.4 | AY2: 687.9 | BG2: 0 | BH2: . | BJ2: 98.1 | BK2: 26737.155 | BL2: 53.80895522 | BM2: 197.2997015 | BN2: 121.2495522 | BO2: 63 | BP2: 57 | BQ2: BBB
A3: non | B3: 1 | C3: conventionnel | D3: eleveur naisseur | E3: 2020 | F3: 54188 | G3: 1 | H3: 1 | I3: 13.22 | J3: 29.9 | K3: 29.9 | L3: 2.26172466 | M3: 13.22 | N3: 761.4 | O3: 761.4 | P3: 0 | Q3: 426.9 | R3: 344.7 | S3: 161.4 | T3: 0 | U3: 161.4 | V3: 124.6 | W3: 58.7 | X3: 82.3 | Y3: 416.9455371 | Z3: 138.6800303 | AA3: 543.3623298 | AB3: 312.6104387 | AC3: 150.106689 | AD3: 146.1374582 | AE3: 334.4 | AF3: 3332 | AG3: -964.7 | AH3: 2930 | AI3: 27660 | AJ3: -24328 | AK3: 397 | AL3: 34 | AM3: 4 | AN3: 139.241 | AO3: 100 | AP3: 4.192872117 | AQ3: 15.8 | AR3: 47.7 | AS3: 0.8 | AT3: 13 | AU3: 0 | AV3: 0 | AW3: 1599.642857 | AX3: 722.2307692 | AY3: 722.2307692 | BG3: 0 | BH3: . | BJ3: 93.9 | BK3: 25972.74 | BL3: 61.31605351 | BM3: 184.348495 | BN3: 138.2177258 | BO3: 95 | BP3: 76 | BQ3: BBB
A4: non | B4: 1 | C4: conventionnel | D4: eleveur naisseur | E4: 2021 | F4: 54188 | G4: 1 | H4: 1 | I4: 13.22 | J4: 27.62 | K4: 27.62 | L4: 2.089258699 | M4: 13.22 | N4: 793.6 | O4: 793.6 | P4: 0 | Q4: 433.5 | R4: 344.8 | S4: 147.8 | T4: 0 | U4: 147.8 | V4: 139.6 | W4: 57.4 | X4: 88.7 | Y4: 380.005295 | Z4: 121.4750378 | AA4: 489.2170953 | AB4: 318.473525 | AC4: 149.2375091 | AD4: 158.0463432 | AE4: 360.1 | AF4: 3242 | AG4: -899.6 | AH4: 2940 | AI4: 28211.99 | AJ4: -24969.99 | AK4: 396 | AL4: 34 | AM4: 4 | AN4: 137.4 | AO4: 100 | AP4: 4.784688995 | AQ4: 13.1 | AR4: 41.8 | AS4: 0.4 | AT4: 9 | AU4: 0 | AV4: 0 | AW4: 1662.875 | AX4: 778.8888889 | AY4: 778.8888889 | BG4: 0 | BH4: . | BJ4: 93.6 | BK4: 26406.42264 | BL4: 58.14265025 | BM4: 181.8852281 | BN4: 152.4337437 | BO4: 69 | BP4: 69 | BQ4: BBB
A5: non | B5: 1 | C5: conventionnel | D5: eleveur naisseur | E5: 2022 | F5: 54188 | G5: 1 | H5: 1 | I5: 13.3 | J5: 25.94 | K5: 25.94 | L5: 1.95037594 | M5: 13.3 | N5: 1268.8 | O5: 1268.8 | P5: 0 | Q5: 540.6 | R5: 378.1 | S5: 165.7 | T5: 0 | U5: 165.7 | V5: 133.3 | W5: 79.1 | X5: 162.5 | Y5: 467.8203008 | Z5: 82.70676692 | AA5: 538.337594 | AB5: 328.4172932 | AC5: 160.0424056 | AD5: 170.7016191 | AE5: 728.2 | AF5: 10236 | AG5: 5997.1 | AH5: 9931 | AI5: 29657.02 | AJ5: -19421.02 | AK5: 385 | AL5: 34 | AM5: 4 | AN5: 159.09 | AO5: 100 | AP5: 0 | AQ5: 13.2 | AR5: 41.7 | AS5: 0.5 | AT5: 9 | AU5: 0 | AV5: 0 | AW5: 2264 | AX5: 779.2222222 | AY5: 779.2222222 | BG5: 0 | BH5: . | BJ5: 98.6 | BK5: 29241.82172 | BL5: 42.40555127 | BM5: 239.8616037 | BN5: 168.3866615 | BO5: 76 | BP5: 76 | BQ5: BBB
A6: non | B6: 2 | C6: conventionnel | D6: eleveur naisseur | E6: 2023 | F6: 54188 | G6: 1 | H6: 1 | I6: 13.3 | J6: 23.02 | K6: 23.02 | L6: 1.730827068 | M6: 13.3 | N6: 1533.4 | O6: 1533.4 | P6: 0 | Q6: 564.1 | R6: 455.6 | S6: 251.5 | T6: 0 | U6: 251.5 | V6: 140.8 | W6: 63.3 | X6: 108.5 | Y6: 413.2849624 | Z6: 83.83458647 | AA6: 484.9300752 | AB6: 300.8789474 | AC6: 139.5699392 | AD6: 224.5560382 | AE6: 969.3 | AF6: 16311 | AG6: 12094.5 | AH6: 16631 | AI6: 33435 | AJ6: -17124 | AK6: 385 | AL6: 34 | AM6: 4 | AN6: 154.55 | AO6: 100 | AP6: 0 | AQ6: 11 | AR6: 37.9 | AS6: 0.5 | AT6: 9 | AU6: 0 | AV6: 0 | AW6: 2450.615385 | AX6: 806.5555556 | AY6: 806.5555556 | BG6: 0 | BH6: . | BJ6: 96.1 | BK6: 32131.035 | BL6: 48.43614248 | BM6: 238.7788879 | BN6: 173.8353606 | BO6: 118 | BP6: 82 | BQ6: BBB
A7: non | B7: 1 | C7: conventionnel | D7: eleveur naisseur | E7: 2023 | F7: 54291 | G7: 1.17 | H7: 1.17 | I7: 21.83 | J7: 30.29 | K7: 25.88888889 | L7: 1.387540082 | M7: 18.65811966 | N7: 1041.7 | O7: 721.5 | P7: 320.2 | Q7: 586.1 | R7: 339.2 | S7: 150.9 | T7: 66.3 | U7: 84.6 | V7: 119.8 | W7: 68.5 | X7: 246.9 | Y7: 397.4805314 | Z7: 261.8598259 | AA7: 613.6463582 | AB7: 292.8900596 | AC7: 117.2367118 | AD7: 234.6954773 | AE7: 455.6 | AF7: 7005 | AG7: 2629.3 | AH7: 11842 | AI7: 43817.94872 | AJ7: -36812.94872 | AK7: 533 | AL7: 37 | AM7: 7 | AN7: 115.61 | AO7: 100 | AP7: 4.444444444 | AQ7: 17.3 | AR7: 45 | AS7: 2 | AT7: 6 | AU7: 0 | AV7: 0 | AW7: 1993.75 | AX7: 820 | AY7: 813.3333333 | BG7: 0 | BH7: . | BJ7: 59.9 | BK7: 26246.95128 | BL7: 188.7223506 | BM7: 286.4641796 | BN7: 211.0858369 | BO7: 58 | BP7: 40 | BQ7: BBB
A8: non | B8: 2 | C8: conventionnel | D8: eleveur engraisseur | E8: 2019 | F8: 54334 | G8: 1.19 | H8: 1.19 | I8: 43.87 | J8: 127.9 | K8: 107.4789916 | L8: 2.915431958 | M8: 36.86554622 | N8: 841.4 | O8: 841.4 | P8: 0 | Q8: 642.6 | R8: 543.3 | S8: 396.1 | T8: 45.2 | U8: 350.9 | V8: 117.2 | W8: 30 | X8: 99.3 | Y8: 155.7558696 | Z8: 436.6058582 | AA8: 591.5183269 | AB8: 597.9402781 | AC8: 107.7540266 | AD8: 85.13097425 | AE8: 198.8 | AF8: 8330 | AG8: -6407.2 | AH8: 22756 | AI8: 43866.80672 | AJ8: -35536.80672 | AK8: 403 | AL8: 37 | AM8: 5 | AN8: 97.436 | AO8: 100 | AP8: 5.432098765 | AQ8: 58.5 | AR8: 202.5 | AS8: 33.5 | AT8: 2 | AU8: 25 | AV8: 32 | AW8: 1806 | BA8: 2286.52 | BC8: 2306.222222 | BF8: 2330.3125 | BG8: 23027 | BH8: 719.59375 | BI8: 3.238372346 | BJ8: 68.8 | BK8: 30180.36303 | BL8: 149.7568335 | BM8: 53.42462862 | BN8: 205.0949179 | BO8: 48 | BP8: 53 | BQ8: BBB
A9: non | B9: 2 | C9: conventionnel | D9: eleveur engraisseur | E9: 2020 | F9: 54334 | G9: 1.19 | H9: 1.19 | I9: 39.35 | J9: 104.84 | K9: 88.10084034 | L9: 2.66429479 | M9: 33.06722689 | N9: 1039.8 | O9: 1039.8 | P9: 0 | Q9: 727.1 | R9: 666.6 | S9: 505.5 | T9: 22.5 | U9: 483 | V9: 118.6 | W9: 42.5 | X9: 60.5 | Y9: 155.4271919 | Z9: 364.815756 | AA9: 519.3026684 | AB9: 630.4813215 | AC9: 120.5020031 | AD9: 100.2908858 | AE9: 312.7 | AF9: 18142 | AG9: 4898.9 | AH9: 39202 | AI9: 43748.7395 | AJ9: -25606.7395 | AK9: 460 | AL9: 38 | AM9: 5 | AN9: 108.235 | AO9: 100 | AP9: 1.795332136 | AQ9: 42.5 | AR9: 167.1 | AS9: 24.2 | AT9: 0 | AU9: 20 | AV9: 23 | AW9: 1874 | BA9: 2345.15 | BC9: 2511.777778 | BD9: 2018.6 | BF9: 2384.26087 | BG9: 17276 | BH9: 751.1304348 | BI9: 3.174230146 | BJ9: 68.3 | BK9: 29880.38908 | BL9: 136.9276994 | BM9: 58.33708508 | BN9: 236.6409767 | BO9: 82 | BP9: 45 | BQ9: BBB
A10: non | B10: 3 | C10: conventionnel | D10: eleveur naisseur | E10: 2022 | F10: 54386 | G10: 0.3 | H10: 0.3 | I10: 13.95 | J10: 24.4 | K10: 81.33333333 | L10: 1.749103943 | M10: 46.5 | N10: 1407.2 | O10: 1253.1 | P10: 154.1 | Q10: 554.4 | R10: 291 | S10: 173.9 | T10: 89.8 | U10: 84.1 | V10: 35.1 | W10: 82 | X10: 263.3 | Y10: 898.3003584 | Z10: 315.0917563 | AA10: 875.9584229 | AB10: 376.8738351 | AC10: 118.3606557 | AD10: 261.9254594 | AE10: 852.8 | AF10: 43741 | AG10: 32476.2 | AH10: 67000 | AI10: 48110.26667 | AJ10: -4369.266667 | AK10: 389 | AM10: 5 | AN10: 83.8 | AO10: 93.75 | AP10: 5.025125628 | AQ10: 17.9 | AR10: 39.8 | AS10: 6.4 | AT10: 12 | AU10: 0 | AV10: 0 | AY10: 1225 | BE10: 1266.230769 | BG10: 0 | BH10: . | BJ10: 70.3 | BK10: 33821.51747 | BL10: 180.1446721 | BM10: 513.577459 | BN10: 215.4668033 | BO10: 6 | BP10: 0 | BQ10: autres
A11: non | B11: 1 | C11: biologique | D11: eleveur engraisseur | E11: 2022 | F11: 54389 | G11: 1 | H11: 1 | I11: 28.3 | J11: 47.43 | K11: 47.43 | L11: 1.675971731 | M11: 28.3 | N11: 1098.7 | O11: 1098.7 | P11: 0 | Q11: 374.7 | R11: 331.8 | S11: 228.6 | T11: 135.2 | U11: 93.4 | V11: 60.4 | W11: 42.8 | X11: 42.9 | Y11: 1015.305654 | Z11: 419.5314488 | AA11: 1141.282686 | AB11: 332.6293286 | AC11: 88.94602572 | AD11: 262.7521952 | AE11: 724 | AF11: 10030 | AG11: 365.7 | AH11: 14868 | AI11: 39542.69 | AJ11: -29512.69 | AK11: 393 | AL11: 30 | AM11: 8 | AN11: 98.84 | AO11: 97.14 | AP11: 7.874015748 | AQ11: 34.4 | AR11: 76.2 | AS11: 13.2 | AT11: 14 | AU11: 1 | AV11: 13 | AW11: 2332.875 | AY11: 1369.928571 | BE11: 1470 | BF11: 1688.461538 | BG11: 5657 | BH11: 435.1538461 | BI11: 3.880148489 | BJ11: 68 | BK11: 26889.0292 | BL11: 250.3213156 | BM11: 605.8011807 | BN11: 198.4695341 | BO11: 29 | BP11: 23 | BQ11: LI
A12: non | B12: 3 | C12: intermediaire | D12: eleveur naisseur | E12: 2023 | F12: 54389 | G12: 1 | H12: 1 | I12: 35.3 | J12: 43.98 | K12: 43.98 | L12: 1.245892351 | M12: 35.3 | N12: 987.8 | O12: 987.8 | P12: 0 | Q12: 464.4 | R12: 266.6 | S12: 135.8 | T12: 65.7 | U12: 70.1 | V12: 67.1 | W12: 63.7 | X12: 197.7 | Y12: 821.0917847 | Z12: 618.027762 | AA12: 1196.716714 | AB12: 326.1733711 | AC12: 0 | AD12: 379.0084572 | AE12: 523.4 | AF12: 30004 | AG12: 22402.2 | AH12: 11583 | AI12: 44580 | AJ12: -14576 | AK12: 392 | AL12: 30 | AM12: 7 | AN12: 104.94 | AO12: 97.14 | AP12: 16.41586867 | AQ12: 32.4 | AR12: 73.1 | AS12: 10.7 | AT12: 10 | AU12: 1 | AV12: 1 | AW12: 2277.875 | AY12: 1216.1 | BE12: 1216.1 | BG12: 282 | BH12: 282 | BI12: 6.24822695 | BJ12: 50.8 | BK12: 22646.64 | BL12: 496.0522965 | BM12: 659.0391087 | BN12: 261.7989995 | BO12: 25 | BP12: 9 | BQ12: LI
A13: non | B13: 3 | C13: conventionnel | D13: eleveur engraisseur | E13: 2019 | F13: 56048 | G13: 1 | H13: 1 | I13: 41.7 | J13: 141.35 | K13: 141.35 | L13: 3.389688249 | M13: 41.7 | N13: 969 | O13: 969 | P13: 0 | Q13: 651 | R13: 602.7 | S13: 426.8 | T13: 174.5 | U13: 252.3 | V13: 113.9 | W13: 62 | X13: 48.2 | Y13: 330.9848921 | Z13: 329.6306954 | AA13: 570.6376499 | AB13: 275.7069305 | AC13: 62.08036788 | AD13: 91.57889605 | AE13: 318 | AF13: 33246 | AG13: 13739.1 | AH13: 59778 | AI13: 45425 | AJ13: -12179 | AK13: 423 | AL13: 31 | AM13: 5 | AN13: 101.266 | AO13: 97.561 | AP13: 4.192872117 | AQ13: 79 | AR13: 238.5 | AS13: 35 | AT13: 8 | AU13: 24 | AV13: 23 | AW13: 2211.142857 | AY13: 1114 | BA13: 2028.958333 | BE13: 1104.285714 | BF13: 2102.826087 | BG13: 11694 | BH13: 508.4347826 | BI13: 4.135881649 | BJ13: 77.4 | BK13: 35158.95 | BL13: 97.24513619 | BM13: 97.64464096 | BN13: 81.33695791 | BO13: 38 | BP13: 33 | BQ13: BBB
A14: non | B14: 3 | C14: conventionnel | D14: eleveur engraisseur | E14: 2020 | F14: 56048 | G14: 1 | H14: 1 | I14: 53.08 | J14: 136.65 | K14: 136.65 | L14: 2.574415976 | M14: 53.08 | N14: 1071.5 | O14: 1071.5 | P14: 0 | Q14: 703.8 | R14: 604.3 | S14: 457.8 | T14: 48.1 | U14: 409.7 | V14: 100.7 | W14: 45.8 | X14: 99.5 | Y14: 218.5987001 | Z14: 274.6137905 | AA14: 450.3990015 | AB14: 202.4519405 | AC14: 68.12177095 | AD14: 116.1501231 | AE14: 367.7 | AF14: 40890 | AG14: 21728.7 | AH14: 55610 | AI14: 46100 | AJ14: -5210 | AK14: 422 | AL14: 31 | AM14: 5 | AN14: 103.164 | AO14: 101.351 | AP14: 3.90625 | AQ14: 72.7 | AR14: 230.4 | AS14: 30.9 | AT14: 15 | AU14: 26 | AV14: 23 | AW14: 2077.02381 | AY14: 1134.466667 | BA14: 2209.192308 | BD14: 1941.4 | BE14: 1428.928571 | BF14: 2224.608696 | BG14: 12372 | BH14: 537.9130435 | BI14: 4.135628839 | BJ14: 84.7 | BK14: 39046.7 | BL14: 106.6703256 | BM14: 84.91195756 | BN14: 78.63994877 | BO14: 59 | BP14: 47 | BQ14: BBB
A15: non | B15: 2 | C15: conventionnel | D15: eleveur naisseur | E15: 2019 | F15: 66276 | G15: 1 | H15: 1 | I15: 49.85 | J15: 51.8 | K15: 51.8 | L15: 1.039117352 | M15: 49.85 | N15: 850.3 | O15: 850.3 | P15: 0 | Q15: 332.2 | R15: 318.2 | S15: 168.1 | T15: 0 | U15: 168.1 | V15: 133.6 | W15: 16.5 | X15: 14 | Y15: 393.1871615 | Z15: 0 | AA15: 131.2515747 | AB15: 413.2316951 | AC15: 131.2471042 | AD15: 410.1540541 | AE15: 518.1 | AF15: 19082 | AG15: 6086.2 | AH15: 15634 | AI15: 47242 | AJ15: -28160 | AK15: 395 | AL15: 32 | AM15: 5 | AN15: 126.984 | AO15: 102.564 | AP15: 3.658536585 | AQ15: 31.5 | AR15: 82 | AS15: 3.5 | AT15: 19 | AU15: 0 | AV15: 1 | AW15: 1652.047619 | AX15: 703.6315789 | AY15: 749 | BG15: 340 | BH15: 340 | BI15: 4.3 | BJ15: 92 | BK15: 43462.64 | BL15: 0 | BM15: 378.3857143 | BN15: 397.6756757 | BO15: 67 | BP15: 57 | BQ15: BBB
A16: non | B16: 2 | C16: conventionnel | D16: eleveur naisseur | E16: 2020 | F16: 66276 | G16: 1 | H16: 1 | I16: 49.84 | J16: 51.14 | K16: 51.14 | L16: 1.026083467 | M16: 49.84 | N16: 767.1 | O16: 767.1 | P16: 0 | Q16: 375.2 | R16: 369 | S16: 183.9 | T16: 0 | U16: 183.9 | V16: 172.3 | W16: 12.8 | X16: 6.3 | Y16: 416.4524478 | Z16: 0 | AA16: 126.9384029 | AB16: 400.4560594 | AC16: 136.5199452 | AD16: 413.3946031 | AE16: 391.8 | AF16: 16795 | AG16: 5489.3 | AH16: 13586 | AI16: 47944 | AJ16: -31149 | AK16: 404 | AL16: 32 | AM16: 4 | AN16: 124.138 | AO16: 100 | AP16: 2.621231979 | AQ16: 29 | AR16: 76.3 | AS16: 1.1 | AT16: 17 | AU16: 0 | AV16: 0 | AW16: 1730.928571 | AX16: 720.4375 | AY16: 721.3529412 | BG16: 0 | BH16: . | BJ16: 82 | BK16: 39314.08 | BL16: 0 | BM16: 405.866054 | BN16: 390.2763004 | BO16: 52 | BP16: 38 | BQ16: BBB
A17: non | B17: 2 | C17: conventionnel | D17: eleveur naisseur | E17: 2021 | F17: 66276 | G17: 1 | H17: 1 | I17: 48.72 | J17: 48.6 | K17: 48.6 | L17: 0.9975369458 | M17: 48.72 | N17: 929.3 | O17: 929.3 | P17: 0 | Q17: 341.5 | R17: 329.5 | S17: 159.1 | T17: 0 | U17: 159.1 | V17: 157.5 | W17: 12.9 | X17: 12 | Y17: 503.6988916 | Z17: 0 | AA17: 170.9811166 | AB17: 407.5888752 | AC17: 148.4238683 | AD17: 430.9654321 | AE17: 587.8 | AF17: 20670 | AG17: 9875.6 | AH17: 17660 | AI17: 40832.15 | AJ17: -20162.15 | AK17: 384 | AL17: 32 | AM17: 5 | AN17: 108.55 | AO17: 100 | AP17: 2.721088435 | AQ17: 30.4 | AR17: 73.5 | AS17: 1.4 | AT17: 24 | AU17: 0 | AV17: 0 | AW17: 1968.5 | AX17: 786.4166667 | AY17: 786.4166667 | BG17: 0 | BH17: . | BJ17: 84.1 | BK17: 34339.83815 | BL17: 0 | BM17: 504.9425926 | BN17: 408.5952675 | BO17: 56 | BP17: 66 | BQ17: BBB
A18: non | B18: 2 | C18: conventionnel | D18: eleveur naisseur | E18: 2022 | F18: 66276 | G18: 1 | H18: 1 | I18: 48.26 | J18: 47.08 | K18: 47.08 | L18: 0.975549109 | M18: 48.26 | N18: 1228 | O18: 1228 | P18: 0 | Q18: 332.9 | R18: 332.9 | S18: 176.7 | T18: 0 | U18: 176.7 | V18: 141.1 | W18: 15.1 | X18: 0 | Y18: 535.973477 | Z18: 12.57355988 | AA18: 208.5341898 | AB18: 414.4983423 | AC18: 161.0237893 | AD18: 487.0424809 | AE18: 895.1 | AF18: 29207 | AG18: 18680.9 | AH18: 25984 | AI18: 46264.94 | AJ18: -17057.94 | AK18: 393 | AL18: 31 | AM18: 4 | AN18: 130.57 | AO18: 102.5 | AP18: 1.367989056 | AQ18: 31.4 | AR18: 73.1 | AS18: 0.7 | AT18: 16 | AU18: 0 | AV18: 0 | AW18: 2384.714286 | AX18: 790.2105263 | AY18: 803.3125 | BG18: 0 | BH18: . | BJ18: 94 | BK18: 43489.0436 | BL18: 12.88870008 | BM18: 549.4069669 | BN18: 424.8872133 | BO18: 45 | BP18: 51 | BQ18: autres
A19: non | B19: 2 | C19: conventionnel | D19: eleveur naisseur | E19: 2023 | F19: 66276 | G19: 1 | H19: 1 | I19: 45.43 | J19: 44.46 | K19: 44.46 | L19: 0.9786484702 | M19: 45.43 | N19: 1114 | O19: 1114 | P19: 0 | Q19: 317 | R19: 317 | S19: 127.6 | T19: 0 | U19: 127.6 | V19: 155.2 | W19: 34.2 | X19: 0 | Y19: 631.4767775 | Z19: 0 | AA19: 257.5784724 | AB19: 449.8994057 | AC19: 135.5537562 | AD19: 541.6833108 | AE19: 797 | AF19: 24310 | AG19: 14674 | AH19: 20981 | AI19: 48369.3 | AJ19: -24059.3 | AK19: 397 | AL19: 33 | AM19: 5 | AN19: 134.62 | AO19: 106.06 | AP19: 1.457725948 | AQ19: 26 | AR19: 68.6 | AS19: 1.3 | AT19: 16 | AU19: 0 | AV19: 0 | AW19: 2391.875 | AX19: 751.3125 | AY19: 787.875 | BG19: 0 | BH19: . | BJ19: 85.5 | BK19: 41355.7515 | BL19: 0 | BM19: 645.2539361 | BN19: 459.7150247 | BO19: 65 | BP19: 38 | BQ19: BBB
A20: non | B20: 1 | C20: biologique | D20: intermediaire | E20: 2019 | F20: 66300 | G20: 3 | H20: 3 | I20: 62.81 | J20: 92 | K20: 30.66666667 | L20: 1.464734915 | M20: 20.93666667 | N20: 535.5 | O20: 535.5 | P20: 0 | Q20: 35.3 | R20: 35.2 | S20: 0 | T20: 0 | U20: 0 | V20: 6.5 | W20: 28.7 | X20: 0.1 | Y20: 72.52810062 | Z20: 77.21700366 | AA20: 149.4975322 | AB20: 423.5737781 | AC20: 31.67054348 | AD20: 330.3238043 | AE20: 500.2 | AF20: 13996 | AG20: 11199 | AH20: 13708 | AI20: 27158.093 | AJ20: -13162.093 | AK20: 430 | AL20: 35 | AM20: 8 | AN20: 97.101 | AO20: 98.529 | AP20: 1.355932203 | AQ20: 69 | AR20: 147.5 | AS20: 20.5 | AT20: 11 | AU20: 0 | AV20: 0 | AW20: 434 | AY20: 660 | BB20: 670 | BE20: 660 | BG20: 0 | BH20: . | BJ20: 97.8 | BK20: 26560.61495 | BL20: 52.7173913 | BM20: 49.51619565 | BN20: 289.1811848 | BO20: 7 | BP20: 28 | BQ20: LI
A21: non | B21: 1 | C21: biologique | D21: eleveur engraisseur | E21: 2020 | F21: 66300 | G21: 3 | H21: 3 | I21: 62.76 | J21: 109.96 | K21: 36.65333333 | L21: 1.752071383 | M21: 20.92 | N21: 463.5 | O21: 463.5 | P21: 0 | Q21: 356.7 | R21: 356.7 | S21: 300.3 | T21: 0 | U21: 300.3 | V21: 26.6 | W21: 29.8 | X21: 0 | Y21: 51.97833015 | Z21: 0 | AA21: 51.97833015 | AB21: 444.9431166 | AC21: 27.21107676 | AD21: 254.3714987 | AE21: 106.7 | AF21: 5250 | AG21: 2089.5 | AH21: 5651 | AI21: 27561.653 | AJ21: -22311.653 | AK21: 427 | AL21: 45 | AM21: 6 | AN21: 86.657 | AO21: 100 | AP21: 3.298515668 | AQ21: 71.9 | AR21: 181.9 | AS21: 29.1 | AT21: 1 | AU21: 20 | AV21: 0 | AW21: 980.625 | BA21: 738.15 | BB21: 653.7142857 | BD21: 560.4 | BE21: 745.6666667 | BG21: 0 | BH21: . | BJ21: 86 | BK21: 23703.02158 | BL21: 0 | BM21: 29.66678792 | BN21: 253.9526191 | BO21: 14 | BP21: 6 | BQ21: LI
A22: non | B22: 1 | C22: biologique | D22: intermediaire | E22: 2021 | F22: 66300 | G22: 3 | H22: 3 | I22: 62.74 | J22: 111.69 | K22: 37.23 | L22: 1.780204017 | M22: 20.91333333 | N22: 399.5 | O22: 399.5 | P22: 0 | Q22: 109.4 | R22: 109.4 | S22: 85 | T22: 0 | U22: 85 | V22: 2.8 | W22: 21.6 | X22: 0 | Y22: 66.40293274 | Z22: 20.40165763 | AA22: 86.80459037 | AB22: 447.7708001 | AC22: 27.67893276 | AD22: 249.6885128 | AE22: 290 | AF22: 11408 | AG22: 7915.6 | AH22: 11553 | AI22: 28111.67667 | AJ22: -16703.67667 | AK22: 467 | AL22: 33 | AM22: 0 | AN22: 67.59 | AO22: 100 | AP22: 8.537279454 | AQ22: 72.5 | AR22: 175.7 | AS22: 25.7 | AT22: 3 | AU22: 7 | AV22: 0 | BA22: 808.4285714 | BE22: 848.8 | BG22: 0 | BH22: . | BJ22: 84.5 | BK22: 23754.36678 | BL22: 11.46029188 | BM22: 37.30074313 | BN22: 251.5278002 | BO22: 7 | BP22: 11 | BQ22: LI
A23: non | B23: 2 | C23: biologique | D23: intermediaire | E23: 2019 | F23: 66305 | G23: 2.11 | H23: 2.11 | I23: 70.63 | J23: 55.55 | K23: 26.32701422 | L23: 0.7864929916 | M23: 33.47393365 | N23: 939.8 | O23: 939.8 | P23: 0 | Q23: 285.2 | R23: 259.5 | S23: 156.7 | T23: 0 | U23: 156.7 | V23: 54 | W23: 48.8 | X23: 25.7 | Y23: 223.7656803 | Z23: 23.44612771 | AA23: 146.5980462 | AB23: 266.8183491 | AC23: 90.33339334 | AD23: 748.3335734 | AE23: 654.7 | AF23: 23105 | AG23: 16009.2 | AH23: 22732 | AI23: 38751.18483 | AJ23: -15646.18483 | AK23: 387 | AL23: 31 | AM23: 8 | AN23: 105.263 | AO23: 97.561 | AP23: 7.650273224 | AQ23: 38 | AR23: 91.5 | AS23: 14.5 | AT23: 8 | AU23: 7 | AV23: 6 | AW23: 1310 | AY23: 1302.75 | AZ23: 800.1666667 | BA23: 1757.142857 | BB23: 1169.571429 | BE23: 1947.166667 | BF23: 1511.166667 | BG23: 1929 | BH23: 321.5 | BI23: 4.700362882 | BJ23: 97.6 | BK23: 37821.1564 | BL23: 29.8109811 | BM23: 284.5107111 | BN23: 339.2507651 | BO23: 21 | BP23: 37 | BQ23: LI
A24: non | B24: 2 | C24: biologique | D24: eleveur engraisseur | E24: 2020 | F24: 66305 | G24: 2.11 | H24: 2.11 | I24: 69.56 | J24: 53.48 | K24: 25.34597156 | L24: 0.7688326624 | M24: 32.96682464 | N24: 955 | O24: 955 | P24: 0 | Q24: 254.7 | R24: 229.2 | S24: 113.1 | T24: 0 | U24: 113.1 | V24: 56.5 | W24: 59.6 | X24: 25.5 | Y24: 401.2307361 | Z24: 38.34976998 | AA24: 336.8364002 | AB24: 256.0439764 | AC24: 99.46409873 | AD24: 767.1260284 | AE24: 700.3 | AF24: 21642 | AG24: 15427.4 | AH24: 20962 | AI24: 39327.01422 | AJ24: -17685.01422 | AK24: 383 | AL24: 33 | AM24: 10 | AN24: 94.972 | AO24: 103.03 | AP24: 1.098901099 | AQ24: 35.8 | AR24: 91 | AS24: 13.8 | AT24: 11 | AU24: 5 | AV24: 13 | AW24: 1551.5 | AY24: 1502.636364 | BA24: 1839 | BB24: 1262.166667 | BF24: 1555.692308 | BG24: 3584 | BH24: 275.6923077 | BI24: 5.642857143 | BJ24: 85.6 | BK24: 33663.92417 | BL24: 49.88051608 | BM24: 521.8700449 | BN24: 333.0295251 | BO24: 28 | BP24: 8 | BQ24: LI
A25: non | B25: 3 | C25: biologique | D25: intermediaire | E25: 2021 | F25: 66305 | G25: 2.11 | H25: 2.11 | I25: 107.44 | J25: 55.57 | K25: 26.33649289 | L25: 0.5172189129 | M25: 50.91943128 | N25: 1060.3 | O25: 1060.3 | P25: 0 | Q25: 343.2 | R25: 343.2 | S25: 119.9 | T25: 0 | U25: 119.9 | V25: 63 | W25: 160.3 | X25: 0 | Y25: 188.5381608 | Z25: 31.05398362 | AA25: 160.2737342 | AB25: 263.0194527 | AC25: 117.4448443 | AD25: 1004.711175 | AE25: 717.1 | AF25: 28942 | AG25: 22753 | AH25: 28712 | AI25: 40111.83412 | AJ25: -11169.83412 | AK25: 382 | AL25: 32 | AM25: 6 | AN25: 114.91 | AO25: 102.78 | AP25: 1.055966209 | AQ25: 32.2 | AR25: 94.7 | AS25: 15.3 | AT25: 13 | AU25: 9 | AV25: 8 | AW25: 1921.857143 | AY25: 1447.307692 | AZ25: 1118.2 | BA25: 1700 | BE25: 1543.461538 | BF25: 1568.75 | BG25: 2513 | BH25: 314.125 | BI25: 4.994031039 | BJ25: 86.4 | BK25: 34656.62468 | BL25: 60.04030952 | BM25: 364.522944 | BN25: 508.5263631 | BO25: 22 | BP25: 34 | BQ25: LI
A26: non | B26: 2 | C26: biologique | D26: eleveur engraisseur | E26: 2022 | F26: 66305 | G26: 2.11 | H26: 2.11 | I26: 117.52 | J26: 60.2 | K26: 28.53080569 | L26: 0.5122532335 | M26: 55.69668246 | N26: 1151.3 | O26: 1151.3 | P26: 0 | Q26: 185.9 | R26: 185.9 | S26: 43.1 | T26: 0 | U26: 43.1 | V26: 57.4 | W26: 85.4 | X26: 0 | Y26: 191.5015317 | Z26: 34.97149421 | AA26: 166.5717325 | AB26: 247.745405 | AC26: 119.9335548 | AD26: 919.2901993 | AE26: 965.4 | AF26: 34169 | AG26: 27744.8 | AH26: 32812 | AI26: 42166.37441 | AJ26: -7997.374408 | AK26: 381 | AL26: 30 | AM26: 9 | AN26: 102.83 | AO26: 100 | AP26: 4.081632653 | AQ26: 38.9 | AR26: 98 | AS26: 16.3 | AT26: 8 | AU26: 8 | AV26: 11 | AW26: 2349 | AY26: 1732 | BA26: 1979.625 | BB26: 1491.5 | BE26: 2690 | BF26: 1476.636364 | BG26: 2970 | BH26: 270 | BI26: 5.469023569 | BJ26: 94.9 | BK26: 40015.88931 | BL26: 68.26993355 | BM26: 373.8415282 | BN26: 483.6385382 | BO26: 26 | BP26: 41 | BQ26: LI
A27: non | B27: 2 | C27: biologique | D27: eleveur engraisseur | E27: 2023 | F27: 66305 | G27: 1.77 | H27: 1.77 | I27: 118.7 | J27: 59.15 | K27: 33.4180791 | L27: 0.49831508 | M27: 67.06214689 | N27: 1018.4 | O27: 1018.4 | P27: 0 | Q27: 274 | R27: 273.9 | S27: 123.6 | T27: 0 | U27: 123.6 | V27: 62.9 | W27: 87.4 | X27: 0.2 | Y27: 259.2551811 | Z27: 23.50463353 | AA27: 202.6552654 | AB27: 214.3222409 | AC27: 120.0710059 | AD27: 1125.319696 | AE27: 744.4 | AF27: 35095 | AG27: 27833.5 | AH27: 33392 | AI27: 44957.79661 | AJ27: -9862.79661 | AK27: 391 | AL27: 34 | AM27: 5 | AN27: 86.61 | AO27: 94.29 | AP27: 4.970178926 | AQ27: 38.1 | AR27: 100.6 | AS27: 20.1 | AT27: 14 | AU27: 2 | AV27: 15 | AW27: 2169 | AY27: 1747.071429 | BF27: 1737.133333 | BG27: 4978 | BH27: 331.8666667 | BI27: 5.234431499 | BJ27: 95.2 | BK27: 42799.82237 | BL27: 47.1682164 | BM27: 520.2635672 | BN27: 430.0938292 | BO27: 31 | BP27: 21 | BQ27: LI
A28: non | B28: 2 | C28: biologique | D28: eleveur naisseur | E28: 2019 | F28: 66313 | G28: 1 | H28: 1 | I28: 45.32 | J28: 56.9 | K28: 56.9 | L28: 1.255516328 | M28: 45.32 | N28: 550.2 | O28: 550.2 | P28: 0 | Q28: 306.3 | R28: 184.6 | S28: 47.2 | T28: 0 | U28: 47.2 | V28: 117.1 | W28: 20.3 | X28: 121.7 | Y28: 261.2700794 | Z28: 171.0646514 | AA28: 387.4907326 | AB28: 257.8889894 | AC28: 120.1915641 | AD28: 466.5386823 | AE28: 243.9 | AF28: 14196 | AG28: 8999 | AH28: 15512 | AI28: 50876 | AJ28: -36680 | AK28: 364 | AL28: 34 | AM28: 6 | AN28: 143.662 | AO28: 96.226 | AP28: 5.494505495 | AQ28: 35.5 | AR28: 91 | AS28: 8 | AT28: 16 | AU28: 0 | AV28: 0 | AY28: 698 | BE28: 698 | BG28: 0 | BH28: . | BJ28: 90.7 | BK28: 46144.532 | BL28: 136.2504394 | BM28: 208.0977153 | BN28: 205.4047276 | BO28: 11 | BP28: 82 | BQ28: LI
A29: non | B29: 2 | C29: biologique | D29: eleveur naisseur | E29: 2020 | F29: 66313 | G29: 1 | H29: 1 | I29: 45.87 | J29: 61.69 | K29: 61.69 | L29: 1.344887726 | M29: 45.87 | N29: 671.2 | O29: 620.2 | P29: 51 | Q29: 313.4 | R29: 184 | S29: 47.8 | T29: 32.9 | U29: 14.9 | V29: 102.6 | W29: 33.6 | X29: 129.4 | Y29: 244.3590582 | Z29: 294.5661652 | AA29: 441.9864835 | AB29: 307.3653586 | AC29: 110.4781974 | AD29: 388.9508272 | AE29: 357.8 | AF29: 28408 | AG29: 22841.4 | AH29: 33513 | AI29: 54398 | AJ29: -25990 | AK29: 366 | AL29: 34 | AM29: 6 | AN29: 94.086 | AO29: 89.744 | AP29: 6.802721088 | AQ29: 37.2 | AR29: 102.9 | AS29: 14.7 | AT29: 15 | AU29: 3 | AV29: 0 | AW29: 1298.368421 | AY29: 759.1333333 | BB29: 854 | BE29: 778.3529412 | BG29: 0 | BH29: . | BJ29: 65.7 | BK29: 35739.486 | BL29: 219.0265845 | BM29: 181.6947641 | BN29: 228.5435079 | BO29: 51 | BP29: 27 | BQ29: LI
A30: non | B30: 2 | C30: biologique | D30: eleveur naisseur | E30: 2021 | F30: 66313 | G30: 1 | H30: 1 | I30: 46.73 | J30: 63.08 | K30: 63.08 | L30: 1.349882303 | M30: 46.73 | N30: 732.4 | O30: 732.4 | P30: 0 | Q30: 258.9 | R30: 159.8 | S30: 14.8 | T30: 0 | U30: 14.8 | V30: 122.8 | W30: 22.2 | X30: 99.1 | Y30: 442.1848919 | Z30: 251.0164776 | AA30: 576.2176332 | AB30: 238.9783865 | AC30: 114.3532023 | AD30: 421.393862 | AE30: 473.5 | AF30: 26051 | AG30: 19090.4 | AH30: 21243 | AI30: 56423.98 | AJ30: -30372.98 | AK30: 369 | AL30: 33 | AM30: 7 | AN30: 110.59 | AO30: 92.16 | AP30: 6.822612086 | AQ30: 42.5 | AR30: 102.6 | AS30: 12.1 | AT30: 21 | AU30: 0 | AV30: 0 | AW30: 1536.666667 | AY30: 889.9047619 | BE30: 889.9047619 | BG30: 0 | BH30: . | BJ30: 84.9 | BK30: 47903.95902 | BL30: 185.9543437 | BM30: 327.5729233 | BN30: 177.0364616 | BO30: 21 | BP30: 26 | BQ30: LI
A31: non | B31: 2 | C31: biologique | D31: eleveur naisseur | E31: 2023 | F31: 66313 | G31: 1 | H31: 1 | I31: 53.32 | J31: 71 | K31: 71 | L31: 1.331582896 | M31: 53.32 | N31: 835 | O31: 835 | P31: 0 | Q31: 300 | R31: 205.6 | S31: 86.2 | T31: 49.2 | U31: 37 | V31: 94.8 | W31: 24.6 | X31: 94.4 | Y31: 215.6494749 | Z31: 248.8636534 | AA31: 376.6277194 | AB31: 217.7164291 | AC31: 142.9014085 | AD31: 404.4247887 | AE31: 535 | AF31: 40035 | AG31: 31778.3 | AH31: 33160 | AI31: 65755.5 | AJ31: -25720.5 | AK31: 371 | AL31: 34 | AM31: 6 | AN31: 99.59 | AO31: 96 | AP31: 2.610966057 | AQ31: 48.2 | AR31: 114.9 | AS31: 17 | AT31: 23 | AU31: 0 | AV31: 0 | AW31: 1983.307692 | AY31: 1049.695652 | BE31: 1097.363636 | BG31: 0 | BH31: . | BJ31: 98.6 | BK31: 64834.923 | BL31: 186.8930986 | BM31: 161.9497183 | BN31: 163.5019718 | BO31: 29 | BP31: 27 | BQ31: LI
A32: non | B32: 3 | C32: biologique | D32: eleveur naisseur | E32: 2019 | F32: 66321 | G32: 2.18 | H32: 2.18 | I32: 105.01 | J32: 71.3 | K32: 32.70642202 | L32: 0.678982954 | M32: 48.16972477 | N32: 874.7 | O32: 839.2 | P32: 35.5 | Q32: 123.7 | R32: 123.7 | S32: 71.5 | T32: 0 | U32: 71.5 | V32: 15.3 | W32: 36.9 | X32: 0 | Y32: 304.2340634 | Z32: 7.594514808 | AA32: 110.3390153 | AB32: 258.7169698 | AC32: 140.7579243 | AD32: 1096.05021 | AE32: 751 | AF32: 36470 | AG32: 27493.9 | AH32: 36470 | AI32: 32839.3578 | AJ32: 3630.642202 | AK32: 365 | AL32: 23 | AM32: 8 | AN32: 123.894 | AO32: 100 | AP32: 3.015075377 | AQ32: 56.5 | AR32: 99.5 | AS32: 6.5 | AT32: 29 | AU32: 5 | AV32: 0 | AY32: 866.6206897 | AZ32: 607.5 | BA32: 865.2 | BB32: 679 | BE32: 866.4117647 | BG32: 0 | BH32: . | BJ32: 100 | BK32: 32839.3578 | BL32: 11.18513324 | BM32: 448.0731978 | BN32: 381.0360309 | BO32: 9 | BP32: 67 | BQ32: autres
A33: non | B33: 3 | C33: conventionnel | D33: eleveur engraisseur | E33: 2022 | F33: 66327 | G33: 2 | H33: 2 | I33: 97.13 | J33: 231.42 | K33: 115.71 | L33: 2.382580047 | M33: 48.565 | N33: 1596.9 | O33: 1596.9 | P33: 0 | Q33: 856.5 | R33: 762.9 | S33: 616.2 | T33: 74.2 | U33: 542 | V33: 114.8 | W33: 31.9 | X33: 93.5 | Y33: 569.6959745 | Z33: 76.71615361 | AA33: 629.678884 | AB33: 441.7047256 | AC33: 133.3743842 | AD33: 127.1498142 | AE33: 740.5 | AF33: 57401 | AG33: 41958 | AH33: 57042 | AI33: 71176.84 | AJ33: -13775.84 | AK33: 386 | AL33: 31 | AM33: 6 | AN33: 100.17 | AO33: 99.15 | AP33: 4.095213719 | AQ33: 115.7 | AR33: 390.7 | AS33: 59.2 | AT33: 0 | AU33: 71 | AV33: 71 | AW33: 2979.636364 | BA33: 2924.859155 | BB33: 1779.4 | BC33: 3525.6 | BD33: 2460.4 | BF33: 2985.830986 | BG33: 52618 | BH33: 741.0985916 | BI33: 4.028925463 | BJ33: 100 | BK33: 71176.84 | BL33: 32.19877279 | BM33: 239.1088497 | BN33: 185.389249 | BO33: 41 | BP33: 35 | BQ33: BBB
A34: non | B34: 3 | C34: conventionnel | D34: eleveur engraisseur | E34: 2023 | F34: 66327 | G34: 2 | H34: 2 | I34: 97.03 | J34: 217.74 | K34: 108.87 | L34: 2.244048233 | M34: 48.515 | N34: 1554.7 | O34: 1554.7 | P34: 0 | Q34: 852 | R34: 749.3 | S34: 579.5 | T34: 0 | U34: 579.5 | V34: 130 | W34: 39.8 | X34: 102.7 | Y34: 612.433165 | Z34: 99.2243636 | AA34: 694.9070391 | AB34: 432.825724 | AC34: 112.609075 | AD34: 110.5955268 | AE34: 702.7 | AF34: 42842 | AG34: 28192.9 | AH34: 44078 | AI34: 80021.1 | AJ34: -37179.1 | AK34: 393 | AL34: 33 | AM34: 5 | AN34: 118.1 | AO34: 99.19 | AP34: 6.343077772 | AQ34: 103.3 | AR34: 362.6 | AS34: 55.4 | AT34: 0 | AU34: 55 | AV34: 55 | AW34: 2759.886792 | BA34: 2903.963636 | BD34: 1919.727273 | BF34: 2935.181818 | BG34: 38699 | BH34: 703.6181818 | BI34: 4.171554821 | BJ34: 96.6 | BK34: 77300.3826 | BL34: 44.21668044 | BM34: 272.9144392 | BN34: 192.877193 | BO34: 54 | BP34: 46 | BQ34: BBB
A35: non | B35: 1 | C35: biologique | D35: eleveur engraisseur | E35: 2019 | F35: 68099 | G35: 1.16 | H35: 1.16 | I35: 47.37 | J35: 45.85 | K35: 39.52586207 | L35: 0.9679121807 | M35: 40.8362069 | N35: 127 | O35: 127 | P35: 0 | Q35: 111.8 | R35: 111.8 | S35: 40.8 | T35: 0 | U35: 40.8 | V35: 37.6 | W35: 33.4 | X35: 0 | Y35: 104.6793329 | Z35: 230.2512138 | AA35: 309.6662445 | AB35: 230.0567659 | AC35: 0 | AD35: 550.6388222 | AE35: 15.2 | AF35: 1401 | AG35: -8851.2 | AH35: -1755 | AI35: 31908.275 | AJ35: -30507.275 | AK35: 359 | AM35: 0 | AN35: 85.246 | AO35: 100 | AP35: 7.042253521 | AQ35: 30.5 | AR35: 71 | AS35: 11.5 | AT35: 1 | AU35: 16 | AV35: 1 | BA35: 878.8125 | BB35: 759.7272727 | BC35: 899.6666667 | BE35: 868.6086957 | BG35: 450 | BH35: 450 | BI35: 1.886666667 | BJ35: 87.9 | BK35: 28047.37373 | BL35: 237.8844057 | BM35: 108.1496183 | BN35: 237.6835115 | BO35: 3 | BP35: 0 | BQ35: autres
A36: non | B36: 1 | C36: biologique | D36: intermediaire | E36: 2020 | F36: 68099 | G36: 1.16 | H36: 1.16 | I36: 47.37 | J36: 38.45 | K36: 33.14655172 | L36: 0.8116951657 | M36: 40.8362069 | N36: 649.5 | O36: 649.5 | P36: 0 | Q36: 258 | R36: 167.4 | S36: 35 | T36: 0 | U36: 35 | V36: 79.5 | W36: 52.9 | X36: 90.6 | Y36: 69.91576947 | Z36: 236.0882415 | AA36: 279.7278868 | AB36: 209.882415 | AC36: 0 | AD36: 719.7370611 | AE36: 391.5 | AF36: 16742 | AG36: 6552.7 | AH36: 15322 | AI36: 32382.0681 | AJ36: -15640.0681 | AK36: 379 | AM36: 7 | AN36: 93.525 | AO36: 104 | AP36: 6.472491909 | AQ36: 27.8 | AR36: 61.8 | AS36: 11.6 | AT36: 1 | AU36: 1 | AV36: 1 | AZ36: 804.25 | BG36: 748 | BH36: 748 | BI36: 1.203208556 | BJ36: 94.5 | BK36: 30601.05436 | BL36: 290.8582575 | BM36: 86.13550065 | BN36: 258.5729519 | BO36: 11 | BP36: 0 | BQ36: autres
A37: non | B37: 2 | C37: biologique | D37: intermediaire | E37: 2021 | F37: 68099 | G37: 1.16 | H37: 1.16 | I37: 47.38 | J37: 42.36 | K37: 36.51724138 | L37: 0.8940481216 | M37: 40.84482759 | N37: 584.3 | O37: 584.3 | P37: 0 | Q37: 196.3 | R37: 190.7 | S37: 78.3 | T37: 0 | U37: 78.3 | V37: 63.5 | W37: 48.9 | X37: 5.5 | Y37: 73.27311102 | Z37: 245.7365977 | AA37: 292.7391304 | AB37: 207.6097509 | AC37: 0 | AD37: 653.7207271 | AE37: 388 | AF37: 20958 | AG37: 12035.6 | AH37: 20055 | AI37: 33041.85345 | AJ37: -12083.85345 | AK37: 386 | AL37: 29 | AM37: 10 | AN37: 92.44 | AO37: 91.67 | AP37: 8.78477306 | AQ37: 23.8 | AR37: 68.3 | AS37: 7.5 | AT37: 0 | AU37: 5 | AV37: 0 | BA37: 1271.4 | BC37: 1970.6 | BE37: 1421.166667 | BG37: 0 | BH37: . | BJ37: 80.2 | BK37: 26499.56647 | BL37: 274.8583569 | BM37: 81.9565628 | BN37: 232.2131728 | BO37: 21 | BP37: 8 | BQ37: autres
A38: non | B38: 1 | C38: biologique | D38: intermediaire | E38: 2022 | F38: 68099 | G38: 1.2 | H38: 1.2 | I38: 47.37 | J38: 44.47 | K38: 37.05833333 | L38: 0.9387798185 | M38: 39.475 | N38: 696.8 | O38: 696.8 | P38: 0 | Q38: 303 | R38: 229.8 | S38: 114.8 | T38: 0 | U38: 114.8 | V38: 64.2 | W38: 50.8 | X38: 73.3 | Y38: 109.5201604 | Z38: 234.7014988 | AA38: 319.4023644 | AB38: 211.9742453 | AC38: 0 | AD38: 627.6258152 | AE38: 393.8 | AF38: 16946 | AG38: 7381.6 | AH38: 15544 | AI38: 34270.33333 | AJ38: -17324.33333 | AK38: 374 | AM38: 0 | AN38: 95.83 | AO38: 100 | AP38: 2.88184438 | AQ38: 24 | AR38: 69.4 | AS38: 8.6 | AT38: 0 | AU38: 0 | AV38: 0 | BB38: 991 | BC38: 2020.875 | BE38: 1958.666667 | BG38: 0 | BH38: . | BJ38: 94.8 | BK38: 32488.276 | BL38: 250.006971 | BM38: 116.6622442 | BN38: 225.7976164 | BO38: 0 | BP38: 0 | BQ38: autres
A39: non | B39: 1 | C39: biologique | D39: intermediaire | E39: 2023 | F39: 68099 | G39: 1.24 | H39: 1.24 | I39: 47.34 | J39: 47.87 | K39: 38.60483871 | L39: 1.011195606 | M39: 38.17741935 | N39: 553.5 | O39: 553.5 | P39: 0 | Q39: 263.5 | R39: 263.5 | S39: 124.2 | T39: 0 | U39: 124.2 | V39: 61.1 | W39: 78.2 | X39: 0 | Y39: 121.4738065 | Z39: 257.5492184 | AA39: 357.1054077 | AB39: 211.8588931 | AC39: 88.31209526 | AD39: 612.018592 | AE39: 290 | AF39: 20013 | AG39: 11681.7 | AH39: 18885 | AI39: 37389.67742 | AJ39: -17376.67742 | AK39: 376 | AL39: 36 | AM39: 0 | AN39: 92.2 | AO39: 96.3 | AP39: 8.275862069 | AQ39: 28.2 | AR39: 72.5 | AS39: 14.6 | AT39: 0 | AU39: 3 | AV39: 0 | AZ39: 1088.777778 | BG39: 0 | BH39: . | BJ39: 81.2 | BK39: 30360.41806 | BL39: 254.697723 | BM39: 120.1288907 | BN39: 209.5132651 | BO39: 4 | BP39: 21 | BQ39: autres
A40: non | B40: 1 | C40: conventionnel | D40: intermediaire | E40: 2019 | F40: 68124 | G40: 1.01 | H40: 1 | I40: 49.96 | J40: 63 | K40: 62.37623762 | L40: 1.261008807 | M40: 49.46534653 | N40: 1040.5 | O40: 1038.9 | P40: 1.6 | Q40: 584.8 | R40: 563.6 | S40: 420.9 | T40: 0 | U40: 420.9 | V40: 117.5 | W40: 25.2 | X40: 21.3 | Y40: 642.7554043 | Z40: 81.76541233 | AA40: 343.9455564 | AB40: 274.6317054 | AC40: 48.8184127 | AD40: 244.815873 | AE40: 455.7 | AF40: -5647 | AG40: -21199.7 | AH40: -6585 | AI40: 35286.139 | AJ40: -40933.139 | AK40: 389 | AL40: 30 | AM40: 5 | AN40: 106.173 | AO40: 100 | AP40: 2.790697674 | AQ40: 40.5 | AR40: 107.5 | AS40: 16.5 | AT40: 4 | AU40: 4 | AV40: 2 | AW40: 2044.157895 | BG40: 1407 | BH40: 703.5 | BI40: 3.02061123 | BJ40: 97.4 | BK40: 34368.69939 | BL40: 64.84126984 | BM40: 509.7152381 | BN40: 217.7873016 | BO40: 49 | BP40: 37 | BQ40: BBB
A41: non | B41: 2 | C41: conventionnel | D41: eleveur engraisseur | E41: 2020 | F41: 68124 | G41: 1.02 | H41: 1 | I41: 50.7 | J41: 68.66 | K41: 67.31372549 | L41: 1.354240631 | M41: 49.70588235 | N41: 1222.3 | O41: 1222.3 | P41: 0 | Q41: 613 | R41: 553.1 | S41: 380 | T41: 0 | U41: 380 | V41: 138.5 | W41: 34.6 | X41: 59.9 | Y41: 499.7256213 | Z41: 13.49112426 | AA41: 169.5228797 | AB41: 173.8863905 | AC41: 46 | AD41: 222.2917274 | AE41: 609.3 | AF41: 23192 | AG41: 7285.3 | AH41: 25508 | AI41: 35958 | AJ41: -12766 | AK41: 383 | AL41: 31 | AM41: 5 | AN41: 131.646 | AO41: 98.113 | AP41: 1.734605377 | AQ41: 39.5 | AR41: 115.3 | AS41: 14.3 | AT41: 15 | AU41: 12 | AV41: 12 | AW41: 1958.076923 | AX41: 705.1111111 | AY41: 939.8666667 | BA41: 2455.25 | BE41: 1292 | BF41: 2455.25 | BG41: 9052 | BH41: 754.3333333 | BI41: 3.254860804 | BJ41: 92.4 | BK41: 33225.192 | BL41: 9.962132246 | BM41: 369.0079959 | BN41: 128.4013982 | BO41: 33 | BP41: 56 | BQ41: BBB
A42: non | B42: 2 | C42: conventionnel | D42: eleveur engraisseur | E42: 2021 | F42: 68124 | G42: 1.01 | H42: 1 | I42: 50.26 | J42: 67.18 | K42: 66.51485149 | L42: 1.336649423 | M42: 49.76237624 | N42: 1512.9 | O42: 1512.9 | P42: 0 | Q42: 865.3 | R42: 758 | S42: 493.7 | T42: 0 | U42: 493.7 | V42: 159.1 | W42: 105.2 | X42: 107.2 | Y42: 428.7865101 | Z42: 193.3197374 | AA42: 332.4703542 | AB42: 176.8066057 | AC42: 48.57398035 | AD42: 226.8953558 | AE42: 647.7 | AF42: 19694 | AG42: 4045.2 | AH42: 21725 | AI42: 37615.98 | AJ42: -17921.98 | AK42: 373 | AL42: 30 | AM42: 5 | AN42: 140.16 | AO42: 98.11 | AP42: 5.902192243 | AQ42: 37.1 | AR42: 118.6 | AS42: 18.7 | AT42: 9 | AU42: 11 | AV42: 4 | AW42: 2374.7 | AY42: 1126.777778 | BA42: 2674.636364 | BE42: 2150.454545 | BG42: 2952 | BH42: 738 | BI42: 3.550813008 | BJ42: 94.4 | BK42: 35509.48512 | BL42: 144.6300982 | BM42: 320.7920512 | BN42: 132.275975 | BO42: 89 | BP42: 46 | BQ42: BBB
A43: non | B43: 2 | C43: conventionnel | D43: eleveur engraisseur | E43: 2022 | F43: 68124 | G43: 1.01 | H43: 1.01 | I43: 50.25 | J43: 67.55 | K43: 66.88118812 | L43: 1.344278607 | M43: 49.75247525 | N43: 1429.2 | O43: 1429.2 | P43: 0 | Q43: 840.5 | R43: 838.4 | S43: 603.1 | T43: 0 | U43: 603.1 | V43: 161.5 | W43: 73.8 | X43: 2.1 | Y43: 407.8105473 | Z43: 193.7412935 | AA43: 356.4157214 | AB43: 169.1170149 | AC43: 50.76980015 | AD43: 229.5989637 | AE43: 588.7 | AF43: 15315 | AG43: -288.8 | AH43: 14523 | AI43: 39542.69307 | AJ43: -24227.69307 | AK43: 389 | AL43: 30 | AM43: 4 | AN43: 127.98 | AO43: 100 | AP43: 3.355704698 | AQ43: 33.6 | AR43: 119.2 | AS43: 18.4 | AT43: 2 | AU43: 14 | AV43: 2 | AW43: 2848.2 | BA43: 2663.071429 | BE43: 2655.454545 | BG43: 1381 | BH43: 690.5 | BI43: 4.104996379 | BJ43: 98.7 | BK43: 39028.63806 | BL43: 144.1228719 | BM43: 303.3675796 | BN43: 125.8050333 | BO43: 51 | BP43: 57 | BQ43: BBB
A44: non | B44: 2 | C44: conventionnel | D44: eleveur engraisseur | E44: 2023 | F44: 68124 | G44: 1.01 | H44: 1.01 | I44: 50.3 | J44: 67 | K44: 66.33663366 | L44: 1.332007952 | M44: 49.8019802 | N44: 1754.8 | O44: 1754.8 | P44: 0 | Q44: 1013.3 | R44: 959.1 | S44: 772.3 | T44: 0 | U44: 772.3 | V44: 145.5 | W44: 41.3 | X44: 54.2 | Y44: 465.2646123 | Z44: 183.7375746 | AA44: 419.4349901 | AB44: 172.2439364 | AC44: 138.8134328 | AD44: 267.6032836 | AE44: 741.4 | AF44: 30846 | AG44: 15129.1 | AH44: 32942 | AI44: 51200.79208 | AJ44: -20354.79208 | AK44: 373 | AL44: 30 | AM44: 4 | AN44: 121.31 | AO44: 100 | AP44: 2.514668902 | AQ44: 30.5 | AR44: 119.3 | AS44: 19.4 | AT44: 0 | AU44: 16 | AV44: 15 | AW44: 3240.578947 | BA44: 3029.6875 | BF44: 3139.133333 | BG44: 11360 | BH44: 757.3333333 | BI44: 4.144982394 | BJ44: 95.1 | BK44: 48691.95327 | BL44: 137.9402985 | BM44: 349.2956716 | BN44: 129.3114925 | BO44: 66 | BP44: 66 | BQ44: BBB
A45: non | B45: 3 | C45: conventionnel | D45: intermediaire | E45: 2021 | F45: 68257 | G45: 1 | H45: 1 | I45: 121.65 | J45: 109.07 | K45: 109.07 | L45: 0.8965885738 | M45: 121.65 | N45: 626.8 | O45: 626.8 | P45: 0 | Q45: 94.9 | R45: 93 | S45: 65.7 | T45: 0 | U45: 65.7 | V45: 14 | W45: 13.3 | X45: 1.8 | Y45: 346.486642 | Z45: 28.9648993 | AA45: 149.2232635 | AB45: 202.3393342 | AC45: 140.144311 | AD45: 517.5122398 | AE45: 532 | AF45: 61359 | AG45: 31484.9 | AH45: 56584 | AI45: 56631.63 | AJ45: 4727.37 | AK45: 435 | AL45: 36 | AM45: 6 | AN45: 102.92 | AO45: 100 | AP45: 2.216066482 | AQ45: 58.3 | AR45: 180.5 | AS45: 29.4 | AT45: 3 | AU45: 14 | AV45: 13 | AW45: 1345.961538 | BA45: 1091.571429 | BB45: 888.1666667 | BE45: 1084.6 | BF45: 1045 | BG45: 6322 | BH45: 486.3076923 | BI45: 2.148845302 | BJ45: 92.9 | BK45: 52610.78427 | BL45: 32.30567525 | BM45: 386.4499862 | BN45: 225.6769047 | BO45: 45 | BP45: 41 | BQ45: autres
A46: non | B46: 3 | C46: conventionnel | D46: eleveur engraisseur | E46: 2022 | F46: 68257 | G46: 1 | H46: 1 | I46: 118.28 | J46: 115.49 | K46: 115.49 | L46: 0.976411904 | M46: 118.28 | N46: 652.6 | O46: 652.6 | P46: 0 | Q46: 96.9 | R46: 96.9 | S46: 71 | T46: 0 | U46: 71 | V46: 9.2 | W46: 16.7 | X46: 0 | Y46: 366.6626649 | Z46: 12.17450118 | AA46: 144.9220494 | AB46: 294.6214914 | AC46: 151.6018703 | AD46: 454.3041822 | AE46: 555.7 | AF46: 69967 | AG46: 39225.6 | AH46: 65498 | AI46: 56905.14 | AJ46: 13061.86 | AK46: 397 | AL46: 38 | AM46: 5 | AN46: 93.02 | AO46: 100 | AP46: 2.140181915 | AQ46: 60.2 | AR46: 186.9 | AS46: 21.7 | AT46: 6 | AU46: 30 | AV46: 16 | AW46: 1565.588235 | AY46: 776.8333333 | BA46: 1277.2 | BD46: 1375.4 | BE46: 1248 | BF46: 1253 | BG46: 8650 | BH46: 540.625 | BI46: 2.317687861 | BJ46: 80.4 | BK46: 45751.73256 | BL46: 12.468612 | BM46: 375.520478 | BN46: 301.7389384 | BO46: 30 | BP46: 51 | BQ46: autres
A47: non | B47: 3 | C47: conventionnel | D47: intermediaire | E47: 2023 | F47: 68257 | G47: 1 | H47: 1 | I47: 118.9 | J47: 121.51 | K47: 121.51 | L47: 1.02195122 | M47: 118.9 | N47: 691.3 | O47: 691.3 | P47: 0 | Q47: 157.5 | R47: 157.5 | S47: 135 | T47: 0 | U47: 135 | V47: 6.7 | W47: 15.8 | X47: 0 | Y47: 353.1174096 | Z47: 16.79983179 | AA47: 142.2429773 | AB47: 289.5050463 | AC47: 128.0322607 | AD47: 430.189614 | AE47: 533.8 | AF47: 65462 | AG47: 32182.6 | AH47: 62770 | AI47: 64110 | AJ47: 1352 | AK47: 424 | AL47: 35 | AM47: 5 | AN47: 100.74 | AO47: 100 | AP47: 0.5157297576 | AQ47: 67.5 | AR47: 193.9 | AS47: 28.2 | AT47: 28 | AU47: 13 | AV47: 11 | AW47: 1476.909091 | AY47: 702.6428571 | AZ47: 511.1666667 | BA47: 1125.461538 | BD47: 1430.529412 | BE47: 730.483871 | BF47: 1274.454545 | BG47: 5508 | BH47: 500.7272727 | BI47: 2.545206972 | BJ47: 83.7 | BK47: 53660.07 | BL47: 16.43897622 | BM47: 345.5325488 | BN47: 283.2865608 | BO47: 33 | BP47: 36 | BQ47: autres
A48: non | B48: 1 | C48: biologique | D48: eleveur engraisseur | E48: 2022 | F48: 68260 | G48: 0.71 | H48: 0.71 | I48: 33.8 | J48: 14.69 | K48: 20.69014085 | L48: 0.4346153846 | M48: 47.6056338 | N48: 629.4 | O48: 583.2 | P48: 46.2 | Q48: 300.9 | R48: 300.9 | S48: 18.1 | T48: 0 | U48: 18.1 | V48: 171.8 | W48: 111 | X48: 0 | Y48: 210.041716 | Z48: 92.32485207 | AA48: 279.143787 | AB48: 190.4381657 | AC48: 0 | AD48: 1709.558884 | AE48: 328.5 | AF48: 20816 | AG48: 17451.9 | AH48: 16521 | AI48: 35922.57746 | AJ48: -15106.57746 | AL48: 25 | AM48: 9 | AN48: 55.56 | AO48: 100 | AP48: 4.739336493 | AQ48: 10.8 | AR48: 21.1 | AS48: 3.2 | AT48: 0 | AU48: 3 | AV48: 2 | BG48: 1124 | BH48: 562 | BI48: 2.958185053 | BJ48: 85.5 | BK48: 30713.80373 | BL48: 212.4288632 | BM48: 483.2818244 | BN48: 438.1763104 | BO48: 28 | BP48: 19 | BQ48: autres
A49: non | B49: 3 | C49: biologique | D49: eleveur engraisseur | E49: 2019 | F49: 68261 | G49: 1 | H49: 1 | I49: 51.68 | J49: 44.7 | K49: 44.7 | L49: 0.8649380805 | M49: 51.68 | N49: 981.4 | O49: 981.4 | P49: 0 | Q49: 355.3 | R49: 355.3 | S49: 98.2 | T49: 0 | U49: 98.2 | V49: 222.7 | W49: 34.4 | X49: 0 | Y49: 522.8641447 | Z49: 107.7099458 | AA49: 398.7374226 | AB49: 287.4895317 | AC49: 112.2599553 | AD49: 1028.68613 | AE49: 626.1 | AF49: 35540 | AG49: 26759.7 | AH49: 30160 | AI49: 54510 | AJ49: -18970 | AK49: 425 | AL49: 35 | AM49: 5 | AN49: 94.915 | AO49: 103.704 | AP49: 4.195804196 | AQ49: 29.5 | AR49: 71.5 | AS49: 10 | AT49: 5 | AU49: 6 | AV49: 11 | AW49: 1987.571429 | AY49: 1575.6 | BA49: 2346 | BF49: 1995.818182 | BG49: 3878 | BH49: 352.5454545 | BI49: 5.661165549 | BJ49: 90.3 | BK49: 49222.53 | BL49: 124.5290828 | BM49: 604.5104922 | BN49: 332.3816331 | BO49: 24 | BP49: 20 | BQ49: BBB
A50: non | B50: 3 | C50: biologique | D50: eleveur engraisseur | E50: 2020 | F50: 68261 | G50: 1 | H50: 1 | I50: 51.72 | J50: 49.77 | K50: 49.77 | L50: 0.9622969838 | M50: 51.72 | N50: 920 | O50: 920 | P50: 0 | Q50: 388.7 | R50: 385.5 | S50: 132.1 | T50: 0 | U50: 132.1 | V50: 213.7 | W50: 39.7 | X50: 3.2 | Y50: 516.3849381 | Z50: 169.4760247 | AA50: 449.1865816 | AB50: 296.9619103 | AC50: 103.538477 | AD50: 849.1416516 | AE50: 531.3 | AF50: 33647 | AG50: 24636.4 | AH50: 28779 | AI50: 55320 | AJ50: -21673 | AK50: 453 | AL50: 37 | AM50: 6 | AN50: 100.977 | AO50: 93.939 | AP50: 4.956629492 | AQ50: 30.7 | AR50: 80.7 | AS50: 11.4 | AT50: 11 | AU50: 1 | AV50: 11 | AW50: 2009.2 | AY50: 1484.363636 | BD50: 1745.333333 | BF50: 1475.818182 | BG50: 2645 | BH50: 240.4545455 | BI50: 6.137618147 | BJ50: 82.7 | BK50: 45749.64 | BL50: 176.1161342 | BM50: 536.6170183 | BN50: 308.596946 | BO50: 20 | BP50: 23 | BQ50: autres
A51: non | B51: 3 | C51: biologique | D51: eleveur engraisseur | E51: 2021 | F51: 68261 | G51: 1 | H51: 1 | I51: 56.12 | J51: 47.51 | K51: 47.51 | L51: 0.8465787598 | M51: 56.12 | N51: 874.3 | O51: 874.3 | P51: 0 | Q51: 480.8 | R51: 480.8 | S51: 277.8 | T51: 0 | U51: 277.8 | V51: 170.1 | W51: 32.9 | X51: 0 | Y51: 550.6874555 | Z51: 158.3465788 | AA51: 472.5033856 | AB51: 247.6789024 | AC51: 119.2942538 | AD51: 969.6876447 | AE51: 393.5 | AF51: 31305 | AG51: 22278.8 | AH51: 24706 | AI51: 56423.98 | AJ51: -25118.98 | AK51: 389 | AL51: 36 | AM51: 7 | AN51: 84.81 | AO51: 100 | AP51: 5.174644243 | AQ51: 28.3 | AR51: 77.3 | AS51: 12.8 | AT51: 11 | AU51: 1 | AV51: 12 | AW51: 1845.444444 | AY51: 1725.090909 | BF51: 1771 | BG51: 3449 | BH51: 287.4166667 | BI51: 6.161786025 | BJ51: 79.6 | BK51: 44913.48808 | BL51: 187.0429383 | BM51: 650.4857925 | BN51: 292.5645127 | BO51: 39 | BP51: 25 | BQ51: autres
A52: non | B52: 2 | C52: biologique | D52: eleveur engraisseur | E52: 2022 | F52: 68261 | G52: 1 | H52: 1 | I52: 58.73 | J52: 54.87 | K52: 54.87 | L52: 0.934275498 | M52: 58.73 | N52: 1099.1 | O52: 1083.8 | P52: 15.3 | Q52: 296.6 | R52: 296.6 | S52: 139.1 | T52: 0 | U52: 139.1 | V52: 111 | W52: 46.5 | X52: 0 | Y52: 635.2460412 | Z52: 175.1990465 | AA52: 587.2656223 | AB52: 306.6793802 | AC52: 108.5565883 | AD52: 925.9471478 | AE52: 802.5 | AF52: 42643 | AG52: 32291.2 | AH52: 35552 | AI52: 21590.31 | AJ52: 21052.69 | AK52: 453 | AL52: 36 | AM52: 6 | AN52: 101.31 | AO52: 100 | AP52: 4.608294931 | AQ52: 30.6 | AR52: 86.8 | AS52: 13.8 | AT52: 5 | AU52: 9 | AV52: 14 | AW52: 1518.5 | AY52: 1748.4 | BA52: 2341.444444 | BF52: 2063.214286 | BG52: 6160 | BH52: 440 | BI52: 4.689123377 | BJ52: 91 | BK52: 19647.1821 | BL52: 187.5239657 | BM52: 679.9343904 | BN52: 328.2536905 | BO52: 20 | BP52: 49 | BQ52: autres
A53: non | B53: 3 | C53: biologique | D53: intermediaire | E53: 2023 | F53: 68261 | G53: 1 | H53: 1 | I53: 70.01 | J53: 65.25 | K53: 65.25 | L53: 0.9320097129 | M53: 70.01 | N53: 1087 | O53: 1087 | P53: 0 | Q53: 175.7 | R53: 175.7 | S53: 87 | T53: 0 | U53: 87 | V53: 74.1 | W53: 14.6 | X53: 0 | Y53: 520.8725896 | Z53: 186.8447365 | AA53: 519.5347807 | AB53: 309.5977717 | AC53: 103.6628352 | AD53: 810.7786973 | AE53: 911.2 | AF53: 54337 | AG53: 39139.3 | AH53: 50143 | AI53: 24340.68 | AJ53: 29996.32 | AK53: 448 | AL53: 34 | AM53: 9 | AN53: 100.74 | AO53: 95.35 | AP53: 2.904162633 | AQ53: 40.7 | AR53: 103.3 | AS53: 18 | AT53: 8 | AU53: 4 | AV53: 6 | AY53: 1610 | BC53: 2019.2 | BD53: 2354.6 | BE53: 1547.2 | BF53: 2514.666667 | BG53: 2788 | BH53: 464.6666667 | BI53: 5.411764706 | BJ53: 88.2 | BK53: 21468.47976 | BL53: 200.4750958 | BM53: 558.8703448 | BN53: 332.1829885 | BO53: 7 | BP53: 34 | BQ53: autres
A54: non | B54: 2 | C54: conventionnel | D54: eleveur engraisseur | E54: 2019 | F54: 87036 | G54: 4.22 | H54: 4.22 | I54: 186.27 | J54: 417.56 | K54: 98.9478673 | L54: 2.241692167 | M54: 44.13981043 | N54: 1420.2 | O54: 1395.1 | P54: 25.1 | Q54: 883.5 | R54: 808.7 | S54: 611.6 | T54: 53.5 | U54: 558.1 | V54: 142.5 | W54: 54.6 | X54: 74.8 | Y54: 794.965856 | Z54: 85.24667955 | AA54: 859.6744994 | AB54: 611.3107317 | AC54: 114.3598525 | AD54: 132.9690195 | AE54: 536.6 | AF54: 25217 | AG54: 10290.1 | AH54: 52154 | AI54: 57248.41706 | AJ54: -32031.41706 | AK54: 411 | AL54: 33 | AM54: 5 | AN54: 108.906 | AO54: 100.495 | AP54: 1.294591484 | AQ54: 186.4 | AR54: 695.2 | AS54: 104.8 | AT54: 7 | AU54: 137 | AV54: 158 | AW54: 2482.396825 | AY54: 744 | BA54: 2675.919708 | BB54: 1257.777778 | BC54: 2879.16 | BD54: 2005.3 | BF54: 2719.867089 | BG54: 118803 | BH54: 751.9177215 | BI54: 3.617240305 | BJ54: 74.9 | BK54: 42879.06438 | BL54: 38.02782594 | BM54: 354.6275745 | BN54: 272.70057 | BO54: 35 | BP54: 47 | BQ54: BBB
A55: non | B55: 2 | C55: conventionnel | D55: eleveur engraisseur | E55: 2021 | F55: 87036 | G55: 4.22 | H55: 4.22 | I55: 187.44 | J55: 424.64 | K55: 100.6255924 | L55: 2.265471618 | M55: 44.41706161 | N55: 1443.5 | O55: 1441.3 | P55: 2.2 | Q55: 933.3 | R55: 878.2 | S55: 659.3 | T55: 117.1 | U55: 542.2 | V55: 152.9 | W55: 66 | X55: 55.1 | Y55: 661.2883056 | Z55: 139.058472 | AA55: 774.7402902 | AB55: 563.1443662 | AC55: 102.984269 | AD55: 129.584932 | AE55: 510.2 | AF55: 29959 | AG55: 15397.5 | AH55: 59060 | AI55: 59258.54976 | AJ55: -29299.54976 | AK55: 419 | AL55: 33 | AM55: 5 | AN55: 96.48 | AO55: 101.05 | AP55: 3.810868031 | AQ55: 199 | AR55: 708.5 | AS55: 119.8 | AT55: 7 | AU55: 146 | AV55: 160 | AW55: 2797.222222 | AY55: 1037 | BA55: 2766.678082 | BC55: 2897 | BD55: 2414.888889 | BF55: 2803.775 | BG55: 119982 | BH55: 749.8875 | BI55: 3.738927506 | BJ55: 74.4 | BK55: 44088.36102 | BL55: 61.38168802 | BM55: 291.8987378 | BN55: 248.5771006 | BO55: 52 | BP55: 42 | BQ55: BBB
A56: non | B56: 2 | C56: conventionnel | D56: eleveur engraisseur | E56: 2022 | F56: 87036 | G56: 3.64 | H56: 3 | I56: 189.17 | J56: 413.58 | K56: 113.6208791 | L56: 2.186287466 | M56: 51.96978022 | N56: 1631 | O56: 1627.2 | P56: 3.8 | Q56: 1089.4 | R56: 1021 | S56: 814.5 | T56: 125 | U56: 689.5 | V56: 156.8 | W56: 49.7 | X56: 68.4 | Y56: 769.6289052 | Z56: 102.0183962 | AA56: 846.35217 | AB56: 603.9745203 | AC56: 109.1082741 | AD56: 134.5346343 | AE56: 541.7 | AF56: 37791 | AG56: 14726 | AH56: 78384 | AI56: 64770.92 | AJ56: -26979.92 | AK56: 416 | AL56: 32 | AM56: 5 | AN56: 93.06 | AO56: 101.09 | AP56: 1.892285298 | AQ56: 198.8 | AR56: 687 | AS56: 106.1 | AT56: 4 | AU56: 165 | AV56: 158 | AW56: 3474.423077 | BA56: 2869.842424 | BC56: 3412.333333 | BE56: 1707.533333 | BF56: 2928.835443 | BG56: 99864 | BH56: 632.0506329 | BI56: 4.633862052 | BJ56: 73 | BK56: 47282.7716 | BL56: 46.66284637 | BM56: 352.0254848 | BN56: 276.2557667 | BO56: 39 | BP56: 42 | BQ56: BBB
A57: non | B57: 1 | C57: conventionnel | D57: eleveur engraisseur | E57: 2023 | F57: 87036 | G57: 3.85 | H57: 3 | I57: 189.87 | J57: 402.45 | K57: 104.5324675 | L57: 2.119608153 | M57: 49.31688312 | N57: 1641.3 | O57: 1631.8 | P57: 9.5 | Q57: 1277.3 | R57: 1153.2 | S57: 932.5 | T57: 151.5 | U57: 781 | V57: 156.2 | W57: 64.5 | X57: 124.1 | Y57: 724.3113709 | Z57: 118.830779 | AA57: 818.6553958 | AB57: 616.3543477 | AC57: 85.08572493 | AD57: 118.2932005 | AE57: 364 | AF57: -645 | AG57: -15872.7 | AH57: 22839 | AI57: 73022.04 | AJ57: -73667.04 | AK57: 430 | AL57: 34 | AM57: 5 | AN57: 96.99 | AO57: 100.54 | AP57: 1.653389448 | AQ57: 192.8 | AR57: 665.3 | AS57: 100.9 | AT57: 5 | AU57: 128 | AV57: 140 | AW57: 3484.3125 | AY57: 1287.4 | BA57: 3157.390625 | BC57: 3240.4 | BD57: 2904.125 | BE57: 2640.5 | BF57: 3165.464286 | BG57: 90490 | BH57: 646.3571429 | BI57: 4.897391977 | BJ57: 77.5 | BK57: 56592.081 | BL57: 56.06261647 | BM57: 341.7194683 | BN57: 290.7869301 | BO57: 43 | BP57: 40 | BQ57: BBB
A58: non | B58: 1 | C58: conventionnel | D58: eleveur naisseur | E58: 2019 | F58: 87042 | G58: 2 | H58: 2 | I58: 87.6 | J58: 167.55 | K58: 83.775 | L58: 1.912671233 | M58: 43.8 | N58: 512.4 | O58: 512.4 | P58: 0 | Q58: 367.3 | R58: 333.3 | S58: 249.5 | T58: 0 | U58: 249.5 | V58: 70.1 | W58: 13.7 | X58: 34 | Y58: 365.8768151 | Z58: 39.05251142 | AA58: 157.0172374 | AB58: 411.2203196 | AC58: 115.9330349 | AD58: 140.6480454 | AE58: 145.2 | AF58: -4870 | AG58: -26880.5 | AH58: -5984 | AI58: 49059 | AJ58: -53929 | AK58: 485 | AL58: 42 | AM58: 6 | AN58: 82.716 | AO58: 94.366 | AP58: 3.265306122 | AQ58: 81 | AR58: 245 | AS58: 27 | AT58: 31 | AU58: 4 | AV58: 0 | AW58: 1417.5 | AY58: 1165.709677 | BD58: 1193.8 | BE58: 1206 | BG58: 0 | BH58: . | BJ58: 97.5 | BK58: 47832.525 | BL58: 20.41778574 | BM58: 191.2910116 | BN58: 214.9979111 | BO58: 47 | BP58: 30 | BQ58: BBB
A59: non | B59: 1 | C59: conventionnel | D59: eleveur naisseur | E59: 2019 | F59: 87055 | G59: 1.52 | H59: 1.52 | I59: 88.78 | J59: 127.85 | K59: 84.11184211 | L59: 1.440076594 | M59: 58.40789474 | N59: 778.7 | O59: 772.7 | P59: 6 | Q59: 708 | R59: 605.9 | S59: 329.3 | T59: 38.8 | U59: 290.5 | V59: 235.9 | W59: 40.7 | X59: 102.1 | Y59: 232.5533904 | Z59: 135.9393895 | AA59: 271.0894233 | AB59: 188.5844672 | AC59: 130.4088385 | AD59: 136.9835691 | AE59: 70.7 | AF59: -4600 | AG59: -17730.7 | AH59: -3371 | AI59: 49181.64474 | AJ59: -53781.64474 | AK59: 411 | AL59: 37 | AM59: 6 | AN59: 143.511 | AO59: 97.917 | AP59: 6.698564593 | AQ59: 65.5 | AR59: 209 | AS59: 28 | AT59: 33 | AU59: 4 | AV59: 0 | AW59: 1733.268293 | AY59: 1028.454545 | BD59: 1695.4 | BE59: 1089.6 | BG59: 0 | BH59: . | BJ59: 91 | BK59: 44755.29671 | BL59: 94.39733281 | BM59: 161.4868205 | BN59: 130.9544701 | BO59: 64 | BP59: 84 | BQ59: BBB
A60: non | B60: 2 | C60: conventionnel | D60: eleveur naisseur | E60: 2020 | F60: 87055 | G60: 1.45 | H60: 1.45 | I60: 87.54 | J60: 128.42 | K60: 88.56551724 | L60: 1.46698652 | M60: 60.37241379 | N60: 876.9 | O60: 863.2 | P60: 13.7 | Q60: 694.9 | R60: 595.1 | S60: 349 | T60: 44.6 | U60: 304.4 | V60: 177.5 | W60: 68.6 | X60: 99.8 | Y60: 239.1879027 | Z60: 131.8787983 | AA60: 270.1879027 | AB60: 144.5364291 | AC60: 133.325183 | AD60: 132.5845046 | AE60: 182 | AF60: 12121 | AG60: -76.6 | AH60: 18975 | AI60: 50434.48276 | AJ60: -38313.48276 | AK60: 410 | AL60: 36 | AM60: 5 | AN60: 103.495 | AO60: 100 | AP60: 4.279600571 | AQ60: 74.4 | AR60: 210.3 | AS60: 28.1 | AT60: 40 | AU60: 5 | AV60: 0 | AW60: 1915.652174 | AY60: 1117.325 | BA60: 1587 | BD60: 2221.230769 | BE60: 1200.97619 | BG60: 0 | BH60: . | BJ60: 81.3 | BK60: 41003.23448 | BL60: 89.89775736 | BM60: 163.0471033 | BN60: 98.52607849 | BO60: 31 | BP60: 32 | BQ60: BBB
A61: non | B61: 2 | C61: conventionnel | D61: eleveur naisseur | E61: 2021 | F61: 87055 | G61: 1.37 | H61: 1.37 | I61: 89.82 | J61: 131.61 | K61: 96.06569343 | L61: 1.465263861 | M61: 65.5620438 | N61: 1054.5 | O61: 1001.1 | P61: 53.4 | Q61: 719.9 | R61: 631.4 | S61: 356.6 | T61: 33.4 | U61: 323.2 | V61: 208.8 | W61: 66 | X61: 88.5 | Y61: 249.0202627 | Z61: 110.0527722 | AA61: 265.8701848 | AB61: 139.665108 | AC61: 134.4122787 | AD61: 131.9751621 | AE61: 334.6 | AF61: 24380 | AG61: 11427 | AH61: 27912 | AI61: 52695.80292 | AJ61: -28315.80292 | AK61: 415 | AL61: 31 | AM61: 6 | AN61: 102.4 | AO61: 97.59 | AP61: 4.633920297 | AQ61: 79.1 | AR61: 215.8 | AS61: 29.9 | AT61: 29 | AU61: 3 | AV61: 0 | AW61: 2338.419355 | AY61: 1207.172414 | BB61: 1569.4 | BE61: 1271.677419 | BG61: 0 | BH61: . | BJ61: 91.4 | BK61: 48163.96387 | BL61: 75.10781855 | BM61: 169.949092 | BN61: 95.3173771 | BO61: 42 | BP61: 40 | BQ61: BBB
A62: non | B62: 2 | C62: conventionnel | D62: eleveur naisseur | E62: 2022 | F62: 87055 | G62: 1.4 | H62: 1.37 | I62: 89.44 | J62: 129.57 | K62: 92.55 | L62: 1.44868068 | M62: 63.88571429 | N62: 1046 | O62: 1046 | P62: 0 | Q62: 721.3 | R62: 589.9 | S62: 378.4 | T62: 29.8 | U62: 348.6 | V62: 170.7 | W62: 40.8 | X62: 131.5 | Y62: 275.1266771 | Z62: 119.509839 | AA62: 306.1669275 | AB62: 142.898144 | AC62: 143.4861465 | AD62: 136.6280525 | AE62: 324.6 | AF62: 23969 | AG62: 10803 | AH62: 30516 | AI62: 53767.63504 | AJ62: -29798.63504 | AK62: 420 | AL62: 33 | AM62: 5 | AN62: 108.29 | AO62: 93.1 | AP62: 6.717850288 | AQ62: 74.8 | AR62: 208.4 | AS62: 30.4 | AT62: 31 | AU62: 5 | AV62: 1 | AW62: 2627.291667 | AY62: 1243.419355 | BA62: 1637.2 | BE62: 1298.111111 | BG62: 650 | BH62: 650 | BI62: 3.058461538 | BJ62: 86.6 | BK62: 46562.77194 | BL62: 82.49563942 | BM62: 189.9153353 | BN62: 98.64019449 | BO62: 33 | BP62: 41 | BQ62: BBB
A63: non | B63: 2 | C63: conventionnel | D63: eleveur naisseur | E63: 2023 | F63: 87055 | G63: 1.37 | H63: 1.37 | I63: 91.46 | J63: 134.66 | K63: 98.2919708 | L63: 1.472337634 | M63: 66.75912409 | N63: 1045 | O63: 1045 | P63: 0 | Q63: 779.8 | R63: 682.3 | S63: 429.8 | T63: 46.4 | U63: 383.4 | V63: 208.6 | W63: 43.9 | X63: 97.5 | Y63: 222.6162257 | Z63: 169.1495736 | AA63: 302.4232451 | AB63: 161.1287995 | AC63: 135.6215654 | AD63: 176.9065717 | AE63: 265.2 | AF63: 21202 | AG63: 8586.6 | AH63: 27713 | AI63: 60482.48175 | AJ63: -39280.48175 | AK63: 410 | AL63: 34 | AM63: 6 | AN63: 91.87 | AO63: 100 | AP63: 1.400560224 | AQ63: 84.9 | AR63: 214.2 | AS63: 27.9 | AT63: 43 | AU63: 3 | AV63: 2 | AW63: 2593.28 | AY63: 1278.790698 | BC63: 3505 | BE63: 1312.733333 | BG63: 1400 | BH63: 700 | BI63: 4.885714286 | BJ63: 87.8 | BK63: 53103.61898 | BL63: 114.8850438 | BM63: 151.1991683 | BN63: 109.4373979 | BO63: 29 | BP63: 35 | BQ63: BBB
A64: non | B64: 2 | C64: conventionnel | D64: eleveur naisseur | E64: 2019 | F64: 87071 | G64: 1.5 | H64: 1.5 | I64: 110.19 | J64: 78.95 | K64: 52.63333333 | L64: 0.7164896996 | M64: 73.46 | N64: 703.6 | O64: 452.3 | P64: 251.3 | Q64: 297.2 | R64: 286 | S64: 166.4 | T64: 57.8 | U64: 108.6 | V64: 101.9 | W64: 17.7 | X64: 11.2 | Y64: 323.1840457 | Z64: 26.01597241 | AA64: 192.1194392 | AB64: 162.7865505 | AC64: 133.269791 | AD64: 211.7227834 | AE64: 406.4 | AF64: 6603 | AG64: -1611.3 | AH64: 5655 | AI64: 53298.66667 | AJ64: -46695.66667 | AK64: 406 | AL64: 43 | AM64: 6 | AN64: 65.421 | AO64: 94.595 | AP64: 3.493449782 | AQ64: 53.5 | AR64: 114.5 | AS64: 2 | AT64: 8 | AU64: 0 | AV64: 0 | AW64: 1412 | AY64: 716.375 | AZ64: 795 | BG64: 0 | BH64: . | BJ64: 87.4 | BK64: 46583.03467 | BL64: 36.31032299 | BM64: 451.0658645 | BN64: 227.2001267 | BO64: 28 | BP64: 7 | BQ64: BBB
A65: non | B65: 2 | C65: conventionnel | D65: eleveur naisseur | E65: 2020 | F65: 87071 | G65: 1.5 | H65: 1.5 | I65: 110.17 | J65: 75.66 | K65: 50.44 | L65: 0.6867568304 | M65: 73.44666667 | N65: 717.4 | O65: 545.5 | P65: 171.9 | Q65: 366.6 | R65: 343 | S65: 238.1 | T65: 75.6 | U65: 162.5 | V65: 90 | W65: 14.9 | X65: 23.5 | Y65: 262.2040483 | Z65: 20.85240991 | AA65: 125.2926386 | AB65: 166.2874558 | AC65: 147.2027491 | AD65: 244.8440138 | AE65: 350.8 | AF65: 12039 | AG65: 4623.7 | AH65: 12621 | AI65: 54090.66667 | AJ65: -42051.66667 | AK65: 453 | AL65: 43 | AM65: 6 | AN65: 96.774 | AO65: 100 | AP65: 0.9328358209 | AQ65: 46.5 | AR65: 107.2 | AS65: 3.4 | AT65: 27 | AU65: 0 | AV65: 0 | AW65: 1463 | AX65: 684.7142857 | AY65: 715.962963 | AZ65: 908.3333333 | BB65: 924 | BE65: 825.3333333 | BG65: 0 | BH65: . | BJ65: 76.6 | BK65: 41433.45067 | BL65: 30.36360032 | BM65: 381.8004229 | BN65: 242.1344039 | BO65: 30 | BP65: 30 | BQ65: BBB
A66: non | B66: 1 | C66: conventionnel | D66: eleveur naisseur | E66: 2021 | F66: 87071 | G66: 1.17 | H66: 1.17 | I66: 96.2 | J66: 72.04 | K66: 61.57264957 | L66: 0.7488565489 | M66: 82.22222222 | N66: 679.2 | O66: 591.7 | P66: 87.5 | Q66: 318.5 | R66: 297.8 | S66: 170.4 | T66: 11.9 | U66: 158.5 | V66: 114.5 | W66: 12.9 | X66: 20.7 | Y66: 320.2106029 | Z66: 7.25987526 | AA66: 124.0805613 | AB66: 174.0727651 | AC66: 128.7391727 | AD66: 268.526513 | AE66: 360.7 | AF66: 7685 | AG66: -2748.1 | AH66: 6735 | AI66: 61085.78632 | AJ66: -53400.78632 | AK66: 499 | AL66: 38 | AM66: 7 | AN66: 98.29 | AO66: 95.83 | AP66: 3.045685279 | AQ66: 46.8 | AR66: 98.5 | AS66: 2.3 | AT66: 22 | AU66: 0 | AV66: 0 | AW66: 1603.428571 | AX66: 716.047619 | AY66: 727.5 | BG66: 0 | BH66: . | BJ66: 86.6 | BK66: 52900.29096 | BL66: 9.694614103 | BM66: 427.5993892 | BN66: 232.4514159 | BO66: 32 | BP66: 41 | BQ66: BBB
A67: non | B67: 1 | C67: conventionnel | D67: eleveur naisseur | E67: 2022 | F67: 87071 | G67: 1.3 | H67: 1.3 | I67: 82.85 | J67: 69.34 | K67: 53.33846154 | L67: 0.8369342185 | M67: 63.73076923 | N67: 867.1 | O67: 735 | P67: 132.1 | Q67: 399.8 | R67: 380.1 | S67: 281.6 | T67: 0 | U67: 281.6 | V67: 88.3 | W67: 10.2 | X67: 19.8 | Y67: 396.6968014 | Z67: 45.36813518 | AA67: 205.4238986 | AB67: 183.1213036 | AC67: 132.7588693 | AD67: 283.5334583 | AE67: 467.3 | AF67: 5404 | AG67: -4910.3 | AH67: 3690 | AI67: 59739.87692 | AJ67: -54335.87692 | AK67: 501 | AL67: 37 | AM67: 7 | AN67: 71.86 | AO67: 100 | AP67: 0.9345794393 | AQ67: 50.1 | AR67: 107 | AS67: 5.9 | AT67: 13 | AU67: 0 | AV67: 0 | AW67: 1966.952381 | AX67: 702.1 | AY67: 818.0769231 | BG67: 0 | BH67: . | BJ67: 97 | BK67: 57947.68062 | BL67: 54.20752812 | BM67: 473.98803 | BN67: 218.8001154 | BO67: 42 | BP67: 18 | BQ67: BBB
A68: non | B68: 2 | C68: conventionnel | D68: eleveur naisseur | E68: 2023 | F68: 87071 | G68: 1.3 | H68: 1.3 | I68: 82.22 | J68: 71.74 | K68: 55.18461538 | L68: 0.8725370956 | M68: 63.24615385 | N68: 1129.5 | O68: 768.4 | P68: 361.1 | Q68: 342.1 | R68: 342.1 | S68: 228.9 | T68: 0 | U68: 228.9 | V68: 101 | W68: 12.2 | X68: 0 | Y68: 343.7954269 | Z68: 9.243493067 | AA68: 144.8888348 | AB68: 188.681586 | AC68: 143.7844996 | AD68: 370.8359353 | AE68: 787.3 | AF68: 39738 | AG68: 30195 | AH68: 42153 | AI68: 67350.09231 | AJ68: -27612.09231 | AK68: 459 | AL68: 36 | AM68: 7 | AN68: 93.37 | AO68: 102.7 | AP68: 0 | AQ68: 40.7 | AR68: 109.9 | AS68: 2.9 | AT68: 16 | AU68: 3 | AV68: 0 | AW68: 2090.076923 | AX68: 670.5714286 | AY68: 694.375 | BG68: 0 | BH68: . | BJ68: 87.5 | BK68: 58931.33077 | BL68: 10.59381098 | BM68: 394.018121 | BN68: 216.2447728 | BO68: 32 | BP68: 25 | BQ68: BBB
A69: non | B69: 3 | C69: conventionnel | D69: eleveur naisseur | E69: 2019 | F69: 87072 | G69: 1.11 | H69: 1.11 | I69: 111.98 | J69: 153.95 | K69: 138.6936937 | L69: 1.374799071 | M69: 100.8828829 | N69: 822.9 | O69: 822.9 | P69: 0 | Q69: 478.5 | R69: 435.8 | S69: 277.9 | T69: 0 | U69: 277.9 | V69: 115.5 | W69: 42.4 | X69: 42.7 | Y69: 99.08375603 | Z69: 144.8129041 | AA69: 223.7633327 | AB69: 208.6271656 | AC69: 149.306658 | AD69: 187.9373173 | AE69: 344.4 | AF69: 47086 | AG69: 26678.5 | AH69: 48624 | AI69: 67994.59459 | AJ69: -20908.59459 | AK69: 408 | AL69: 37 | AM69: 5 | AN69: 121.637 | AO69: 95.413 | AP69: 9.580838323 | AQ69: 85 | AR69: 250.5 | AS69: 33.5 | AT69: 41 | AU69: 5 | AV69: 0 | AW69: 1726.071429 | AY69: 1179.487805 | BA69: 1481 | BE69: 1212.26087 | BG69: 0 | BH69: . | BJ69: 94.1 | BK69: 63982.91351 | BL69: 105.3338681 | BM69: 72.07144527 | BN69: 151.7510231 | BO69: 51 | BP69: 54 | BQ69: BBB
A70: non | B70: 3 | C70: conventionnel | D70: eleveur naisseur | E70: 2020 | F70: 87072 | G70: 1.1 | H70: 1.1 | I70: 111.88 | J70: 153.25 | K70: 139.3181818 | L70: 1.369771183 | M70: 101.7090909 | N70: 741.1 | O70: 741.1 | P70: 0 | Q70: 540.7 | R70: 478.9 | S70: 308 | T70: 0 | U70: 308 | V70: 115.1 | W70: 55.8 | X70: 61.7 | Y70: 100.2266714 | Z70: 97.84947265 | AA70: 178.384689 | AB70: 208.3956024 | AC70: 159.4499837 | AD70: 183.3637847 | AE70: 200.4 | AF70: 37397 | AG70: 18184.8 | AH70: 41774 | AI70: 69519.27182 | AJ70: -32122.27182 | AK70: 427 | AL70: 36 | AM70: 5 | AN70: 98.914 | AO70: 95.349 | AP70: 9.224318658 | AQ70: 82.6 | AR70: 238.5 | AS70: 26.1 | AT70: 37 | AU70: 5 | AV70: 0 | AW70: 1928.735294 | AY70: 1216.351351 | BA70: 2053 | BE70: 1315.952381 | BG70: 0 | BH70: . | BJ70: 88.4 | BK70: 61455.03629 | BL70: 71.43490375 | BM70: 73.1703752 | BN70: 152.1389886 | BO70: 42 | BP70: 34 | BQ70: BBB
A71: non | B71: 3 | C71: conventionnel | D71: eleveur naisseur | E71: 2021 | F71: 87072 | G71: 1.1 | H71: 1.1 | I71: 111.92 | J71: 154.74 | K71: 140.6727273 | L71: 1.382594711 | M71: 101.7454545 | N71: 888.3 | O71: 888.3 | P71: 0 | Q71: 569.2 | R71: 503.5 | S71: 322.4 | T71: 0 | U71: 322.4 | V71: 133.4 | W71: 47.7 | X71: 65.8 | Y71: 117.6298249 | Z71: 135.3213903 | AA71: 230.2177448 | AB71: 208.6527877 | AC71: 162.046982 | AD71: 178.3918185 | AE71: 319.1 | AF71: 50218 | AG71: 31237.9 | AH71: 54808 | AI71: 65567.41818 | AJ71: -15349.41818 | AK71: 435 | AL71: 36 | AM71: 5 | AN71: 91.73 | AO71: 95.79 | AP71: 10.71281417 | AQ71: 99.2 | AR71: 242.7 | AS71: 23.7 | AT71: 26 | AU71: 1 | AV71: 0 | AW71: 2405.258065 | AY71: 1408.076923 | BD71: 1531.2 | BE71: 1426.269231 | BG71: 0 | BH71: . | BJ71: 90.2 | BK71: 59141.8112 | BL71: 97.87495153 | BM71: 85.0790358 | BN71: 150.9139201 | BO71: 32 | BP71: 54 | BQ71: BBB
A72: non | B72: 2 | C72: conventionnel | D72: intermediaire | E72: 2022 | F72: 87072 | G72: 1.28 | H72: 1.28 | I72: 108.81 | J72: 155.59 | K72: 121.5546875 | L72: 1.42992372 | M72: 85.0078125 | N72: 957.3 | O72: 957.3 | P72: 0 | Q72: 620.3 | R72: 596.8 | S72: 421.2 | T72: 7.8 | U72: 413.4 | V72: 137.5 | W72: 38.1 | X72: 23.4 | Y72: 166.9351163 | Z72: 178.427718 | AA72: 260.8945869 | AB72: 213.2056796 | AC72: 165.8943377 | AD72: 174.2470446 | AE72: 337.1 | AF72: 38111 | AG72: 20194 | AH72: 44615 | AI72: 63330.08594 | AJ72: -25219.08594 | AK72: 434 | AL72: 36 | AM72: 5 | AN72: 84.33 | AO72: 97.7 | AP72: 8.19000819 | AQ72: 100.8 | AR72: 244.2 | AS72: 22.2 | AT72: 19 | AU72: 3 | AV72: 0 | AW72: 2755.794118 | AY72: 1383.789474 | BB72: 1498.5 | BE72: 1443.727273 | BG72: 0 | BH72: . | BJ72: 86.6 | BK72: 54843.85442 | BL72: 124.7812841 | BM72: 116.744071 | BN72: 149.1028344 | BO72: 36 | BP72: 29 | BQ72: BBB
A73: non | B73: 3 | C73: conventionnel | D73: eleveur naisseur | E73: 2023 | F73: 87072 | G73: 1 | H73: 1 | I73: 112.29 | J73: 143.18 | K73: 143.18 | L73: 1.275091282 | M73: 112.29 | N73: 1089.2 | O73: 1089.2 | P73: 0 | Q73: 633.6 | R73: 575.7 | S73: 380.8 | T73: 0 | U73: 380.8 | V73: 142.1 | W73: 52.8 | X73: 57.8 | Y73: 210.9413127 | Z73: 113.9742631 | AA73: 216.7190311 | AB73: 207.0406982 | AC73: 128.7323649 | AD73: 250.4186339 | AE73: 455.7 | AF73: 59586 | AG73: 35142.4 | AH73: 63795 | AI73: 80244 | AJ73: -20658 | AK73: 467 | AL73: 34 | AM73: 5 | AN73: 87.36 | AO73: 95 | AP73: 6.181015453 | AQ73: 87 | AR73: 226.5 | AS73: 30.5 | AT73: 33 | AU73: 1 | AV73: 1 | AW73: 2926.558824 | AY73: 1403.121212 | BB73: 1367.2 | BE73: 1403.121212 | BG73: 817 | BH73: 817 | BI73: 4.308445532 | BJ73: 91.8 | BK73: 73663.992 | BL73: 89.38517949 | BM73: 165.432323 | BN73: 162.3732365 | BO73: 41 | BP73: 25 | BQ73: BBB
A74: non | B74: 2 | C74: conventionnel | D74: intermediaire | E74: 2019 | F74: 87083 | G74: 2.11 | H74: 2.11 | I74: 70.9 | J74: 140.6 | K74: 66.63507109 | L74: 1.983074753 | M74: 33.60189573 | N74: 772.2 | O74: 772.2 | P74: 0 | Q74: 291.3 | R74: 217.9 | S74: 89.2 | T74: 7.2 | U74: 82 | V74: 105.7 | W74: 23 | X74: 73.4 | Y74: 268.7122567 | Z74: 118.3145275 | AA74: 257.9475176 | AB74: 166.9475317 | AC74: 124.3394737 | AD74: 104.1304327 | AE74: 480.8 | AF74: 29651 | AG74: 18065 | AH74: 30340 | AI74: 32723.22275 | AJ74: -3072.222749 | AK74: 499 | AL74: 34 | AM74: 6 | AN74: 100 | AO74: 100 | AP74: 4 | AQ74: 85 | AR74: 225 | AS74: 25 | AT74: 17 | AU74: 15 | AV74: 0 | AW74: 1703.378378 | AX74: 707.8 | AY74: 928.9411765 | AZ74: 673.3333333 | BA74: 1273 | BD74: 1583.333333 | BE74: 1289.47619 | BG74: 0 | BH74: . | BJ74: 94.4 | BK74: 30890.72227 | BL74: 59.66216216 | BM74: 135.5028378 | BN74: 84.18620199 | BO74: 45 | BP74: 40 | BQ74: BBB
A75: non | B75: 2 | C75: conventionnel | D75: eleveur engraisseur | E75: 2020 | F75: 87083 | G75: 2.11 | H75: 2.11 | I75: 70.9 | J75: 135.88 | K75: 64.39810427 | L75: 1.916502116 | M75: 33.60189573 | N75: 634.9 | O75: 634.9 | P75: 0 | Q75: 268.7 | R75: 189.4 | S75: 83.5 | T75: 6.9 | U75: 76.6 | V75: 76.7 | W75: 29.2 | X75: 79.3 | Y75: 333.5685331 | Z75: 145.0500564 | AA75: 320.3964457 | AB75: 130.9057687 | AC75: 132.1222402 | AD75: 122.2911428 | AE75: 366.2 | AF75: 24267 | AG75: 13247.4 | AH75: 26870 | AI75: 33209.47867 | AJ75: -8942.478673 | AK75: 515 | AL75: 37 | AM75: 6 | AN75: 81.579 | AO75: 93.939 | AP75: 5.418719212 | AQ75: 76 | AR75: 203 | AS75: 19.2 | AT75: 13 | AU75: 20 | AV75: 0 | AW75: 1765.225806 | AX75: 749 | AY75: 1003.307692 | BA75: 1353.45 | BB75: 1469 | BE75: 1367.541667 | BG75: 0 | BH75: . | BJ75: 81.6 | BK75: 27098.9346 | BL75: 75.68478805 | BM75: 174.0506991 | BN75: 68.30452605 | BO75: 41 | BP75: 37 | BQ75: BBB
A76: non | B76: 2 | C76: conventionnel | D76: intermediaire | E76: 2021 | F76: 87083 | G76: 2.11 | H76: 2.11 | I76: 70.5 | J76: 130.5 | K76: 61.84834123 | L76: 1.85106383 | M76: 33.41232227 | N76: 899.8 | O76: 899.8 | P76: 0 | Q76: 313.1 | R76: 224.8 | S76: 131.4 | T76: 7.7 | U76: 123.7 | V76: 72.1 | W76: 21.3 | X76: 88.3 | Y76: 441.1242553 | Z76: 164.3489362 | AA76: 327.3313475 | AB76: 151.867234 | AC76: 142.1359387 | AD76: 126.5565051 | AE76: 586.7 | AF76: 31267 | AG76: 19459.9 | AH76: 35504 | AI76: 33872.21327 | AJ76: -2605.21327 | AK76: 560 | AL76: 36 | AM76: 5 | AN76: 77.11 | AO76: 94.2 | AP76: 6.19047619 | AQ76: 84.3 | AR76: 210 | AS76: 33.9 | AT76: 16 | AU76: 12 | AV76: 0 | AW76: 2304.410256 | AX76: 701.6666667 | AY76: 1276.1875 | BA76: 1447.916667 | BE76: 1473.434783 | BG76: 0 | BH76: . | BJ76: 85 | BK76: 28791.38128 | BL76: 88.7862069 | BM76: 238.3085057 | BN76: 82.04321839 | BO76: 51 | BP76: 40 | BQ76: BBB
A77: non | B77: 2 | C77: conventionnel | D77: intermediaire | E77: 2022 | F77: 87083 | G77: 1.97 | H77: 1.97 | I77: 70.49 | J77: 132.41 | K77: 67.21319797 | L77: 1.878422471 | M77: 35.78172589 | N77: 838.6 | O77: 838.6 | P77: 0 | Q77: 330 | R77: 251.6 | S77: 108.1 | T77: 8.5 | U77: 99.6 | V77: 111 | W77: 32.5 | X77: 78.4 | Y77: 470.8093347 | Z77: 143.8814016 | AA77: 330.9555965 | AB77: 135.6673287 | AC77: 147.2245299 | AD77: 127.4254178 | AE77: 508.6 | AF77: 27590 | AG77: 13623.1 | AH77: 27700 | AI77: 36737.98985 | AJ77: -9147.989848 | AK77: 515 | AL77: 38 | AM77: 6 | AN77: 93.96 | AO77: 93.33 | AP77: 4.531722054 | AQ77: 74.5 | AR77: 198.6 | AS77: 19.2 | AT77: 12 | AU77: 16 | AV77: 0 | AW77: 2686.153846 | AY77: 1521.583333 | BA77: 1690.75 | BE77: 1650.259259 | BG77: 0 | BH77: . | BJ77: 92.9 | BK77: 34129.59257 | BL77: 76.59693377 | BM77: 250.6408126 | BN77: 72.22407673 | BO77: 17 | BP77: 36 | BQ77: BBB
A78: non | B78: 2 | C78: conventionnel | D78: eleveur naisseur | E78: 2023 | F78: 87083 | G78: 1.97 | H78: 1.97 | I78: 70.89 | J78: 132.35 | K78: 67.18274112 | L78: 1.866977007 | M78: 35.98477157 | N78: 1014.6 | O78: 1010.9 | P78: 3.7 | Q78: 315.6 | R78: 231.8 | S78: 96.4 | T78: 6.5 | U78: 89.9 | V78: 98.3 | W78: 37.1 | X78: 83.7 | Y78: 516.4135985 | Z78: 178.554239 | AA78: 434.3972352 | AB78: 102.1337283 | AC78: 135.4333207 | AD78: 161.8635525 | AE78: 699.1 | AF78: 40094 | AG78: 26336.3 | AH78: 41407 | AI78: 41343.14721 | AJ78: -1249.147208 | AK78: 548 | AL78: 37 | AM78: 6 | AN78: 88.13 | AO78: 94.74 | AP78: 3.409644423 | AQ78: 81.7 | AR78: 205.3 | AS78: 26.1 | AT78: 23 | AU78: 8 | AV78: 0 | AW78: 2492.939394 | AX78: 814.2857143 | AY78: 1401 | AZ78: 800 | BA78: 1635.75 | BE78: 1612.36 | BG78: 0 | BH78: . | BJ78: 92.9 | BK78: 38407.78376 | BL78: 95.6381564 | BM78: 276.6041556 | BN78: 54.70540234 | BO78: 42 | BP78: 38 | BQ78: BBB
A79: non | B79: 2 | C79: conventionnel | D79: eleveur naisseur | E79: 2019 | F79: 87087 | G79: 1.05 | H79: 1.05 | I79: 61.94 | J79: 88.65 | K79: 84.42857143 | L79: 1.431223765 | M79: 58.99047619 | N79: 452.7 | O79: 452.7 | P79: 0 | Q79: 207.4 | R79: 186.8 | S79: 99.6 | T79: 0 | U79: 99.6 | V79: 55 | W79: 32.2 | X79: 20.6 | Y79: 54.8827898 | Z79: 194.7336132 | AA79: 249.616403 | AB79: 217.2917178 | AC79: 93.12408347 | AD79: 212.7630006 | AE79: 245.3 | AF79: 17134 | AG79: 6978.8 | AH79: 15633 | AI79: 37699.04762 | AJ79: -20565.04762 | AK79: 461 | AL79: 36 | AM79: 6 | AN79: 105.357 | AO79: 96.721 | AP79: 13.07692308 | AQ79: 56 | AR79: 130 | AS79: 2.5 | AT79: 23 | AU79: 0 | AV79: 0 | AW79: 1373.6875 | AX79: 666.2222222 | AY79: 648.6086957 | BD79: 703 | BE79: 697.9090909 | BG79: 0 | BH79: . | BJ79: 96.9 | BK79: 36530.37714 | BL79: 136.0609137 | BM79: 38.34675691 | BN79: 151.8223237 | BO79: 32 | BP79: 36 | BQ79: BBB
A80: non | B80: 2 | C80: conventionnel | D80: eleveur naisseur | E80: 2020 | F80: 87087 | G80: 1.58 | H80: 1.58 | I80: 69.19 | J80: 88.56 | K80: 56.05063291 | L80: 1.279953751 | M80: 43.79113924 | N80: 376.9 | O80: 358.1 | P80: 18.8 | Q80: 193.9 | R80: 129.6 | S80: 70.6 | T80: 0 | U80: 70.6 | V80: 23.9 | W80: 35.1 | X80: 64.3 | Y80: 43.98193381 | Z80: 144.5382281 | AA80: 188.5201619 | AB80: 210.1320856 | AC80: 95.72831978 | AD80: 241.9612692 | AE80: 183 | AF80: 13655 | AG80: 7751.5 | AH80: 12589 | AI80: 30528.48101 | AJ80: -16873.48101 | AK80: 491 | AL80: 39 | AM80: 7 | AN80: 87.171 | AO80: 100 | AP80: 8.270676692 | AQ80: 60.8 | AR80: 133 | AS80: 7.8 | AT80: 25 | AU80: 0 | AV80: 0 | AW80: 1314.846154 | AX80: 624.8333333 | AY80: 688.84 | BB80: 585 | BE80: 733.2307692 | BG80: 0 | BH80: . | BJ80: 81.2 | BK80: 24789.12658 | BL80: 112.9245709 | BM80: 34.36212737 | BN80: 164.1716238 | BO80: 25 | BP80: 28 | BQ80: BBB
A81: non | B81: 2 | C81: conventionnel | D81: eleveur naisseur | E81: 2021 | F81: 87087 | G81: 1.58 | H81: 1.58 | I81: 68.1 | J81: 91.97 | K81: 58.20886076 | L81: 1.35051395 | M81: 43.10126582 | N81: 650 | O81: 578.9 | P81: 71.1 | Q81: 252 | R81: 212.7 | S81: 114.6 | T81: 0.8 | U81: 113.8 | V81: 34.5 | W81: 63.6 | X81: 39.4 | Y81: 43.76005874 | Z81: 201.2657856 | AA81: 245.0258443 | AB81: 215.1828194 | AC81: 95.23899098 | AD81: 227.0827937 | AE81: 398 | AF81: 25879 | AG81: 20017.8 | AH81: 29110 | AI81: 31764.00633 | AJ81: -5885.006329 | AK81: 538 | AL81: 39 | AM81: 6 | AN81: 106.81 | AO81: 96.67 | AP81: 6.617647059 | AQ81: 54.3 | AR81: 136 | AS81: 7.8 | AT81: 20 | AU81: 0 | AV81: 0 | AW81: 1726 | AX81: 670.2 | AY81: 745.25 | BE81: 809.5 | BG81: 0 | BH81: . | BJ81: 80.3 | BK81: 25506.49708 | BL81: 149.0290312 | BM81: 32.40252256 | BN81: 159.334022 | BO81: 31 | BP81: 28 | BQ81: autres
A82: non | B82: 2 | C82: conventionnel | D82: eleveur naisseur | E82: 2022 | F82: 87087 | G82: 1.58 | H82: 1.58 | I82: 66.19 | J82: 95.4 | K82: 60.37974684 | L82: 1.441305333 | M82: 41.89240506 | N82: 477.4 | O82: 427.5 | P82: 49.9 | Q82: 287.7 | R82: 218.4 | S82: 115 | T82: 10.5 | U82: 104.5 | V82: 51.5 | W82: 51.9 | X82: 69.3 | Y82: 51.70403384 | Z82: 237.9996978 | AA82: 289.7037317 | AB82: 221.6207886 | AC82: 96.49371069 | AD82: 202.9807593 | AE82: 189.7 | AF82: 13802 | AG82: 8049.8 | AH82: 16504 | AI82: 33153.03797 | AJ82: -19351.03797 | AK82: 477 | AL82: 36 | AM82: 6 | AN82: 76.79 | AO82: 93.88 | AP82: 12.65822785 | AQ82: 59.9 | AR82: 142.2 | AS82: 10.3 | AT82: 23 | AU82: 0 | AV82: 0 | AW82: 1864.4 | AX82: 723.9090909 | AY82: 748.826087 | BE82: 771.6666667 | BG82: 0 | BH82: . | BJ82: 74.1 | BK82: 24566.40114 | BL82: 165.1278826 | BM82: 35.8730608 | BN82: 153.7639413 | BO82: 33 | BP82: 35 | BQ82: autres
A83: non | B83: 2 | C83: conventionnel | D83: eleveur naisseur | E83: 2023 | F83: 87087 | G83: 1.52 | H83: 1.52 | I83: 73.46 | J83: 96.12 | K83: 63.23684211 | L83: 1.308467193 | M83: 48.32894737 | N83: 897.1 | O83: 573.1 | P83: 324 | Q83: 332.7 | R83: 239.2 | S83: 122.8 | T83: 15.3 | U83: 107.5 | V83: 49.7 | W83: 66.7 | X83: 93.6 | Y83: 47.42989382 | Z83: 286.1169344 | AA83: 333.5441056 | AB83: 205.7472094 | AC83: 137.2222222 | AD83: 272.8824786 | AE83: 564.4 | AF83: 37416 | AG83: 31027.3 | AH83: 40680 | AI83: 44726.64474 | AJ83: -7310.644737 | AK83: 484 | AL83: 38 | AM83: 5 | AN83: 78.95 | AO83: 89.47 | AP83: 8.977900552 | AQ83: 64.6 | AR83: 144.8 | AS83: 10.1 | AT83: 22 | AU83: 0 | AV83: 0 | AW83: 1648.722222 | AX83: 778.375 | AY83: 915.3181818 | BE83: 993.5714286 | BG83: 0 | BH83: . | BJ83: 87.3 | BK83: 39046.36086 | BL83: 218.6657303 | BM83: 36.24843945 | BN83: 157.2429255 | BO83: 31 | BP83: 31 | BQ83: autres
A84: non | B84: 2 | C84: biologique | D84: eleveur naisseur | E84: 2019 | F84: 87093 | G84: 1 | H84: 1 | I84: 60.02 | J84: 85.3 | K84: 85.3 | L84: 1.421192936 | M84: 60.02 | N84: 537.8 | O84: 537.8 | P84: 0 | Q84: 228.5 | R84: 201.6 | S84: 118.2 | T84: 0 | U84: 118.2 | V84: 65.2 | W84: 18.2 | X84: 26.8 | Y84: 348.9548317 | Z84: 150.8933689 | AA84: 296.4918194 | AB84: 259.766911 | AC84: 113.8603751 | AD84: 313.8413834 | AE84: 309.3 | AF84: 19597 | AG84: -3370.5 | AH84: 17046 | AI84: 50876 | AJ84: -31279 | AK84: 363 | AL84: 36 | AM84: 4 | AN84: 116.814 | AO84: 103.125 | AP84: 6.338028169 | AQ84: 56.5 | AR84: 142 | AS84: 13 | AT84: 22 | AU84: 0 | AV84: 0 | AW84: 1208.62963 | AY84: 800.1363636 | AZ84: 484.4 | BB84: 1000.166667 | BE84: 835.5 | BG84: 0 | BH84: . | BJ84: 96.9 | BK84: 49298.844 | BL84: 106.1737397 | BM84: 245.5365651 | BN84: 182.780891 | BO84: 48 | BP84: 28 | BQ84: autres
A85: non | B85: 2 | C85: biologique | D85: eleveur naisseur | E85: 2020 | F85: 87093 | G85: 1 | H85: 1 | I85: 59.95 | J85: 80.29 | K85: 80.29 | L85: 1.339282736 | M85: 59.95 | N85: 606.1 | O85: 606.1 | P85: 0 | Q85: 285.8 | R85: 263.8 | S85: 174.8 | T85: 0 | U85: 174.8 | V85: 73.4 | W85: 15.6 | X85: 22 | Y85: 328.6828857 | Z85: 110.9542952 | AA85: 235.1379483 | AB85: 259.9694579 | AC85: 124.2216964 | AD85: 311.3907087 | AE85: 320.2 | AF85: 26270 | AG85: 5829.5 | AH85: 24535 | AI85: 51632 | AJ85: -25362 | AK85: 381 | AL85: 38 | AM85: 7 | AN85: 118.881 | AO85: 89.474 | AP85: 11.9047619 | AQ85: 42.9 | AR85: 126 | AS85: 9.2 | AT85: 19 | AU85: 0 | AV85: 0 | AW85: 1399.5 | AY85: 824.2631579 | BE85: 933.9333333 | BG85: 0 | BH85: . | BJ85: 85.6 | BK85: 44196.992 | BL85: 82.84605804 | BM85: 245.4171005 | BN85: 194.1109603 | BO85: 37 | BP85: 49 | BQ85: autres
A86: non | B86: 1 | C86: biologique | D86: eleveur naisseur | E86: 2021 | F86: 87093 | G86: 1 | H86: 1 | I86: 59.81 | J86: 80.98 | K86: 80.98 | L86: 1.353954188 | M86: 59.81 | N86: 599.6 | O86: 599.6 | P86: 0 | Q86: 381.1 | R86: 370.1 | S86: 250 | T86: 0 | U86: 250 | V86: 104.1 | W86: 16 | X86: 11 | Y86: 403.387895 | Z86: 170.335061 | AA86: 380.4763417 | AB86: 276.2270523 | AC86: 127.2519141 | AD86: 313.8293406 | AE86: 218.5 | AF86: 10330 | AG86: -9450 | AH86: 7399 | AI86: 52662.38 | AJ86: -42332.38 | AK86: 375 | AL86: 38 | AM86: 5 | AN86: 100 | AO86: 100 | AP86: 10.30110935 | AQ86: 46 | AR86: 126.2 | AS86: 10.2 | AT86: 22 | AU86: 0 | AV86: 0 | AW86: 1532.904762 | AY86: 1158.409091 | BE86: 1287.444444 | BG86: 0 | BH86: . | BJ86: 84.6 | BK86: 44552.37348 | BL86: 125.805631 | BM86: 297.9331934 | BN86: 204.0150654 | BO86: 48 | BP86: 17 | BQ86: autres
A87: non | B87: 3 | C87: biologique | D87: eleveur naisseur | E87: 2022 | F87: 87093 | G87: 1 | H87: 1 | I87: 85.06 | J87: 85.16 | K87: 85.16 | L87: 1.001175641 | M87: 85.06 | N87: 1086.4 | O87: 1039.4 | P87: 47 | Q87: 354.8 | R87: 354.8 | S87: 221.7 | T87: 0 | U87: 221.7 | V87: 107.3 | W87: 25.8 | X87: 0 | Y87: 335.3136609 | Z87: 121.8954855 | AA87: 291.7914413 | AB87: 202.8202445 | AC87: 127.1723814 | AD87: 583.784171 | AE87: 731.6 | AF87: 67676 | AG87: 45360.8 | AH87: 64918 | AI87: 55359.76 | AJ87: 12316.24 | AK87: 363 | AL87: 38 | AM87: 5 | AN87: 150.33 | AO87: 100 | AP87: 7.326007326 | AQ87: 45.9 | AR87: 136.5 | AS87: 13.5 | AT87: 29 | AU87: 0 | AV87: 0 | AW87: 1714.411765 | AY87: 1170.724138 | BB87: 1516.714286 | BE87: 1260.458333 | BG87: 0 | BH87: . | BJ87: 97.1 | BK87: 53754.32696 | BL87: 121.7523485 | BM87: 334.9199155 | BN87: 202.5820808 | BO87: 39 | BP87: 81 | BQ87: autres
A88: non | B88: 3 | C88: biologique | D88: eleveur naisseur | E88: 2023 | F88: 87093 | G88: 1 | H88: 1 | I88: 85.07 | J88: 85.85 | K88: 85.85 | L88: 1.00916892 | M88: 85.07 | N88: 1048.5 | O88: 1048.5 | P88: 0 | Q88: 507.6 | R88: 470 | S88: 312.3 | T88: 0 | U88: 312.3 | V88: 127 | W88: 30.7 | X88: 37.6 | Y88: 331.4880686 | Z88: 166.8498883 | AA88: 320.388386 | AB88: 209.8611732 | AC88: 157.5771695 | AD88: 639.583809 | AE88: 540.9 | AF88: 60087 | AG88: 38350.7 | AH88: 56526 | AI88: 62412 | AJ88: -2325 | AK88: 379 | AL88: 37 | AM88: 5 | AN88: 128.46 | AO88: 100 | AP88: 4.369992717 | AQ88: 50.6 | AR88: 137.3 | AS88: 11.3 | AT88: 26 | AU88: 0 | AV88: 0 | AW88: 1970.944444 | AX88: 680 | AY88: 1137.884615 | AZ88: 857.1428571 | BB88: 1650 | BE88: 1224.318182 | BG88: 0 | BH88: . | BJ88: 86.9 | BK88: 54236.028 | BL88: 165.3339546 | BM88: 328.4762959 | BN88: 207.9544554 | BO88: 36 | BP88: 28 | BQ88: autres
A89: non | B89: 1 | C89: conventionnel | D89: eleveur naisseur | E89: 2019 | F89: 87098 | G89: 1.67 | H89: 1.67 | I89: 62.92 | J89: 104.35 | K89: 62.48502994 | L89: 1.658455181 | M89: 37.67664671 | N89: 445 | O89: 445 | P89: 0 | Q89: 296.3 | R89: 224.5 | S89: 123.1 | T89: 0 | U89: 123.1 | V89: 51 | W89: 50.4 | X89: 71.9 | Y89: 373.6702161 | Z89: 237.3359822 | AA89: 456.5214558 | AB89: 192.8504291 | AC89: 96.17671299 | AD89: 171.9928126 | AE89: 148.6 | AF89: -6067 | AG89: -15425.7 | AH89: -7190 | AI89: 37238.92216 | AJ89: -43305.92216 | AK89: 428 | AL89: 40 | AM89: 6 | AN89: 85.246 | AO89: 101.961 | AP89: 8.049535604 | AQ89: 61 | AR89: 161.5 | AS89: 17.5 | AT89: 27 | AU89: 2 | AV89: 0 | AW89: 1203.357143 | AY89: 1027.185185 | AZ89: 946 | BE89: 1053.076923 | BG89: 0 | BH89: . | BJ89: 96.8 | BK89: 36047.27665 | BL89: 143.1066603 | BM89: 225.3122185 | BN89: 116.283172 | BO89: 26 | BP89: 20 | BQ89: BBB
A90: non | B90: 1 | C90: conventionnel | D90: eleveur naisseur | E90: 2020 | F90: 87098 | G90: 1.67 | H90: 1.67 | I90: 62.49 | J90: 110 | K90: 65.86826347 | L90: 1.760281645 | M90: 37.41916168 | N90: 535.1 | O90: 535.1 | P90: 0 | Q90: 295.4 | R90: 238.5 | S90: 143.1 | T90: 0 | U90: 143.1 | V90: 62.8 | W90: 32.6 | X90: 56.9 | Y90: 413.2465995 | Z90: 264.7201152 | AA90: 522.8895823 | AB90: 173.8300528 | AC90: 93.69290909 | AD90: 162.902 | AE90: 239.7 | AF90: 2133 | AG90: -7303.7 | AH90: 1234 | AI90: 37804.79042 | AJ90: -35671.79042 | AK90: 461 | AL90: 38 | AM90: 5 | AN90: 105.442 | AO90: 101.639 | AP90: 3.071253071 | AQ90: 58.8 | AR90: 162.8 | AS90: 13.9 | AT90: 19 | AU90: 1 | AV90: 0 | AW90: 1274.333333 | AY90: 994.6315789 | AZ90: 436 | BE90: 986.6842105 | BG90: 0 | BH90: . | BJ90: 90.6 | BK90: 34251.14012 | BL90: 150.3850909 | BM90: 234.7616364 | BN90: 98.75127273 | BO90: 20 | BP90: 31 | BQ90: BBB
A91: non | B91: 1 | C91: conventionnel | D91: eleveur naisseur | E91: 2021 | F91: 87098 | G91: 1.67 | H91: 1.67 | I91: 61.28 | J91: 111.42 | K91: 66.71856287 | L91: 1.818211488 | M91: 36.69461078 | N91: 590.6 | O91: 590.6 | P91: 0 | Q91: 388.3 | R91: 326.7 | S91: 187.3 | T91: 0 | U91: 187.3 | V91: 107.8 | W91: 31.6 | X91: 61.7 | Y91: 541.3789164 | Z91: 354.4265666 | AA91: 696.1705287 | AB91: 196.7718668 | AC91: 95.56946688 | AD91: 165.3598995 | AE91: 202.2 | AF91: -6439 | AG91: -16157.6 | AH91: -7478 | AI91: 38395.12575 | AJ91: -44834.12575 | AK91: 445 | AL91: 42 | AM91: 6 | AN91: 114.33 | AO91: 100 | AP91: 4.14446418 | AQ91: 65.5 | AR91: 168.9 | AS91: 20.3 | AT91: 32 | AU91: 0 | AV91: 0 | AW91: 1528 | AY91: 958.9375 | AZ91: 1127.5 | BB91: 725 | BE91: 1001.2 | BG91: 0 | BH91: . | BJ91: 89.2 | BK91: 34248.45217 | BL91: 194.9314306 | BM91: 297.7535451 | BN91: 108.2227607 | BO91: 27 | BP91: 38 | BQ91: BBB
A92: non | B92: 1 | C92: conventionnel | D92: eleveur naisseur | E92: 2022 | F92: 87098 | G92: 1.67 | H92: 1.67 | I92: 87.01 | J92: 115.93 | K92: 69.41916168 | L92: 1.332375589 | M92: 52.10179641 | N92: 703.5 | O92: 703.5 | P92: 0 | Q92: 455.5 | R92: 392.2 | S92: 202.6 | T92: 0 | U92: 202.6 | V92: 128 | W92: 61.6 | X92: 63.3 | Y92: 415.4152396 | Z92: 249.0496495 | AA92: 500.7422135 | AB92: 136.8154235 | AC92: 96.53239024 | AD92: 346.4192185 | AE92: 248 | AF92: 5413 | AG92: -4796.8 | AH92: 3960 | AI92: 40089.88623 | AJ92: -34676.88623 | AK92: 395 | AL92: 44 | AM92: 7 | AN92: 97.33 | AO92: 101.39 | AP92: 7.344632768 | AQ92: 74.9 | AR92: 177 | AS92: 21.2 | AT92: 35 | AU92: 0 | AV92: 0 | AW92: 1597.666667 | AY92: 1354.4 | AZ92: 1214.285714 | BE92: 1354.4 | BG92: 0 | BH92: . | BJ92: 97.6 | BK92: 39127.72896 | BL92: 186.9215044 | BM92: 311.7853877 | BN92: 102.6853274 | BO92: 17 | BP92: 21 | BQ92: BBB
A93: non | B93: 1 | C93: conventionnel | D93: eleveur naisseur | E93: 2023 | F93: 87098 | G93: 1.67 | H93: 1.67 | I93: 87.27 | J93: 112.32 | K93: 67.25748503 | L93: 1.28704022 | M93: 52.25748503 | N93: 729.1 | O93: 729.1 | P93: 0 | Q93: 459.4 | R93: 387.2 | S93: 213.7 | T93: 0 | U93: 213.7 | V93: 141.3 | W93: 32.2 | X93: 72.3 | Y93: 437.7468775 | Z93: 352.6799587 | AA93: 625.1938811 | AB93: 135.2179443 | AC93: 127.9691952 | AD93: 387.1158298 | AE93: 269.6 | AF93: 9612 | AG93: 287.8 | AH93: 7276 | AI93: 44998.20359 | AJ93: -35386.20359 | AK93: 433 | AL93: 44 | AM93: 6 | AN93: 96.39 | AO93: 98.63 | AP93: 6.501182033 | AQ93: 74.6 | AR93: 169.2 | AS93: 17.7 | AT93: 26 | AU93: 0 | AV93: 0 | AW93: 1560.642857 | AY93: 1335.115385 | AZ93: 1204.333333 | BE93: 1335.115385 | BG93: 0 | BH93: . | BJ93: 87.5 | BK93: 39373.42814 | BL93: 274.0240385 | BM93: 340.1190349 | BN93: 105.0611645 | BO93: 21 | BP93: 27 | BQ93: autres
A94: non | B94: 3 | C94: conventionnel | D94: eleveur naisseur | E94: 2019 | F94: 88015 | G94: 1 | H94: 1 | I94: 111.69 | J94: 183.49 | K94: 183.49 | L94: 1.642850748 | M94: 111.69 | N94: 823.1 | O94: 823.1 | P94: 0 | Q94: 453.1 | R94: 386.6 | S94: 279.5 | T94: 51.6 | U94: 227.9 | V94: 81.2 | W94: 25.9 | X94: 66.5 | Y94: 391.9670427 | Z94: 85.06643388 | AA94: 263.7799176 | AB94: 338.5494583 | AC94: 117.4977928 | AD94: 136.1931305 | AE94: 370 | AF94: 38206 | AG94: 6626.2 | AH94: 49619 | AI94: 45425 | AJ94: -7219 | AK94: 441 | AL94: 31 | AM94: 5 | AN94: 117.806 | AO94: 103.15 | AP94: 2.737850787 | AQ94: 109.2 | AR94: 292.2 | AS94: 34 | AT94: 48 | AU94: 3 | AV94: 0 | AW94: 1618.285714 | AY94: 1086.020833 | BB94: 970 | BD94: 1058.857143 | BE94: 1087.416667 | BG94: 0 | BH94: . | BJ94: 82.4 | BK94: 37430.2 | BL94: 51.77977001 | BM94: 238.5895635 | BN94: 206.0743855 | BO94: 32 | BP94: 56 | BQ94: BBB
A95: non | B95: 3 | C95: conventionnel | D95: eleveur naisseur | E95: 2020 | F95: 88015 | G95: 1 | H95: 1 | I95: 106.27 | J95: 186.85 | K95: 186.85 | L95: 1.758257269 | M95: 106.27 | N95: 828 | O95: 828 | P95: 0 | Q95: 513.7 | R95: 419.4 | S95: 327 | T95: 109.9 | U95: 217.1 | V95: 67.2 | W95: 25.2 | X95: 94.3 | Y95: 391.7163828 | Z95: 97.145008 | AA95: 276.4325774 | AB95: 396.1714501 | AC95: 121.88076 | AD95: 126.0201174 | AE95: 314.4 | AF95: 36309 | AG95: 6907.5 | AH95: 60271 | AI95: 48866 | AJ95: -12557 | AK95: 401 | AL95: 31 | AM95: 5 | AN95: 101.413 | AO95: 102.521 | AP95: 3.243593902 | AQ95: 118.3 | AR95: 308.3 | AS95: 40.2 | AT95: 63 | AU95: 1 | AV95: 0 | AW95: 1810.142857 | AY95: 1119.873016 | BE95: 1136.916667 | BG95: 0 | BH95: . | BJ95: 72.6 | BK95: 35476.716 | BL95: 55.25073588 | BM95: 222.7867273 | BN95: 225.3205245 | BO95: 41 | BP95: 30 | BQ95: BBB
A96: non | B96: 3 | C96: conventionnel | D96: eleveur naisseur | E96: 2021 | F96: 88015 | G96: 1 | H96: 1 | I96: 113.19 | J96: 189.79 | K96: 189.79 | L96: 1.676738228 | M96: 113.19 | N96: 1024.4 | O96: 1024.4 | P96: 0 | Q96: 503.8 | R96: 419.5 | S96: 318.1 | T96: 53.2 | U96: 264.9 | V96: 75.6 | W96: 25.8 | X96: 84.2 | Y96: 430.4183232 | Z96: 65.9107695 | AA96: 251.0841064 | AB96: 340.1743087 | AC96: 123.9760788 | AD96: 131.1971129 | AE96: 520.6 | AF96: 66452 | AG96: 35851.9 | AH96: 84872 | AI96: 50781.58 | AJ96: 15670.42 | AK96: 428 | AL96: 31 | AM96: 6 | AN96: 115.62 | AO96: 104.8 | AP96: 3.847386983 | AQ96: 111.7 | AR96: 311.9 | AS96: 33.7 | AT96: 47 | AU96: 4 | AV96: 0 | AW96: 2193.3 | AY96: 1362.234043 | BB96: 932.2222222 | BC96: 2857 | BD96: 1379.333333 | BE96: 1418.916667 | BG96: 0 | BH96: . | BJ96: 82.1 | BK96: 41691.67718 | BL96: 39.30892039 | BM96: 256.6997734 | BN96: 202.8786027 | BO96: 36 | BP96: 41 | BQ96: BBB
A97: non | B97: 2 | C97: conventionnel | D97: eleveur naisseur | E97: 2022 | F97: 88015 | G97: 1 | H97: 1 | I97: 106.04 | J97: 191.26 | K97: 191.26 | L97: 1.803658997 | M97: 106.04 | N97: 1136.5 | O97: 1136.5 | P97: 0 | Q97: 668.5 | R97: 509.5 | S97: 420.4 | T97: 144.5 | U97: 275.9 | V97: 61.5 | W97: 27.6 | X97: 159 | Y97: 603.8013014 | Z97: 132.9403998 | AA97: 431.5437571 | AB97: 353.9715202 | AC97: 129.292586 | AD97: 122.5243251 | AE97: 468 | AF97: 37693 | AG97: 5154.6 | AH97: 51579 | AI97: 53382.63 | AJ97: -15689.63 | AK97: 405 | AL97: 31 | AM97: 5 | AN97: 93.75 | AO97: 99.15 | AP97: 1.284109149 | AQ97: 124.8 | AR97: 311.5 | AS97: 32.6 | AT97: 59 | AU97: 1 | AV97: 1 | AW97: 2507.767442 | AY97: 1385.79661 | AZ97: 1090 | BB97: 1625 | BE97: 1397.7 | BG97: 850 | BH97: 850 | BI97: 3.847058824 | BJ97: 84.1 | BK97: 44894.79183 | BL97: 73.70595002 | BM97: 334.7646659 | BN97: 196.2519084 | BO97: 34 | BP97: 30 | BQ97: BBB
A98: non | B98: 3 | C98: conventionnel | D98: eleveur naisseur | E98: 2023 | F98: 88015 | G98: 1 | H98: 1 | I98: 110.15 | J98: 190.74 | K98: 190.74 | L98: 1.731638675 | M98: 110.15 | N98: 1110.9 | O98: 1110.9 | P98: 0 | Q98: 671.7 | R98: 552.5 | S98: 440.2 | T98: 101.5 | U98: 338.7 | V98: 74.4 | W98: 37.9 | X98: 119.2 | Y98: 533.5233772 | Z98: 102.3985474 | AA98: 359.6433954 | AB98: 344.3410803 | AC98: 128.5493342 | AD98: 169.2374583 | AE98: 439.2 | AF98: 43738 | AG98: 11355.9 | AH98: 56953 | AI98: 63526.5 | AJ98: -19788.5 | AK98: 434 | AL98: 31 | AM98: 5 | AN98: 110.2 | AO98: 101.5 | AP98: 6.478781989 | AQ98: 122.5 | AR98: 308.7 | AS98: 29.2 | AT98: 33 | AU98: 1 | AV98: 0 | AW98: 2645.574468 | AY98: 1451.090909 | AZ98: 1146.875 | BD98: 2225.4 | BE98: 1486.352941 | BG98: 0 | BH98: . | BJ98: 86.1 | BK98: 54696.3165 | BL98: 59.13389955 | BM98: 308.1031771 | BN98: 198.8527315 | BO98: 41 | BP98: 47 | BQ98: BBB
A99: non | B99: 2 | C99: conventionnel | D99: eleveur engraisseur | E99: 2019 | F99: 88082 | G99: 2.81 | H99: 2.61 | I99: 141.87 | J99: 438.1 | K99: 155.9074733 | L99: 3.088038345 | M99: 50.48754448 | N99: 1046.3 | O99: 1046.3 | P99: 0 | Q99: 721.8 | R99: 656 | S99: 477.4 | T99: 11.5 | U99: 465.9 | V99: 159.4 | W99: 19.2 | X99: 65.8 | Y99: 608.5218792 | Z99: 175.6173257 | AA99: 503.430535 | AB99: 399.051815 | AC99: 123.485711 | AD99: 81.70458075 | AE99: 324.5 | AF99: 29452 | AG99: 331.6 | AH99: 34706 | AI99: 57085.82375 | AJ99: -27633.82375 | AK99: 423 | AL99: 31 | AM99: 6 | AN99: 93.258 | AO99: 94.677 | AP99: 9.808102345 | AQ99: 267 | AR99: 703.5 | AS99: 116 | AT99: 0 | AU99: 94 | AV99: 97 | AW99: 2361.101266 | BA99: 2364.43617 | BC99: 2194.875 | BD99: 2059.666667 | BF99: 2388.85567 | BG99: 70269 | BH99: 724.4226804 | BI99: 3.297599226 | BJ99: 92 | BK99: 52518.95785 | BL99: 56.87018945 | BM99: 197.0577471 | BN99: 129.2250194 | BO99: 32 | BP99: 42 | BQ99: BBB
A100: non | B100: 2 | C100: conventionnel | D100: eleveur engraisseur | E100: 2020 | F100: 88082 | G100: 2.87 | H100: 2.61 | I100: 143.64 | J100: 454.29 | K100: 158.2891986 | L100: 3.162698413 | M100: 50.04878049 | N100: 993.6 | O100: 993.6 | P100: 0 | Q100: 768.4 | R100: 700.2 | S100: 539.3 | T100: 21.7 | U100: 517.6 | V100: 143.9 | W100: 17 | X100: 68.2 | Y100: 541.6197368 | Z100: 96.65698273 | AA100: 353.2744291 | AB100: 394.7608605 | AC100: 90.95029607 | AD100: 72.48109694 | AE100: 225.2 | AF100: 16376 | AG100: -10885.4 | AH100: 26641 | AI100: 57934.09962 | AJ100: -41558.09962 | AK100: 417 | AL100: 34 | AM100: 5 | AN100: 94.548 | AO100: 95.753 | AP100: 6.952017448 | AQ100: 262.3 | AR100: 733.6 | AS100: 107.6 | AT100: 0 | AU100: 76 | AV100: 87 | AW100: 2429.436782 | BA100: 2372.460526 | BC100: 2283.466667 | BF100: 2368 | BG100: 61206 | BH100: 703.5172414 | BI100: 3.365944515 | BJ100: 88.9 | BK100: 51503.41456 | BL100: 30.56155539 | BM100: 171.2524137 | BN100: 124.8177376 | BO100: 35 | BP100: 27 | BQ100: BBB
A101: non | B101: 2 | C101: conventionnel | D101: eleveur engraisseur | E101: 2021 | F101: 88082 | G101: 2.88 | H101: 2.6 | I101: 143.45 | J101: 434.36 | K101: 150.8194444 | L101: 3.027953991 | M101: 49.80902778 | N101: 1152.3 | O101: 1152.3 | P101: 0 | Q101: 863.3 | R101: 774.6 | S101: 632 | T101: 15 | U101: 617 | V101: 123.5 | W101: 19.1 | X101: 88.8 | Y101: 615.1975601 | Z101: 123.1223423 | AA101: 470.25542 | AB101: 373.780969 | AC101: 98.85095313 | AD101: 76.01481911 | AE101: 288.9 | AF101: 18176 | AG101: -8074.7 | AH101: 26542 | AI101: 59317.51538 | AJ101: -41141.51538 | AK101: 410 | AL101: 31 | AM101: 6 | AN101: 92.06 | AO101: 100 | AP101: 6.118759561 | AQ101: 236.8 | AR101: 719.1 | AS101: 100.3 | AT101: 0 | AU101: 89 | AV101: 108 | AW101: 2559.463636 | BA101: 2750.033708 | BC101: 2537.28 | BD101: 2278.25 | BF101: 2717.203704 | BG101: 83147 | BH101: 769.8796296 | BI101: 3.529387711 | BJ101: 91.3 | BK101: 54156.89155 | BL101: 40.66189336 | BM101: 203.1726909 | BN101: 123.443411 | BO101: 48 | BP101: 32 | BQ101: BBB
A102: non | B102: 2 | C102: conventionnel | D102: eleveur engraisseur | E102: 2022 | F102: 88082 | G102: 2.87 | H102: 2.6 | I102: 143.69 | J102: 418.06 | K102: 145.6655052 | L102: 2.909457861 | M102: 50.06620209 | N102: 1289.1 | O102: 1289.1 | P102: 0 | Q102: 908.2 | R102: 812.5 | S102: 665 | T102: 15.9 | U102: 649.1 | V102: 126.5 | W102: 21 | X102: 95.6 | Y102: 606.3058668 | Z102: 136.3055188 | AA102: 506.5434616 | AB102: 378.6397105 | AC102: 107.5072956 | AD102: 80.81509219 | AE102: 380.9 | AF102: 29815 | AG102: 3718.7 | AH102: 36405 | AI102: 62355.77692 | AJ102: -32540.77692 | AK102: 417 | AL102: 32 | AM102: 5 | AN102: 96.31 | AO102: 97.66 | AP102: 7.908611599 | AQ102: 217 | AR102: 682.8 | AS102: 91.9 | AT102: 0 | AU102: 73 | AV102: 87 | AW102: 2935.876404 | BA102: 2894.561644 | BC102: 2851.066667 | BD102: 2706.428571 | BF102: 2886.114943 | BG102: 71797 | BH102: 825.2528736 | BI102: 3.497249189 | BJ102: 92.3 | BK102: 57554.3821 | BL102: 46.84911257 | BM102: 208.3913553 | BN102: 130.1409845 | BO102: 44 | BP102: 39 | BQ102: BBB
A103: non | B103: 2 | C103: conventionnel | D103: eleveur engraisseur | E103: 2023 | F103: 88082 | G103: 2.95 | H103: 2.6 | I103: 140.56 | J103: 399.99 | K103: 135.5898305 | L103: 2.845688674 | M103: 47.64745763 | N103: 1434.7 | O103: 1434.7 | P103: 0 | Q103: 935.7 | R103: 800 | S103: 657.5 | T103: 6.9 | U103: 650.6 | V103: 118.4 | W103: 24.1 | X103: 135.7 | Y103: 672.3643284 | Z103: 203.3439812 | AA103: 624.5225526 | AB103: 424.9992886 | AC103: 107.1275282 | AD103: 57.56876805 | AE103: 499 | AF103: 31765 | AG103: 6648 | AH103: 41343 | AI103: 70299.23077 | AJ103: -38534.23077 | AK103: 450 | AL103: 32 | AM103: 4 | AN103: 93.17 | AO103: 96.95 | AP103: 5.248533498 | AQ103: 205 | AR103: 647.8 | AS103: 84.8 | AT103: 0 | AU103: 50 | AV103: 75 | AW103: 2963.492537 | BA103: 3057.14 | BC103: 3059.166667 | BD103: 2801.2 | BF103: 3005.346667 | BG103: 61704 | BH103: 822.72 | BI103: 3.652939842 | BJ103: 88.4 | BK103: 62144.52 | BL103: 71.45686142 | BM103: 236.2747319 | BN103: 149.3484837 | BO103: 67 | BP103: 47 | BQ103: autres
A104: non | B104: 2 | C104: conventionnel | D104: intermediaire | E104: 2019 | F104: 88091 | G104: 2 | H104: 2 | I104: 80.42 | J104: 212.76 | K104: 106.38 | L104: 2.645610545 | M104: 40.21 | N104: 496.3 | O104: 496.3 | P104: 0 | Q104: 464.5 | R104: 387 | S104: 220 | T104: 79.4 | U104: 140.6 | V104: 122.5 | W104: 44.5 | X104: 77.5 | Y104: 552.7593758 | Z104: 95.46132803 | AA104: 327.4078463 | AB104: 171.577717 | AC104: 139.2296014 | AD104: 135.0719361 | AE104: 31.8 | AF104: 5161 | AG104: -10048.6 | AH104: 7142 | AI104: 53601.5 | AJ104: -48440.5 | AK104: 545 | AL104: 33 | AM104: 7 | AN104: 74.928 | AO104: 100 | AP104: 7.859163785 | AQ104: 138.8 | AR104: 318.1 | AS104: 38.1 | AT104: 3 | AU104: 18 | AV104: 6 | AW104: 1486.62963 | BA104: 1411.611111 | BF104: 2035.166667 | BG104: 3739 | BH104: 623.1666667 | BI104: 3.265846483 | BJ104: 85.9 | BK104: 46043.6885 | BL104: 36.08291032 | BM104: 208.9345225 | BN104: 64.8537319 | BO104: 22 | BP104: 19 | BQ104: BBB
A105: non | B105: 2 | C105: conventionnel | D105: eleveur naisseur | E105: 2020 | F105: 88091 | G105: 2 | H105: 2 | I105: 73.92 | J105: 212.76 | K105: 106.38 | L105: 2.878246753 | M105: 36.96 | N105: 659.2 | O105: 659.2 | P105: 0 | Q105: 460.6 | R105: 391.9 | S105: 219.7 | T105: 52.1 | U105: 167.6 | V105: 127.2 | W105: 45 | X105: 68.7 | Y105: 596.6766775 | Z105: 88.06141775 | AA105: 312.4015152 | AB105: 180.367546 | AC105: 139.8526509 | AD105: 134.6835174 | AE105: 198.6 | AF105: 25141 | AG105: 10750.7 | AH105: 31661 | AI105: 55320 | AJ105: -30179 | AK105: 534 | AL105: 37 | AM105: 8 | AN105: 77.503 | AO105: 100 | AP105: 7.594936709 | AQ105: 145.8 | AR105: 316 | AS105: 36.9 | AT105: 64 | AU105: 4 | AV105: 3 | AW105: 1881.868421 | AY105: 1178.296875 | BG105: 2148 | BH105: 716 | BI105: 3.151769088 | BJ105: 79.9 | BK105: 44200.68 | BL105: 30.59550667 | BM105: 207.3056026 | BN105: 62.66576894 | BO105: 28 | BP105: 34 | BQ105: BBB
A106: non | B106: 2 | C106: conventionnel | D106: eleveur naisseur | E106: 2021 | F106: 88091 | G106: 2 | H106: 2 | I106: 77.04 | J106: 201.87 | K106: 100.935 | L106: 2.620327103 | M106: 38.52 | N106: 637.7 | O106: 637.7 | P106: 0 | Q106: 478.4 | R106: 424.7 | S106: 263.8 | T106: 91.3 | U106: 172.5 | V106: 129.6 | W106: 31.3 | X106: 53.7 | Y106: 492.6683541 | Z106: 63.48208723 | AA106: 241.9983126 | AB106: 176.0686656 | AC106: 153.9917769 | AD106: 147.609651 | AE106: 159.3 | AF106: 23323 | AG106: 9780.3 | AH106: 29108 | AI106: 55953.78 | AJ106: -32630.78 | AK106: 506 | AL106: 40 | AM106: 8 | AN106: 75.19 | AO106: 100.94 | AP106: 8.449788755 | AQ106: 142.3 | AR106: 307.7 | AS106: 31 | AT106: 38 | AU106: 2 | AV106: 2 | AW106: 2089.704545 | AY106: 1091.026316 | BG106: 1008 | BH106: 504 | BI106: 3.21031746 | BJ106: 83.5 | BK106: 46721.4063 | BL106: 24.22677961 | BM106: 188.0178828 | BN106: 67.19339179 | BO106: 33 | BP106: 27 | BQ106: BBB
A107: non | B107: 1 | C107: conventionnel | D107: intermediaire | E107: 2022 | F107: 88091 | G107: 2 | H107: 2 | I107: 78.88 | J107: 201.94 | K107: 100.97 | L107: 2.560091278 | M107: 39.44 | N107: 446.1 | O107: 446.1 | P107: 0 | Q107: 494.4 | R107: 426.2 | S107: 306.3 | T107: 80.4 | U107: 225.9 | V107: 92.4 | W107: 27.5 | X107: 68.2 | Y107: 494.6282961 | Z107: 206.1327333 | AA107: 429.8809584 | AB107: 170.284356 | AC107: 155.526394 | AD107: 118.0255273 | AE107: -48.3 | AF107: -5587 | AG107: -18848.1 | AH107: -4170 | AI107: 57831.18 | AJ107: -63418.18 | AK107: 522 | AL107: 36 | AM107: 6 | AN107: 56.25 | AO107: 92.31 | AP107: 13.30150068 | AQ107: 128 | AR107: 293.2 | AS107: 27.8 | AT107: 22 | AU107: 20 | AV107: 0 | AW107: 2214.125 | AY107: 1188.5 | BA107: 1522 | BE107: 1429.205128 | BG107: 0 | BH107: . | BJ107: 82.2 | BK107: 47537.22996 | BL107: 80.51772804 | BM107: 193.2072893 | BN107: 66.51495494 | BO107: 27 | BP107: 13 | BQ107: BBB
A108: non | B108: 1 | C108: conventionnel | D108: intermediaire | E108: 2023 | F108: 88091 | G108: 2 | H108: 2 | I108: 81.05 | J108: 184.35 | K108: 92.175 | L108: 2.2745219 | M108: 40.525 | N108: 624.8 | O108: 624.8 | P108: 0 | Q108: 470.2 | R108: 401.4 | S108: 216.3 | T108: 70.7 | U108: 145.6 | V108: 147.1 | W108: 38 | X108: 68.9 | Y108: 470.4772363 | Z108: 131.2769895 | AA108: 345.1086983 | AB108: 176.1481801 | AC108: 121.0805533 | AD108: 106.3367119 | AE108: 154.6 | AF108: 7336 | AG108: -5261.9 | AH108: 8118 | AI108: 65198.25 | AJ108: -57862.25 | AK108: 565 | AL108: 36 | AM108: 6 | AN108: 91.17 | AO108: 91.26 | AP108: 15.65344012 | AQ108: 103.1 | AR108: 274.7 | AS108: 32.8 | AT108: 8 | AU108: 2 | AV108: 0 | AW108: 2058.5 | AY108: 1161.75 | BD108: 2070.7 | BE108: 1281.4 | BG108: 0 | BH108: . | BJ108: 88.1 | BK108: 57439.65825 | BL108: 57.71630052 | BM108: 206.8466504 | BN108: 77.44404665 | BO108: 64 | BP108: 49 | BQ108: BBB
A109: non | B109: 1 | C109: conventionnel | D109: eleveur engraisseur | E109: 2019 | F109: 88126 | G109: 1.54 | H109: 1.54 | I109: 63.55 | J109: 135.4 | K109: 87.92207792 | L109: 2.130605822 | M109: 41.26623377 | N109: 668.8 | O109: 601.2 | P109: 67.6 | Q109: 650.6 | R109: 586.1 | S109: 467.6 | T109: 0 | U109: 467.6 | V109: 79.4 | W109: 39.1 | X109: 64.6 | Y109: 426.4901495 | Z109: 55.28528718 | AA109: 313.4473485 | AB109: 202.8509835 | AC109: 115.9641064 | AD109: 123.388774 | AE109: 18.1 | AF109: -8285 | AG109: -26430.4 | AH109: -8974 | AI109: 58219.80519 | AJ109: -66504.80519 | AK109: 440 | AL109: 43 | AM109: 8 | AN109: 82.353 | AO109: 96.923 | AP109: 11.70731707 | AQ109: 76.5 | AR109: 205 | AS109: 23 | AT109: 0 | AU109: 13 | AV109: 23 | AW109: 2337.75 | BA109: 2067.230769 | BC109: 2070.333333 | BF109: 2164.565217 | BG109: 15198 | BH109: 660.7826087 | BI109: 3.275759968 | BJ109: 98 | BK109: 57055.40909 | BL109: 25.94815362 | BM109: 200.1731832 | BN109: 95.20812408 | BO109: 24 | BP109: 20 | BQ109: BBB
A110: non | B110: 1 | C110: conventionnel | D110: eleveur engraisseur | E110: 2020 | F110: 88126 | G110: 1.54 | H110: 1.54 | I110: 62.98 | J110: 142.21 | K110: 92.34415584 | L110: 2.258018419 | M110: 40.8961039 | N110: 757.5 | O110: 731.4 | P110: 26.1 | Q110: 642.2 | R110: 579.8 | S110: 464.2 | T110: 0 | U110: 464.2 | V110: 82.9 | W110: 32.7 | X110: 62.5 | Y110: 327.1276596 | Z110: 47.35789139 | AA110: 208.213417 | AB110: 206.2305494 | AC110: 108.7077561 | AD110: 116.3705084 | AE110: 115.2 | AF110: 6793 | AG110: -11023.2 | AH110: 7749 | AI110: 56833.76623 | AJ110: -50040.76623 | AK110: 428 | AL110: 44 | AM110: 8 | AN110: 85.714 | AO110: 100 | AP110: 6.286484059 | AQ110: 80.5 | AR110: 222.7 | AS110: 30.2 | AT110: 0 | AU110: 21 | AV110: 21 | AW110: 2228.619048 | BA110: 2310.190476 | BF110: 2374.428571 | BG110: 14469 | BH110: 689 | BI110: 3.446195314 | BJ110: 93.1 | BK110: 52912.23636 | BL110: 20.97320864 | BM110: 144.8737782 | BN110: 91.33253639 | BO110: 34 | BP110: 35 | BQ110: BBB
A111: non | B111: 1 | C111: conventionnel | D111: eleveur engraisseur | E111: 2021 | F111: 88126 | G111: 1.36 | H111: 1.36 | I111: 62.76 | J111: 146.34 | K111: 107.6029412 | L111: 2.331739962 | M111: 46.14705882 | N111: 793.5 | O111: 793.5 | P111: 0 | Q111: 707.1 | R111: 634.7 | S111: 530.3 | T111: 0 | U111: 530.3 | V111: 60.6 | W111: 43.8 | X111: 72.4 | Y111: 381.3256851 | Z111: 40.51147228 | AA111: 284.0643722 | AB111: 190.5619822 | AC111: 112.667555 | AD111: 112.96 | AE111: 86.4 | AF111: 4101 | AG111: -15581 | AH111: 6065 | AI111: 60347.08824 | AJ111: -56246.08824 | AK111: 456 | AL111: 37 | AM111: 7 | AN111: 77.71 | AO111: 100 | AP111: 3.048780488 | AQ111: 78.5 | AR111: 229.6 | AS111: 29.7 | AT111: 0 | AU111: 17 | AV111: 19 | AW111: 2402.875 | BA111: 2376.588235 | BC111: 2373 | BF111: 2536.736842 | BG111: 13090 | BH111: 688.9473684 | BI111: 3.682047364 | BJ111: 93.2 | BK111: 56243.48624 | BL111: 17.37392374 | BM111: 163.5369687 | BN111: 81.72522892 | BO111: 32 | BP111: 19 | BQ111: BBB
A112: non | B112: 2 | C112: conventionnel | D112: eleveur engraisseur | E112: 2022 | F112: 88126 | G112: 1 | H112: 1 | I112: 58.66 | J112: 148.95 | K112: 148.95 | L112: 2.539209001 | M112: 58.66 | N112: 1021.5 | O112: 1021.5 | P112: 0 | Q112: 730.3 | R112: 648.7 | S112: 549.7 | T112: 14 | U112: 535.7 | V112: 67.7 | W112: 31.3 | X112: 81.6 | Y112: 523.3317422 | Z112: 76.08847596 | AA112: 435.8250938 | AB112: 210.5110808 | AC112: 118.7579725 | AD112: 104.0030838 | AE112: 291.2 | AF112: 30329 | AG112: 3197.2 | AH112: 39143 | AI112: 69990.56 | AJ112: -39661.56 | AK112: 442 | AL112: 41 | AM112: 8 | AN112: 87.19 | AO112: 100 | AP112: 5.201560468 | AQ112: 75.7 | AR112: 230.7 | AS112: 30.7 | AT112: 0 | AU112: 16 | AV112: 29 | AW112: 2939.055556 | BA112: 2683.1875 | BC112: 2671.846154 | BF112: 2678.103448 | BG112: 19587 | BH112: 675.4137931 | BI112: 3.965129933 | BJ112: 88.9 | BK112: 62221.60784 | BL112: 29.96542464 | BM112: 206.1003021 | BN112: 82.90419604 | BO112: 26 | BP112: 44 | BQ112: BBB
A113: non | B113: 1 | C113: conventionnel | D113: eleveur engraisseur | E113: 2023 | F113: 88126 | G113: 1 | H113: 1 | I113: 58.66 | J113: 153.56 | K113: 153.56 | L113: 2.617797477 | M113: 58.66 | N113: 990.1 | O113: 990.1 | P113: 0 | Q113: 784.2 | R113: 710 | S113: 605.8 | T113: 19.6 | U113: 586.2 | V113: 67.4 | W113: 36.8 | X113: 74.2 | Y113: 491.6977497 | Z113: 63.04125469 | AA113: 390.4188544 | AB113: 233.5993863 | AC113: 77.08387601 | AD113: 105.1311101 | AE113: 205.9 | AF113: 11593 | AG113: -16778.5 | AH113: 14346 | AI113: 79129.5 | AJ113: -67536.5 | AK113: 456 | AL113: 39 | AM113: 7 | AN113: 79.5 | AO113: 101.59 | AP113: 2.174858634 | AQ113: 80.5 | AR113: 229.9 | AS113: 30.4 | AT113: 0 | AU113: 17 | AV113: 24 | AW113: 3328.941176 | BA113: 2555.882353 | BC113: 2886.4 | BF113: 2847.208333 | BG113: 16376 | BH113: 682.3333333 | BI113: 4.172752809 | BJ113: 94.2 | BK113: 74539.989 | BL113: 24.08179213 | BM113: 187.8287966 | BN113: 89.23508726 | BO113: 24 | BP113: 27 | BQ113: BBB
A114: non | B114: 2 | C114: conventionnel | D114: eleveur naisseur | E114: 2019 | F114: 88130 | G114: 1.67 | H114: 1.67 | I114: 28.01 | J114: 41.2 | K114: 24.67065868 | L114: 1.470903249 | M114: 16.77245509 | N114: 839.6 | O114: 825 | P114: 14.6 | Q114: 685.4 | R114: 519.1 | S114: 340.6 | T114: 154.5 | U114: 186.1 | V114: 104.8 | W114: 73.7 | X114: 166.3 | Y114: 155.7732953 | Z114: 139.3088183 | AA114: 263.2474116 | AB114: 131.1306676 | AC114: 125.7254854 | AD114: 164.3390275 | AE114: 154.2 | AF114: 5052 | AG114: 1377.3 | AH114: 6990 | AI114: 22123.23353 | AJ114: -17071.23353 | AK114: 478 | AL114: 30 | AM114: 5 | AN114: 83.636 | AO114: 92 | AP114: 5.882352941 | AQ114: 27.5 | AR114: 68 | AS114: 6.5 | AT114: 11 | AU114: 0 | AV114: 0 | AW114: 1964.538462 | AY114: 1054.909091 | BE114: 1142.666667 | BG114: 0 | BH114: . | BJ114: 74.7 | BK114: 16526.05545 | BL114: 94.70970874 | BM114: 105.9031553 | BN114: 89.14975728 | BO114: 47 | BP114: 36 | BQ114: BBB
A115: non | B115: 1 | C115: conventionnel | D115: eleveur naisseur | E115: 2020 | F115: 88130 | G115: 1.67 | H115: 1.67 | I115: 25.71 | J115: 40.01 | K115: 23.95808383 | L115: 1.556203812 | M115: 15.39520958 | N115: 1006 | O115: 988.5 | P115: 17.5 | Q115: 807.3 | R115: 645.2 | S115: 430.7 | T115: 155.3 | U115: 275.4 | V115: 156.5 | W115: 58 | X115: 162.1 | Y115: 182.5153637 | Z115: 164.3683392 | AA115: 328.4741346 | AB115: 109.378063 | AC115: 129.03999 | AD115: 163.4548229 | AE115: 198.7 | AF115: 5988 | AG115: 2349.7 | AH115: 10178 | AI115: 22537.96407 | AJ115: -16549.96407 | AK115: 473 | AL115: 30 | AM115: 5 | AN115: 117.886 | AO115: 93.548 | AP115: 5.908419498 | AQ115: 24.6 | AR115: 67.7 | AS115: 8.6 | AT115: 8 | AU115: 0 | AV115: 0 | AW115: 1899.6875 | AY115: 1146.875 | BE115: 1183.333333 | BG115: 0 | BH115: . | BJ115: 75 | BK115: 16903.47305 | BL115: 105.6213447 | BM115: 117.2824294 | BN115: 70.28517871 | BO115: 69 | BP115: 61 | BQ115: BBB
A116: non | B116: 1 | C116: conventionnel | D116: eleveur naisseur | E116: 2022 | F116: 88159 | G116: 1 | H116: 1 | I116: 49.82 | J116: 47.22 | K116: 47.22 | L116: 0.9478121236 | M116: 49.82 | N116: 954.4 | O116: 954.4 | P116: 0 | Q116: 498.4 | R116: 364.8 | S116: 197.7 | T116: 143.5 | U116: 54.2 | V116: 101.7 | W116: 65.4 | X116: 133.6 | Y116: 349.1242473 | Z116: 52.67302288 | AA116: 386.0236853 | AB116: 391.9074669 | AC116: 160.5463787 | AD116: 228.7852171 | AE116: 456 | AF116: 9992 | AG116: -1446.4 | AH116: 13239 | AI116: 66234 | AJ116: -56242 | AK116: 394 | AL116: 30 | AM116: 5 | AN116: 103.09 | AO116: 100 | AP116: 1.265822785 | AQ116: 29.1 | AR116: 79 | AS116: 6.7 | AT116: 19 | AU116: 0 | AV116: 0 | AW116: 1940.090909 | AX116: 750.2 | AY116: 1127.684211 | BE116: 1262.5 | BG116: 0 | BH116: . | BJ116: 66.6 | BK116: 44111.844 | BL116: 55.57327404 | BM116: 368.3475222 | BN116: 413.4864464 | BO116: 38 | BP116: 41 | BQ116: BBB
A117: non | B117: 2 | C117: conventionnel | D117: eleveur engraisseur | E117: 2019 | F117: 88167 | G117: 2.25 | H117: 2.25 | I117: 88.01 | J117: 168.4 | K117: 74.84444444 | L117: 1.91341893 | M117: 39.11555556 | N117: 1309.6 | O117: 1297.9 | P117: 11.7 | Q117: 714.9 | R117: 599.8 | S117: 440.8 | T117: 78.2 | U117: 362.6 | V117: 120.3 | W117: 38.7 | X117: 115.1 | Y117: 491.0963527 | Z117: 283.4975457 | AA117: 517.8593342 | AB117: 428.5774344 | AC117: 120.2405582 | AD117: 230.238533 | AE117: 594.7 | AF117: 30700 | AG117: 1380.8 | AH117: 31744 | AI117: 46715.46667 | AJ117: -16015.46667 | AK117: 377 | AL117: 28 | AM117: 5 | AN117: 109.091 | AO117: 99.174 | AP117: 4.436860068 | AQ117: 109.5 | AR117: 293 | AS117: 52 | AT117: 6 | AU117: 49 | AV117: 44 | AW117: 2230.575758 | AY117: 859.1666667 | BA117: 2282.306122 | BE117: 1714.333333 | BF117: 2283.613636 | BG117: 36361 | BH117: 826.3863636 | BI117: 2.763372845 | BJ117: 94.5 | BK117: 44146.116 | BL117: 148.1628207 | BM117: 256.6590855 | BN117: 223.9851544 | BO117: 32 | BP117: 44 | BQ117: BBB
A118: non | B118: 2 | C118: conventionnel | D118: eleveur engraisseur | E118: 2021 | F118: 88167 | G118: 2.61 | H118: 2.61 | I118: 92.72 | J118: 210.14 | K118: 80.51340996 | L118: 2.266393443 | M118: 35.52490421 | N118: 1369 | O118: 1359.5 | P118: 9.5 | Q118: 701.9 | R118: 597.2 | S118: 417.4 | T118: 0 | U118: 417.4 | V118: 132.8 | W118: 47 | X118: 104.8 | Y118: 590.5202761 | Z118: 247.2071829 | AA118: 500.1775237 | AB118: 502.3833046 | AC118: 108.700533 | AD118: 165.2047682 | AE118: 667.1 | AF118: 37649 | AG118: 9976 | AH118: 43739 | AI118: 46958.37165 | AJ118: -9309.371648 | AK118: 406 | AL118: 30 | AM118: 5 | AN118: 126.85 | AO118: 100 | AP118: 3.094233474 | AQ118: 108 | AR118: 355.5 | AS118: 57.6 | AT118: 14 | AU118: 56 | AV118: 48 | AW118: 2252.769231 | AY118: 1156.857143 | BA118: 2669.553571 | BE118: 1764.866667 | BF118: 2742.375 | BG118: 37621 | BH118: 783.7708333 | BI118: 3.498950054 | BJ118: 89.9 | BK118: 42215.57611 | BL118: 109.0751404 | BM118: 260.5550585 | BN118: 221.6664129 | BO118: 49 | BP118: 66 | BQ118: BBB
A119: non | B119: 2 | C119: conventionnel | D119: eleveur engraisseur | E119: 2022 | F119: 88167 | G119: 2.83 | H119: 2.83 | I119: 89.11 | J119: 201.03 | K119: 71.03533569 | L119: 2.25597576 | M119: 31.48763251 | N119: 1453.7 | O119: 1453.7 | P119: 0 | Q119: 846 | R119: 718.9 | S119: 518.8 | T119: 10.7 | U119: 508.1 | V119: 152.6 | W119: 47.5 | X119: 127.1 | Y119: 802.8489507 | Z119: 269.7780272 | AA119: 702.8059701 | AB119: 551.2419482 | AC119: 142.7622743 | AD119: 163.3407565 | AE119: 607.7 | AF119: 19887 | AG119: -6390.3 | AH119: 20861 | AI119: 33653.78445 | AJ119: -13766.78445 | AK119: 404 | AL119: 30 | AM119: 4 | AN119: 114.96 | AO119: 99.27 | AP119: 5.601415094 | AQ119: 118.3 | AR119: 339.2 | AS119: 46.2 | AT119: 39 | AU119: 43 | AV119: 44 | AW119: 2580.42 | AY119: 1593.512821 | BA119: 2867.069767 | BC119: 3690.166667 | BE119: 1655.55 | BF119: 2916.545455 | BG119: 34416 | BH119: 782.1818182 | BI119: 3.728730823 | BJ119: 95.5 | BK119: 32139.36415 | BL119: 119.5837437 | BM119: 355.8765856 | BN119: 244.3474606 | BO119: 43 | BP119: 46 | BQ119: BBB
A120: non | B120: 2 | C120: conventionnel | D120: eleveur naisseur | E120: 2023 | F120: 88167 | G120: 1.92 | H120: 1.92 | I120: 95.52 | J120: 191.45 | K120: 99.71354167 | L120: 2.004292295 | M120: 49.75 | N120: 1547.4 | O120: 1547.4 | P120: 0 | Q120: 884.9 | R120: 729.2 | S120: 446.6 | T120: 18.7 | U120: 427.9 | V120: 224.4 | W120: 58.2 | X120: 155.7 | Y120: 835.8044389 | Z120: 292.0361181 | AA120: 732.6322236 | AB120: 535.2823492 | AC120: 146.6210499 | AD120: 187.4765693 | AE120: 662.5 | AF120: 25680 | AG120: -11634.3 | AH120: 25880 | AI120: 77137.39583 | AJ120: -51457.39583 | AK120: 404 | AL120: 29 | AM120: 4 | AN120: 132.28 | AO120: 100.67 | AP120: 4.967401428 | AQ120: 113.4 | AR120: 322.1 | AS120: 40.6 | AT120: 74 | AU120: 10 | AV120: 0 | AW120: 2692.303571 | AY120: 1527.486486 | BA120: 3671.2 | BD120: 2164.142857 | BE120: 1809.7625 | BG120: 0 | BH120: . | BJ120: 93.7 | BK120: 72277.7399 | BL120: 145.7053539 | BM120: 417.0072604 | BN120: 267.0680073 | BO120: 51 | BP120: 63 | BQ120: BBB
A121: non | B121: 1 | C121: conventionnel | D121: eleveur naisseur | E121: 2019 | F121: 88184 | G121: 1.2 | H121: 1.2 | I121: 82.77 | J121: 136.7 | K121: 113.9166667 | L121: 1.651564577 | M121: 68.975 | N121: 824.7 | O121: 824.7 | P121: 0 | Q121: 653.7 | R121: 584 | S121: 424.1 | T121: 0 | U121: 424.1 | V121: 128.8 | W121: 31.1 | X121: 69.7 | Y121: 428.6633925 | Z121: 97.16382747 | AA121: 311.270859 | AB121: 219.2904313 | AC121: 111.8299195 | AD121: 130.9298464 | AE121: 171 | AF121: -9026 | AG121: -30222.6 | AH121: -11729 | AI121: 59960.99917 | AJ121: -68986.99917 | AK121: 407 | AL121: 34 | AM121: 5 | AN121: 126.797 | AO121: 98.98 | AP121: 7.142857143 | AQ121: 76.5 | AR121: 224 | AS121: 14 | AT121: 28 | AU121: 2 | AV121: 1 | AW121: 1826.578947 | AY121: 1105.714286 | BD121: 1321 | BE121: 1123.892857 | BG121: 783 | BH121: 783 | BI121: 3.275862069 | BJ121: 98.5 | BK121: 59061.58418 | BL121: 58.83138259 | BM121: 259.549883 | BN121: 132.7773884 | BO121: 51 | BP121: 42 | BQ121: BBB
A122: non | B122: 1 | C122: conventionnel | D122: eleveur naisseur | E122: 2020 | F122: 88184 | G122: 1.2 | H122: 1.2 | I122: 82.46 | J122: 157.12 | K122: 130.9333333 | L122: 1.905408683 | M122: 68.71666667 | N122: 887.6 | O122: 881.3 | P122: 6.3 | Q122: 643.9 | R122: 589.7 | S122: 456.9 | T122: 0 | U122: 456.9 | V122: 118 | W122: 14.8 | X122: 54.2 | Y122: 438.1637036 | Z122: 105.5092166 | AA122: 324.8749576 | AB122: 218.9876304 | AC122: 101.5658096 | AD122: 110.8305754 | AE122: 243.8 | AF122: 6589 | AG122: -12964.9 | AH122: 8064 | AI122: 60851.99917 | AJ122: -54262.99917 | AK122: 408 | AL122: 35 | AM122: 6 | AN122: 103.03 | AO122: 101.19 | AP122: 1.568627451 | AQ122: 82.5 | AR122: 255 | AS122: 24.6 | AT122: 41 | AU122: 5 | AV122: 4 | AW122: 2047.692308 | AX122: 731.2857143 | AY122: 1116.04878 | BA122: 2192.6 | BD122: 1900.6 | BE122: 1169.194444 | BG122: 2870 | BH122: 717.5 | BI122: 3.494773519 | BJ122: 93.6 | BK122: 56957.47122 | BL122: 55.37353615 | BM122: 229.9578602 | BN122: 114.9294807 | BO122: 48 | BP122: 36 | BQ122: BBB
A123: non | B123: 1 | C123: conventionnel | D123: eleveur naisseur | E123: 2021 | F123: 88184 | G123: 1.83 | H123: 1.83 | I123: 82.12 | J123: 155.88 | K123: 85.18032787 | L123: 1.898197759 | M123: 44.87431694 | N123: 937.7 | O123: 937.7 | P123: 0 | Q123: 634.9 | R123: 574.2 | S123: 444.3 | T123: 0 | U123: 444.3 | V123: 113.3 | W123: 16.6 | X123: 60.7 | Y123: 413.6401607 | Z123: 127.4225524 | AA123: 411.5131515 | AB123: 230.9409401 | AC123: 105.7721966 | AD123: 112.0286118 | AE123: 302.8 | AF123: 9431 | AG123: -2411.4 | AH123: 11247 | AI123: 53443.47541 | AJ123: -44012.47541 | AK123: 419 | AL123: 35 | AM123: 5 | AN123: 107.32 | AO123: 100 | AP123: 2.815768302 | AQ123: 79.2 | AR123: 248.6 | AS123: 20.4 | AT123: 21 | AU123: 2 | AV123: 2 | AW123: 2351.314286 | AX123: 664.1666667 | AY123: 1175.047619 | BD123: 2131.375 | BE123: 1278.705882 | BG123: 1208 | BH123: 604 | BI123: 2.957781457 | BJ123: 93.1 | BK123: 49755.87561 | BL123: 67.12817552 | BM123: 217.9120477 | BN123: 121.6632666 | BO123: 44 | BP123: 56 | BQ123: BBB
A124: non | B124: 1 | C124: conventionnel | D124: eleveur naisseur | E124: 2019 | F124: 88201 | G124: 2 | H124: 2 | I124: 109.23 | J124: 201.89 | K124: 100.945 | L124: 1.848301749 | M124: 54.615 | N124: 790.9 | O124: 790.9 | P124: 0 | Q124: 691.3 | R124: 574.8 | S124: 375.1 | T124: 63.4 | U124: 311.7 | V124: 173.7 | W124: 26 | X124: 116.5 | Y124: 387.0418292 | Z124: 120.6220727 | AA124: 440.5306051 | AB124: 199.4104275 | AC124: 122.6724949 | AD124: 118.6110297 | AE124: 99.6 | AF124: -2214 | AG124: -20248.9 | AH124: -281 | AI124: 50876 | AJ124: -53090 | AK124: 407 | AL124: 29 | AM124: 5 | AN124: 127.046 | AO124: 101.875 | AP124: 9.915427238 | AQ124: 128.3 | AR124: 342.9 | AS124: 39.4 | AT124: 50 | AU124: 0 | AV124: 0 | AW124: 1645.256757 | AY124: 1150.58 | BD124: 1623 | BE124: 1180.851064 | BG124: 0 | BH124: . | BJ124: 88.9 | BK124: 45228.764 | BL124: 65.26102828 | BM124: 209.4040269 | BN124: 107.8884591 | BO124: 58 | BP124: 53 | BQ124: BBB
A125: non | B125: 2 | C125: conventionnel | D125: eleveur naisseur | E125: 2020 | F125: 88201 | G125: 2 | H125: 2 | I125: 107.54 | J125: 199.9 | K125: 99.95 | L125: 1.858843221 | M125: 53.77 | N125: 1020.6 | O125: 1020.6 | P125: 0 | Q125: 696.5 | R125: 599.3 | S125: 411.5 | T125: 49.9 | U125: 361.6 | V125: 165.6 | W125: 22.2 | X125: 97.1 | Y125: 384.5416589 | Z125: 96.15305003 | AA125: 384.6783429 | AB125: 202.5175749 | AC125: 126.4978489 | AD125: 116.4794731 | AE125: 324.1 | AF125: 22156 | AG125: 3891.9 | AH125: 30509 | AI125: 51632 | AJ125: -29476 | AK125: 407 | AL125: 29 | AM125: 5 | AN125: 120.033 | AO125: 102.113 | AP125: 9.865470852 | AQ125: 120.8 | AR125: 334.5 | AS125: 41.7 | AT125: 70 | AU125: 0 | AV125: 0 | AW125: 1869.1875 | AY125: 1188.328571 | BE125: 1183.323077 | BG125: 0 | BH125: . | BJ125: 84.9 | BK125: 43835.568 | BL125: 51.72735868 | BM125: 206.8714857 | BN125: 108.9481741 | BO125: 55 | BP125: 46 | BQ125: BBB
A126: non | B126: 2 | C126: conventionnel | D126: eleveur naisseur | E126: 2021 | F126: 88201 | G126: 2 | H126: 2 | I126: 108.24 | J126: 207.46 | K126: 103.73 | L126: 1.916666667 | M126: 54.12 | N126: 1216.9 | O126: 1216.9 | P126: 0 | Q126: 830.8 | R126: 722.6 | S126: 520.9 | T126: 48.2 | U126: 472.7 | V126: 180.1 | W126: 21.6 | X126: 108.2 | Y126: 382.7649667 | Z126: 132.7859387 | AA126: 414.2816888 | AB126: 228.9065041 | AC126: 126.6623928 | AD126: 111.9586106 | AE126: 386 | AF126: 23055 | AG126: 2702.8 | AH126: 27149 | AI126: 50781.58 | AJ126: -27726.58 | AK126: 381 | AL126: 29 | AM126: 5 | AN126: 128.7 | AO126: 101.75 | AP126: 5.982905983 | AQ126: 135.2 | AR126: 351 | AS126: 44.9 | AT126: 66 | AU126: 2 | AV126: 0 | AW126: 2254.339286 | AY126: 1329.818182 | BE126: 1582.830508 | BG126: 0 | BH126: . | BJ126: 91.3 | BK126: 46363.58254 | BL126: 69.27962017 | BM126: 199.7034609 | BN126: 119.4294804 | BO126: 42 | BP126: 55 | BQ126: BBB
A127: non | B127: 2 | C127: conventionnel | D127: eleveur naisseur | E127: 2022 | F127: 88201 | G127: 2 | H127: 2 | I127: 102.33 | J127: 208.19 | K127: 104.095 | L127: 2.034496238 | M127: 51.165 | N127: 1282.3 | O127: 1260.1 | P127: 22.2 | Q127: 889.1 | R127: 782.4 | S127: 597.4 | T127: 38 | U127: 559.4 | V127: 163.9 | W127: 21.1 | X127: 106.7 | Y127: 414.6796638 | Z127: 217.1170722 | AA127: 524.3536597 | AB127: 249.6579693 | AC127: 149.1233969 | AD127: 121.1902821 | AE127: 393.2 | AF127: 26534 | AG127: 6509.2 | AH127: 39243 | AI127: 53382.63 | AJ127: -26848.63 | AK127: 400 | AL127: 29 | AM127: 5 | AN127: 111.03 | AO127: 100 | AP127: 3.323179175 | AQ127: 133.3 | AR127: 361.1 | AS127: 55.9 | AT127: 75 | AU127: 2 | AV127: 0 | AW127: 2510.953846 | AY127: 1449.16 | BE127: 1449.862745 | BG127: 0 | BH127: . | BJ127: 82.9 | BK127: 44254.20027 | BL127: 106.7178539 | BM127: 203.8242471 | BN127: 122.7124261 | BO127: 53 | BP127: 42 | BQ127: BBB
A128: non | B128: 2 | C128: conventionnel | D128: eleveur naisseur | E128: 2023 | F128: 88201 | G128: 2 | H128: 2 | I128: 112.09 | J128: 200.35 | K128: 100.175 | L128: 1.78740298 | M128: 56.045 | N128: 1336.7 | O128: 1336.7 | P128: 0 | Q128: 1002.2 | R128: 858.7 | S128: 639.1 | T128: 81.4 | U128: 557.7 | V128: 184.9 | W128: 34.7 | X128: 143.5 | Y128: 303.0789544 | Z128: 163.2816487 | AA128: 393.2903916 | AB128: 238.226336 | AC128: 146.015972 | AD128: 154.6298395 | AE128: 334.5 | AF128: 21409 | AG128: 1206.4 | AH128: 27017 | AI128: 60183 | AJ128: -38774 | AK128: 410 | AL128: 28 | AM128: 4 | AN128: 128.62 | AO128: 101.27 | AP128: 3.464203233 | AQ128: 124.4 | AR128: 346.4 | AS128: 41.6 | AT128: 59 | AU128: 0 | AV128: 0 | AW128: 2451.2 | AY128: 1377.779661 | BE128: 1429.913043 | BG128: 0 | BH128: . | BJ128: 90.9 | BK128: 54706.347 | BL128: 91.35133516 | BM128: 169.5638632 | BN128: 133.2807088 | BO128: 62 | BP128: 61 | BQ128: BBB
A129: non | B129: 2 | C129: conventionnel | D129: eleveur engraisseur | E129: 2019 | F129: 88206 | G129: 2.54 | H129: 2.54 | I129: 112.63 | J129: 124.37 | K129: 48.96456693 | L129: 1.104235106 | M129: 44.34251969 | N129: 347.1 | O129: 347.1 | P129: 0 | Q129: 314.5 | R129: 286.6 | S129: 109.6 | T129: 45.8 | U129: 63.8 | V129: 160.6 | W129: 16.4 | X129: 27.9 | Y129: 163.2664388 | Z129: 73.04448193 | AA129: 224.4947083 | AB129: 162.8705407 | AC129: 141.8670097 | AD129: 193.9807696 | AE129: 32.6 | AF129: 3551 | AG129: -2200.9 | AH129: 3106 | AI129: 41680.51181 | AJ129: -38129.51181 | AK129: 427 | AL129: 36 | AM129: 7 | AN129: 73.373 | AO129: 82.667 | AP129: 15.93011305 | AQ129: 84.5 | AR129: 194.6 | AS129: 27 | AT129: 9 | AU129: 20 | AV129: 29 | AW129: 1224.833333 | AY129: 907.4444444 | BA129: 864.95 | BF129: 878.137931 | BG129: 8740 | BH129: 301.3793103 | BI129: 2.913729977 | BJ129: 76.2 | BK129: 31760.55 | BL129: 66.14939294 | BM129: 147.8547801 | BN129: 147.4962531 | BO129: 24 | BP129: 34 | BQ129: autres
A130: non | B130: 2 | C130: conventionnel | D130: intermediaire | E130: 2020 | F130: 88206 | G130: 1.56 | H130: 1.56 | I130: 120.01 | J130: 135.99 | K130: 87.17307692 | L130: 1.13315557 | M130: 76.92948718 | N130: 510.5 | O130: 510.5 | P130: 0 | Q130: 316.1 | R130: 282.7 | S130: 192.3 | T130: 63.5 | U130: 128.8 | V130: 77.5 | W130: 12.9 | X130: 33.4 | Y130: 147.748596 | Z130: 46.27322723 | AA130: 187.4043746 | AB130: 165.1778102 | AC130: 129.5706302 | AD130: 155.8469814 | AE130: 194.4 | AF130: 17725 | AG130: 8084 | AH130: 17483 | AI130: 56381.41026 | AJ130: -38656.41026 | AK130: 450 | AL130: 36 | AM130: 6 | AN130: 76.243 | AO130: 90.789 | AP130: 7.54005655 | AQ130: 90.5 | AR130: 212.2 | AS130: 23.7 | AT130: 10 | AU130: 12 | AV130: 0 | AW130: 1393 | AY130: 1159.8 | BA130: 1263 | BE130: 1216.090909 | BG130: 0 | BH130: . | BJ130: 83.4 | BK130: 47022.09615 | BL130: 40.83572321 | BM130: 130.3868593 | BN130: 145.7679903 | BO130: 14 | BP130: 14 | BQ130: autres
A131: non | B131: 2 | C131: conventionnel | D131: intermediaire | E131: 2021 | F131: 88206 | G131: 1.56 | H131: 1.56 | I131: 117.23 | J131: 134.75 | K131: 86.37820513 | L131: 1.1494498 | M131: 75.1474359 | N131: 648.6 | O131: 648.6 | P131: 0 | Q131: 365.7 | R131: 343.6 | S131: 245.4 | T131: 60 | U131: 185.4 | V131: 85.2 | W131: 13 | X131: 22.1 | Y131: 171.943018 | Z131: 116.0667065 | AA131: 279.2893457 | AB131: 133.7217436 | AC131: 114.710872 | AD131: 157.4759116 | AE131: 283 | AF131: 18723 | AG131: 8858.2 | AH131: 19322 | AI131: 57360.17308 | AJ131: -38637.17308 | AK131: 466 | AL131: 35 | AM131: 7 | AN131: 86.79 | AO131: 92 | AP131: 8.735632184 | AQ131: 79.5 | AR131: 217.5 | AS131: 28.8 | AT131: 19 | AU131: 7 | AV131: 0 | AW131: 1801.416667 | AY131: 1303.421053 | BA131: 1249.428571 | BB131: 950 | BE131: 1288.884615 | BG131: 0 | BH131: . | BJ131: 84.8 | BK131: 48641.42677 | BL131: 100.9758813 | BM131: 149.5872356 | BN131: 116.335436 | BO131: 34 | BP131: 21 | BQ131: autres
A132: non | B132: 1 | C132: conventionnel | D132: eleveur naisseur | E132: 2022 | F132: 88206 | G132: 1.56 | H132: 1.56 | I132: 117.32 | J132: 130.21 | K132: 83.46794872 | L132: 1.10987044 | M132: 75.20512821 | N132: 343.2 | O132: 343.2 | P132: 0 | Q132: 258.8 | R132: 246.3 | S132: 158.1 | T132: 34.2 | U132: 123.9 | V132: 71.6 | W132: 16.6 | X132: 12.5 | Y132: 152.3890215 | Z132: 100.2185476 | AA132: 243.2065292 | AB132: 206.754688 | AC132: 151.0982259 | AD132: 166.7804896 | AE132: 84.3 | AF132: 11465 | AG132: 3059.7 | AH132: 10397 | AI132: 60055.66667 | AJ132: -48590.66667 | AK132: 413 | AL132: 38 | AM132: 7 | AN132: 86.1 | AO132: 87.69 | AP132: 20.80162354 | AQ132: 66.2 | AR132: 197.1 | AS132: 21.3 | AT132: 18 | AU132: 11 | AV132: 0 | AW132: 1627.615385 | AY132: 1077.5 | BA132: 1311.636364 | BE132: 1296.28 | BG132: 0 | BH132: . | BJ132: 59.5 | BK132: 35733.12167 | BL132: 90.29751939 | BM132: 137.3034329 | BN132: 186.2872283 | BO132: 59 | BP132: 44 | BQ132: autres
A133: non | B133: 2 | C133: conventionnel | D133: intermediaire | E133: 2023 | F133: 88206 | G133: 1.56 | H133: 1.56 | I133: 124.18 | J133: 121.64 | K133: 77.97435897 | L133: 0.9795458206 | M133: 79.6025641 | N133: 512.3 | O133: 512.3 | P133: 0 | Q133: 324.7 | R133: 281.5 | S133: 207 | T133: 46.9 | U133: 160.1 | V133: 60 | W133: 14.5 | X133: 43.2 | Y133: 125.0454985 | Z133: 109.3272669 | AA133: 211.4740699 | AB133: 191.9851023 | AC133: 139.0167708 | AD133: 277.762097 | AE133: 187.7 | AF133: 19124 | AG133: 11171.6 | AH133: 20481 | AI133: 68957.69231 | AJ133: -49833.69231 | AK133: 493 | AL133: 35 | AM133: 6 | AN133: 89.43 | AO133: 83.54 | AP133: 15.97444089 | AQ133: 73.8 | AR133: 187.8 | AS133: 28.5 | AT133: 11 | AU133: 8 | AV133: 0 | AW133: 1816.166667 | AY133: 1213.909091 | BA133: 975.875 | BE133: 1113.684211 | BG133: 0 | BH133: . | BJ133: 76.3 | BK133: 52614.71923 | BL133: 111.6101611 | BM133: 127.6566097 | BN133: 195.9939987 | BO133: 39 | BP133: 57 | BQ133: autres
A134: non | B134: 2 | C134: conventionnel | D134: eleveur engraisseur | E134: 2019 | F134: 88211 | G134: 2 | H134: 2 | I134: 114.87 | J134: 290.54 | K134: 145.27 | L134: 2.529293985 | M134: 57.435 | N134: 1018.1 | O134: 1018.1 | P134: 0 | Q134: 697.8 | R134: 606.3 | S134: 402.1 | T134: 0 | U134: 402.1 | V134: 167.6 | W134: 36.6 | X134: 91.5 | Y134: 501.527283 | Z134: 98.29589971 | AA134: 382.8745538 | AB134: 383.2802298 | AC134: 124.7994424 | AD134: 119.4128175 | AE134: 320.3 | AF134: 27643 | AG134: 1610.7 | AH134: 27114 | AI134: 53601.5 | AJ134: -25958.5 | AK134: 410 | AL134: 30 | AM134: 5 | AN134: 108.537 | AO134: 104.094 | AP134: 10.09268795 | AQ134: 164 | AR134: 485.5 | AS134: 71.9 | AT134: 10 | AU134: 55 | AV134: 49 | AW134: 1883.293333 | AY134: 1431.3 | BA134: 2172.836364 | BD134: 1821.5 | BE134: 1239.428571 | BF134: 2100.938776 | BG134: 29940 | BH134: 611.0204082 | BI134: 3.438410154 | BJ134: 96.4 | BK134: 51671.846 | BL134: 38.86297928 | BM134: 198.2874613 | BN134: 151.5364494 | BO134: 52 | BP134: 33 | BQ134: BBB
A135: non | B135: 3 | C135: conventionnel | D135: eleveur engraisseur | E135: 2020 | F135: 88211 | G135: 2 | H135: 2 | I135: 123.57 | J135: 284.23 | K135: 142.115 | L135: 2.300153759 | M135: 61.785 | N135: 1170.2 | O135: 1170.2 | P135: 0 | Q135: 698.3 | R135: 617.4 | S135: 426.4 | T135: 0 | U135: 426.4 | V135: 145.6 | W135: 45.4 | X135: 80.9 | Y135: 608.596504 | Z135: 94.24010682 | AA135: 501.0288177 | AB135: 374.0855386 | AC135: 129.2498329 | AD135: 119.9490553 | AE135: 472 | AF135: 38037 | AG135: 13122.9 | AH135: 41608 | AI135: 54398 | AJ135: -16361 | AK135: 407 | AL135: 31 | AM135: 5 | AN135: 120.124 | AO135: 102.105 | AP135: 11.35169224 | AQ135: 161.5 | AR135: 475.7 | AS135: 80.2 | AT135: 14 | AU135: 60 | AV135: 45 | AW135: 2078.074627 | AY135: 1588.428571 | BA135: 2235.4 | BD135: 2108 | BE135: 1267.384615 | BF135: 2222.111111 | BG135: 26908 | BH135: 597.9555556 | BI135: 3.716181061 | BJ135: 93.8 | BK135: 51025.324 | BL135: 40.97122049 | BM135: 264.5894874 | BN135: 162.6350139 | BO135: 44 | BP135: 49 | BQ135: BBB
A136: non | B136: 3 | C136: conventionnel | D136: eleveur engraisseur | E136: 2021 | F136: 88211 | G136: 2 | H136: 2 | I136: 115.78 | J136: 272.59 | K136: 136.295 | L136: 2.354378995 | M136: 57.89 | N136: 1255.1 | O136: 1255.1 | P136: 0 | Q136: 750 | R136: 659.4 | S136: 461.2 | T136: 23.2 | U136: 438 | V136: 158 | W136: 40.2 | X136: 90.6 | Y136: 644.1321472 | Z136: 119.9913629 | AA136: 548.4459319 | AB136: 252.5907756 | AC136: 139.2428923 | AD136: 117.3938751 | AE136: 505.1 | AF136: 46466 | AG136: 22139.8 | AH136: 48794 | AI136: 52662.375 | AJ136: -6196.375 | AK136: 398 | AL136: 29 | AM136: 5 | AN136: 104.39 | AO136: 101.73 | AP136: 9.60279354 | AQ136: 168.6 | AR136: 458.2 | AS136: 77.4 | AT136: 3 | AU136: 59 | AV136: 52 | AW136: 2406.75 | BA136: 2569.661017 | BD136: 2182.461538 | BF136: 2564.576923 | BG136: 32142 | BH136: 618.1153846 | BI136: 4.149026196 | BJ136: 94.2 | BK136: 49607.95725 | BL136: 50.96518581 | BM136: 273.5889798 | BN136: 107.2855204 | BO136: 37 | BP136: 43 | BQ136: BBB
A137: non | B137: 2 | C137: conventionnel | D137: eleveur engraisseur | E137: 2022 | F137: 88211 | G137: 2 | H137: 2 | I137: 115.4 | J137: 280.01 | K137: 140.005 | L137: 2.426429809 | M137: 57.7 | N137: 1189.9 | O137: 1189.9 | P137: 0 | Q137: 791 | R137: 721.7 | S137: 563.8 | T137: 84.9 | U137: 478.9 | V137: 113.8 | W137: 44.1 | X137: 69.2 | Y137: 672.0369151 | Z137: 133.3005199 | AA137: 608.9266031 | AB137: 270.6040728 | AC137: 139.8825042 | AD137: 105.9251052 | AE137: 399 | AF137: 34271 | AG137: 10604.7 | AH137: 52076 | AI137: 55359.765 | AJ137: -21088.765 | AK137: 424 | AL137: 31 | AM137: 5 | AN137: 97.49 | AO137: 101.24 | AP137: 7.413868295 | AQ137: 167.2 | AR137: 458.6 | AS137: 71.4 | AT137: 0 | AU137: 66 | AV137: 60 | AW137: 2699.466667 | BA137: 2778.30303 | BE137: 2102.666667 | BF137: 2845.866667 | BG137: 40990 | BH137: 683.1666667 | BI137: 4.165698951 | BJ137: 84.3 | BK137: 46668.28189 | BL137: 54.93689511 | BM137: 276.9653227 | BN137: 111.5235527 | BO137: 28 | BP137: 27 | BQ137: BBB
A138: non | B138: 3 | C138: conventionnel | D138: eleveur engraisseur | E138: 2023 | F138: 88211 | G138: 2 | H138: 2 | I138: 116.61 | J138: 276.12 | K138: 138.06 | L138: 2.367892977 | M138: 58.305 | N138: 1366.3 | O138: 1355.5 | P138: 10.8 | Q138: 916.5 | R138: 826.9 | S138: 635.4 | T138: 104.7 | U138: 530.7 | V138: 148.6 | W138: 42.9 | X138: 89.6 | Y138: 443.5781665 | Z138: 99.11242604 | AA138: 419.2552097 | AB138: 232.7904982 | AC138: 135.3436911 | AD138: 119.0045716 | AE138: 449.8 | AF138: 51325 | AG138: 27123.7 | AH138: 58818 | AI138: 62412 | AJ138: -11087 | AK138: 416 | AL138: 31 | AM138: 5 | AN138: 100.12 | AO138: 100 | AP138: 9.178321678 | AQ138: 163.8 | AR138: 457.6 | AS138: 70.6 | AT138: 2 | AU138: 68 | AV138: 57 | AW138: 2732 | BA138: 2957.294118 | BD138: 2533.4 | BE138: 3175.266667 | BF138: 2838.649123 | BG138: 39859 | BH138: 699.2807018 | BI138: 4.05938433 | BJ138: 92.4 | BK138: 57668.688 | BL138: 41.85680139 | BM138: 187.3303274 | BN138: 98.31124149 | BO138: 40 | BP138: 42 | BQ138: BBB
A139: non | B139: 1 | C139: conventionnel | D139: eleveur naisseur | E139: 2022 | F139: 88222 | G139: 1.22 | H139: 1.22 | I139: 65.13 | J139: 84.27 | K139: 69.07377049 | L139: 1.293873791 | M139: 53.3852459 | N139: 1005.3 | O139: 989.9 | P139: 15.4 | Q139: 603.4 | R139: 585.7 | S139: 427 | T139: 0 | U139: 427 | V139: 114.9 | W139: 43.8 | X139: 17.7 | Y139: 368.2112698 | Z139: 161.2674651 | AA139: 406.4170121 | AB139: 267.0227238 | AC139: 158.5024327 | AD139: 280.5501365 | AE139: 401.9 | AF139: 9243 | AG139: -3133 | AH139: 6482 | AI139: 56646.62295 | AJ139: -47403.62295 | AK139: 415 | AL139: 29 | AM139: 5 | AN139: 92.66 | AO139: 89.83 | AP139: 4.647560031 | AQ139: 55.3 | AR139: 129.1 | AS139: 3.6 | AT139: 27 | AU139: 0 | AV139: 0 | AW139: 2638.153846 | AX139: 699.3636364 | AY139: 779.6296296 | BE139: 1132.8 | BG139: 0 | BH139: . | BJ139: 97.4 | BK139: 55173.81075 | BL139: 124.6392548 | BM139: 284.580515 | BN139: 206.3746292 | BO139: 24 | BP139: 24 | BQ139: BBB
A140: non | B140: 2 | C140: conventionnel | D140: eleveur naisseur | E140: 2023 | F140: 88222 | G140: 1 | H140: 1 | I140: 65.41 | J140: 89.02 | K140: 89.02 | L140: 1.360953983 | M140: 65.41 | N140: 1066.1 | O140: 1066.1 | P140: 0 | Q140: 561.4 | R140: 556.8 | S140: 358.8 | T140: 0 | U140: 358.8 | V140: 145.3 | W140: 52.7 | X140: 4.6 | Y140: 329.2068491 | Z140: 191.227641 | AA140: 373.0565663 | AB140: 269.6905672 | AC140: 150.0662772 | AD140: 303.6816446 | AE140: 504.7 | AF140: 31907 | AG140: 16683 | AH140: 32203 | AI140: 66870 | AJ140: -34963 | AK140: 407 | AL140: 31 | AM140: 5 | AN140: 110.71 | AO140: 85.92 | AP140: 9.767092412 | AQ140: 53.1 | AR140: 133.1 | AS140: 1.5 | AT140: 31 | AU140: 0 | AV140: 0 | AW140: 2661.391304 | AX140: 734.3 | AY140: 725.8387097 | BG140: 0 | BH140: . | BJ140: 91.6 | BK140: 61252.92 | BL140: 140.5099978 | BM140: 241.8941811 | BN140: 198.1628847 | BO140: 47 | BP140: 47 | BQ140: BBB
A141: non | B141: 1 | C141: conventionnel | D141: eleveur naisseur | E141: 2019 | F141: 88223 | G141: 2.1 | H141: 2.07 | I141: 92.69 | J141: 211.19 | K141: 100.5666667 | L141: 2.278455065 | M141: 44.13809524 | N141: 723.8 | O141: 661.4 | P141: 62.4 | Q141: 740.2 | R141: 659.7 | S141: 384.5 | T141: 29.3 | U141: 355.2 | V141: 216 | W141: 59.2 | X141: 80.5 | Y141: 742.0783256 | Z141: 176.032366 | AA141: 475.8731255 | AB141: 332.2099363 | AC141: 142.5640892 | AD141: 145.1063778 | AE141: -16.4 | AF141: -16570 | AG141: -35268.6 | AH141: -13818 | AI141: 54151.69082 | AJ141: -70721.69082 | AK141: 434 | AL141: 33 | AM141: 6 | AN141: 117.216 | AO141: 101.266 | AP141: 15.24479625 | AQ141: 136.5 | AR141: 341.1 | AS141: 41.7 | AT141: 58 | AU141: 2 | AV141: 0 | AW141: 1557.136364 | AY141: 1047.103448 | BD141: 1670.428571 | BE141: 1148.283019 | BG141: 0 | BH141: . | BJ141: 78.1 | BK141: 42292.47053 | BL141: 77.25952933 | BM141: 325.6936408 | BN141: 145.8049103 | BO141: 56 | BP141: 43 | BQ141: BBB
A142: non | B142: 1 | C142: conventionnel | D142: eleveur naisseur | E142: 2020 | F142: 88223 | G142: 2.08 | H142: 2.07 | I142: 100.21 | J142: 198.75 | K142: 95.55288462 | L142: 1.983334997 | M142: 48.17788462 | N142: 764.3 | O142: 755.2 | P142: 9.1 | Q142: 697.4 | R142: 587.5 | S142: 395.8 | T142: 48.9 | U142: 346.9 | V142: 153.4 | W142: 38.3 | X142: 109.8 | Y142: 652.9239497 | Z142: 135.4732961 | AA142: 393.7670791 | AB142: 295.6997206 | AC142: 143.0199245 | AD142: 164.4106271 | AE142: 67 | AF142: -1142 | AG142: -17867.2 | AH142: 8363 | AI142: 54957.48792 | AJ142: -56099.48792 | AK142: 408 | AL142: 30 | AM142: 6 | AN142: 87.232 | AO142: 101.852 | AP142: 5.449591281 | AQ142: 126.1 | AR142: 330.3 | AS142: 39.8 | AT142: 72 | AU142: 2 | AV142: 0 | AW142: 1720.72 | AY142: 1103.777778 | BD142: 1505.833333 | BE142: 1100.193548 | BG142: 0 | BH142: . | BJ142: 69.5 | BK142: 38195.45411 | BL142: 68.30580629 | BM142: 329.2050767 | BN142: 149.0921711 | BO142: 40 | BP142: 27 | BQ142: BBB
A143: non | B143: 2 | C143: conventionnel | D143: eleveur naisseur | E143: 2021 | F143: 88223 | G143: 2.08 | H143: 2.07 | I143: 101.31 | J143: 201.16 | K143: 96.71153846 | L143: 1.985588787 | M143: 48.70673077 | N143: 1052.4 | O143: 1035.5 | P143: 16.9 | Q143: 707.5 | R143: 603.9 | S143: 340.7 | T143: 19.1 | U143: 321.6 | V143: 214.8 | W143: 48.4 | X143: 103.6 | Y143: 651.6303425 | Z143: 144.2824993 | AA143: 438.9580496 | AB143: 282.0747212 | AC143: 139.1671306 | AD143: 154.3368066 | AE143: 344.9 | AF143: 15706 | AG143: -2314.6 | AH143: 16668 | AI143: 56039.51691 | AJ143: -40333.51691 | AK143: 409 | AL143: 30 | AM143: 7 | AN143: 146.92 | AO143: 104.49 | AP143: 11.82033097 | AQ143: 126.6 | AR143: 338.4 | AS143: 36.6 | AT143: 59 | AU143: 0 | AV143: 0 | AW143: 2000.309091 | AY143: 1136.457627 | BD143: 2102.4 | BE143: 1161.148936 | BG143: 0 | BH143: . | BJ143: 86.3 | BK143: 48362.10309 | BL143: 72.66484391 | BM143: 328.1799065 | BN143: 142.0609962 | BO143: 45 | BP143: 58 | BQ143: BBB
A144: non | B144: 1 | C144: conventionnel | D144: eleveur naisseur | E144: 2023 | F144: 88223 | G144: 2.08 | H144: 2.07 | I144: 98.19 | J144: 193.32 | K144: 92.94230769 | L144: 1.96883593 | M144: 47.20673077 | N144: 1176.4 | O144: 1162.6 | P144: 13.8 | Q144: 795.5 | R144: 699.2 | S144: 446.1 | T144: 50.6 | U144: 395.5 | V144: 198.3 | W144: 54.8 | X144: 96.3 | Y144: 860.5011712 | Z144: 288.6287809 | AA144: 763.3477951 | AB144: 319.6182911 | AC144: 141.7039106 | AD144: 171.1760753 | AE144: 380.9 | AF144: 2991 | AG144: -15246.2 | AH144: 6536 | AI144: 66369.08213 | AJ144: -63378.08213 | AK144: 413 | AL144: 30 | AM144: 5 | AN144: 127.95 | AO144: 97.24 | AP144: 9.720915648 | AQ144: 110.2 | AR144: 318.9 | AS144: 40.1 | AT144: 62 | AU144: 1 | AV144: 0 | AW144: 2268.539683 | AX144: 785 | AY144: 1197.983871 | BE144: 1260.648148 | BG144: 0 | BH144: . | BJ144: 84.2 | BK144: 55882.76715 | BL144: 146.5986965 | BM144: 437.0608835 | BN144: 162.338713 | BO144: 58 | BP144: 59 | BQ144: BBB
A145: non | B145: 3 | C145: conventionnel | D145: intermediaire | E145: 2019 | F145: 88224 | G145: 2.28 | H145: 2.28 | I145: 139.08 | J145: 322.6 | K145: 141.4912281 | L145: 2.319528329 | M145: 61 | N145: 523.5 | O145: 523.5 | P145: 0 | Q145: 157.3 | R145: 143.6 | S145: 89.3 | T145: 0 | U145: 89.3 | V145: 41.7 | W145: 12.6 | X145: 13.7 | Y145: 221.0226488 | Z145: 35.60626977 | AA145: 148.9670046 | AB145: 118.9158686 | AC145: 70.70967142 | AD145: 110.5953193 | AE145: 366.3 | AF145: 54047 | AG145: 39438.6 | AH145: 53557 | AI145: 51277.85088 | AJ145: 2769.149123 | AK145: 401 | AL145: 40 | AM145: 7 | AN145: 108.951 | AO145: 96.38 | AP145: 5.631067961 | AQ145: 195.5 | AR145: 515 | AS145: 66 | AT145: 45 | AU145: 1 | AV145: 0 | AW145: 1292.5 | AY145: 889.0444444 | AZ145: 720 | BB145: 1152 | BC145: 1971 | BD145: 1256.357143 | BE145: 917.4651163 | BG145: 0 | BH145: . | BJ145: 98.4 | BK145: 50457.40526 | BL145: 15.35065096 | BM145: 95.28775573 | BN145: 51.26726286 | BO145: 26 | BP145: 35 | BQ145: LI
A146: non | B146: 3 | C146: conventionnel | D146: eleveur naisseur | E146: 2020 | F146: 88224 | G146: 2.28 | H146: 2.28 | I146: 146.04 | J146: 330.62 | K146: 145.0087719 | L146: 2.263900301 | M146: 64.05263158 | N146: 535.4 | O146: 535.4 | P146: 0 | Q146: 165 | R146: 158.6 | S146: 111.6 | T146: 0 | U146: 111.6 | V146: 35.7 | W146: 11.3 | X146: 6.4 | Y146: 181.4417968 | Z146: 28.63599014 | AA146: 110.5321898 | AB146: 119.9181731 | AC146: 71.39483395 | AD146: 104.7036779 | AE146: 370.5 | AF146: 60014 | AG146: 45707.1 | AH146: 64114 | AI146: 52043.64035 | AJ146: 7970.359649 | AK146: 411 | AL146: 41 | AM146: 7 | AN146: 103.009 | AO146: 96.19 | AP146: 7.591573354 | AQ146: 196.1 | AR146: 526.9 | AS146: 69.4 | AT146: 90 | AU146: 5 | AV146: 0 | AW146: 1322.177419 | AY146: 956.5 | AZ146: 689.0625 | BA146: 857 | BE146: 976.5934066 | BG146: 0 | BH146: . | BJ146: 90.3 | BK146: 46995.40724 | BL146: 12.64896256 | BM146: 80.14566572 | BN146: 52.96972355 | BO146: 35 | BP146: 23 | BQ146: LI
A147: non | B147: 3 | C147: conventionnel | D147: eleveur naisseur | E147: 2021 | F147: 88224 | G147: 2.28 | H147: 2.28 | I147: 144.81 | J147: 328.38 | K147: 144.0263158 | L147: 2.267661073 | M147: 63.51315789 | N147: 558.7 | O147: 558.7 | P147: 0 | Q147: 168.1 | R147: 160.8 | S147: 113.8 | T147: 0 | U147: 113.8 | V147: 36.7 | W147: 10.3 | X147: 7.3 | Y147: 195.8798426 | Z147: 40.79483461 | AA147: 133.2753953 | AB147: 121.9859816 | AC147: 74.26810403 | AD147: 104.5912967 | AE147: 390.6 | AF147: 61707 | AG147: 47465.9 | AH147: 65955 | AI147: 53032.15351 | AJ147: 8674.846491 | AK147: 401 | AL147: 43 | AM147: 7 | AN147: 107.5 | AO147: 97.01 | AP147: 8.467900748 | AQ147: 181.4 | AR147: 507.8 | AS147: 65.7 | AT147: 104 | AU147: 3 | AV147: 0 | AW147: 1342.354167 | AY147: 934.75 | AZ147: 876.1904762 | BB147: 851.8571429 | BE147: 947.1886792 | BG147: 0 | BH147: . | BJ147: 90.2 | BK147: 47835.00246 | BL147: 17.98982886 | BM147: 86.37968208 | BN147: 53.79374505 | BO147: 29 | BP147: 38 | BQ147: LI
A148: non | B148: 3 | C148: conventionnel | D148: eleveur naisseur | E148: 2022 | F148: 88224 | G148: 2 | H148: 2 | I148: 144.53 | J148: 322.6 | K148: 161.3 | L148: 2.232062548 | M148: 72.265 | N148: 780.2 | O148: 780.2 | P148: 0 | Q148: 153.6 | R148: 152.7 | S148: 109.2 | T148: 0 | U148: 109.2 | V148: 30.2 | W148: 13.3 | X148: 0.9 | Y148: 207.9009894 | Z148: 14.08012177 | AA148: 151.5915727 | AB148: 133.5445928 | AC148: 79.45133292 | AD148: 108.8862988 | AE148: 626.6 | AF148: 106119 | AG148: 90286.1 | AH148: 105474 | AI148: 57336.9 | AJ148: 48782.1 | AK148: 412 | AL148: 41 | AM148: 6 | AN148: 104.76 | AO148: 97.06 | AP148: 5.033219247 | AQ148: 189 | AR148: 496.7 | AS148: 61.8 | AT148: 107 | AU148: 2 | AV148: 0 | AW148: 1839.813559 | AX148: 468.75 | AY148: 1071.738318 | AZ148: 883.4827586 | BD148: 1972.222222 | BE148: 1132.765306 | BG148: 0 | BH148: . | BJ148: 98.1 | BK148: 56247.4989 | BL148: 6.308121513 | BM148: 93.14299442 | BN148: 59.83013019 | BO148: 31 | BP148: 30 | BQ148: LI
A149: non | B149: 3 | C149: conventionnel | D149: eleveur naisseur | E149: 2023 | F149: 88224 | G149: 2 | H149: 2 | I149: 145.58 | J149: 314.8 | K149: 157.4 | L149: 2.162384943 | M149: 72.79 | N149: 674.9 | O149: 674.9 | P149: 0 | Q149: 143.4 | R149: 142.2 | S149: 100.7 | T149: 0 | U149: 100.7 | V149: 28.9 | W149: 12.6 | X149: 1.3 | Y149: 184.9318588 | Z149: 38.22853414 | AA149: 163.6427394 | AB149: 135.2851353 | AC149: 134.8287802 | AD149: 145.7547649 | AE149: 531.5 | AF149: 103422 | AG149: 88225 | AH149: 108445 | AI149: 64641 | AJ149: 38781 | AK149: 412 | AL149: 43 | AM149: 7 | AN149: 95.01 | AO149: 96.28 | AP149: 3.524046434 | AQ149: 190.5 | AR149: 482.4 | AS149: 62 | AT149: 78 | AU149: 0 | AV149: 0 | AW149: 1741.976744 | AX149: 500 | AY149: 1091.025641 | AZ149: 750 | BB149: 1015.909091 | BD149: 1600 | BE149: 1140.277778 | BG149: 0 | BH149: . | BJ149: 91.5 | BK149: 59146.515 | BL149: 17.67887548 | BM149: 85.52217281 | BN149: 62.56292884 | BO149: 23 | BP149: 26 | BQ149: LI
A150: non | B150: 2 | C150: conventionnel | D150: intermediaire | E150: 2019 | F150: 88226 | G150: 1.1 | H150: 1.1 | I150: 113.83 | J150: 143.1 | K150: 130.0909091 | L150: 1.257137837 | M150: 103.4818182 | N150: 419.3 | O150: 354.3 | P150: 65 | Q150: 188.2 | R150: 155.3 | S150: 65.1 | T150: 0 | U150: 65.1 | V150: 77.6 | W150: 12.6 | X150: 32.9 | Y150: 238.8303523 | Z150: 64.36844417 | AA150: 274.4039269 | AB150: 209.7938944 | AC150: 99.54367575 | AD150: 246.7263452 | AE150: 231.1 | AF150: 21817 | AG150: 5313 | AH150: 19754 | AI150: 45771.88091 | AJ150: -23954.88091 | AK150: 491 | AL150: 40 | AM150: 7 | AN150: 88.095 | AO150: 93.671 | AP150: 9.836065574 | AQ150: 84 | AR150: 213.5 | AS150: 20.5 | AT150: 15 | AU150: 8 | AV150: 0 | AW150: 1355.534884 | AX150: 709 | AY150: 735.7333333 | BA150: 933.625 | BD150: 1172.857143 | BE150: 847.5 | BG150: 0 | BH150: . | BJ150: 93 | BK150: 42567.84925 | BL150: 51.20237596 | BM150: 189.9794479 | BN150: 166.8821733 | BO150: 57 | BP150: 43 | BQ150: BBB
A151: non | B151: 3 | C151: conventionnel | D151: intermediaire | E151: 2020 | F151: 88226 | G151: 1.1 | H151: 1.1 | I151: 113.28 | J151: 141.17 | K151: 128.3363636 | L151: 1.246204096 | M151: 102.9818182 | N151: 554.8 | O151: 475.2 | P151: 79.6 | Q151: 227.3 | R151: 184.4 | S151: 97 | T151: 0 | U151: 97 | V151: 76.7 | W151: 10.7 | X151: 42.9 | Y151: 194.5660311 | Z151: 54.90351342 | AA151: 210.1855579 | AB151: 186.3666137 | AC151: 103.6210243 | AD151: 289.268754 | AE151: 327.5 | AF151: 50936 | AG151: 34910.7 | AH151: 53701 | AI151: 46485.56273 | AJ151: 4450.437273 | AK151: 488 | AL151: 42 | AM151: 7 | AN151: 94.268 | AO151: 98.667 | AP151: 4.189944134 | AQ151: 78.5 | AR151: 214.8 | AS151: 20.6 | AT151: 14 | AU151: 15 | AV151: 0 | AW151: 1385.304348 | AX151: 770 | AY151: 764.2857143 | BA151: 869.2 | BE151: 847.9444444 | BG151: 0 | BH151: . | BJ151: 84.2 | BK151: 39140.84382 | BL151: 44.05659843 | BM151: 156.1269392 | BN151: 149.5474251 | BO151: 32 | BP151: 39 | BQ151: BBB
A152: non | B152: 2 | C152: conventionnel | D152: intermediaire | E152: 2021 | F152: 88226 | G152: 1.22 | H152: 1.22 | I152: 113.17 | J152: 146.61 | K152: 120.1721311 | L152: 1.295484669 | M152: 92.76229508 | N152: 518 | O152: 473.6 | P152: 44.4 | Q152: 187.1 | R152: 151.9 | S152: 80.3 | T152: 0 | U152: 80.3 | V152: 64.6 | W152: 7 | X152: 35.2 | Y152: 265.958823 | Z152: 70.06494654 | AA152: 295.2256782 | AB152: 197.8251303 | AC152: 103.0883978 | AD152: 257.7494714 | AE152: 330.8 | AF152: 39746 | AG152: 24949.4 | AH152: 40332 | AI152: 51737.39344 | AJ152: -11991.39344 | AK152: 483 | AL152: 42 | AM152: 6 | AN152: 81.83 | AO152: 93.15 | AP152: 7.326007326 | AQ152: 83.1 | AR152: 218.4 | AS152: 19.6 | AT152: 16 | AU152: 9 | AV152: 0 | AW152: 1435.333333 | AY152: 913.0625 | BA152: 1077.777778 | BD152: 1123.571429 | BE152: 1002.666667 | BG152: 0 | BH152: . | BJ152: 83.7 | BK152: 43304.19831 | BL152: 54.08396426 | BM152: 205.2967738 | BN152: 152.7035673 | BO152: 16 | BP152: 22 | BQ152: BBB
A153: non | B153: 3 | C153: conventionnel | D153: eleveur naisseur | E153: 2022 | F153: 88226 | G153: 1.22 | H153: 1.22 | I153: 113.7 | J153: 146.99 | K153: 120.4836066 | L153: 1.292788039 | M153: 93.19672131 | N153: 614.3 | O153: 569.3 | P153: 45 | Q153: 200.2 | R153: 173.3 | S153: 91.1 | T153: 0 | U153: 91.1 | V153: 76 | W153: 6.2 | X153: 26.9 | Y153: 255.3992964 | Z153: 93.02594547 | AA153: 308.6230431 | AB153: 203.1490765 | AC153: 108.0617729 | AD153: 250.1778352 | AE153: 414.1 | AF153: 41382 | AG153: 25917.3 | AH153: 39175 | AI153: 54452.22951 | AJ153: -13070.22951 | AK153: 488 | AL153: 40 | AM153: 7 | AN153: 86.85 | AO153: 100 | AP153: 7.452871548 | AQ153: 85.2 | AR153: 228.1 | AS153: 29.1 | AT153: 23 | AU153: 5 | AV153: 0 | AW153: 1758.366667 | AY153: 819.5652174 | BA153: 1199 | BE153: 968.9090909 | BG153: 0 | BH153: . | BJ153: 96.4 | BK153: 52491.94925 | BL153: 71.95761616 | BM153: 197.5569767 | BN153: 157.1402817 | BO153: 38 | BP153: 25 | BQ153: BBB
A154: non | B154: 2 | C154: conventionnel | D154: eleveur engraisseur | E154: 2023 | F154: 88226 | G154: 1.28 | H154: 1.28 | I154: 113.25 | J154: 149.71 | K154: 116.9609375 | L154: 1.321942605 | M154: 88.4765625 | N154: 575.3 | O154: 495.1 | P154: 80.2 | Q154: 258.9 | R154: 192.8 | S154: 114.2 | T154: 0 | U154: 114.2 | V154: 73 | W154: 5.6 | X154: 66.1 | Y154: 331.5837528 | Z154: 81.80264901 | AA154: 364.3339514 | AB154: 237.3222075 | AC154: 114.0812237 | AD154: 335.1848908 | AE154: 316.4 | AF154: 32323 | AG154: 17383.9 | AH154: 29805 | AI154: 53983.59375 | AJ154: -21660.59375 | AK154: 470 | AL154: 44 | AM154: 7 | AN154: 92.88 | AO154: 96.05 | AP154: 10.26327532 | AQ154: 78.6 | AR154: 224.1 | AS154: 27.7 | AT154: 12 | AU154: 26 | AV154: 0 | AW154: 1628.75 | AY154: 1173.083333 | BA154: 1291.653846 | BE154: 1266.432432 | BG154: 0 | BH154: . | BJ154: 96.5 | BK154: 52094.16797 | BL154: 61.8806359 | BM154: 250.8306726 | BN154: 179.525349 | BO154: 31 | BP154: 29 | BQ154: BBB
A155: non | B155: 3 | C155: conventionnel | D155: eleveur engraisseur | E155: 2021 | F155: 88229 | G155: 1.08 | H155: 1.08 | I155: 82.2 | J155: 121.68 | K155: 112.6666667 | L155: 1.480291971 | M155: 76.11111111 | N155: 1137.5 | O155: 1137.5 | P155: 0 | Q155: 604.3 | R155: 556.9 | S155: 419.1 | T155: 64.9 | U155: 354.2 | V155: 96.8 | W155: 41 | X155: 47.4 | Y155: 413.873601 | Z155: 226.843674 | AA155: 393.6274939 | AB155: 180.0832117 | AC155: 117.151956 | AD155: 184.7297348 | AE155: 533.2 | AF155: 40275 | AG155: 18238.1 | AH155: 51332 | AI155: 62693.30556 | AJ155: -22418.30556 | AK155: 425 | AL155: 29 | AM155: 5 | AN155: 90.2 | AO155: 100 | AP155: 5.80270793 | AQ155: 76.5 | AR155: 206.8 | AS155: 33 | AT155: 3 | AU155: 22 | AV155: 0 | AW155: 2478.571429 | BA155: 2393.181818 | BE155: 2336.26087 | BG155: 0 | BH155: . | BJ155: 84.1 | BK155: 52725.06997 | BL155: 153.2425214 | BM155: 279.5891683 | BN155: 121.6538462 | BO155: 38 | BP155: 41 | BQ155: BBB
A156: non | B156: 2 | C156: conventionnel | D156: eleveur engraisseur | E156: 2022 | F156: 88229 | G156: 1.83 | H156: 1.83 | I156: 86.03 | J156: 131.47 | K156: 71.84153005 | L156: 1.528187841 | M156: 47.01092896 | N156: 1205.6 | O156: 1205.6 | P156: 0 | Q156: 668.4 | R156: 632.8 | S156: 491.2 | T156: 7.9 | U156: 483.3 | V156: 109 | W156: 32.6 | X156: 35.6 | Y156: 359.5028478 | Z156: 158.6998721 | AA156: 312.68325 | AB156: 163.9874462 | AC156: 113.9537537 | AD156: 182.5780193 | AE156: 537.2 | AF156: 30838 | AG156: 17314.2 | AH156: 35379 | AI156: 53479.86885 | AJ156: -22641.86885 | AK156: 428 | AL156: 28 | AM156: 5 | AN156: 100.37 | AO156: 100 | AP156: 5.922551253 | AQ156: 80.7 | AR156: 219.5 | AS156: 36.7 | AT156: 2 | AU156: 22 | AV156: 0 | AW156: 2513.608696 | BA156: 2656.318182 | BE156: 2787.142857 | BG156: 0 | BH156: . | BJ156: 88.2 | BK156: 47169.24433 | BL156: 103.8484065 | BM156: 235.2478132 | BN156: 107.3084354 | BO156: 31 | BP156: 36 | BQ156: BBB
A157: non | B157: 3 | C157: conventionnel | D157: eleveur engraisseur | E157: 2023 | F157: 88229 | G157: 1.08 | H157: 1.08 | I157: 84.75 | J157: 129.74 | K157: 120.1296296 | L157: 1.530855457 | M157: 78.47222222 | N157: 1309.6 | O157: 1269.4 | P157: 40.2 | Q157: 645.8 | R157: 575.9 | S157: 449.8 | T157: 88.2 | U157: 361.6 | V157: 97.3 | W157: 28.8 | X157: 69.9 | Y157: 307.5346313 | Z157: 259.2248968 | AA157: 363.5779351 | AB157: 88.63646018 | AC157: 126.4274703 | AD157: 195.7104965 | AE157: 663.9 | AF157: 74190 | AG157: 51410.9 | AH157: 88941 | AI157: 74300 | AJ157: -110 | AK157: 439 | AL157: 28 | AM157: 5 | AN157: 90.46 | AO157: 98.65 | AP157: 6.529850746 | AQ157: 80.7 | AR157: 214.4 | AS157: 32.3 | AT157: 6 | AU157: 32 | AV157: 3 | AW157: 2518.935484 | AY157: 1509 | BA157: 2719.5625 | BE157: 2486.515152 | BG157: 2074 | BH157: 691.3333333 | BI157: 5.105593057 | BJ157: 85.1 | BK157: 63229.3 | BL157: 169.333359 | BM157: 200.8907045 | BN157: 57.89995375 | BO157: 38 | BP157: 31 | BQ157: BBB
A158: non | B158: 2 | C158: conventionnel | D158: eleveur naisseur | E158: 2019 | F158: 88241 | G158: 1.56 | H158: 1.56 | I158: 74.72 | J158: 151.15 | K158: 96.89102564 | L158: 2.022885439 | M158: 47.8974359 | N158: 813.7 | O158: 809.7 | P158: 4 | Q158: 518.4 | R158: 455.3 | S158: 319.5 | T158: 38.3 | U158: 281.2 | V158: 102 | W158: 33.8 | X158: 63.1 | Y158: 267.8344486 | Z158: 185.0796172 | AA158: 367.2511911 | AB158: 301.1902971 | AC158: 133.8666226 | AD158: 126.2760105 | AE158: 295.3 | AF158: 19208 | AG158: 3317.6 | AH158: 21876 | AI158: 56709.61538 | AJ158: -37501.61538 | AK158: 443 | AL158: 35 | AM158: 6 | AN158: 88.172 | AO158: 100 | AP158: 0.8196721311 | AQ158: 93 | AR158: 244 | AS158: 31 | AT158: 39 | AU158: 3 | AV158: 0 | AW158: 1778.405405 | AY158: 1150.410256 | BE158: 1227.527778 | BG158: 0 | BH158: . | BJ158: 89.9 | BK158: 50981.94423 | BL158: 91.49288124 | BM158: 132.4021833 | BN158: 148.8914257 | BO158: 40 | BP158: 31 | BQ158: BBB
A159: non | B159: 2 | C159: conventionnel | D159: eleveur naisseur | E159: 2020 | F159: 88241 | G159: 1.45 | H159: 1.45 | I159: 73.96 | J159: 154.15 | K159: 106.3103448 | L159: 2.084234721 | M159: 51.00689655 | N159: 970.2 | O159: 970.2 | P159: 0 | Q159: 569 | R159: 506.7 | S159: 359.7 | T159: 54.8 | U159: 304.9 | V159: 110.3 | W159: 36.7 | X159: 62.4 | Y159: 310.6231747 | Z159: 139.0438075 | AA159: 364.7371552 | AB159: 306.3722147 | AC159: 134.7951346 | AD159: 120.4882765 | AE159: 401.1 | AF159: 35529 | AG159: 19256.1 | AH159: 43944 | AI159: 58700.68966 | AJ159: -23171.68966 | AK159: 433 | AL159: 36 | AM159: 5 | AN159: 111.236 | AO159: 100 | AP159: 0.7958615201 | AQ159: 89 | AR159: 251.3 | AS159: 31.7 | AT159: 45 | AU159: 2 | AV159: 0 | AW159: 1926.225 | AY159: 1259.244444 | BE159: 1304.6 | BG159: 0 | BH159: . | BJ159: 85.4 | BK159: 50130.38897 | BL159: 66.71216348 | BM159: 149.0346416 | BN159: 146.9950633 | BO159: 45 | BP159: 46 | BQ159: BBB
A160: non | B160: 2 | C160: conventionnel | D160: eleveur naisseur | E160: 2021 | F160: 88241 | G160: 1.45 | H160: 1.45 | I160: 76.55 | J160: 155.3 | K160: 107.1034483 | L160: 2.028739386 | M160: 52.79310345 | N160: 1075.6 | O160: 1056.3 | P160: 19.3 | Q160: 563.5 | R160: 497 | S160: 338.5 | T160: 19.4 | U160: 319.1 | V160: 116.5 | W160: 42 | X160: 66.6 | Y160: 366.4642717 | Z160: 171.8902678 | AA160: 456.9167864 | AB160: 306.7254082 | AC160: 138.2385705 | AD160: 122.4257726 | AE160: 512.1 | AF160: 38354 | AG160: 19706.6 | AH160: 39387 | AI160: 59746.13103 | AJ160: -21392.13103 | AK160: 426 | AL160: 35 | AM160: 5 | AN160: 113.79 | AO160: 101.02 | AP160: 2.363135093 | AQ160: 87 | AR160: 253.9 | AS160: 30.2 | AT160: 38 | AU160: 2 | AV160: 1 | AW160: 2181.73913 | AX160: 795 | AY160: 1295.789474 | BE160: 1428.387097 | BG160: 900 | BH160: 900 | BI160: 3.555555556 | BJ160: 95.5 | BK160: 57057.55514 | BL160: 84.72762395 | BM160: 180.6364456 | BN160: 151.1901481 | BO160: 54 | BP160: 41 | BQ160: BBB
A161: non | B161: 2 | C161: conventionnel | D161: eleveur naisseur | E161: 2022 | F161: 88241 | G161: 1.37 | H161: 1.37 | I161: 76.68 | J161: 147.76 | K161: 107.8540146 | L161: 1.926969223 | M161: 55.97080292 | N161: 1113.3 | O161: 1113.3 | P161: 0 | Q161: 646.9 | R161: 584.8 | S161: 429.2 | T161: 72 | U161: 357.2 | V161: 108.6 | W161: 47 | X161: 62.1 | Y161: 300.9402713 | Z161: 235.084507 | AA161: 451.6308033 | AB161: 275.0003912 | AC161: 152.696941 | AD161: 135.907362 | AE161: 466.4 | AF161: 38408 | AG161: 18992.4 | AH161: 42702 | AI161: 63869.78102 | AJ161: -25461.78102 | AK161: 409 | AL161: 34 | AM161: 5 | AN161: 106.73 | AO161: 101.1 | AP161: 2.446982055 | AQ161: 86.2 | AR161: 245.2 | AS161: 29.2 | AT161: 50 | AU161: 2 | AV161: 0 | AW161: 2347.705882 | AX161: 669.4 | AY161: 1371.54 | BB161: 1501.6 | BD161: 2045.428571 | BE161: 1420.270833 | BG161: 0 | BH161: . | BJ161: 88.6 | BK161: 56588.62599 | BL161: 121.9970222 | BM161: 156.1728479 | BN161: 142.7113563 | BO161: 41 | BP161: 48 | BQ161: BBB
A162: non | B162: 3 | C162: conventionnel | D162: eleveur naisseur | E162: 2023 | F162: 88241 | G162: 1.37 | H162: 1.37 | I162: 74.33 | J162: 147.27 | K162: 107.4963504 | L162: 1.98129961 | M162: 54.25547445 | N162: 1231.2 | O162: 1231.2 | P162: 0 | Q162: 668.8 | R162: 594.2 | S162: 424.9 | T162: 75.8 | U162: 349.1 | V162: 110.9 | W162: 58.4 | X162: 74.6 | Y162: 397.5836136 | Z162: 233.5741962 | AA162: 524.8020987 | AB162: 233.6324499 | AC162: 142.3806614 | AD162: 140.9222711 | AE162: 562.4 | AF162: 44059 | AG162: 23772.1 | AH162: 51157 | AI162: 71871.53285 | AJ162: -27812.53285 | AK162: 411 | AL162: 34 | AM162: 5 | AN162: 118.32 | AO162: 101.09 | AP162: 3.663003663 | AQ162: 78.6 | AR162: 245.7 | AS162: 33.4 | AT162: 27 | AU162: 2 | AV162: 2 | AW162: 2554.309524 | AY162: 1485 | BE162: 1641.730769 | BG162: 1650 | BH162: 825 | BI162: 3.821818182 | BJ162: 89.4 | BK162: 64253.15036 | BL162: 117.8893868 | BM162: 200.6680926 | BN162: 117.9187886 | BO162: 55 | BP162: 48 | BQ162: BBB
A163: non | B163: 1 | C163: conventionnel | D163: intermediaire | E163: 2019 | F163: 88249 | G163: 1.11 | H163: 1.11 | I163: 61.17 | J163: 78.17 | K163: 70.42342342 | L163: 1.27791401 | M163: 55.10810811 | N163: 409 | O163: 409 | P163: 0 | Q163: 330.2 | R163: 219 | S163: 136.7 | T163: 71.7 | U163: 65 | V163: 38.6 | W163: 43.7 | X163: 111.2 | Y163: 234.7518228 | Z163: 81.64884747 | AA163: 226.6673042 | AB163: 284.9171162 | AC163: 76.61826788 | AD163: 167.1774823 | AE163: 78.8 | AF163: -4236 | AG163: -14846.2 | AH163: -4080 | AI163: 51481.66667 | AJ163: -55717.66667 | AK163: 504 | AL163: 42 | AM163: 6 | AN163: 77.551 | AO163: 100 | AP163: 6.498781478 | AQ163: 49 | AR163: 123.1 | AS163: 17.5 | AT163: 11 | AU163: 4 | AV163: 3 | AW163: 1050.666667 | AY163: 952.0909091 | BE163: 952.0909091 | BG163: 2001 | BH163: 667 | BI163: 2.506746627 | BJ163: 77.8 | BK163: 40052.73667 | BL163: 63.89228604 | BM163: 183.6992324 | BN163: 222.954842 | BO163: 33 | BP163: 29 | BQ163: BA
A164: non | B164: 1 | C164: conventionnel | D164: intermediaire | E164: 2020 | F164: 88249 | G164: 1.11 | H164: 1.11 | I164: 66.96 | J164: 88.71 | K164: 79.91891892 | L164: 1.324820789 | M164: 60.32432432 | N164: 381.5 | O164: 381.5 | P164: 0 | Q164: 263.7 | R164: 183 | S164: 85.1 | T164: 57.9 | U164: 27.2 | V164: 75.5 | W164: 22.4 | X164: 80.7 | Y164: 161.8097222 | Z164: 86.70400239 | AA164: 168.0573327 | AB164: 239.9787933 | AC164: 69.33243152 | AD164: 161.5092561 | AE164: 117.8 | AF164: 4614 | AG164: -4690.9 | AH164: 4065 | AI164: 52246.66667 | AJ164: -47632.66667 | AK164: 482 | AL164: 36 | AM164: 5 | AN164: 106.754 | AO164: 100 | AP164: 17.37871108 | AQ164: 45.9 | AR164: 138.1 | AS164: 18.1 | AT164: 10 | AU164: 9 | AV164: 2 | AW164: 1091.125 | AY164: 1038 | BA164: 1213.666667 | BE164: 999.375 | BG164: 1190 | BH164: 595 | BI164: 2.721008403 | BJ164: 74.8 | BK164: 39080.50667 | BL164: 65.44583474 | BM164: 122.1370646 | BN164: 181.1405704 | BO164: 41 | BP164: 41 | BQ164: BA
A165: non | B165: 1 | C165: conventionnel | D165: intermediaire | E165: 2021 | F165: 88249 | G165: 1.1 | H165: 1.1 | I165: 68.17 | J165: 85.27 | K165: 77.51818182 | L165: 1.25084348 | M165: 61.97272727 | N165: 499.6 | O165: 499.6 | P165: 0 | Q165: 250.5 | R165: 171.4 | S165: 93.2 | T165: 64.6 | U165: 28.6 | V165: 59.5 | W165: 18.7 | X165: 79.1 | Y165: 222.9204929 | Z165: 112.2078627 | AA165: 252.4302479 | AB165: 237.5577233 | AC165: 73.77870294 | AD165: 166.2131797 | AE165: 249.2 | AF165: 11574 | AG165: 2655.3 | AH165: 12665 | AI165: 53773.76364 | AJ165: -42199.76364 | AK165: 391 | AL165: 37 | AM165: 6 | AN165: 78.28 | AO165: 97.56 | AP165: 4.357298475 | AQ165: 51.1 | AR165: 137.7 | AS165: 19 | AT165: 3 | AU165: 12 | AV165: 0 | AW165: 1175.7 | BA165: 1226.833333 | BD165: 1088 | BE165: 1055.785714 | BG165: 0 | BH165: . | BJ165: 71.3 | BK165: 38340.69347 | BL165: 89.70575818 | BM165: 178.216137 | BN165: 189.9180251 | BO165: 41 | BP165: 29 | BQ165: BA
A166: non | B166: 2 | C166: conventionnel | D166: intermediaire | E166: 2022 | F166: 88249 | G166: 1.1 | H166: 1.1 | I166: 70.59 | J166: 89.76 | K166: 81.6 | L166: 1.271568211 | M166: 64.17272727 | N166: 659 | O166: 659 | P166: 0 | Q166: 306.5 | R166: 229 | S166: 176.3 | T166: 142.5 | U166: 33.8 | V166: 35 | W166: 17.7 | X166: 77.5 | Y166: 192.3904236 | Z166: 42.78934693 | AA166: 137.9779006 | AB166: 239.6194928 | AC166: 74.40396613 | AD166: 158.5921076 | AE166: 352.5 | AF166: 21214 | AG166: 11749.1 | AH166: 23376 | AI166: 56528.06364 | AJ166: -35314.06364 | AK166: 432 | AL166: 39 | AM166: 7 | AN166: 87.72 | AO166: 95.24 | AP166: 4.252303331 | AQ166: 45.6 | AR166: 141.1 | AS166: 17.2 | AT166: 5 | AU166: 10 | AV166: 1 | AW166: 1685.8125 | AY166: 1185.4 | BA166: 1226.8 | BE166: 1164.857143 | BG166: 620 | BH166: 620 | BI166: 3.043548387 | BJ166: 81.7 | BK166: 46183.42799 | BL166: 33.6508467 | BM166: 151.3016934 | BN166: 188.4440731 | BO166: 37 | BP166: 22 | BQ166: BA
A167: non | B167: 2 | C167: conventionnel | D167: intermediaire | E167: 2023 | F167: 88249 | G167: 1.1 | H167: 1.1 | I167: 72.98 | J167: 94.39 | K167: 85.80909091 | L167: 1.293368046 | M167: 66.34545455 | N167: 487.3 | O167: 487.3 | P167: 0 | Q167: 247.4 | R167: 167 | S167: 104.2 | T167: 87.2 | U167: 17 | V167: 41.5 | W167: 21.3 | X167: 80.5 | Y167: 179.1512743 | Z167: 45.48616059 | AA167: 140.367635 | AB167: 220.9693067 | AC167: 120.0307236 | AD167: 202.4097364 | AE167: 239.8 | AF167: 23968 | AG167: 14449.6 | AH167: 24598 | AI167: 63729.13636 | AJ167: -39761.13636 | AK167: 403 | AL167: 39 | AM167: 6 | AN167: 107.22 | AO167: 98.11 | AP167: 11.51761518 | AQ167: 48.5 | AR167: 147.6 | AS167: 18.5 | AT167: 9 | AU167: 7 | AV167: 1 | AW167: 1295.125 | AY167: 1151.333333 | BA167: 1555 | BE167: 1243.533333 | BG167: 690 | BH167: 690 | BI167: 3.75942029 | BJ167: 76.9 | BK167: 49007.70586 | BL167: 35.16876788 | BM167: 138.5153088 | BN167: 170.8479712 | BO167: 25 | BP167: 54 | BQ167: BA
A168: non | B168: 1 | C168: conventionnel | D168: eleveur naisseur | E168: 2019 | F168: 88258 | G168: 1.02 | H168: 1 | I168: 32.45 | J168: 51.75 | K168: 50.73529412 | L168: 1.594761171 | M168: 31.81372549 | N168: 696.6 | O168: 696.6 | P168: 0 | Q168: 539.8 | R168: 485 | S168: 320.5 | T168: 0 | U168: 320.5 | V168: 105.6 | W168: 58.9 | X168: 54.9 | Y168: 244.1756549 | Z168: 110.9208012 | AA168: 244.5818182 | AB168: 512.7781202 | AC168: 125.1180676 | AD168: 183.7994203 | AE168: 156.8 | AF168: -7823 | AG168: -18921 | AH168: -9058 | AI168: 54510 | AJ168: -62333 | AK168: 439 | AL168: 30 | AM168: 5 | AN168: 75.758 | AO168: 100 | AP168: 2.395209581 | AQ168: 33 | AR168: 83.5 | AS168: 12.5 | AT168: 22 | AU168: 1 | AV168: 0 | AW168: 1718.125 | AY168: 1028.363636 | BE168: 1028.363636 | BG168: 0 | BH168: . | BJ168: 97.6 | BK168: 53201.76 | BL168: 69.55323671 | BM168: 153.1111111 | BN168: 321.5391304 | BO168: 48 | BP168: 42 | BQ168: BBB
A169: non | B169: 1 | C169: conventionnel | D169: eleveur naisseur | E169: 2020 | F169: 88258 | G169: 1.01 | H169: 1 | I169: 32.17 | J169: 47.72 | K169: 47.24752475 | L169: 1.483369599 | M169: 31.85148515 | N169: 695.1 | O169: 695.1 | P169: 0 | Q169: 568 | R169: 502.5 | S169: 336.2 | T169: 0 | U169: 336.2 | V169: 108.1 | W169: 58.2 | X169: 65.5 | Y169: 225.6120609 | Z169: 111.4976686 | AA169: 216.1240286 | AB169: 545.6931924 | AC169: 139.3371752 | AD169: 197.5848701 | AE169: 127.2 | AF169: -6419 | AG169: -15970.8 | AH169: -7420 | AI169: 55320 | AJ169: -61739 | AK169: 477 | AL169: 31 | AM169: 5 | AN169: 105.263 | AO169: 103.03 | AP169: 7.8125 | AQ169: 32.3 | AR169: 76.8 | AS169: 8.3 | AT169: 15 | AU169: 0 | AV169: 0 | AW169: 1661.357143 | AY169: 1010.866667 | BE169: 1035.375 | BG169: 0 | BH169: . | BJ169: 89.1 | BK169: 49290.12 | BL169: 75.16512992 | BM169: 152.0943001 | BN169: 367.874057 | BO169: 43 | BP169: 34 | BQ169: BBB
A170: non | B170: 1 | C170: conventionnel | D170: eleveur naisseur | E170: 2021 | F170: 88258 | G170: 1 | H170: 1 | I170: 32.1 | J170: 46.72 | K170: 46.72 | L170: 1.455451713 | M170: 32.1 | N170: 844.6 | O170: 844.6 | P170: 0 | Q170: 520.9 | R170: 426.2 | S170: 276.3 | T170: 0 | U170: 276.3 | V170: 91.9 | W170: 58 | X170: 94.7 | Y170: 224.4707165 | Z170: 116.7697819 | AA170: 219.3358255 | AB170: 530.5218069 | AC170: 147.0440925 | AD170: 201.3546661 | AE170: 323.8 | AF170: 2746 | AG170: -6279.9 | AH170: 2313 | AI170: 56423.98 | AJ170: -53677.98 | AK170: 462 | AL170: 34 | AM170: 6 | AN170: 93.33 | AO170: 107.69 | AP170: 2.75862069 | AQ170: 30 | AR170: 72.5 | AS170: 5 | AT170: 12 | AU170: 1 | AV170: 0 | AW170: 2120.125 | AY170: 1090.916667 | BE170: 1164.363636 | BG170: 0 | BH170: . | BJ170: 91 | BK170: 51345.8218 | BL170: 80.22923801 | BM170: 154.2275257 | BN170: 364.5066353 | BO170: 27 | BP170: 33 | BQ170: BBB
A171: non | B171: 1 | C171: conventionnel | D171: eleveur naisseur | E171: 2022 | F171: 88258 | G171: 1 | H171: 1 | I171: 31.87 | J171: 49.45 | K171: 49.45 | L171: 1.55161594 | M171: 31.87 | N171: 907.9 | O171: 907.9 | P171: 0 | Q171: 687.9 | R171: 571.7 | S171: 395.6 | T171: 0 | U171: 395.6 | V171: 113.9 | W171: 62.2 | X171: 116.1 | Y171: 279.873235 | Z171: 175.8518983 | AA171: 334.7734547 | AB171: 529.1176655 | AC171: 146.0060667 | AD171: 193.051365 | AE171: 220 | AF171: -5583 | AG171: -14411.2 | AH171: -6716 | AI171: 58325.46 | AJ171: -63908.46 | AK171: 502 | AL171: 31 | AM171: 4 | AN171: 97.14 | AO171: 97.14 | AP171: 6.281407035 | AQ171: 35 | AR171: 79.6 | AS171: 3.9 | AT171: 5 | AU171: 1 | AV171: 0 | AW171: 2376.333333 | AY171: 1194 | BE171: 1363.2 | BG171: 0 | BH171: . | BJ171: 97.9 | BK171: 57100.62534 | BL171: 113.3346815 | BM171: 180.3753286 | BN171: 341.0107179 | BO171: 26 | BP171: 34 | BQ171: BBB
A172: non | B172: 2 | C172: conventionnel | D172: eleveur naisseur | E172: 2023 | F172: 88258 | G172: 1.01 | H172: 1 | I172: 31.65 | J172: 51.05 | K172: 50.54455446 | L172: 1.612954186 | M172: 31.33663366 | N172: 1125.2 | O172: 1125.2 | P172: 0 | Q172: 598.6 | R172: 534.9 | S172: 372.1 | T172: 0 | U172: 372.1 | V172: 100 | W172: 62.8 | X172: 63.8 | Y172: 276.6821485 | Z172: 139.1627172 | AA172: 306.2751975 | AB172: 539.0461295 | AC172: 135.8099902 | AD172: 227.7951028 | AE172: 526.6 | AF172: 14598 | AG172: 6123.6 | AH172: 14873 | AI172: 66424.2 | AJ172: -51826.2 | AK172: 428 | AL172: 29 | AM172: 6 | AN172: 112.85 | AO172: 100 | AP172: 3.618817853 | AQ172: 31.9 | AR172: 82.9 | AS172: 8.3 | AT172: 13 | AU172: 0 | AV172: 0 | AW172: 2525.818182 | AY172: 1219.307692 | BE172: 1219.307692 | BG172: 0 | BH172: . | BJ172: 94.4 | BK172: 62704.4448 | BL172: 86.27815867 | BM172: 171.5375122 | BN172: 334.1980411 | BO172: 34 | BP172: 41 | BQ172: BBB
A173: non | B173: 3 | C173: conventionnel | D173: intermediaire | E173: 2019 | F173: 88262 | G173: 1.01 | H173: 1.01 | I173: 49.64 | J173: 129.6 | K173: 128.3168317 | L173: 2.610797744 | M173: 49.14851485 | N173: 538.8 | O173: 538.8 | P173: 0 | Q173: 302.8 | R173: 279.8 | S173: 229.5 | T173: 111.8 | U173: 117.7 | V173: 45.2 | W173: 5.1 | X173: 23 | Y173: 289.8307816 | Z173: 6.446414182 | AA173: 179.5060435 | AB173: 256.7407333 | AC173: 124.9008488 | AD173: 84.75819253 | AE173: 236 | AF173: 36616 | AG173: 15374.7 | AH173: 50490 | AI173: 65085.54356 | AJ173: -28469.54356 | AK173: 572 | AL173: 47 | AM173: 8 | AN173: 102.439 | AO173: 101.613 | AP173: 4.8 | AQ173: 61.5 | AR173: 187.5 | AS173: 22 | AT173: 2 | AU173: 14 | AV173: 0 | AW173: 1659.8125 | BA173: 1179 | BE173: 1179 | BG173: 0 | BH173: . | BJ173: 75.4 | BK173: 49074.49985 | BL173: 2.469135802 | BM173: 111.0123457 | BN173: 98.33804012 | BO173: 29 | BP173: 26 | BQ173: BBB
A174: non | B174: 3 | C174: conventionnel | D174: eleveur naisseur | E174: 2020 | F174: 88262 | G174: 1 | H174: 1 | I174: 48 | J174: 133.82 | K174: 133.82 | L174: 2.787916667 | M174: 48 | N174: 656.3 | O174: 656.3 | P174: 0 | Q174: 352 | R174: 343.2 | S174: 284 | T174: 170.9 | U174: 113.1 | V174: 52.2 | W174: 7 | X174: 8.7 | Y174: 277.2408333 | Z174: 5 | AA174: 162.6972917 | AB174: 234.3172708 | AC174: 124.2185772 | AD174: 78.42287373 | AE174: 304.3 | AF174: 49425 | AG174: 28116.6 | AH174: 70098 | AI174: 66384 | AJ174: -16959 | AK174: 433 | AL174: 50 | AM174: 7 | AN174: 120.664 | AO174: 98.765 | AP174: 9.034712316 | AQ174: 66.3 | AR174: 210.3 | AS174: 28.8 | AT174: 27 | AU174: 9 | AV174: 0 | AW174: 1752.966667 | AY174: 1250.481481 | BA174: 1275 | BE174: 1256.611111 | BG174: 0 | BH174: . | BJ174: 74.9 | BK174: 49721.616 | BL174: 1.793453893 | BM174: 99.44373038 | BN174: 84.04744433 | BO174: 51 | BP174: 56 | BQ174: BBB
A175: non | B175: 3 | C175: conventionnel | D175: intermediaire | E175: 2021 | F175: 88262 | G175: 1 | H175: 1 | I175: 47.33 | J175: 136.32 | K175: 136.32 | L175: 2.880202831 | M175: 47.33 | N175: 850.7 | O175: 850.7 | P175: 0 | Q175: 378.1 | R175: 367.5 | S175: 306.5 | T175: 179.7 | U175: 126.8 | V175: 50.8 | W175: 10.2 | X175: 10.6 | Y175: 332.5077118 | Z175: 16.63215719 | AA175: 197.9317558 | AB175: 233.7113881 | AC175: 125.9885563 | AD175: 75.92710467 | AE175: 472.6 | AF175: 69449 | AG175: 48100 | AH175: 88917 | AI175: 69965.73 | AJ175: -516.73 | AK175: 391 | AL175: 48 | AM175: 7 | AN175: 98.4 | AO175: 100 | AP175: 5.938784833 | AQ175: 75.2 | AR175: 218.9 | AS175: 37.1 | AT175: 10 | AU175: 17 | AV175: 0 | AW175: 2315.173913 | AY175: 1480 | AZ175: 1090.909091 | BA175: 1735.294118 | BE175: 1646.153846 | BG175: 0 | BH175: . | BJ175: 81 | BK175: 56672.2413 | BL175: 5.774647887 | BM175: 115.445936 | BN175: 81.14407277 | BO175: 35 | BP175: 37 | BQ175: BBB
A176: non | B176: 2 | C176: conventionnel | D176: intermediaire | E176: 2022 | F176: 88262 | G176: 1 | H176: 1 | I176: 46.83 | J176: 129.13 | K176: 129.13 | L176: 2.757420457 | M176: 46.83 | N176: 590.8 | O176: 590.8 | P176: 0 | Q176: 422.9 | R176: 419.7 | S176: 367.4 | T176: 183.6 | U176: 183.8 | V176: 44.6 | W176: 7.7 | X176: 3.2 | Y176: 382.1091181 | Z176: 56.23339739 | AA176: 302.1746744 | AB176: 234.8152893 | AC176: 139.7816154 | AD176: 79.42269429 | AE176: 168 | AF176: 28465 | AG176: 8497.9 | AH176: 51164 | AI176: 71176.84 | AJ176: -42711.84 | AK176: 411 | AL176: 40 | AM176: 7 | AN176: 102.24 | AO176: 100 | AP176: 15.32377657 | AQ176: 71.4 | AR176: 202.3 | AS176: 28 | AT176: 11 | AU176: 16 | AV176: 0 | AW176: 2082.761905 | AY176: 1457.454545 | BA176: 1508.625 | BE176: 1487.777778 | BG176: 0 | BH176: . | BJ176: 68.5 | BK176: 48756.1354 | BL176: 20.39347944 | BM176: 138.5748471 | BN176: 85.15759312 | BO176: 38 | BP176: 36 | BQ176: BBB
A177: non | B177: 3 | C177: conventionnel | D177: eleveur engraisseur | E177: 2023 | F177: 88262 | G177: 1 | H177: 1 | I177: 52.06 | J177: 126.36 | K177: 126.36 | L177: 2.427199385 | M177: 52.06 | N177: 725.8 | O177: 725.8 | P177: 0 | Q177: 356.8 | R177: 282.7 | S177: 229.1 | T177: 90.1 | U177: 139 | V177: 47.9 | W177: 5.7 | X177: 74.1 | Y177: 385.0760661 | Z177: 0 | AA177: 270.2579716 | AB177: 214.7577795 | AC177: 96.35327635 | AD177: 100.7059209 | AE177: 369.1 | AF177: 47652 | AG177: 27124.5 | AH177: 56873 | AI177: 80912.7 | AJ177: -33260.7 | AK177: 506 | AL177: 43 | AM177: 7 | AN177: 105.86 | AO177: 98.48 | AP177: 5.265929437 | AQ177: 61.4 | AR177: 189.9 | AS177: 21.3 | AT177: 12 | AU177: 16 | AV177: 0 | AW177: 2289.6 | AY177: 1320.75 | BA177: 1546.125 | BE177: 1468.296296 | BG177: 0 | BH177: . | BJ177: 81.4 | BK177: 65862.9378 | BL177: 0 | BM177: 158.650364 | BN177: 88.47966129 | BO177: 37 | BP177: 28 | BQ177: BBB
A178: non | B178: 2 | C178: conventionnel | D178: eleveur naisseur | E178: 2019 | F178: 88264 | G178: 1.14 | H178: 1.14 | I178: 109.6 | J178: 127.85 | K178: 112.1491228 | L178: 1.166514599 | M178: 96.14035088 | N178: 582.8 | O178: 582.8 | P178: 0 | Q178: 454.5 | R178: 395.5 | S178: 245.1 | T178: 108.5 | U178: 136.6 | V178: 114.6 | W178: 35.8 | X178: 59 | Y178: 211.5780109 | Z178: 159.8382299 | AA178: 307.9103102 | AB178: 207.5930566 | AC178: 125.344388 | AD178: 180.9591708 | AE178: 128.4 | AF178: 7542 | AG178: -5532.1 | AH178: 15261 | AI178: 54988.15789 | AJ178: -47446.15789 | AK178: 407 | AL178: 40 | AM178: 6 | AN178: 88.889 | AO178: 98.361 | AP178: 3.535353535 | AQ178: 67.5 | AR178: 198 | AS178: 26 | AT178: 42 | AU178: 0 | AV178: 0 | AW178: 1655.818182 | AY178: 1141 | BD178: 1589 | BE178: 1141 | BG178: 0 | BH178: . | BJ178: 66.2 | BK178: 36402.16053 | BL178: 137.0220571 | BM178: 181.3762221 | BN178: 177.9601017 | BO178: 33 | BP178: 40 | BQ178: BBB
A179: non | B179: 2 | C179: conventionnel | D179: eleveur naisseur | E179: 2020 | F179: 88264 | G179: 1.14 | H179: 1.14 | I179: 101.32 | J179: 123.28 | K179: 108.1403509 | L179: 1.216739045 | M179: 88.87719298 | N179: 578.9 | O179: 578.9 | P179: 0 | Q179: 413.6 | R179: 373.2 | S179: 262.1 | T179: 141 | U179: 121.1 | V179: 86.1 | W179: 25 | X179: 40.3 | Y179: 217.2030201 | Z179: 139.8547079 | AA179: 303.9011942 | AB179: 218.4562673 | AC179: 132.1420344 | AD179: 171.4061668 | AE179: 165.3 | AF179: 20851 | AG179: 8897 | AH179: 41280 | AI179: 55805.26316 | AJ179: -34954.26316 | AK179: 441 | AL179: 43 | AM179: 6 | AN179: 105.536 | AO179: 98.387 | AP179: 4.843918192 | AQ179: 57.8 | AR179: 185.8 | AS179: 18.4 | AT179: 23 | AU179: 2 | AV179: 0 | AW179: 1613.827586 | AY179: 1139.217391 | BE179: 1137.166667 | BG179: 0 | BH179: . | BJ179: 53.8 | BK179: 30023.23158 | BL179: 114.9422372 | BM179: 178.5124108 | BN179: 179.5424156 | BO179: 55 | BP179: 54 | BQ179: BBB
A180: non | B180: 1 | C180: conventionnel | D180: eleveur naisseur | E180: 2021 | F180: 88264 | G180: 1.14 | H180: 1.14 | I180: 102.16 | J180: 120.73 | K180: 105.9035088 | L180: 1.181773688 | M180: 89.61403509 | N180: 559.4 | O180: 559.4 | P180: 0 | Q180: 509.8 | R180: 470.1 | S180: 329.1 | T180: 203.8 | U180: 125.3 | V180: 105.1 | W180: 35.9 | X180: 39.8 | Y180: 177.5426782 | Z180: 170.2728074 | AA180: 337.0919146 | AB180: 249.3533673 | AC180: 140.8350037 | AD180: 177.8736639 | AE180: 49.6 | AF180: 6420 | AG180: -5217.2 | AH180: 20294 | AI180: 56918.92105 | AJ180: -50498.92105 | AK180: 452 | AL180: 39 | AM180: 6 | AN180: 84.51 | AO180: 98.18 | AP180: 8.849557522 | AQ180: 63.9 | AR180: 180.8 | AS180: 13.8 | AT180: 27 | AU180: 0 | AV180: 0 | AW180: 1880.571429 | AY180: 1070.851852 | BE180: 1116.88 | BG180: 0 | BH180: . | BJ180: 58.6 | BK180: 33354.48774 | BL180: 144.0824153 | BM180: 150.234076 | BN180: 210.9992545 | BO180: 44 | BP180: 44 | BQ180: BBB
A181: non | B181: 2 | C181: conventionnel | D181: eleveur naisseur | E181: 2022 | F181: 88264 | G181: 1.14 | H181: 1.14 | I181: 99.25 | J181: 112.22 | K181: 98.43859649 | L181: 1.130680101 | M181: 87.06140351 | N181: 776.9 | O181: 776.9 | P181: 0 | Q181: 485.5 | R181: 446.1 | S181: 296.7 | T181: 200.3 | U181: 96.4 | V181: 128 | W181: 21.4 | X181: 39.4 | Y181: 170.4483627 | Z181: 215.1432746 | AA181: 378.4474559 | AB181: 252.1692695 | AC181: 147.9771877 | AD181: 191.6648894 | AE181: 291.4 | AF181: 26469 | AG181: 15677.7 | AH181: 46927 | AI181: 59834.33333 | AJ181: -33365.33333 | AK181: 447 | AL181: 40 | AM181: 6 | AN181: 99.19 | AO181: 96.83 | AP181: 8.177570093 | AQ181: 61.5 | AR181: 171.2 | AS181: 11.8 | AT181: 29 | AU181: 0 | AV181: 0 | AW181: 2389.074074 | AY181: 1114.448276 | BD181: 1064.5 | BE181: 1241.772727 | BG181: 0 | BH181: . | BJ181: 60.6 | BK181: 36259.606 | BL181: 190.277758 | BM181: 150.7485297 | BN181: 223.0244163 | BO181: 52 | BP181: 42 | BQ181: BBB
A182: non | B182: 2 | C182: conventionnel | D182: eleveur naisseur | E182: 2023 | F182: 88264 | G182: 1.14 | H182: 1.14 | I182: 98 | J182: 102.66 | K182: 90.05263158 | L182: 1.04755102 | M182: 85.96491228 | N182: 763.1 | O182: 763.1 | P182: 0 | Q182: 595.4 | R182: 565.5 | S182: 435.2 | T182: 214.6 | U182: 220.6 | V182: 116.3 | W182: 14 | X182: 29.9 | Y182: 188.5257143 | Z182: 156.5702041 | AA182: 339.1087755 | AB182: 260.1531633 | AC182: 125.186051 | AD182: 321.8229627 | AE182: 167.7 | AF182: 20592 | AG182: 10430.7 | AH182: 39833 | AI182: 67456.57895 | AJ182: -46864.57895 | AK182: 426 | AL182: 38 | AM182: 5 | AN182: 91.78 | AO182: 94.12 | AP182: 7.566204288 | AQ182: 52.3 | AR182: 158.6 | AS182: 10.7 | AT182: 17 | AU182: 0 | AV182: 0 | AW182: 2190.419355 | AY182: 1168.823529 | BE182: 1157.5 | BG182: 0 | BH182: . | BJ182: 64.2 | BK182: 43307.12368 | BL182: 149.463082 | BM182: 179.9680499 | BN182: 248.3441457 | BO182: 63 | BP182: 33 | BQ182: BBB
A183: non | B183: 1 | C183: conventionnel | D183: eleveur engraisseur | E183: 2019 | F183: 88272 | G183: 2 | H183: 2 | I183: 80.88 | J183: 123.3 | K183: 61.65 | L183: 1.524480712 | M183: 40.44 | N183: 376.7 | O183: 376.7 | P183: 0 | Q183: 324.8 | R183: 265.2 | S183: 140 | T183: 0 | U183: 140 | V183: 110.3 | W183: 14.9 | X183: 59.6 | Y183: 178.5514342 | Z183: 33.85262117 | AA183: 166.1931256 | AB183: 209.1278437 | AC183: 132.5955393 | AD183: 158.0361719 | AE183: 51.8 | AF183: 2990 | AG183: -6545 | AH183: 2005 | AI183: 55818.24 | AJ183: -52828.24 | AK183: 495 | AL183: 38 | AM183: 8 | AN183: 76.821 | AO183: 100 | AP183: 8.130081301 | AQ183: 75.5 | AR183: 184.5 | AS183: 22 | AT183: 46 | AU183: 2 | AV183: 26 | AW183: 1342.3 | AY183: 1091.434783 | BE183: 1074.454545 | BF183: 1097.384615 | BG183: 7322 | BH183: 281.6153846 | BI183: 3.896749522 | BJ183: 95.6 | BK183: 53362.23744 | BL183: 22.20600162 | BM183: 117.1227899 | BN183: 137.1797242 | BO183: 32 | BP183: 36 | BQ183: autres
A184: non | B184: 2 | C184: conventionnel | D184: eleveur naisseur | E184: 2020 | F184: 88272 | G184: 2 | H184: 2 | I184: 80.82 | J184: 116.68 | K184: 58.34 | L184: 1.443702054 | M184: 40.41 | N184: 525.3 | O184: 525.3 | P184: 0 | Q184: 298.8 | R184: 256.3 | S184: 138.5 | T184: 0 | U184: 138.5 | V184: 103.2 | W184: 14.6 | X184: 42.5 | Y184: 148.2188691 | Z184: 40.28891364 | AA184: 147.4794482 | AB184: 176.0674338 | AC184: 145.3153068 | AD184: 165.3575591 | AE184: 226.6 | AF184: 17220 | AG184: 8400.6 | AH184: 17707 | AI184: 52074.5595 | AJ184: -34854.5595 | AK184: 492 | AL184: 38 | AM184: 6 | AN184: 103.953 | AO184: 101.429 | AP184: 7.061379685 | AQ184: 68.3 | AR184: 184.1 | AS184: 16.8 | AT184: 26 | AU184: 3 | AV184: 1 | AW184: 1444.580645 | AY184: 1114.846154 | BE184: 1090.321429 | BG184: 350 | BH184: 350 | BI184: 5.391428571 | BJ184: 88.5 | BK184: 46085.98516 | BL184: 27.90666781 | BM184: 102.6658296 | BN184: 121.9555194 | BO184: 48 | BP184: 34 | BQ184: autres
A185: non | B185: 2 | C185: conventionnel | D185: intermediaire | E185: 2021 | F185: 88272 | G185: 2 | H185: 2 | I185: 80.8 | J185: 117.99 | K185: 58.995 | L185: 1.460272277 | M185: 40.4 | N185: 458.3 | O185: 458.3 | P185: 0 | Q185: 254.3 | R185: 211 | S185: 132.1 | T185: 0 | U185: 132.1 | V185: 67.4 | W185: 11.5 | X185: 43.3 | Y185: 181.6217822 | Z185: 12.9424505 | AA185: 147.8237624 | AB185: 175.4715347 | AC185: 139.7387067 | AD185: 164.2051869 | AE185: 204 | AF185: 16232 | AG185: 7830.1 | AH185: 17248 | AI185: 50969.66 | AJ185: -34737.66 | AK185: 472 | AL185: 42 | AM185: 6 | AN185: 87.42 | AO185: 95 | AP185: 8.973639933 | AQ185: 65.2 | AR185: 178.3 | AS185: 11.2 | AT185: 15 | AU185: 1 | AV185: 0 | AW185: 1593.105263 | AY185: 1008.666667 | BE185: 1128.2 | BG185: 0 | BH185: . | BJ185: 83.5 | BK185: 42559.6661 | BL185: 8.863039241 | BM185: 124.375286 | BN185: 120.1635732 | BO185: 32 | BP185: 31 | BQ185: autres
A186: non | B186: 2 | C186: conventionnel | D186: eleveur naisseur | E186: 2022 | F186: 88272 | G186: 2 | H186: 2 | I186: 78.57 | J186: 128.11 | K186: 64.055 | L186: 1.630520555 | M186: 39.285 | N186: 612.6 | O186: 612.6 | P186: 0 | Q186: 274 | R186: 274 | S186: 165.4 | T186: 0 | U186: 165.4 | V186: 99.4 | W186: 9.2 | X186: 0 | Y186: 204.115693 | Z186: 21.00038183 | AA186: 182.1454754 | AB186: 181.4098256 | AC186: 163.4376708 | AD186: 152.2821013 | AE186: 338.6 | AF186: 24573 | AG186: 15924.1 | AH186: 23852 | AI186: 53580.34 | AJ186: -29007.34 | AK186: 448 | AL186: 37 | AM186: 6 | AN186: 81.9 | AO186: 95 | AP186: 6.687242798 | AQ186: 69.6 | AR186: 194.4 | AS186: 22.1 | AT186: 27 | AU186: 1 | AV186: 0 | AW186: 1705.607143 | AY186: 1149.259259 | BE186: 1145.785714 | BG186: 0 | BH186: . | BJ186: 97.3 | BK186: 52133.67082 | BL186: 12.87955663 | BM186: 125.1843728 | BN186: 111.2588401 | BO186: 40 | BP186: 39 | BQ186: autres
A187: non | B187: 2 | C187: conventionnel | D187: eleveur naisseur | E187: 2023 | F187: 88272 | G187: 2 | H187: 2 | I187: 78.54 | J187: 122.63 | K187: 61.315 | L187: 1.561370003 | M187: 39.27 | N187: 601.7 | O187: 601.7 | P187: 0 | Q187: 306.5 | R187: 261.9 | S187: 154.5 | T187: 0 | U187: 154.5 | V187: 91.7 | W187: 15.7 | X187: 44.6 | Y187: 331.3711485 | Z187: 19.71925134 | AA187: 304.7361854 | AB187: 169.538961 | AC187: 117.2103074 | AD187: 227.1590965 | AE187: 295.2 | AF187: 19994 | AG187: 12191.5 | AH187: 20937 | AI187: 73779.9 | AJ187: -53785.9 | AK187: 415 | AL187: 37 | AM187: 6 | AN187: 79.62 | AO187: 90.77 | AP187: 8.560727662 | AQ187: 74.1 | AR187: 186.9 | AS187: 14.8 | AT187: 25 | AU187: 1 | AV187: 0 | AW187: 1925.32 | AY187: 1040.96 | BD187: 1447.375 | BE187: 1059.384615 | BG187: 0 | BH187: . | BJ187: 87.6 | BK187: 64631.1924 | BL187: 12.62945446 | BM187: 212.2310201 | BN187: 108.5834624 | BO187: 38 | BP187: 40 | BQ187: autres
A188: non | B188: 2 | C188: conventionnel | D188: eleveur naisseur | E188: 2019 | F188: 88273 | G188: 1 | H188: 1 | I188: 47.28 | J188: 76.45 | K188: 76.45 | L188: 1.616962775 | M188: 47.28 | N188: 887.4 | O188: 887.4 | P188: 0 | Q188: 444.9 | R188: 332.6 | S188: 168.2 | T188: 0 | U188: 168.2 | V188: 141.9 | W188: 22.5 | X188: 112.3 | Y188: 299.8221235 | Z188: 145.5700085 | AA188: 267.2423858 | AB188: 178.0847927 | AC188: 148.2146501 | AD188: 125.3888816 | AE188: 442.5 | AF188: 28146 | AG188: 11828.7 | AH188: 27401 | AI188: 51784.5 | AJ188: -23638.5 | AK188: 388 | AL188: 36 | AM188: 6 | AN188: 128.889 | AO188: 101.754 | AP188: 4.347826087 | AQ188: 45 | AR188: 115 | AS188: 2 | AT188: 36 | AU188: 0 | AV188: 0 | AW188: 1662.411765 | AY188: 1112.222222 | BE188: 1142.941176 | BG188: 0 | BH188: . | BJ188: 98.1 | BK188: 50800.5945 | BL188: 90.02681491 | BM188: 185.4230216 | BN188: 110.1353695 | BO188: 38 | BP188: 49 | BQ188: BBB
A189: non | B189: 3 | C189: conventionnel | D189: eleveur naisseur | E189: 2020 | F189: 88273 | G189: 1 | H189: 1 | I189: 48.54 | J189: 87.57 | K189: 87.57 | L189: 1.80407911 | M189: 48.54 | N189: 972.1 | O189: 972.1 | P189: 0 | Q189: 445.1 | R189: 312.1 | S189: 183.2 | T189: 0 | U189: 183.2 | V189: 102 | W189: 26.9 | X189: 133 | Y189: 318.2360733 | Z189: 135.0278121 | AA189: 277.0529254 | AB189: 264.310033 | AC189: 140.4701382 | AD189: 128.162727 | AE189: 527 | AF189: 40838 | AG189: 25281.9 | AH189: 41993 | AI189: 47944 | AJ189: -7106 | AK189: 406 | AL189: 33 | AM189: 5 | AN189: 123.188 | AO189: 101.493 | AP189: 1.423487544 | AQ189: 55.2 | AR189: 140.5 | AS189: 10 | AT189: 33 | AU189: 0 | AV189: 0 | AW189: 1843.423077 | AX189: 719.5 | AY189: 1070.666667 | BE189: 1155.192308 | BG189: 0 | BH189: . | BJ189: 91.6 | BK189: 43916.704 | BL189: 74.84583762 | BM189: 176.3980701 | BN189: 146.5068973 | BO189: 49 | BP189: 47 | BQ189: BBB
A190: non | B190: 2 | C190: conventionnel | D190: eleveur naisseur | E190: 2021 | F190: 88273 | G190: 1 | H190: 1 | I190: 48.46 | J190: 86.61 | K190: 86.61 | L190: 1.787247214 | M190: 48.46 | N190: 935.4 | O190: 935.4 | P190: 0 | Q190: 404.6 | R190: 299.1 | S190: 171.4 | T190: 0 | U190: 171.4 | V190: 96.8 | W190: 30.9 | X190: 105.5 | Y190: 409.8860916 | Z190: 154.7616591 | AA190: 393.2170863 | AB190: 210.017953 | AC190: 140.79298 | AD190: 129.7099642 | AE190: 530.8 | AF190: 34886 | AG190: 17574.2 | AH190: 33688 | AI190: 49841.18 | AJ190: -14955.18 | AK190: 412 | AL190: 33 | AM190: 5 | AN190: 105.88 | AO190: 100 | AP190: 3.584229391 | AQ190: 51 | AR190: 139.5 | AS190: 8.4 | AT190: 24 | AU190: 0 | AV190: 0 | AW190: 2059.222222 | AY190: 1224.208333 | BE190: 1244.826087 | BG190: 0 | BH190: . | BJ190: 98 | BK190: 48844.3564 | BL190: 86.5921949 | BM190: 229.3393373 | BN190: 117.5091791 | BO190: 35 | BP190: 35 | BQ190: BBB
A191: non | B191: 3 | C191: conventionnel | D191: eleveur naisseur | E191: 2022 | F191: 88273 | G191: 1 | H191: 1 | I191: 48.01 | J191: 96.9 | K191: 96.9 | L191: 2.018329515 | M191: 48.01 | N191: 1109.1 | O191: 1109.1 | P191: 0 | Q191: 499.1 | R191: 382.4 | S191: 198 | T191: 0 | U191: 198 | V191: 148.7 | W191: 35.7 | X191: 116.7 | Y191: 376.7596334 | Z191: 203.9887523 | AA191: 401.6838159 | AB191: 272.9629244 | AC191: 160.1960784 | AD191: 117.0977296 | AE191: 609.9 | AF191: 47607 | AG191: 29094 | AH191: 48869 | AI191: 52394.06 | AJ191: -4787.06 | AK191: 419 | AL191: 32 | AM191: 6 | AN191: 117.02 | AO191: 101.54 | AP191: 2.002670227 | AQ191: 56.4 | AR191: 149.8 | AS191: 12.5 | AT191: 33 | AU191: 0 | AV191: 0 | AW191: 2485.9 | AY191: 1263.515152 | BE191: 1288.25 | BG191: 0 | BH191: . | BJ191: 95.3 | BK191: 49931.53918 | BL191: 101.0681115 | BM191: 186.6690402 | BN191: 135.2420021 | BO191: 35 | BP191: 43 | BQ191: BBB
A192: non | B192: 3 | C192: conventionnel | D192: eleveur naisseur | E192: 2023 | F192: 88273 | G192: 1 | H192: 1 | I192: 48.38 | J192: 101.24 | K192: 101.24 | L192: 2.092600248 | M192: 48.38 | N192: 1157.8 | O192: 1157.8 | P192: 0 | Q192: 474.6 | R192: 353.7 | S192: 197 | T192: 0 | U192: 197 | V192: 132.1 | W192: 24.6 | X192: 120.9 | Y192: 292.5289376 | Z192: 228.8910707 | AA192: 410.9741629 | AB192: 270.3794957 | AC192: 138.6339392 | AD192: 151.3015606 | AE192: 683.2 | AF192: 63508 | AG192: 45349.5 | AH192: 65352 | AI192: 59068.5 | AJ192: 4439.5 | AK192: 398 | AL192: 33 | AM192: 5 | AN192: 123.42 | AO192: 101.3 | AP192: 3.645200486 | AQ192: 63.2 | AR192: 164.6 | AS192: 15.9 | AT192: 42 | AU192: 0 | AV192: 0 | AW192: 2359.166667 | AX192: 757.2 | AY192: 1105.428571 | BE192: 1163.411765 | BG192: 0 | BH192: . | BJ192: 95.5 | BK192: 56410.4175 | BL192: 109.3811734 | BM192: 139.7920782 | BN192: 129.2074279 | BO192: 47 | BP192: 51 | BQ192: autres
A193: non | B193: 2 | C193: conventionnel | D193: eleveur naisseur | E193: 2019 | F193: 88278 | G193: 2 | H193: 2 | I193: 87.14 | J193: 176.01 | K193: 88.005 | L193: 2.01985311 | M193: 43.57 | N193: 883.3 | O193: 883.3 | P193: 0 | Q193: 537.9 | R193: 461.7 | S193: 319.1 | T193: 18.5 | U193: 300.6 | V193: 113.9 | W193: 28.7 | X193: 76.2 | Y193: 450.7599151 | Z193: 138.9444572 | AA193: 437.9700367 | AB193: 304.0124053 | AC193: 126.9147776 | AD193: 136.1397564 | AE193: 345.4 | AF193: 17678 | AG193: 1254.4 | AH193: 20508 | AI193: 65412 | AJ193: -47734 | AK193: 420 | AL193: 35 | AM193: 5 | AN193: 113.846 | AO193: 99.107 | AP193: 1.721170396 | AQ193: 94.5 | AR193: 290.5 | AS193: 47.5 | AT193: 39 | AU193: 5 | AV193: 0 | AW193: 1740.428571 | AY193: 1277.641026 | BA193: 1287.4 | BD193: 1705.6 | BE193: 1278.75 | BG193: 0 | BH193: . | BJ193: 89.9 | BK193: 58805.388 | BL193: 68.78938697 | BM193: 223.1647009 | BN193: 150.5121357 | BO193: 39 | BP193: 51 | BQ193: BBB
A194: non | B194: 3 | C194: conventionnel | D194: eleveur naisseur | E194: 2020 | F194: 88278 | G194: 2 | H194: 2 | I194: 87.14 | J194: 176.72 | K194: 88.36 | L194: 2.028000918 | M194: 43.57 | N194: 978.6 | O194: 978.6 | P194: 0 | Q194: 541.9 | R194: 453.2 | S194: 331.2 | T194: 20.2 | U194: 311 | V194: 99.6 | W194: 22.4 | X194: 88.7 | Y194: 344.9209318 | Z194: 121.9847372 | AA194: 321.7648726 | AB194: 299.4646546 | AC194: 143.91744 | AD194: 132.5466631 | AE194: 436.7 | AF194: 36162 | AG194: 20893.7 | AH194: 48621 | AI194: 66384 | AJ194: -30222 | AK194: 417 | AL194: 34 | AM194: 5 | AN194: 113.937 | AO194: 100.901 | AP194: 3.50385424 | AQ194: 95.3 | AR194: 285.4 | AS194: 36.6 | AT194: 47 | AU194: 8 | AV194: 0 | AW194: 2003.853659 | AY194: 1360.659574 | BA194: 1690.25 | BE194: 1423.428571 | BG194: 0 | BH194: . | BJ194: 79.7 | BK194: 52908.048 | BL194: 60.15023766 | BM194: 170.079278 | BN194: 147.6649502 | BO194: 44 | BP194: 51 | BQ194: BBB
A195: non | B195: 2 | C195: conventionnel | D195: eleveur naisseur | E195: 2021 | F195: 88278 | G195: 2 | H195: 2 | I195: 90.71 | J195: 175.8 | K195: 87.9 | L195: 1.938044317 | M195: 45.355 | N195: 1093.1 | O195: 1093.1 | P195: 0 | Q195: 542.2 | R195: 480.2 | S195: 321.4 | T195: 31.1 | U195: 290.3 | V195: 130.2 | W195: 28.6 | X195: 61.9 | Y195: 383.47944 | Z195: 115.814133 | AA195: 360.3461581 | AB195: 295.2524529 | AC195: 148.4962457 | AD195: 138.2882524 | AE195: 550.9 | AF195: 39193 | AG195: 23857.3 | AH195: 42877 | AI195: 67708.77 | AJ195: -28515.77 | AK195: 413 | AL195: 32 | AM195: 5 | AN195: 106.86 | AO195: 99.09 | AP195: 3.798342541 | AQ195: 99 | AR195: 289.6 | AS195: 43.1 | AT195: 48 | AU195: 3 | AV195: 0 | AW195: 2079.076923 | AY195: 1543.104167 | BE195: 1577.14 | BG195: 0 | BH195: . | BJ195: 90.9 | BK195: 61547.27193 | BL195: 59.75824801 | BM195: 197.8692833 | BN195: 152.3455631 | BO195: 55 | BP195: 54 | BQ195: BBB
A196: non | B196: 2 | C196: conventionnel | D196: eleveur naisseur | E196: 2022 | F196: 88278 | G196: 2 | H196: 2 | I196: 88.41 | J196: 169.75 | K196: 84.875 | L196: 1.920031671 | M196: 44.205 | N196: 1207.7 | O196: 1207.7 | P196: 0 | Q196: 559 | R196: 490.7 | S196: 346 | T196: 62 | U196: 284 | V196: 119.4 | W196: 25.3 | X196: 68.2 | Y196: 466.6691551 | Z196: 159.0634544 | AA196: 474.7044452 | AB196: 300.5782151 | AC196: 150.9926362 | AD196: 145.2057951 | AE196: 648.7 | AF196: 39981 | AG196: 24653.9 | AH196: 40190 | AI196: 71176.84 | AJ196: -31195.84 | AK196: 442 | AL196: 34 | AM196: 5 | AN196: 112.15 | AO196: 99.08 | AP196: 2.884962135 | AQ196: 94.1 | AR196: 277.3 | AS196: 38.7 | AT196: 41 | AU196: 5 | AV196: 0 | AW196: 2438.461538 | AY196: 1520.097561 | BA196: 1545.4 | BE196: 1522.847826 | BG196: 0 | BH196: . | BJ196: 92.5 | BK196: 65838.577 | BL196: 82.84418262 | BM196: 243.0528424 | BN196: 156.5485714 | BO196: 43 | BP196: 46 | BQ196: BBB
A197: non | B197: 2 | C197: conventionnel | D197: eleveur naisseur | E197: 2023 | F197: 88278 | G197: 2 | H197: 2 | I197: 87.77 | J197: 170.64 | K197: 85.32 | L197: 1.944172268 | M197: 43.885 | N197: 1163.6 | O197: 1151.8 | P197: 11.8 | Q197: 640 | R197: 566.2 | S197: 427.1 | T197: 80.4 | U197: 346.7 | V197: 108 | W197: 31.1 | X197: 73.8 | Y197: 565.6975048 | Z197: 154.1648627 | AA197: 568.8439102 | AB197: 299.3885154 | AC197: 118.9170183 | AD197: 165.5258503 | AE197: 523.7 | AF197: 26791 | AG197: 11989.8 | AH197: 29436 | AI197: 80244 | AJ197: -53453 | AK197: 444 | AL197: 33 | AM197: 5 | AN197: 100.53 | AO197: 100 | AP197: 2.189781022 | AQ197: 91.5 | AR197: 274 | AS197: 35.9 | AT197: 49 | AU197: 4 | AV197: 0 | AW197: 2308.574074 | AY197: 1498.55102 | BE197: 1514.057692 | BG197: 0 | BH197: . | BJ197: 90.9 | BK197: 72941.796 | BL197: 79.29588608 | BM197: 290.9708744 | BN197: 153.9927918 | BO197: 59 | BP197: 46 | BQ197: BBB
